Workbook

Sheet עמוד חודשי
A1: =TODAY()-50 -> 2025-01-05 | I1: ='עמוד תיקוף ובדיקה'!$A$3 -> מרץ | J1: =YEAR(A1) -> 2025
S7: ="התפלגות הקרנות לחודש "&I1&" "&J1 -> התפלגות הקרנות לחודש מרץ 2025
S8: ="15 הקרנות המובילות לחודש"&" "&I1&" "&J1 -> 15 הקרנות המובילות לחודש מרץ 2025
F9: ="עדכון בדבר דירוגי קרנות סל ומחקות עבור חודש"&" "&'ריכוז חודשי'!X1&" "&J1 -> עדכון בדבר דירוגי קרנות סל ומחקות עבור חודש מרץ 2025
F11: סך מספר קרנות סל ומחקות מדורגות ESG | K11: =SUM(S13:S15) -> 799
F13: סך הקרנות בדירוג נמוך | R13: נמוך | S13: ='ריכוז חודשי'!Q53 -> 123
R14: בינוני | S14: ='ריכוז חודשי'!Q52 -> 372
F15: סך הקרנות בדירוג בינוני | R15: גבוה | S15: ='ריכוז חודשי'!Q51 -> 304
F17: סך הקרנות בדירוג גבוה
F21: ='ריכוז חודשי'!H4 -> 1143726
F22: ='ריכוז חודשי'!H5 -> 1146430
F23: ='ריכוז חודשי'!H6 -> 1148774
F24: ='ריכוז חודשי'!H7 -> 1148949
F25: ='ריכוז חודשי'!H8 -> 5130018
F26: ='ריכוז חודשי'!H9 -> 5131925
F27: ='ריכוז חודשי'!H10 -> 5131966
F28: ='ריכוז חודשי'!H11 -> 5133616
F29: ='ריכוז חודשי'!H12 -> 5134168
F30: ='ריכוז חודשי'!H13 -> 1187764
F31: ='ריכוז חודשי'!H14 -> 5137302
F32: ='ריכוז חודשי'!H15 -> 5137674
F33: ='ריכוז חודשי'!H16 -> 5138086
F34: ='ריכוז חודשי'!H17 -> 5138318
F35: ='ריכוז חודשי'!H18 -> 5130372
F40: עולות ויורדות
F42: ="עלו בחודש "&$I$1&" מ:" -> עלו בחודש מרץ מ: | L42: ="ירדו בחודש "&$I$1&" מ:" -> ירדו בחודש מרץ מ:
F43: ='ריכוז חודשי'!Q61 -> מבינוני -> לגבוה | L43: ='ריכוז חודשי'!S61 -> מגבוה -> לבינוני
F44: =IFERROR(IF(G44="","",INDEX('ריכוז חודשי'!$H$4:$I$4000,MATCH(G44,'ריכוז חודשי'!$I$4:$I$4000,0),1)),"") -> 5115100 | G44: ='ריכוז חודשי'!Q62 -> אי.בי.אי. מחקה (00) תל בונד 60 | L44: =IFERROR(IF(M44="","",INDEX('ריכוז חודשי'!$H$4:$I$4000,MATCH(M44,'ריכוז חודשי'!$I$4:$I$4000,0),1)),"") ->  | M44: =IF('ריכוז חודשי'!S62="","לא היו קרנות בסטטוס זה החודש",'ריכוז חודשי'!S62) -> לא היו קרנות בסטטוס זה החודש
F45: =IFERROR(IF(G45="","",INDEX('ריכוז חודשי'!$H$4:$I$4000,MATCH(G45,'ריכוז חודשי'!$I$4:$I$4000,0),1)),"") -> 5118021 | G45: ='ריכוז חודשי'!Q63 -> קסם KTFי (00) תל בונד 60 | L45: =IFERROR(IF(M45="","",INDEX('ריכוז חודשי'!$H$4:$I$4000,MATCH(M45,'ריכוז חודשי'!$I$4:$I$4000,0),1)),"") ->  | M45: ='ריכוז חודשי'!S63 -> 
F46: =IFERROR(IF(G46="","",INDEX('ריכוז חודשי'!$H$4:$I$4000,MATCH(G46,'ריכוז חודשי'!$I$4:$I$4000,0),1)),"") -> 5121835 | G46: ='ריכוז חודשי'!Q64 -> הראל מחקה (00) תל בונד 60 | L46: =IFERROR(IF(M46="","",INDEX('ריכוז חודשי'!$H$4:$I$4000,MATCH(M46,'ריכוז חודשי'!$I$4:$I$4000,0),1)),"") ->  | M46: ='ריכוז חודשי'!S64 -> 
F47: =IFERROR(IF(G47="","",INDEX('ריכוז חודשי'!$H$4:$I$4000,MATCH(G47,'ריכוז חודשי'!$I$4:$I$4000,0),1)),"") -> 5122262 | G47: ='ריכוז חודשי'!Q65 -> MTF מחקה (00) תל בונד 60 | L47: =IFERROR(IF(M47="","",INDEX('ריכוז חודשי'!$H$4:$I$4000,MATCH(M47,'ריכוז חודשי'!$I$4:$I$4000,0),1)),"") ->  | M47: ='ריכוז חודשי'!S65 -> 
F48: =IFERROR(IF(G48="","",INDEX('ריכוז חודשי'!$H$4:$I$4000,MATCH(G48,'ריכוז חודשי'!$I$4:$I$4000,0),1)),"") -> 1145101 | G48: ='ריכוז חודשי'!Q66 -> תכלית סל (00) תל בונד 60 | L48: =IFERROR(IF(M48="","",INDEX('ריכוז חודשי'!$H$4:$I$4000,MATCH(M48,'ריכוז חודשי'!$I$4:$I$4000,0),1)),"") ->  | M48: ='ריכוז חודשי'!S66 -> 
F49: =IFERROR(IF(G49="","",INDEX('ריכוז חודשי'!$H$4:$I$4000,MATCH(G49,'ריכוז חודשי'!$I$4:$I$4000,0),1)),"") -> 1146232 | G49: ='ריכוז חודשי'!Q67 -> קסם ETFי (00) תל בונד 60 | L49: =IFERROR(IF(M49="","",INDEX('ריכוז חודשי'!$H$4:$I$4000,MATCH(M49,'ריכוז חודשי'!$I$4:$I$4000,0),1)),"") ->  | M49: ='ריכוז חודשי'!S67 -> 
F50: ='ריכוז חודשי'!Q70 -> מנמוך -> לבינוני | L50: ='ריכוז חודשי'!S70 -> מבינוני -> לנמוך
F51: =IFERROR(IF(G51="","",INDEX('ריכוז חודשי'!$H$4:$I$4000,MATCH(G51,'ריכוז חודשי'!$I$4:$I$4000,0),1)),"") -> 5116918 | G51: ='ריכוז חודשי'!Q71 -> MTF מחקה‏ (00) תל בונד צמודות יתר | L51: =IFERROR(IF(M51="","",INDEX('ריכוז חודשי'!$H$4:$I$4000,MATCH(M51,'ריכוז חודשי'!$I$4:$I$4000,0),1)),"") -> 5137526 | M51: =IF('ריכוז חודשי'!S71="","לא היו קרנות בסטטוס זה החודש",'ריכוז חודשי'!S71) -> PTFי (00) אינדקס אג"ח קופון גבוה מחלקת
D52: min | F52: =IFERROR(IF(G52="","",INDEX('ריכוז חודשי'!$H$4:$I$4000,MATCH(G52,'ריכוז חודשי'!$I$4:$I$4000,0),1)),"") -> 5117049 | G52: ='ריכוז חודשי'!Q72 -> אי.בי.אי. מחקה (00) תל בונד צמודות- יתר | L52: =IFERROR(IF(M52="","",INDEX('ריכוז חודשי'!$H$4:$I$4000,MATCH(M52,'ריכוז חודשי'!$I$4:$I$4000,0),1)),"") ->  | M52: ='ריכוז חודשי'!S72 ->  | R52: MIN
D53: =MIN('ריכוז חודשי'!R5:R9)*0.98 -> 68.8744 | F53: =IFERROR(IF(G53="","",INDEX('ריכוז חודשי'!$H$4:$I$4000,MATCH(G53,'ריכוז חודשי'!$I$4:$I$4000,0),1)),"") -> 5117494 | G53: ='ריכוז חודשי'!Q73 -> PTF‏ (00) תל בונד צמודות-יתר | L53: =IFERROR(IF(M53="","",INDEX('ריכוז חודשי'!$H$4:$I$4000,MATCH(M53,'ריכוז חודשי'!$I$4:$I$4000,0),1)),"") ->  | M53: ='ריכוז חודשי'!S73 ->  | R53: =MIN('ריכוז חודשי'!R19:R23)*0.98 -> 50.225
F54: ='ריכוז חודשי'!Q78 -> מנמוך -> לגבוה | L54: ='ריכוז חודשי'!S78 -> מגבוה -> לנמוך
F55: =IFERROR(IF(G55="","",INDEX('ריכוז חודשי'!$H$4:$I$4000,MATCH(G55,'ריכוז חודשי'!$I$4:$I$4000,0),1)),"") ->  | G55: =IF('ריכוז חודשי'!Q79="","לא היו קרנות בסטטוס זה החודש",'ריכוז חודשי'!Q79) -> לא היו קרנות בסטטוס זה החודש | L55: =IFERROR(IF(M55="","",INDEX('ריכוז חודשי'!$H$4:$I$4000,MATCH(M55,'ריכוז חודשי'!$I$4:$I$4000,0),1)),"") ->  | M55: =IF('ריכוז חודשי'!S79="","לא היו קרנות בסטטוס זה החודש",'ריכוז חודשי'!S79) -> לא היו קרנות בסטטוס זה החודש
F56: =IFERROR(IF(G56="","",INDEX('ריכוז חודשי'!$H$4:$I$4000,MATCH(G56,'ריכוז חודשי'!$I$4:$I$4000,0),1)),"") ->  | G56: ='ריכוז חודשי'!Q80 ->  | L56: =IFERROR(IF(M56="","",INDEX('ריכוז חודשי'!$H$4:$I$4000,MATCH(M56,'ריכוז חודשי'!$I$4:$I$4000,0),1)),"") ->  | M56: ='ריכוז חודשי'!S80 -> 
F57: =IFERROR(IF(G57="","",INDEX('ריכוז חודשי'!$H$4:$I$4000,MATCH(G57,'ריכוז חודשי'!$I$4:$I$4000,0),1)),"") ->  | G57: ='ריכוז חודשי'!Q81 ->  | L57: =IFERROR(IF(M57="","",INDEX('ריכוז חודשי'!$H$4:$I$4000,MATCH(M57,'ריכוז חודשי'!$I$4:$I$4000,0),1)),"") ->  | M57: ='ריכוז חודשי'!S81 -> 
E58: דירוגי דיסקונט בולטים של קרנות סל ומחקות
F59: ="הקרנות המובילות לחודש"&" "&'ריכוז חודשי'!X1&" "&YEAR($A$1)&" לפי דירוג דיסקונט ו-ESG" -> הקרנות המובילות לחודש מרץ 2025 לפי דירוג דיסקונט ו-ESG | L59: ="הקרנות בציונים הנמוכים ביותר לחודש"&" "&$I$1&" "&YEAR($A$1)&" לפי דירוג דיסקונט ו-ESG" -> הקרנות בציונים הנמוכים ביותר לחודש מרץ 2025 לפי דירוג דיסקונט ו-ESG
F61: מספר הקרן | G61: שם הקרן | I61: דירוג דיסקונט | J61: ציון ESG | L61: מספר הקרן | M61: שם הקרן | O61: דירוג דיסקונט | P61: ציון ESG
F62: =IFERROR(INDEX('עמוד תיקוף ובדיקה'!$U$3:$V$2000,MATCH(G62,'עמוד תיקוף ובדיקה'!$V$3:$V$2000,0),1),"") -> 1143726 | G62: תכלית סל (40) אינדקס בנקים ישראל | I62: =IFERROR(VLOOKUP(F62,'עמוד תיקוף ובדיקה'!$U$3:$AM$2000,19,FALSE),"") -> ירוק | J62: =IFERROR(VLOOKUP(F62,'עמוד תיקוף ובדיקה'!$U$3:$AM$2000,18,FALSE),"") -> 100 | L62: =IFERROR(IF(INDEX('עמוד תיקוף ובדיקה'!$U$3:$V$2000,MATCH(M62,'עמוד תיקוף ובדיקה'!$V$3:$V$2000,0),1)=0,"",INDEX('עמוד תיקוף ובדיקה'!$U$3:$V$2000,MATCH(M62,'עמוד תיקוף ובדיקה'!$V$3:$V$2000,0),1)),"") -> 5123930 | M62: PTFי (00)(!) אינדקס אג"ח עם רכיב בטוחה | O62: =IFERROR(VLOOKUP(L62,'עמוד תיקוף ובדיקה'!$U$3:$AM$2000,19,FALSE),"") -> אדום | P62: =IFERROR(VLOOKUP(L62,'עמוד תיקוף ובדיקה'!$U$3:$AM$2000,18,FALSE),"") -> 25.31
F63: =IFERROR(INDEX('עמוד תיקוף ובדיקה'!$U$3:$V$2000,MATCH(G63,'עמוד תיקוף ובדיקה'!$V$3:$V$2000,0),1),"") -> 1146430 | G63: קסם 4A) ETF) אינדקס בנקים ישראל | I63: =IFERROR(VLOOKUP(F63,'עמוד תיקוף ובדיקה'!$U$3:$AM$2000,19,FALSE),"") -> ירוק | J63: =IFERROR(VLOOKUP(F63,'עמוד תיקוף ובדיקה'!$U$3:$AM$2000,18,FALSE),"") -> 100 | L63: =IFERROR(IF(INDEX('עמוד תיקוף ובדיקה'!$U$3:$V$2000,MATCH(M63,'עמוד תיקוף ובדיקה'!$V$3:$V$2000,0),1)=0,"",INDEX('עמוד תיקוף ובדיקה'!$U$3:$V$2000,MATCH(M63,'עמוד תיקוף ובדיקה'!$V$3:$V$2000,0),1)),"") -> 5132782 | M63: קסם 4A) KTF) ת"א-בנייה | O63: =IFERROR(VLOOKUP(L63,'עמוד תיקוף ובדיקה'!$U$3:$AM$2000,19,FALSE),"") -> אדום | P63: =IFERROR(VLOOKUP(L63,'עמוד תיקוף ובדיקה'!$U$3:$AM$2000,18,FALSE),"") -> 29.96
F64: =IFERROR(INDEX('עמוד תיקוף ובדיקה'!$U$3:$V$2000,MATCH(G64,'עמוד תיקוף ובדיקה'!$V$3:$V$2000,0),1),"") -> 1148774 | G64: פסגות ETFי (4A) אינדקס בנקים ישראל | I64: =IFERROR(VLOOKUP(F64,'עמוד תיקוף ובדיקה'!$U$3:$AM$2000,19,FALSE),"") -> ירוק | J64: =IFERROR(VLOOKUP(F64,'עמוד תיקוף ובדיקה'!$U$3:$AM$2000,18,FALSE),"") -> 100 | L64: =IFERROR(IF(INDEX('עמוד תיקוף ובדיקה'!$U$3:$V$2000,MATCH(M64,'עמוד תיקוף ובדיקה'!$V$3:$V$2000,0),1)=0,"",INDEX('עמוד תיקוף ובדיקה'!$U$3:$V$2000,MATCH(M64,'עמוד תיקוף ובדיקה'!$V$3:$V$2000,0),1)),"") -> 5132956 | M64: קסם KTFי (00) אינדקס אג"ח סקטור באלאנס | O64: =IFERROR(VLOOKUP(L64,'עמוד תיקוף ובדיקה'!$U$3:$AM$2000,19,FALSE),"") -> אדום | P64: =IFERROR(VLOOKUP(L64,'עמוד תיקוף ובדיקה'!$U$3:$AM$2000,18,FALSE),"") -> 56.37
F65: =IFERROR(INDEX('עמוד תיקוף ובדיקה'!$U$3:$V$2000,MATCH(G65,'עמוד תיקוף ובדיקה'!$V$3:$V$2000,0),1),"") -> 1148949 | G65: הראל סל (4A) אינדקס בנקים ישראל | I65: =IFERROR(VLOOKUP(F65,'עמוד תיקוף ובדיקה'!$U$3:$AM$2000,19,FALSE),"") -> ירוק | J65: =IFERROR(VLOOKUP(F65,'עמוד תיקוף ובדיקה'!$U$3:$AM$2000,18,FALSE),"") -> 100 | L65: =IFERROR(IF(INDEX('עמוד תיקוף ובדיקה'!$U$3:$V$2000,MATCH(M65,'עמוד תיקוף ובדיקה'!$V$3:$V$2000,0),1)=0,"",INDEX('עמוד תיקוף ובדיקה'!$U$3:$V$2000,MATCH(M65,'עמוד תיקוף ובדיקה'!$V$3:$V$2000,0),1)),"") -> 5113063 | M65: אי.בי.אי. מחקה (4A) ת"א 125 | O65: =IFERROR(VLOOKUP(L65,'עמוד תיקוף ובדיקה'!$U$3:$AM$2000,19,FALSE),"") -> אדום | P65: =IFERROR(VLOOKUP(L65,'עמוד תיקוף ובדיקה'!$U$3:$AM$2000,18,FALSE),"") -> 66.99
F66: =IFERROR(INDEX('עמוד תיקוף ובדיקה'!$U$3:$V$2000,MATCH(G66,'עמוד תיקוף ובדיקה'!$V$3:$V$2000,0),1),"") -> 1187764 | G66: מור סל (4A) אינדקס בנקים משקל שווה | I66: =IFERROR(VLOOKUP(F66,'עמוד תיקוף ובדיקה'!$U$3:$AM$2000,19,FALSE),"") -> ירוק | J66: =IFERROR(VLOOKUP(F66,'עמוד תיקוף ובדיקה'!$U$3:$AM$2000,18,FALSE),"") -> 100 | L66: =IFERROR(IF(INDEX('עמוד תיקוף ובדיקה'!$U$3:$V$2000,MATCH(M66,'עמוד תיקוף ובדיקה'!$V$3:$V$2000,0),1)=0,"",INDEX('עמוד תיקוף ובדיקה'!$U$3:$V$2000,MATCH(M66,'עמוד תיקוף ובדיקה'!$V$3:$V$2000,0),1)),"") -> 5101506 | M66: אי.בי.אי. מחקה (4A) ת"א 35 | O66: =IFERROR(VLOOKUP(L66,'עמוד תיקוף ובדיקה'!$U$3:$AM$2000,19,FALSE),"") -> אדום | P66: =IFERROR(VLOOKUP(L66,'עמוד תיקוף ובדיקה'!$U$3:$AM$2000,18,FALSE),"") -> 76.99
F67: =IFERROR(INDEX('עמוד תיקוף ובדיקה'!$U$3:$V$2000,MATCH(G67,'עמוד תיקוף ובדיקה'!$V$3:$V$2000,0),1),"") -> 5131966 | G67: מור מחקה (4A) אינדקס בנקים משקל שווה | I67: =IFERROR(VLOOKUP(F67,'עמוד תיקוף ובדיקה'!$U$3:$AM$2000,19,FALSE),"") -> ירוק | J67: =IFERROR(VLOOKUP(F67,'עמוד תיקוף ובדיקה'!$U$3:$AM$2000,18,FALSE),"") -> 100 | L67: =IFERROR(IF(INDEX('עמוד תיקוף ובדיקה'!$U$3:$V$2000,MATCH(M67,'עמוד תיקוף ובדיקה'!$V$3:$V$2000,0),1)=0,"",INDEX('עמוד תיקוף ובדיקה'!$U$3:$V$2000,MATCH(M67,'עמוד תיקוף ובדיקה'!$V$3:$V$2000,0),1)),"") ->  | O67: =IFERROR(VLOOKUP(L67,'עמוד תיקוף ובדיקה'!$U$3:$AM$2000,19,FALSE),"") ->  | P67: =IFERROR(VLOOKUP(L67,'עמוד תיקוף ובדיקה'!$U$3:$AM$2000,18,FALSE),"") -> 
F68: =IFERROR(INDEX('עמוד תיקוף ובדיקה'!$U$3:$V$2000,MATCH(G68,'עמוד תיקוף ובדיקה'!$V$3:$V$2000,0),1),"") -> 5134168 | G68: PTFי (4A) אינדקס בנקים ישראל | I68: =IFERROR(VLOOKUP(F68,'עמוד תיקוף ובדיקה'!$U$3:$AM$2000,19,FALSE),"") -> ירוק | J68: =IFERROR(VLOOKUP(F68,'עמוד תיקוף ובדיקה'!$U$3:$AM$2000,18,FALSE),"") -> 100 | L68: =IFERROR(IF(INDEX('עמוד תיקוף ובדיקה'!$U$3:$V$2000,MATCH(M68,'עמוד תיקוף ובדיקה'!$V$3:$V$2000,0),1)=0,"",INDEX('עמוד תיקוף ובדיקה'!$U$3:$V$2000,MATCH(M68,'עמוד תיקוף ובדיקה'!$V$3:$V$2000,0),1)),"") ->  | O68: =IFERROR(VLOOKUP(L68,'עמוד תיקוף ובדיקה'!$U$3:$AM$2000,19,FALSE),"") ->  | P68: =IFERROR(VLOOKUP(L68,'עמוד תיקוף ובדיקה'!$U$3:$AM$2000,18,FALSE),"") -> 
F69: =IFERROR(INDEX('עמוד תיקוף ובדיקה'!$U$3:$V$2000,MATCH(G69,'עמוד תיקוף ובדיקה'!$V$3:$V$2000,0),1),"") -> 1144823 | G69: תכלית סל (00) תל בונד צמודות בנקים | I69: =IFERROR(VLOOKUP(F69,'עמוד תיקוף ובדיקה'!$U$3:$AM$2000,19,FALSE),"") -> ירוק | J69: =IFERROR(VLOOKUP(F69,'עמוד תיקוף ובדיקה'!$U$3:$AM$2000,18,FALSE),"") -> 97.3 | L69: =IFERROR(IF(INDEX('עמוד תיקוף ובדיקה'!$U$3:$V$2000,MATCH(M69,'עמוד תיקוף ובדיקה'!$V$3:$V$2000,0),1)=0,"",INDEX('עמוד תיקוף ובדיקה'!$U$3:$V$2000,MATCH(M69,'עמוד תיקוף ובדיקה'!$V$3:$V$2000,0),1)),"") ->  | O69: =IFERROR(VLOOKUP(L69,'עמוד תיקוף ובדיקה'!$U$3:$AM$2000,19,FALSE),"") ->  | P69: =IFERROR(VLOOKUP(L69,'עמוד תיקוף ובדיקה'!$U$3:$AM$2000,18,FALSE),"") -> 
F70: =IFERROR(INDEX('עמוד תיקוף ובדיקה'!$U$3:$V$2000,MATCH(G70,'עמוד תיקוף ובדיקה'!$V$3:$V$2000,0),1),"") -> 1190776 | G70: הראל סל (00) תל בונד צמודות-בנקים | I70: =IFERROR(VLOOKUP(F70,'עמוד תיקוף ובדיקה'!$U$3:$AM$2000,19,FALSE),"") -> ירוק | J70: =IFERROR(VLOOKUP(F70,'עמוד תיקוף ובדיקה'!$U$3:$AM$2000,18,FALSE),"") -> 97.3 | L70: =IFERROR(IF(INDEX('עמוד תיקוף ובדיקה'!$U$3:$V$2000,MATCH(M70,'עמוד תיקוף ובדיקה'!$V$3:$V$2000,0),1)=0,"",INDEX('עמוד תיקוף ובדיקה'!$U$3:$V$2000,MATCH(M70,'עמוד תיקוף ובדיקה'!$V$3:$V$2000,0),1)),"") ->  | O70: =IFERROR(VLOOKUP(L70,'עמוד תיקוף ובדיקה'!$U$3:$AM$2000,19,FALSE),"") ->  | P70: =IFERROR(VLOOKUP(L70,'עמוד תיקוף ובדיקה'!$U$3:$AM$2000,18,FALSE),"") -> 
E72: דירוג דיסקונט של קרנות סל ומחקות חדשות
F74: מספר הקרן | H74: שם הקרן | L74: דירוג דיסקונט | N74: דירוג ESG | P74: ציון ESG
F75: =IFERROR(INDEX('עמוד תיקוף ובדיקה'!$U$3:$V$2001,MATCH(H75,'עמוד תיקוף ובדיקה'!$V$3:$V$2001,0),1),"") -> 5138268 | H75: =IFERROR(IF(_xlfn._xlws.FILTER(('עמוד תיקוף ובדיקה'!$V$3:$V$2000),('עמוד תיקוף ובדיקה'!$AJ$3:$AJ$2000=1)*('עמוד תיקוף ובדיקה'!$AK$3:$AK$2000="")*('עמוד תיקוף ובדיקה'!$AM$3:$AM$2000<>"לא מדורג"))=0,"אין קרנות חדשות לתצוגה עם דירוג ספיר",_xlfn._xlws.FILTER(('עמוד תיקוף ובדיקה'!$V$3:$V$2000),('עמוד תיקוף ובדיקה'!$AJ$3:$AJ$2000=1)*('עמוד תיקוף ובדיקה'!$AK$3:$AK$2000="")*('עמוד תיקוף ובדיקה'!$AM$3:$AM$2000<>"לא מדורג"))),"אין קרנות חדשות לתצוגה עם דירוג ספיר") -> קסם KTFי (4A) אינדקס בינוי והנדסת תשתיות | L75: =IFERROR(_xlfn.XLOOKUP(F75,INDIRECT($I$1&"[מספר קרן]"),INDIRECT($I$1&"[דירוג ספיר]")),"") -> ירוק | N75: =IFERROR(IF(P75="","",IF(P75>=70,"גבוה",IF(P75>=40,"בינוני","נמוך"))),"") -> נמוך | P75: =IFERROR(_xlfn.XLOOKUP(F75,INDIRECT($I$1&"[מספר קרן]"),INDIRECT($I$1&"[ESG_DB]")),"") -> 36.12
F76: =IFERROR(INDEX('עמוד תיקוף ובדיקה'!$U$3:$V$2001,MATCH(H76,'עמוד תיקוף ובדיקה'!$V$3:$V$2001,0),1),"") ->  | L76: =IFERROR(_xlfn.XLOOKUP(F76,INDIRECT($I$1&"[מספר קרן]"),INDIRECT($I$1&"[דירוג ספיר]")),"") ->  | N76: =IFERROR(IF(P76="","",IF(P76>=70,"גבוה",IF(P76>=40,"בינוני","נמוך"))),"") ->  | P76: =IFERROR(_xlfn.XLOOKUP(F76,INDIRECT($I$1&"[מספר קרן]"),INDIRECT($I$1&"[ESG_DB]")),"") -> 
F77: =IFERROR(INDEX('עמוד תיקוף ובדיקה'!$U$3:$V$2001,MATCH(H77,'עמוד תיקוף ובדיקה'!$V$3:$V$2001,0),1),"") ->  | L77: =IFERROR(_xlfn.XLOOKUP(F77,INDIRECT($I$1&"[מספר קרן]"),INDIRECT($I$1&"[דירוג ספיר]")),"") ->  | P77: =IFERROR(_xlfn.XLOOKUP(F77,INDIRECT($I$1&"[מספר קרן]"),INDIRECT($I$1&"[ESG_DB]")),"") -> 
F78: =IFERROR(INDEX('עמוד תיקוף ובדיקה'!$U$3:$V$2001,MATCH(H78,'עמוד תיקוף ובדיקה'!$V$3:$V$2001,0),1),"") ->  | L78: =IFERROR(_xlfn.XLOOKUP(F78,INDIRECT($I$1&"[מספר קרן]"),INDIRECT($I$1&"[דירוג ספיר]")),"") ->  | P78: =IFERROR(_xlfn.XLOOKUP(F78,INDIRECT($I$1&"[מספר קרן]"),INDIRECT($I$1&"[ESG_DB]")),"") -> 
F79: =IFERROR(INDEX('עמוד תיקוף ובדיקה'!$U$3:$V$2001,MATCH(H79,'עמוד תיקוף ובדיקה'!$V$3:$V$2001,0),1),"") ->  | L79: =IFERROR(_xlfn.XLOOKUP(F79,INDIRECT($I$1&"[מספר קרן]"),INDIRECT($I$1&"[דירוג ספיר]")),"") ->  | P79: =IFERROR(_xlfn.XLOOKUP(F79,INDIRECT($I$1&"[מספר קרן]"),INDIRECT($I$1&"[ESG_DB]")),"") -> 
F80: =IFERROR(INDEX('עמוד תיקוף ובדיקה'!$U$3:$V$2001,MATCH(H80,'עמוד תיקוף ובדיקה'!$V$3:$V$2001,0),1),"") ->  | L80: =IFERROR(_xlfn.XLOOKUP(F80,INDIRECT($I$1&"[מספר קרן]"),INDIRECT($I$1&"[דירוג ספיר]")),"") ->  | P80: =IFERROR(_xlfn.XLOOKUP(F80,INDIRECT($I$1&"[מספר קרן]"),INDIRECT($I$1&"[ESG_DB]")),"") -> 
F81: =IFERROR(INDEX('עמוד תיקוף ובדיקה'!$U$3:$V$2001,MATCH(H81,'עמוד תיקוף ובדיקה'!$V$3:$V$2001,0),1),"") ->  | L81: =IFERROR(_xlfn.XLOOKUP(F81,INDIRECT($I$1&"[מספר קרן]"),INDIRECT($I$1&"[דירוג ספיר]")),"") ->  | P81: =IFERROR(_xlfn.XLOOKUP(F81,INDIRECT($I$1&"[מספר קרן]"),INDIRECT($I$1&"[ESG_DB]")),"") -> 
F82: =IFERROR(INDEX('עמוד תיקוף ובדיקה'!$U$3:$V$2001,MATCH(H82,'עמוד תיקוף ובדיקה'!$V$3:$V$2001,0),1),"") ->  | L82: =IFERROR(_xlfn.XLOOKUP(F82,INDIRECT($I$1&"[מספר קרן]"),INDIRECT($I$1&"[דירוג ספיר]")),"") ->  | P82: =IFERROR(_xlfn.XLOOKUP(F82,INDIRECT($I$1&"[מספר קרן]"),INDIRECT($I$1&"[ESG_DB]")),"") -> 
F83: =IFERROR(INDEX('עמוד תיקוף ובדיקה'!$U$3:$V$2001,MATCH(H83,'עמוד תיקוף ובדיקה'!$V$3:$V$2001,0),1),"") ->  | L83: =IFERROR(_xlfn.XLOOKUP(F83,INDIRECT($I$1&"[מספר קרן]"),INDIRECT($I$1&"[דירוג ספיר]")),"") ->  | P83: =IFERROR(_xlfn.XLOOKUP(F83,INDIRECT($I$1&"[מספר קרן]"),INDIRECT($I$1&"[ESG_DB]")),"") -> 
E84: תריסר מומלצות - המלצת המערכת ל 12 הקרנות המובילות בשילוב דירוג דיסקונט | F84: המלצת המערכת לקרנות מובילות
F85: מספר הקרן | G85: דירוג דיסקונט | I85: דירוג ESG | J85: דירוג דיסקונט | L85: מספר הקרן | M85: דירוג דיסקונט | O85: דירוג ESG | P85: דירוג דיסקונט
F87: =IFERROR(IF(G87="","",INDEX('ריכוז חודשי'!$H$4:$I$4000,MATCH(G87,'ריכוז חודשי'!$I$4:$I$4000,0),1)),"") -> 1143726 | G87: =IF('ריכוז חודשי'!P33=0,"",'ריכוז חודשי'!P33) -> תכלית סל (40) אינדקס בנקים ישראל | I87: ='ריכוז חודשי'!S33 -> גבוה | J87: ='ריכוז חודשי'!T33 -> ירוק | L87: =IFERROR(IF(M87="","",INDEX('ריכוז חודשי'!$H$4:$I$4000,MATCH(M87,'ריכוז חודשי'!$I$4:$I$4000,0),1)),"") -> 1187764 | M87: =IF('ריכוז חודשי'!P39=0,"",'ריכוז חודשי'!P39) -> מור סל (4A) אינדקס בנקים משקל שווה | O87: ='ריכוז חודשי'!S39 -> גבוה | P87: ='ריכוז חודשי'!T39 -> ירוק
F88: =IFERROR(IF(G88="","",INDEX('ריכוז חודשי'!$H$4:$I$4000,MATCH(G88,'ריכוז חודשי'!$I$4:$I$4000,0),1)),"") -> 1146430 | G88: =IF('ריכוז חודשי'!P34=0,"",'ריכוז חודשי'!P34) -> קסם 4A) ETF) אינדקס בנקים ישראל | I88: ='ריכוז חודשי'!S34 -> גבוה | J88: ='ריכוז חודשי'!T34 -> ירוק | L88: =IFERROR(IF(M88="","",INDEX('ריכוז חודשי'!$H$4:$I$4000,MATCH(M88,'ריכוז חודשי'!$I$4:$I$4000,0),1)),"") -> 5117817 | M88: =IF('ריכוז חודשי'!P40=0,"",'ריכוז חודשי'!P40) -> MTF מחקה‏ (00) תל בונד צמודות בנקים | O88: ='ריכוז חודשי'!S40 -> גבוה | P88: ='ריכוז חודשי'!T40 -> ירוק
F89: =IFERROR(IF(G89="","",INDEX('ריכוז חודשי'!$H$4:$I$4000,MATCH(G89,'ריכוז חודשי'!$I$4:$I$4000,0),1)),"") -> 1148774 | G89: =IF('ריכוז חודשי'!P35=0,"",'ריכוז חודשי'!P35) -> פסגות ETFי (4A) אינדקס בנקים ישראל | I89: ='ריכוז חודשי'!S35 -> גבוה | J89: ='ריכוז חודשי'!T35 -> ירוק | L89: =IFERROR(IF(M89="","",INDEX('ריכוז חודשי'!$H$4:$I$4000,MATCH(M89,'ריכוז חודשי'!$I$4:$I$4000,0),1)),"") -> 5118559 | M89: =IF('ריכוז חודשי'!P41=0,"",'ריכוז חודשי'!P41) -> אי.בי.אי. מחקה (00) תל בונד צמודות- בנקים | O89: ='ריכוז חודשי'!S41 -> גבוה | P89: ='ריכוז חודשי'!T41 -> ירוק
F90: =IFERROR(IF(G90="","",INDEX('ריכוז חודשי'!$H$4:$I$4000,MATCH(G90,'ריכוז חודשי'!$I$4:$I$4000,0),1)),"") -> 1148949 | G90: =IF('ריכוז חודשי'!P36=0,"",'ריכוז חודשי'!P36) -> הראל סל (4A) אינדקס בנקים ישראל | I90: ='ריכוז חודשי'!S36 -> גבוה | J90: ='ריכוז חודשי'!T36 -> ירוק | L90: =IFERROR(IF(M90="","",INDEX('ריכוז חודשי'!$H$4:$I$4000,MATCH(M90,'ריכוז חודשי'!$I$4:$I$4000,0),1)),"") -> 5118757 | M90: =IF('ריכוז חודשי'!P42=0,"",'ריכוז חודשי'!P42) -> תכלית TTF י(00) תל בונד צמודות-בנקים | O90: ='ריכוז חודשי'!S42 -> גבוה | P90: ='ריכוז חודשי'!T42 -> ירוק
F91: =IFERROR(IF(G91="","",INDEX('ריכוז חודשי'!$H$4:$I$4000,MATCH(G91,'ריכוז חודשי'!$I$4:$I$4000,0),1)),"") -> 5131966 | G91: =IF('ריכוז חודשי'!P37=0,"",'ריכוז חודשי'!P37) -> מור מחקה (4A) אינדקס בנקים משקל שווה | I91: ='ריכוז חודשי'!S37 -> גבוה | J91: ='ריכוז חודשי'!T37 -> ירוק | L91: =IFERROR(IF(M91="","",INDEX('ריכוז חודשי'!$H$4:$I$4000,MATCH(M91,'ריכוז חודשי'!$I$4:$I$4000,0),1)),"") -> 1144823 | M91: =IF('ריכוז חודשי'!P43=0,"",'ריכוז חודשי'!P43) -> תכלית סל (00) תל בונד צמודות בנקים | O91: ='ריכוז חודשי'!S43 -> גבוה | P91: ='ריכוז חודשי'!T43 -> ירוק
F92: =IFERROR(IF(G92="","",INDEX('ריכוז חודשי'!$H$4:$I$4000,MATCH(G92,'ריכוז חודשי'!$I$4:$I$4000,0),1)),"") -> 5134168 | G92: =IF('ריכוז חודשי'!P38=0,"",'ריכוז חודשי'!P38) -> PTFי (4A) אינדקס בנקים ישראל | I92: ='ריכוז חודשי'!S38 -> גבוה | J92: ='ריכוז חודשי'!T38 -> ירוק | L92: =IFERROR(IF(M92="","",INDEX('ריכוז חודשי'!$H$4:$I$4000,MATCH(M92,'ריכוז חודשי'!$I$4:$I$4000,0),1)),"") -> 5129689 | M92: =IF('ריכוז חודשי'!P44=0,"",'ריכוז חודשי'!P44) -> הראל מחקה (00) תל בונד צמודות-בנקים | O92: ='ריכוז חודשי'!S44 -> גבוה | P92: ='ריכוז חודשי'!T44 -> ירוק
E96: הסבר לגבי ESG:
E97: הדירוג מבוצע על ידי גופים מקצועיים, ומתבסס על ניתוח מערכתי של פרמטרים רבים ומגוונים. התפיסה העיקרית מאחורי ESG היא שפרמטרים אלו משפיעים על ביצועים ארוכי הטווח והתמודדות עם סיכונים והזדמנויות עסקיות. כלומר, חברות וארגונים שמקדמים את ענייני הסביבה, החברה וממשל תאגידי בתהליך הערכה שלהם עשויים להצליח יותר בתחום הפיננסי ובשמירה על יכולת התמודדותם עם אתגרים וסיכונים. דוגמאות להיבטי סביבה (Environmental): פליטות פחמן, שימוש באנרגיה, דוגמאות להיבטי חברה (Social): שרשרת אספקה, בטיחות, עובדים וקהילה. דוגמאות להיבטי ממשל תאגידי (Governance): איכות ניהול, אתיקה, שקיפות ועוד. ניתוח ה-ESG המוצג במסמך זה מתבסס על ניתוח הרכב הניירות ערך של הקרן ועמידת דירוג ה ESG של כל אחד מהם, המביאים ליצירת ציון כולל לקרן.

Sheet מרץ
A1: מספר קרן | B1: שם קרן | C1: מנהל הקרן | D1: כותרת על של הקרן | E1: סיווג הקרן | F1: שווי קרן (ש"ח) | G1: שיעור מזומן ו/או ממשלתי | H1: שיעור נכסים מדורגים ESG | I1: שיעור נכסים ללא דירוג ESG | J1: ESG Score | K1: קב' דירוג ESG | L1: securityId | M1: שם נכס | N1: שם מנפיק | O1: סוג נכס | P1: שווי בשקלים | Q1: %מקרן | R1: דירוג סופי | S1: סטטוס דירוג | T1: דירוג משוקלל | U1: ESG_DB | V1: Column1 | W1: סיבת אי דירוג | X1: דירוג ספיר
A2: 5109889 | B2: MTF מחקה (4A) ת"א 125 | C2: מגדל | D2: מניות בארץ | E2: מניות לפי שווי שוק-Mid Cap & Large | F2: 781760082 | G2: 0 | H2: 1 | I2: 0 | J2: 52.14 | L2: 126011 | M2: ג'י סיטי | N2: ג'י סיטי | O2: מניות כללי | Q2: 0.001875391031 | R2: 49.76808321 | S2: מדורג | T2: 0.1256324452 | U2: 66.99 | V2: 0.01939265029 | W2: 0 | X2: =IFERROR(VLOOKUP(A2,[1]!Table2[[מספר קרן]:[דירוג מחקות]],7,FALSE),"") -> ירוק
A3: 5109889 | B3: MTF מחקה (4A) ת"א 125 | C3: מגדל | D3: מניות בארץ | E3: מניות לפי שווי שוק-Mid Cap & Large | F3: 781760082 | G3: 0 | H3: 1 | I3: 0 | J3: 52.14 | L3: 156018 | M3: מלם תים | N3: מלם תים | O3: מניות כללי | Q3: 0.0002564119146 | R3: 24.71715586 | S3: מדורג | T3: 0.01717703416 | U3: 66.99 | V3: 0.01077602517 | W3: 0 | X3: =IFERROR(VLOOKUP(A3,[1]!Table2[[מספר קרן]:[דירוג מחקות]],7,FALSE),"") -> ירוק
A4: 5109889 | B4: MTF מחקה (4A) ת"א 125 | C4: מגדל | D4: מניות בארץ | E4: מניות לפי שווי שוק-Mid Cap & Large | F4: 781760082 | G4: 0 | H4: 1 | I4: 0 | J4: 52.14 | L4: 161018 | M4: וואן | N4: וואן טכנולוגיות | O4: מניות כללי | Q4: 0.004142742886 | R4: 18.43808321 | S4: מדורג | T4: 0.2775223459 | U4: 66.99 | V4: 0.009029093136 | W4: 0 | X4: =IFERROR(VLOOKUP(A4,[1]!Table2[[מספר קרן]:[דירוג מחקות]],7,FALSE),"") -> ירוק
A5: 5109889 | B5: MTF מחקה (4A) ת"א 125 | C5: מגדל | D5: מניות בארץ | E5: מניות לפי שווי שוק-Mid Cap & Large | F5: 781760082 | G5: 0 | H5: 1 | I5: 0 | J5: 52.14 | L5: 224014 | M5: כלל ביטוח | N5: כלל ביטוח | O5: מניות כללי | Q5: 0.00949663102 | R5: 44.50899591 | S5: מדורג | T5: 0.636179312 | U5: 66.99 | V5: 0.006330576007 | W5: 0 | X5: =IFERROR(VLOOKUP(A5,[1]!Table2[[מספר קרן]:[דירוג מחקות]],7,FALSE),"") -> ירוק
A6: 5109889 | B6: MTF מחקה (4A) ת"א 125 | C6: מגדל | D6: מניות בארץ | E6: מניות לפי שווי שוק-Mid Cap & Large | F6: 781760082 | G6: 0 | H6: 1 | I6: 0 | J6: 52.14 | L6: 226019 | M6: מבנה | N6: מבנה נדל"ן | O6: מניות כללי | Q6: 0.0128041325 | R6: 22.63304872 | S6: מדורג | T6: 0.8577488364 | U6: 66.99 | V6: 0.01122331581 | W6: 0 | X6: =IFERROR(VLOOKUP(A6,[1]!Table2[[מספר קרן]:[דירוג מחקות]],7,FALSE),"") -> ירוק
A7: 5109889 | B7: MTF מחקה (4A) ת"א 125 | C7: מגדל | D7: מניות בארץ | E7: מניות לפי שווי שוק-Mid Cap & Large | F7: 781760082 | G7: 0 | H7: 1 | I7: 0 | J7: 52.14 | L7: 230011 | M7: בזק | N7: בזק | O7: מניות כללי | Q7: 0.02079819492 | R7: 67.27138082 | S7: מדורג | T7: 1.393271078 | U7: 66.99 | V7: 0.03649897587 | W7: 0 | X7: =IFERROR(VLOOKUP(A7,[1]!Table2[[מספר קרן]:[דירוג מחקות]],7,FALSE),"") -> ירוק
A8: 5109889 | B8: MTF מחקה (4A) ת"א 125 | C8: מגדל | D8: מניות בארץ | E8: מניות לפי שווי שוק-Mid Cap & Large | F8: 781760082 | G8: 0 | H8: 1 | I8: 0 | J8: 52.14 | L8: 232017 | M8: ישראמקו יה"ש | N8: ישראמקו שותפות מוגבלת | O8: מניות כללי | Q8: 0.00622324402 | R8: 15.87701178 | S8: מדורג | T8: 0.4168951169 | U8: 66.99 | V8: 0.01792900607 | W8: 0 | X8: =IFERROR(VLOOKUP(A8,[1]!Table2[[מספר קרן]:[דירוג מחקות]],7,FALSE),"") -> ירוק
A9: 5109889 | B9: MTF מחקה (4A) ת"א 125 | C9: מגדל | D9: מניות בארץ | E9: מניות לפי שווי שוק-Mid Cap & Large | F9: 781760082 | G9: 0 | H9: 1 | I9: 0 | J9: 52.14 | L9: 256016 | M9: פורמולה מערכות | N9: פורמולה מערכות | O9: מניות כללי | Q9: 0.004833954374 | R9: 15.30901239 | S9: מדורג | T9: 0.3238266035 | U9: 66.99 | V9: 0.07222523114 | W9: 0 | X9: =IFERROR(VLOOKUP(A9,[1]!Table2[[מספר קרן]:[דירוג מחקות]],7,FALSE),"") -> ירוק
A10: 5109889 | B10: MTF מחקה (4A) ת"א 125 | C10: מגדל | D10: מניות בארץ | E10: מניות לפי שווי שוק-Mid Cap & Large | F10: 781760082 | G10: 0 | H10: 1 | I10: 0 | J10: 52.14 | L10: 258012 | M10: תדיראן | N10: תדיראן גרופ | O10: מניות כללי | Q10: 0.001628238139 | R10: 57.89529872 | S10: מדורג | T10: 0.1090756729 | U10: 66.99 | V10: 0.03341774668 | W10: 0 | X10: =IFERROR(VLOOKUP(A10,[1]!Table2[[מספר קרן]:[דירוג מחקות]],7,FALSE),"") -> ירוק
A11: 5109889 | B11: MTF מחקה (4A) ת"א 125 | C11: מגדל | D11: מניות בארץ | E11: מניות לפי שווי שוק-Mid Cap & Large | F11: 781760082 | G11: 0 | H11: 1 | I11: 0 | J11: 52.14 | L11: 273011 | M11: נייס | N11: נייס | O11: מניות כללי | Q11: 0.05372787552 | R11: 57.22464158 | S11: מדורג | T11: 3.599230381 | U11: 66.99 | V11: 0.01309553386 | W11: 0 | X11: =IFERROR(VLOOKUP(A11,[1]!Table2[[מספר קרן]:[דירוג מחקות]],7,FALSE),"") -> ירוק
A12: 5109889 | B12: MTF מחקה (4A) ת"א 125 | C12: מגדל | D12: מניות בארץ | E12: מניות לפי שווי שוק-Mid Cap & Large | F12: 781760082 | G12: 0 | H12: 1 | I12: 0 | J12: 52.14 | L12: 281014 | M12: כיל | N12: איי.סי.אל גרופ | O12: מניות כללי | Q12: 0.03062005579 | R12: 83.65958289 | S12: מדורג | T12: 2.051237537 | U12: 66.99 | V12: 0.03642868728 | W12: 0 | X12: =IFERROR(VLOOKUP(A12,[1]!Table2[[מספר קרן]:[דירוג מחקות]],7,FALSE),"") -> ירוק
A13: 5109889 | B13: MTF מחקה (4A) ת"א 125 | C13: מגדל | D13: מניות בארץ | E13: מניות לפי שווי שוק-Mid Cap & Large | F13: 781760082 | G13: 0 | H13: 1 | I13: 0 | J13: 52.14 | L13: 288019 | M13: סקופ | N13: סקופ | O13: מניות כללי | Q13: 0.00116970711 | R13: 18.20008443 | S13: מדורג | T13: 0.07835867929 | U13: 66.99 | V13: 0.0115893362 | W13: 0 | X13: =IFERROR(VLOOKUP(A13,[1]!Table2[[מספר קרן]:[דירוג מחקות]],7,FALSE),"") -> ירוק
A14: 5109889 | B14: MTF מחקה (4A) ת"א 125 | C14: מגדל | D14: מניות בארץ | E14: מניות לפי שווי שוק-Mid Cap & Large | F14: 781760082 | G14: 0 | H14: 1 | I14: 0 | J14: 52.14 | L14: 314013 | M14: דנאל | N14: דנאל | O14: מניות כללי | Q14: 0.00358041343 | R14: 13.32532436 | S14: מדורג | T14: 0.2398518957 | U14: 66.99 | V14: 0.0131848012 | W14: 0 | X14: =IFERROR(VLOOKUP(A14,[1]!Table2[[מספר קרן]:[דירוג מחקות]],7,FALSE),"") -> ירוק
A15: 5109889 | B15: MTF מחקה (4A) ת"א 125 | C15: מגדל | D15: מניות בארץ | E15: מניות לפי שווי שוק-Mid Cap & Large | F15: 781760082 | G15: 0 | H15: 1 | I15: 0 | J15: 52.14 | L15: 323014 | M15: מליסרון | N15: מליסרון | O15: מניות כללי | Q15: 0.01520049174 | R15: 22.94819158 | S15: מדורג | T15: 1.018280942 | U15: 66.99 | V15: 0.009480478609 | W15: 0 | X15: =IFERROR(VLOOKUP(A15,[1]!Table2[[מספר קרן]:[דירוג מחקות]],7,FALSE),"") -> ירוק
A16: 5109889 | B16: MTF מחקה (4A) ת"א 125 | C16: מגדל | D16: מניות בארץ | E16: מניות לפי שווי שוק-Mid Cap & Large | F16: 781760082 | G16: 0 | H16: 1 | I16: 0 | J16: 52.14 | L16: 328013 | M16: פריורטק | N16: פריורטק | O16: מניות כללי | Q16: 0.002921260751 | R16: 22.11166068 | S16: מדורג | T16: 0.1956952577 | U16: 66.99 | V16: 0.03291025488 | W16: 0 | X16: =IFERROR(VLOOKUP(A16,[1]!Table2[[מספר קרן]:[דירוג מחקות]],7,FALSE),"") -> ירוק
A17: 5109889 | B17: MTF מחקה (4A) ת"א 125 | C17: מגדל | D17: מניות בארץ | E17: מניות לפי שווי שוק-Mid Cap & Large | F17: 781760082 | G17: 0 | H17: 1 | I17: 0 | J17: 52.14 | L17: 354019 | M17: טלסיס | N17: טלסיס | O17: מניות כללי | Q17: 0.001019225578 | R17: 16.86788463 | S17: מדורג | T17: 0.06827792147 | U17: 66.99 | V17: 0.07145421265 | W17: 0 | X17: =IFERROR(VLOOKUP(A17,[1]!Table2[[מספר קרן]:[דירוג מחקות]],7,FALSE),"") -> ירוק
A18: 5109889 | B18: MTF מחקה (4A) ת"א 125 | C18: מגדל | D18: מניות בארץ | E18: מניות לפי שווי שוק-Mid Cap & Large | F18: 781760082 | G18: 0 | H18: 1 | I18: 0 | J18: 52.14 | L18: 373019 | M18: אאורה | N18: אאורה השקעות | O18: מניות כללי | Q18: 0.004571448803 | R18: 16.97450538 | S18: מדורג | T18: 0.3062413553 | U18: 66.99 | V18: 0.01631661455 | W18: 0 | X18: =IFERROR(VLOOKUP(A18,[1]!Table2[[מספר קרן]:[דירוג מחקות]],7,FALSE),"") -> ירוק
A19: 5109889 | B19: MTF מחקה (4A) ת"א 125 | C19: מגדל | D19: מניות בארץ | E19: מניות לפי שווי שוק-Mid Cap & Large | F19: 781760082 | G19: 0 | H19: 1 | I19: 0 | J19: 52.14 | L19: 390013 | M19: אלוני חץ | N19: אלוני חץ | O19: מניות כללי | Q19: 0.009489582427 | R19: 51.28963327 | S19: מדורג | T19: 0.6357071268 | U19: 66.99 | V19: 0.009187835705 | W19: 0 | X19: =IFERROR(VLOOKUP(A19,[1]!Table2[[מספר קרן]:[דירוג מחקות]],7,FALSE),"") -> ירוק
A20: 5109889 | B20: MTF מחקה (4A) ת"א 125 | C20: מגדל | D20: מניות בארץ | E20: מניות לפי שווי שוק-Mid Cap & Large | F20: 781760082 | G20: 0 | H20: 1 | I20: 0 | J20: 52.14 | L20: 394015 | M20: רציו יה"ש | N20: רציו אנרגיות שותפות מוגבלת | O20: מניות כללי | Q20: 0.005631611551 | R20: 56.56275287 | S20: מדורג | T20: 0.3772616578 | U20: 66.99 | V20: 0.07057682528 | W20: 0 | X20: =IFERROR(VLOOKUP(A20,[1]!Table2[[מספר קרן]:[דירוג מחקות]],7,FALSE),"") -> ירוק
A21: 5109889 | B21: MTF מחקה (4A) ת"א 125 | C21: מגדל | D21: מניות בארץ | E21: מניות לפי שווי שוק-Mid Cap & Large | F21: 781760082 | G21: 0 | H21: 1 | I21: 0 | J21: 52.14 | L21: 400010 | M21: דוניץ | N21: אחים דוניץ | O21: מניות כללי | Q21: 0.0006208853595 | R21: 13.54551301 | S21: מדורג | T21: 0.04159311023 | U21: 66.99 | V21: 0.06004350024 | W21: 0 | X21: =IFERROR(VLOOKUP(A21,[1]!Table2[[מספר קרן]:[דירוג מחקות]],7,FALSE),"") -> ירוק
A22: 5109889 | B22: MTF מחקה (4A) ת"א 125 | C22: מגדל | D22: מניות בארץ | E22: מניות לפי שווי שוק-Mid Cap & Large | F22: 781760082 | G22: 0 | H22: 1 | I22: 0 | J22: 52.14 | L22: 416016 | M22: וילאר | N22: וילאר | O22: מניות כללי | Q22: 0.0006978986729 | R22: 18.54872729 | S22: מדורג | T22: 0.0467522321 | U22: 66.99 | V22: 0.009815401357 | W22: 0 | X22: =IFERROR(VLOOKUP(A22,[1]!Table2[[מספר קרן]:[דירוג מחקות]],7,FALSE),"") -> ירוק
A23: 5109889 | B23: MTF מחקה (4A) ת"א 125 | C23: מגדל | D23: מניות בארץ | E23: מניות לפי שווי שוק-Mid Cap & Large | F23: 781760082 | G23: 0 | H23: 1 | I23: 0 | J23: 52.14 | L23: 431015 | M23: אייאיאס | N23: איי.אי.אס | O23: מניות כללי | Q23: 0.0006223644465 | R23: 11.76622729 | S23: מדורג | T23: 0.04169219427 | U23: 66.99 | V23: 0.01337347804 | W23: 0 | X23: =IFERROR(VLOOKUP(A23,[1]!Table2[[מספר קרן]:[דירוג מחקות]],7,FALSE),"") -> ירוק
A24: 5109889 | B24: MTF מחקה (4A) ת"א 125 | C24: מגדל | D24: מניות בארץ | E24: מניות לפי שווי שוק-Mid Cap & Large | F24: 781760082 | G24: 0 | H24: 1 | I24: 0 | J24: 52.14 | L24: 434019 | M24: ישראל קנדה | N24: ישראל קנדה | O24: מניות כללי | Q24: 0.004738111488 | R24: 28.64758443 | S24: מדורג | T24: 0.3174060886 | U24: 66.99 | V24: 0.02330828839 | W24: 0 | X24: =IFERROR(VLOOKUP(A24,[1]!Table2[[מספר קרן]:[דירוג מחקות]],7,FALSE),"") -> ירוק
A25: 5109889 | B25: MTF מחקה (4A) ת"א 125 | C25: מגדל | D25: מניות בארץ | E25: מניות לפי שווי שוק-Mid Cap & Large | F25: 781760082 | G25: 0 | H25: 1 | I25: 0 | J25: 52.14 | L25: 445015 | M25: מטריקס | N25: מטריקס | O25: מניות כללי | Q25: 0.005673612947 | R25: 28.02144035 | S25: מדורג | T25: 0.3800753313 | U25: 66.99 | V25: 0.007601621378 | W25: 0 | X25: =IFERROR(VLOOKUP(A25,[1]!Table2[[מספר קרן]:[דירוג מחקות]],7,FALSE),"") -> ירוק
A26: 5109889 | B26: MTF מחקה (4A) ת"א 125 | C26: מגדל | D26: מניות בארץ | E26: מניות לפי שווי שוק-Mid Cap & Large | F26: 781760082 | G26: 0 | H26: 1 | I26: 0 | J26: 52.14 | L26: 475020 | M26: ניו-מד אנרג'י יה"ש | N26: ניו-מד אנרג'י שותפות מוגבלת | O26: מניות כללי | Q26: 0.01108542026 | R26: 40.27972606 | S26: מדורג | T26: 0.742612303 | U26: 66.99 | V26: 0.04494014512 | W26: 0 | X26: =IFERROR(VLOOKUP(A26,[1]!Table2[[מספר קרן]:[דירוג מחקות]],7,FALSE),"") -> ירוק
A27: 5109889 | B27: MTF מחקה (4A) ת"א 125 | C27: מגדל | D27: מניות בארץ | E27: מניות לפי שווי שוק-Mid Cap & Large | F27: 781760082 | G27: 0 | H27: 1 | I27: 0 | J27: 52.14 | L27: 566018 | M27: מנורה מבטחים החזקות | N27: מנורה ביטוח | O27: מניות כללי | Q27: 0.003677557227 | R27: 60.17992967 | S27: מדורג | T27: 0.2463595587 | U27: 66.99 | V27: 0.0260817293 | W27: 0 | X27: =IFERROR(VLOOKUP(A27,[1]!Table2[[מספר קרן]:[דירוג מחקות]],7,FALSE),"") -> ירוק
A28: 5109889 | B28: MTF מחקה (4A) ת"א 125 | C28: מגדל | D28: מניות בארץ | E28: מניות לפי שווי שוק-Mid Cap & Large | F28: 781760082 | G28: 0 | H28: 1 | I28: 0 | J28: 52.14 | L28: 576017 | M28: חברה לישראל | N28: חברה לישראל | O28: מניות כללי | Q28: 0.007771132998 | R28: 20.57401239 | S28: מדורג | T28: 0.5205881995 | U28: 66.99 | V28: 0.0721272941 | W28: 0 | X28: =IFERROR(VLOOKUP(A28,[1]!Table2[[מספר קרן]:[דירוג מחקות]],7,FALSE),"") -> ירוק
A29: 5109889 | B29: MTF מחקה (4A) ת"א 125 | C29: מגדל | D29: מניות בארץ | E29: מניות לפי שווי שוק-Mid Cap & Large | F29: 781760082 | G29: 0 | H29: 1 | I29: 0 | J29: 52.14 | L29: 585018 | M29: הראל השקעות | N29: הראל ביטוח | O29: מניות כללי | Q29: 0.008465528347 | R29: 61.26142289 | S29: מדורג | T29: 0.5671057439 | U29: 66.99 | V29: 0.07466168015 | W29: 0 | X29: =IFERROR(VLOOKUP(A29,[1]!Table2[[מספר קרן]:[דירוג מחקות]],7,FALSE),"") -> ירוק
A30: 5109889 | B30: MTF מחקה (4A) ת"א 125 | C30: מגדל | D30: מניות בארץ | E30: מניות לפי שווי שוק-Mid Cap & Large | F30: 781760082 | G30: 0 | H30: 1 | I30: 0 | J30: 52.14 | L30: 593038 | M30: בינלאומי | N30: הבנק הבינלאומי | O30: מניות כללי | Q30: 0.01673825492 | R30: 71.46883321 | S30: מדורג | T30: 1.121295697 | U30: 66.99 | V30: 0.06665340193 | W30: 0 | X30: =IFERROR(VLOOKUP(A30,[1]!Table2[[מספר קרן]:[דירוג מחקות]],7,FALSE),"") -> ירוק
A31: 5109889 | B31: MTF מחקה (4A) ת"א 125 | C31: מגדל | D31: מניות בארץ | E31: מניות לפי שווי שוק-Mid Cap & Large | F31: 781760082 | G31: 0 | H31: 1 | I31: 0 | J31: 52.14 | L31: 604611 | M31: לאומי | N31: בנק לאומי | O31: מניות כללי | Q31: 0.04990822924 | R31: 82.56039487 | S31: מדורג | T31: 3.343352276 | U31: 66.99 | V31: 0.02162523762 | W31: 0 | X31: =IFERROR(VLOOKUP(A31,[1]!Table2[[מספר קרן]:[דירוג מחקות]],7,FALSE),"") -> ירוק
A32: 5109889 | B32: MTF מחקה (4A) ת"א 125 | C32: מגדל | D32: מניות בארץ | E32: מניות לפי שווי שוק-Mid Cap & Large | F32: 781760082 | G32: 0 | H32: 1 | I32: 0 | J32: 52.14 | L32: 612010 | M32: הכשרת הישוב | N32: הכשרת הישוב | O32: מניות כללי | Q32: 0.0009735384441 | R32: 14.80319096 | S32: מדורג | T32: 0.06521734037 | U32: 66.99 | V32: 0.01228142485 | W32: 0 | X32: =IFERROR(VLOOKUP(A32,[1]!Table2[[מספר קרן]:[דירוג מחקות]],7,FALSE),"") -> ירוק
A33: 5109889 | B33: MTF מחקה (4A) ת"א 125 | C33: מגדל | D33: מניות בארץ | E33: מניות לפי שווי שוק-Mid Cap & Large | F33: 781760082 | G33: 0 | H33: 1 | I33: 0 | J33: 52.14 | L33: 613034 | M33: ישרס | N33: ישרס | O33: מניות כללי | Q33: 0.0019109659 | R33: 16.16536892 | S33: מדורג | T33: 0.1280156057 | U33: 66.99 | V33: 0.01980707677 | W33: 0 | X33: =IFERROR(VLOOKUP(A33,[1]!Table2[[מספר קרן]:[דירוג מחקות]],7,FALSE),"") -> ירוק
A34: 5109889 | B34: MTF מחקה (4A) ת"א 125 | C34: מגדל | D34: מניות בארץ | E34: מניות לפי שווי שוק-Mid Cap & Large | F34: 781760082 | G34: 0 | H34: 1 | I34: 0 | J34: 52.14 | L34: 627034 | M34: דלתא גליל | N34: דלתא גליל | O34: מניות כללי | Q34: 0.002876799808 | R34: 48.8523317 | S34: מדורג | T34: 0.1927168191 | U34: 66.99 | V34: 0.009567486415 | W34: 0 | X34: =IFERROR(VLOOKUP(A34,[1]!Table2[[מספר קרן]:[דירוג מחקות]],7,FALSE),"") -> ירוק
A35: 5109889 | B35: MTF מחקה (4A) ת"א 125 | C35: מגדל | D35: מניות בארץ | E35: מניות לפי שווי שוק-Mid Cap & Large | F35: 781760082 | G35: 0 | H35: 1 | I35: 0 | J35: 52.14 | L35: 629014 | M35: טבע | N35: טבע | O35: מניות כללי | Q35: 0.05339591229 | R35: 73.68102491 | S35: מדורג | T35: 3.576992164 | U35: 66.99 | V35: 0.01884444819 | W35: 0 | X35: =IFERROR(VLOOKUP(A35,[1]!Table2[[מספר קרן]:[דירוג מחקות]],7,FALSE),"") -> ירוק
A36: 5109889 | B36: MTF מחקה (4A) ת"א 125 | C36: מגדל | D36: מניות בארץ | E36: מניות לפי שווי שוק-Mid Cap & Large | F36: 781760082 | G36: 0 | H36: 1 | I36: 0 | J36: 52.14 | L36: 642017 | M36: לפידות קפיטל | N36: לפידות קפיטל | O36: מניות כללי | Q36: 0.001803301047 | R36: 15.24661023 | S36: מדורג | T36: 0.1208031371 | U36: 66.99 | V36: 0.01822058576 | W36: 0 | X36: =IFERROR(VLOOKUP(A36,[1]!Table2[[מספר קרן]:[דירוג מחקות]],7,FALSE),"") -> ירוק
A37: 5109889 | B37: MTF מחקה (4A) ת"א 125 | C37: מגדל | D37: מניות בארץ | E37: מניות לפי שווי שוק-Mid Cap & Large | F37: 781760082 | G37: 0 | H37: 1 | I37: 0 | J37: 52.14 | L37: 643015 | M37: נפטא | N37: נפטא | O37: מניות כללי | Q37: 0.0006366570874 | R37: 14.89826178 | S37: מדורג | T37: 0.04264965828 | U37: 66.99 | V37: NA | W37: 0 | X37: =IFERROR(VLOOKUP(A37,[1]!Table2[[מספר קרן]:[דירוג מחקות]],7,FALSE),"") -> ירוק
A38: 5109889 | B38: MTF מחקה (4A) ת"א 125 | C38: מגדל | D38: מניות בארץ | E38: מניות לפי שווי שוק-Mid Cap & Large | F38: 781760082 | G38: 0 | H38: 1 | I38: 0 | J38: 52.14 | L38: 662577 | M38: פועלים | N38: בנק פועלים | O38: מניות כללי | Q38: 0.04915406919 | R38: 82.2749348 | S38: מדורג | T38: 3.292831095 | U38: 66.99 | V38: 0.001849458166 | W38: 0 | X38: =IFERROR(VLOOKUP(A38,[1]!Table2[[מספר קרן]:[דירוג מחקות]],7,FALSE),"") -> ירוק
A39: 5109889 | B39: MTF מחקה (4A) ת"א 125 | C39: מגדל | D39: מניות בארץ | E39: מניות לפי שווי שוק-Mid Cap & Large | F39: 781760082 | G39: 0 | H39: 1 | I39: 0 | J39: 52.14 | L39: 691212 | M39: דיסקונט | N39: בנק דיסקונט | O39: מניות כללי | Q39: 0.04777682116 | R39: 76.54881062 | S39: מדורג | T39: 3.200569249 | U39: 66.99 | V39: 0.0002465978608 | W39: 0 | X39: =IFERROR(VLOOKUP(A39,[1]!Table2[[מספר קרן]:[דירוג מחקות]],7,FALSE),"") -> ירוק
A40: 5109889 | B40: MTF מחקה (4A) ת"א 125 | C40: מגדל | D40: מניות בארץ | E40: מניות לפי שווי שוק-Mid Cap & Large | F40: 781760082 | G40: 0 | H40: 1 | I40: 0 | J40: 52.14 | L40: 694034 | M40: אלקו | N40: אלקו | O40: מניות כללי | Q40: 0.002001703865 | R40: 56.11201239 | S40: מדורג | T40: 0.1340941419 | U40: 66.99 | V40: 0.01481960571 | W40: 0 | X40: =IFERROR(VLOOKUP(A40,[1]!Table2[[מספר קרן]:[דירוג מחקות]],7,FALSE),"") -> ירוק
A41: 5109889 | B41: MTF מחקה (4A) ת"א 125 | C41: מגדל | D41: מניות בארץ | E41: מניות לפי שווי שוק-Mid Cap & Large | F41: 781760082 | G41: 0 | H41: 1 | I41: 0 | J41: 52.14 | L41: 695437 | M41: מזרחי טפחות | N41: בנק מזרחי-טפחות | O41: מניות כללי | Q41: 0.04416843209 | R41: 76.81007491 | S41: מדורג | T41: 2.958843266 | U41: 66.99 | V41: 0.008234895269 | W41: 0 | X41: =IFERROR(VLOOKUP(A41,[1]!Table2[[מספר קרן]:[דירוג מחקות]],7,FALSE),"") -> ירוק
A42: 5109889 | B42: MTF מחקה (4A) ת"א 125 | C42: מגדל | D42: מניות בארץ | E42: מניות לפי שווי שוק-Mid Cap & Large | F42: 781760082 | G42: 0 | H42: 1 | I42: 0 | J42: 52.14 | L42: 699017 | M42: נכסים ובנין | N42: נכסים ובנין | O42: מניות כללי | Q42: 0.001221641764 | R42: 20.40058321 | S42: מדורג | T42: 0.08183778178 | U42: 66.99 | V42: 0.0009181787921 | W42: 0 | X42: =IFERROR(VLOOKUP(A42,[1]!Table2[[מספר קרן]:[דירוג מחקות]],7,FALSE),"") -> ירוק
A43: 5109889 | B43: MTF מחקה (4A) ת"א 125 | C43: מגדל | D43: מניות בארץ | E43: מניות לפי שווי שוק-Mid Cap & Large | F43: 781760082 | G43: 0 | H43: 1 | I43: 0 | J43: 52.14 | L43: 715011 | M43: אזורים | N43: אזורים | O43: מניות כללי | Q43: 0.002408708263 | R43: 19.44961953 | S43: מדורג | T43: 0.1613593665 | U43: 66.99 | V43: 0.001950239213 | W43: 0 | X43: =IFERROR(VLOOKUP(A43,[1]!Table2[[מספר קרן]:[דירוג מחקות]],7,FALSE),"") -> ירוק
A44: 5109889 | B44: MTF מחקה (4A) ת"א 125 | C44: מגדל | D44: מניות בארץ | E44: מניות לפי שווי שוק-Mid Cap & Large | F44: 781760082 | G44: 0 | H44: 1 | I44: 0 | J44: 52.14 | L44: 720011 | M44: אנלייט | N44: אנלייט אנרגיה | O44: מניות כללי | Q44: 0.01613958083 | R44: 62.56828215 | S44: מדורג | T44: 1.08119052 | U44: 66.99 | V44: 0.000753901086 | W44: 0 | X44: =IFERROR(VLOOKUP(A44,[1]!Table2[[מספר קרן]:[דירוג מחקות]],7,FALSE),"") -> ירוק
A45: 5109889 | B45: MTF מחקה (4A) ת"א 125 | C45: מגדל | D45: מניות בארץ | E45: מניות לפי שווי שוק-Mid Cap & Large | F45: 781760082 | G45: 0 | H45: 1 | I45: 0 | J45: 52.14 | L45: 731018 | M45: ערד | N45: ערד | O45: מניות כללי | Q45: 0.0005505051444 | R45: 14.97530037 | S45: מדורג | T45: 0.03687833962 | U45: 66.99 | V45: 0.006899913017 | W45: 0 | X45: =IFERROR(VLOOKUP(A45,[1]!Table2[[מספר קרן]:[דירוג מחקות]],7,FALSE),"") -> ירוק
A46: 5109889 | B46: MTF מחקה (4A) ת"א 125 | C46: מגדל | D46: מניות בארץ | E46: מניות לפי שווי שוק-Mid Cap & Large | F46: 781760082 | G46: 0 | H46: 1 | I46: 0 | J46: 52.14 | L46: 739037 | M46: אלקטרה | N46: אלקטרה | O46: מניות כללי | Q46: 0.006960287265 | R46: 50.43020622 | S46: מדורג | T46: 0.4662696439 | U46: 66.99 | V46: 0.001060965889 | W46: 0 | X46: =IFERROR(VLOOKUP(A46,[1]!Table2[[מספר קרן]:[דירוג מחקות]],7,FALSE),"") -> ירוק
A47: 5109889 | B47: MTF מחקה (4A) ת"א 125 | C47: מגדל | D47: מניות בארץ | E47: מניות לפי שווי שוק-Mid Cap & Large | F47: 781760082 | G47: 0 | H47: 1 | I47: 0 | J47: 52.14 | L47: 746016 | M47: שטראוס | N47: שטראוס | O47: מניות כללי | Q47: 0.007671446059 | R47: 69.78360067 | S47: מדורג | T47: 0.5139101715 | U47: 66.99 | V47: 0.003924686835 | W47: 0 | X47: =IFERROR(VLOOKUP(A47,[1]!Table2[[מספר קרן]:[דירוג מחקות]],7,FALSE),"") -> ירוק
A48: 5109889 | B48: MTF מחקה (4A) ת"א 125 | C48: מגדל | D48: מניות בארץ | E48: מניות לפי שווי שוק-Mid Cap & Large | F48: 781760082 | G48: 0 | H48: 1 | I48: 0 | J48: 52.14 | L48: 755017 | M48: אקויטל | N48: אקויטל | O48: מניות כללי | Q48: 0.003632259979 | R48: 13.28524234 | S48: מדורג | T48: 0.243325096 | U48: 66.99 | V48: 0.005585420005 | W48: 0 | X48: =IFERROR(VLOOKUP(A48,[1]!Table2[[מספר קרן]:[דירוג מחקות]],7,FALSE),"") -> ירוק
A49: 5109889 | B49: MTF מחקה (4A) ת"א 125 | C49: מגדל | D49: מניות בארץ | E49: מניות לפי שווי שוק-Mid Cap & Large | F49: 781760082 | G49: 0 | H49: 1 | I49: 0 | J49: 52.14 | L49: 763011 | M49: פיבי | N49: הבנק הבינלאומי | O49: מניות כללי | Q49: 0.005866660433 | R49: 15.64851239 | S49: מדורג | T49: 0.3930075824 | U49: 66.99 | V49: 0.003675362137 | W49: 0 | X49: =IFERROR(VLOOKUP(A49,[1]!Table2[[מספר קרן]:[דירוג מחקות]],7,FALSE),"") -> ירוק
A50: 5109889 | B50: MTF מחקה (4A) ת"א 125 | C50: מגדל | D50: מניות בארץ | E50: מניות לפי שווי שוק-Mid Cap & Large | F50: 781760082 | G50: 0 | H50: 1 | I50: 0 | J50: 52.14 | L50: 767012 | M50: הפניקס | N50: הפניקס ביטוח | O50: מניות כללי | Q50: 0.01417494432 | R50: 56.40864622 | S50: מדורג | T50: 0.9495795198 | U50: 66.99 | V50: 0.001051001646 | W50: 0 | X50: =IFERROR(VLOOKUP(A50,[1]!Table2[[מספר קרן]:[דירוג מחקות]],7,FALSE),"") -> ירוק
A51: 5109889 | B51: MTF מחקה (4A) ת"א 125 | C51: מגדל | D51: מניות בארץ | E51: מניות לפי שווי שוק-Mid Cap & Large | F51: 781760082 | G51: 0 | H51: 1 | I51: 0 | J51: 52.14 | L51: 777037 | M51: שופרסל | N51: שופרסל | O51: מניות כללי | Q51: 0.01528367276 | R51: 56.7654472 | S51: מדורג | T51: 1.023853238 | U51: 66.99 | V51: 0.001780269172 | W51: 0 | X51: =IFERROR(VLOOKUP(A51,[1]!Table2[[מספר קרן]:[דירוג מחקות]],7,FALSE),"") -> ירוק
A52: 5109889 | B52: MTF מחקה (4A) ת"א 125 | C52: מגדל | D52: מניות בארץ | E52: מניות לפי שווי שוק-Mid Cap & Large | F52: 781760082 | G52: 0 | H52: 1 | I52: 0 | J52: 52.14 | L52: 829010 | M52: דלק רכב | N52: דלק רכב | O52: מניות כללי | Q52: 0.002141801745 | R52: 18.57788586 | S52: מדורג | T52: 0.1434792989 | U52: 66.99 | V52: 0.01291164621 | W52: 0 | X52: =IFERROR(VLOOKUP(A52,[1]!Table2[[מספר קרן]:[דירוג מחקות]],7,FALSE),"") -> ירוק
A53: 5109889 | B53: MTF מחקה (4A) ת"א 125 | C53: מגדל | D53: מניות בארץ | E53: מניות לפי שווי שוק-Mid Cap & Large | F53: 781760082 | G53: 0 | H53: 1 | I53: 0 | J53: 52.14 | L53: 1081074 | M53: איסתא | N53: איסתא | O53: מניות כללי | Q53: 0.001281870421 | R53: 16.38304872 | S53: מדורג | T53: 0.08587249952 | U53: 66.99 | V53: 0.002409183696 | W53: 0 | X53: =IFERROR(VLOOKUP(A53,[1]!Table2[[מספר קרן]:[דירוג מחקות]],7,FALSE),"") -> ירוק
A54: 5109889 | B54: MTF מחקה (4A) ת"א 125 | C54: מגדל | D54: מניות בארץ | E54: מניות לפי שווי שוק-Mid Cap & Large | F54: 781760082 | G54: 0 | H54: 1 | I54: 0 | J54: 52.14 | L54: 1081124 | M54: אלביט מערכות | N54: אלביט מערכות | O54: מניות כללי | Q54: 0.03952102273 | R54: 53.71104634 | S54: מדורג | T54: 2.647513313 | U54: 66.99 | V54: 0.003299613476 | W54: 0 | X54: =IFERROR(VLOOKUP(A54,[1]!Table2[[מספר קרן]:[דירוג מחקות]],7,FALSE),"") -> ירוק
A55: 5109889 | B55: MTF מחקה (4A) ת"א 125 | C55: מגדל | D55: מניות בארץ | E55: מניות לפי שווי שוק-Mid Cap & Large | F55: 781760082 | G55: 0 | H55: 1 | I55: 0 | J55: 52.14 | L55: 1081165 | M55: מגדל ביטוח | N55: מגדל ביטוח | O55: מניות כללי | Q55: 0.004259162132 | R55: 29.90654078 | S55: מדורג | T55: 0.2853212712 | U55: 66.99 | V55: 0.001183513548 | W55: 0 | X55: =IFERROR(VLOOKUP(A55,[1]!Table2[[מספר קרן]:[דירוג מחקות]],7,FALSE),"") -> ירוק
A56: 5109889 | B56: MTF מחקה (4A) ת"א 125 | C56: מגדל | D56: מניות בארץ | E56: מניות לפי שווי שוק-Mid Cap & Large | F56: 781760082 | G56: 0 | H56: 1 | I56: 0 | J56: 52.14 | L56: 1081603 | M56: פלסאון | N56: פלסאון תעשיות | O56: מניות כללי | Q56: 0.0004141255761 | R56: 27.29142967 | S56: מדורג | T56: 0.02774227234 | U56: 66.99 | V56: 0.004837742079 | W56: 0 | X56: =IFERROR(VLOOKUP(A56,[1]!Table2[[מספר קרן]:[דירוג מחקות]],7,FALSE),"") -> ירוק
A57: 5109889 | B57: MTF מחקה (4A) ת"א 125 | C57: מגדל | D57: מניות בארץ | E57: מניות לפי שווי שוק-Mid Cap & Large | F57: 781760082 | G57: 0 | H57: 1 | I57: 0 | J57: 52.14 | L57: 1081686 | M57: סאמיט | N57: סאמיט | O57: מניות כללי | Q57: 0.002921159272 | R57: 14.51037015 | S57: מדורג | T57: 0.1956884597 | U57: 66.99 | V57: 0.008576708833 | W57: 0 | X57: =IFERROR(VLOOKUP(A57,[1]!Table2[[מספר קרן]:[דירוג מחקות]],7,FALSE),"") -> ירוק
A58: 5109889 | B58: MTF מחקה (4A) ת"א 125 | C58: מגדל | D58: מניות בארץ | E58: מניות לפי שווי שוק-Mid Cap & Large | F58: 781760082 | G58: 0 | H58: 1 | I58: 0 | J58: 52.14 | L58: 1081942 | M58: שיכון ובינוי | N58: שיכון ובינוי | O58: מניות כללי | Q58: 0.006606678791 | R58: 25.88341715 | S58: מדורג | T58: 0.4425814122 | U58: 66.99 | V58: 0.02999433542 | W58: 0 | X58: =IFERROR(VLOOKUP(A58,[1]!Table2[[מספר קרן]:[דירוג מחקות]],7,FALSE),"") -> ירוק
A59: 5109889 | B59: MTF מחקה (4A) ת"א 125 | C59: מגדל | D59: מניות בארץ | E59: מניות לפי שווי שוק-Mid Cap & Large | F59: 781760082 | G59: 0 | H59: 1 | I59: 0 | J59: 52.14 | L59: 1082312 | M59: מג'יק | N59: מג'יק | O59: מניות כללי | Q59: 0.001500584833 | R59: 13.10951178 | S59: מדורג | T59: 0.100524178 | U59: 66.99 | V59: 0.001512585561 | W59: 0 | X59: =IFERROR(VLOOKUP(A59,[1]!Table2[[מספר קרן]:[דירוג מחקות]],7,FALSE),"") -> ירוק
A60: 5109889 | B60: MTF מחקה (4A) ת"א 125 | C60: מגדל | D60: מניות בארץ | E60: מניות לפי שווי שוק-Mid Cap & Large | F60: 781760082 | G60: 0 | H60: 1 | I60: 0 | J60: 52.14 | L60: 1082379 | M60: טאואר | N60: טאואר | O60: מניות כללי | Q60: 0.02903698377 | R60: 49.2122652 | S60: מדורג | T60: 1.945187543 | U60: 66.99 | V60: 0.000319851646 | W60: 0 | X60: =IFERROR(VLOOKUP(A60,[1]!Table2[[מספר קרן]:[דירוג מחקות]],7,FALSE),"") -> ירוק
A61: 5109889 | B61: MTF מחקה (4A) ת"א 125 | C61: מגדל | D61: מניות בארץ | E61: מניות לפי שווי שוק-Mid Cap & Large | F61: 781760082 | G61: 0 | H61: 1 | I61: 0 | J61: 52.14 | L61: 1082510 | M61: גילת | N61: גילת לוויינים | O61: מניות כללי | Q61: 0.001958005094 | R61: 30.98983443 | S61: מדורג | T61: 0.1311667612 | U61: 66.99 | V61: 0.002198280711 | W61: 0 | X61: =IFERROR(VLOOKUP(A61,[1]!Table2[[מספר קרן]:[דירוג מחקות]],7,FALSE),"") -> ירוק
A62: 5109889 | B62: MTF מחקה (4A) ת"א 125 | C62: מגדל | D62: מניות בארץ | E62: מניות לפי שווי שוק-Mid Cap & Large | F62: 781760082 | G62: 0 | H62: 1 | I62: 0 | J62: 52.14 | L62: 1082965 | M62: אודיוקודס | N62: אודיוקודס | O62: מניות כללי | Q62: 0.001484931676 | R62: 24.92732015 | S62: מדורג | T62: 0.09947557298 | U62: 66.99 | V62: 0.007056275228 | W62: 0 | X62: =IFERROR(VLOOKUP(A62,[1]!Table2[[מספר קרן]:[דירוג מחקות]],7,FALSE),"") -> ירוק
A63: 5109889 | B63: MTF מחקה (4A) ת"א 125 | C63: מגדל | D63: מניות בארץ | E63: מניות לפי שווי שוק-Mid Cap & Large | F63: 781760082 | G63: 0 | H63: 1 | I63: 0 | J63: 52.14 | L63: 1083484 | M63: פרטנר | N63: פרטנר | O63: מניות כללי | Q63: 0.003850740715 | R63: 50.35394158 | S63: מדורג | T63: 0.2579611205 | U63: 66.99 | V63: 0.01007564991 | W63: 0 | X63: =IFERROR(VLOOKUP(A63,[1]!Table2[[מספר קרן]:[דירוג מחקות]],7,FALSE),"") -> ירוק
A64: 5109889 | B64: MTF מחקה (4A) ת"א 125 | C64: מגדל | D64: מניות בארץ | E64: מניות לפי שווי שוק-Mid Cap & Large | F64: 781760082 | G64: 0 | H64: 1 | I64: 0 | J64: 52.14 | L64: 1084128 | M64: דלק קבוצה | N64: דלק קבוצה | O64: מניות כללי | Q64: 0.009415206448 | R64: 17.69129811 | S64: מדורג | T64: 0.63072468 | U64: 66.99 | V64: 0.002313023758 | W64: 0 | X64: =IFERROR(VLOOKUP(A64,[1]!Table2[[מספר קרן]:[דירוג מחקות]],7,FALSE),"") -> ירוק
A65: 5109889 | B65: MTF מחקה (4A) ת"א 125 | C65: מגדל | D65: מניות בארץ | E65: מניות לפי שווי שוק-Mid Cap & Large | F65: 781760082 | G65: 0 | H65: 1 | I65: 0 | J65: 52.14 | L65: 1084557 | M65: נובה | N65: נובה | O65: מניות כללי | Q65: 0.04195941385 | R65: 31.23751301 | S65: מדורג | T65: 2.810861134 | U65: 66.99 | V65: 0.003116528657 | W65: 0 | X65: =IFERROR(VLOOKUP(A65,[1]!Table2[[מספר קרן]:[דירוג מחקות]],7,FALSE),"") -> ירוק
A66: 5109889 | B66: MTF מחקה (4A) ת"א 125 | C66: מגדל | D66: מניות בארץ | E66: מניות לפי שווי שוק-Mid Cap & Large | F66: 781760082 | G66: 0 | H66: 1 | I66: 0 | J66: 52.14 | L66: 1084698 | M66: חילן | N66: חילן | O66: מניות כללי | Q66: 0.00598032288 | R66: 17.99787015 | S66: מדורג | T66: 0.4006218297 | U66: 66.99 | V66: 0.0004683283636 | W66: 0 | X66: =IFERROR(VLOOKUP(A66,[1]!Table2[[מספר קרן]:[דירוג מחקות]],7,FALSE),"") -> ירוק
A67: 5109889 | B67: MTF מחקה (4A) ת"א 125 | C67: מגדל | D67: מניות בארץ | E67: מניות לפי שווי שוק-Mid Cap & Large | F67: 781760082 | G67: 0 | H67: 1 | I67: 0 | J67: 52.14 | L67: 1087022 | M67: פוקס | N67: פוקס | O67: מניות כללי | Q67: 0.004457016015 | R67: 37.54420525 | S67: מדורג | T67: 0.2985755029 | U67: 66.99 | V67: 0.007244855799 | W67: 0 | X67: =IFERROR(VLOOKUP(A67,[1]!Table2[[מספר קרן]:[דירוג מחקות]],7,FALSE),"") -> ירוק
A68: 5109889 | B68: MTF מחקה (4A) ת"א 125 | C68: מגדל | D68: מניות בארץ | E68: מניות לפי שווי שוק-Mid Cap & Large | F68: 781760082 | G68: 0 | H68: 1 | I68: 0 | J68: 52.14 | L68: 1087659 | M68: סאפיינס | N68: סאפיינס | O68: מניות כללי | Q68: 0.007699866528 | R68: 42.32174749 | S68: מדורג | T68: 0.5158140587 | U68: 66.99 | V68: 0.0005135208109 | W68: 0 | X68: =IFERROR(VLOOKUP(A68,[1]!Table2[[מספר קרן]:[דירוג מחקות]],7,FALSE),"") -> ירוק
A69: 5109889 | B69: MTF מחקה (4A) ת"א 125 | C69: מגדל | D69: מניות בארץ | E69: מניות לפי שווי שוק-Mid Cap & Large | F69: 781760082 | G69: 0 | H69: 1 | I69: 0 | J69: 52.14 | L69: 1090315 | M69: דמרי | N69: דמרי | O69: מניות כללי | Q69: 0.003714207315 | R69: 16.68126301 | S69: מדורג | T69: 0.248814748 | U69: 66.99 | V69: 0.003386553994 | W69: 0 | X69: =IFERROR(VLOOKUP(A69,[1]!Table2[[מספר קרן]:[דירוג מחקות]],7,FALSE),"") -> ירוק
A70: 5109889 | B70: MTF מחקה (4A) ת"א 125 | C70: מגדל | D70: מניות בארץ | E70: מניות לפי שווי שוק-Mid Cap & Large | F70: 781760082 | G70: 0 | H70: 1 | I70: 0 | J70: 52.14 | L70: 1091065 | M70: מיטרוניקס | N70: מיטרוניקס | O70: מניות כללי | Q70: 0.004050220002 | R70: 17.34012015 | S70: מדורג | T70: 0.271324238 | U70: 66.99 | V70: 0.0006422955201 | W70: 0 | X70: =IFERROR(VLOOKUP(A70,[1]!Table2[[מספר קרן]:[דירוג מחקות]],7,FALSE),"") -> ירוק
A71: 5109889 | B71: MTF מחקה (4A) ת"א 125 | C71: מגדל | D71: מניות בארץ | E71: מניות לפי שווי שוק-Mid Cap & Large | F71: 781760082 | G71: 0 | H71: 1 | I71: 0 | J71: 52.14 | L71: 1091651 | M71: ארד | N71: ארד | O71: מניות כללי | Q71: 0.0008972931426 | R71: 27.72404363 | S71: מדורג | T71: 0.06010966762 | U71: 66.99 | V71: 0.004127435784 | W71: 0 | X71: =IFERROR(VLOOKUP(A71,[1]!Table2[[מספר קרן]:[דירוג מחקות]],7,FALSE),"") -> ירוק
A72: 5109889 | B72: MTF מחקה (4A) ת"א 125 | C72: מגדל | D72: מניות בארץ | E72: מניות לפי שווי שוק-Mid Cap & Large | F72: 781760082 | G72: 0 | H72: 1 | I72: 0 | J72: 52.14 | L72: 1094044 | M72: אלקטרה נדל"ן | N72: אלקטרה נדל"ן | O72: מניות כללי | Q72: 0.001542168057 | R72: 24.14747518 | S72: מדורג | T72: 0.1033098382 | U72: 66.99 | V72: 0.006066415001 | W72: 0 | X72: =IFERROR(VLOOKUP(A72,[1]!Table2[[מספר קרן]:[דירוג מחקות]],7,FALSE),"") -> ירוק
A73: 5109889 | B73: MTF מחקה (4A) ת"א 125 | C73: מגדל | D73: מניות בארץ | E73: מניות לפי שווי שוק-Mid Cap & Large | F73: 781760082 | G73: 0 | H73: 1 | I73: 0 | J73: 52.14 | L73: 1095264 | M73: קמטק | N73: קמטק | O73: מניות כללי | Q73: 0.01745331091 | R73: 24.08136892 | S73: מדורג | T73: 1.169197298 | U73: 66.99 | V73: 0.0004510104779 | W73: 0 | X73: =IFERROR(VLOOKUP(A73,[1]!Table2[[מספר קרן]:[דירוג מחקות]],7,FALSE),"") -> ירוק
A74: 5109889 | B74: MTF מחקה (4A) ת"א 125 | C74: מגדל | D74: מניות בארץ | E74: מניות לפי שווי שוק-Mid Cap & Large | F74: 781760082 | G74: 0 | H74: 1 | I74: 0 | J74: 52.14 | L74: 1095819 | M74: פריון | N74: פריון נטוורק | O74: מניות כללי | Q74: 0.008108373095 | R74: 20.10304872 | S74: מדורג | T74: 0.5431799136 | U74: 66.99 | V74: 0.002614291038 | W74: 0 | X74: =IFERROR(VLOOKUP(A74,[1]!Table2[[מספר קרן]:[דירוג מחקות]],7,FALSE),"") -> ירוק
A75: 5109889 | B75: MTF מחקה (4A) ת"א 125 | C75: מגדל | D75: מניות בארץ | E75: מניות לפי שווי שוק-Mid Cap & Large | F75: 781760082 | G75: 0 | H75: 1 | I75: 0 | J75: 52.14 | L75: 1095835 | M75: איירפורט סיטי | N75: איירפורט סיטי | O75: מניות כללי | Q75: 0.008377927596 | R75: 16.31076178 | S75: מדורג | T75: 0.5612373697 | U75: 66.99 | V75: 0.00387887927 | W75: 0 | X75: =IFERROR(VLOOKUP(A75,[1]!Table2[[מספר קרן]:[דירוג מחקות]],7,FALSE),"") -> ירוק
A76: 5109889 | B76: MTF מחקה (4A) ת"א 125 | C76: מגדל | D76: מניות בארץ | E76: מניות לפי שווי שוק-Mid Cap & Large | F76: 781760082 | G76: 0 | H76: 1 | I76: 0 | J76: 52.14 | L76: 1097260 | M76: ביג | N76: ביג מרכזי קניות | O76: מניות כללי | Q76: 0.01274324947 | R76: 19.89497668 | S76: מדורג | T76: 0.853670282 | U76: 66.99 | V76: 0.01370110824 | W76: 0 | X76: =IFERROR(VLOOKUP(A76,[1]!Table2[[מספר קרן]:[דירוג מחקות]],7,FALSE),"") -> ירוק
A77: 5109889 | B77: MTF מחקה (4A) ת"א 125 | C77: מגדל | D77: מניות בארץ | E77: מניות לפי שווי שוק-Mid Cap & Large | F77: 781760082 | G77: 0 | H77: 1 | I77: 0 | J77: 52.14 | L77: 1097278 | M77: אמות | N77: אמות | O77: מניות כללי | Q77: 0.008830546397 | R77: 45.23825225 | S77: מדורג | T77: 0.5915583031 | U77: 66.99 | V77: 0.001069856948 | W77: 0 | X77: =IFERROR(VLOOKUP(A77,[1]!Table2[[מספר קרן]:[דירוג מחקות]],7,FALSE),"") -> ירוק
A78: 5109889 | B78: MTF מחקה (4A) ת"א 125 | C78: מגדל | D78: מניות בארץ | E78: מניות לפי שווי שוק-Mid Cap & Large | F78: 781760082 | G78: 0 | H78: 1 | I78: 0 | J78: 52.14 | L78: 1097948 | M78: אפריקה מגורים | N78: אפריקה מגורים | O78: מניות כללי | Q78: 0.002662306459 | R78: 17.55429749 | S78: מדורג | T78: 0.1783479097 | U78: 66.99 | V78: 0.0005161736404 | W78: 0 | X78: =IFERROR(VLOOKUP(A78,[1]!Table2[[מספר קרן]:[דירוג מחקות]],7,FALSE),"") -> ירוק
A79: 5109889 | B79: MTF מחקה (4A) ת"א 125 | C79: מגדל | D79: מניות בארץ | E79: מניות לפי שווי שוק-Mid Cap & Large | F79: 781760082 | G79: 0 | H79: 1 | I79: 0 | J79: 52.14 | L79: 1098565 | M79: רבוע כחול נדל"ן | N79: רבוע כחול נדל"ן | O79: מניות כללי | Q79: 0.002234451763 | R79: 13.6337821 | S79: מדורג | T79: 0.1496859236 | U79: 66.99 | V79: 0.002838529866 | W79: 0 | X79: =IFERROR(VLOOKUP(A79,[1]!Table2[[מספר קרן]:[דירוג מחקות]],7,FALSE),"") -> ירוק
A80: 5109889 | B80: MTF מחקה (4A) ת"א 125 | C80: מגדל | D80: מניות בארץ | E80: מניות לפי שווי שוק-Mid Cap & Large | F80: 781760082 | G80: 0 | H80: 1 | I80: 0 | J80: 52.14 | L80: 1098920 | M80: ריט 1 | N80: ריט 1 | O80: מניות כללי | Q80: 0.005479005749 | R80: 16.27895531 | S80: מדורג | T80: 0.3670385952 | U80: 66.99 | V80: 0.003292511835 | W80: 0 | X80: =IFERROR(VLOOKUP(A80,[1]!Table2[[מספר קרן]:[דירוג מחקות]],7,FALSE),"") -> ירוק
A81: 5109889 | B81: MTF מחקה (4A) ת"א 125 | C81: מגדל | D81: מניות בארץ | E81: מניות לפי שווי שוק-Mid Cap & Large | F81: 781760082 | G81: 0 | H81: 1 | I81: 0 | J81: 52.14 | L81: 1100007 | M81: פז נפט | N81: פז נפט | O81: מניות כללי | Q81: 0.006473474244 | R81: 58.07879964 | S81: מדורג | T81: 0.4336580396 | U81: 66.99 | V81: 0.002114261534 | W81: 0 | X81: =IFERROR(VLOOKUP(A81,[1]!Table2[[מספר קרן]:[דירוג מחקות]],7,FALSE),"") -> ירוק
A82: 5109889 | B82: MTF מחקה (4A) ת"א 125 | C82: מגדל | D82: מניות בארץ | E82: מניות לפי שווי שוק-Mid Cap & Large | F82: 781760082 | G82: 0 | H82: 1 | I82: 0 | J82: 52.14 | L82: 1101534 | M82: סלקום | N82: סלקום | O82: מניות כללי | Q82: 0.002829072974 | R82: 27.03833321 | S82: מדורג | T82: 0.1895195985 | U82: 66.99 | V82: 0.002795095823 | W82: 0 | X82: =IFERROR(VLOOKUP(A82,[1]!Table2[[מספר קרן]:[דירוג מחקות]],7,FALSE),"") -> ירוק
A83: 5109889 | B83: MTF מחקה (4A) ת"א 125 | C83: מגדל | D83: מניות בארץ | E83: מניות לפי שווי שוק-Mid Cap & Large | F83: 781760082 | G83: 0 | H83: 1 | I83: 0 | J83: 52.14 | L83: 1102128 | M83: פרשקובסקי | N83: פרשקובסקי | O83: מניות כללי | Q83: 0.001267269575 | R83: 16.19022729 | S83: מדורג | T83: 0.08489438884 | U83: 66.99 | V83: 0.0005802879147 | W83: 0 | X83: =IFERROR(VLOOKUP(A83,[1]!Table2[[מספר קרן]:[דירוג מחקות]],7,FALSE),"") -> ירוק
A84: 5109889 | B84: MTF מחקה (4A) ת"א 125 | C84: מגדל | D84: מניות בארץ | E84: מניות לפי שווי שוק-Mid Cap & Large | F84: 781760082 | G84: 0 | H84: 1 | I84: 0 | J84: 52.14 | L84: 1104249 | M84: רמי לוי | N84: רמי לוי | O84: מניות כללי | Q84: 0.003154350817 | R84: 17.17526178 | S84: מדורג | T84: 0.2113099613 | U84: 66.99 | V84: 0.0516617294 | W84: 0 | X84: =IFERROR(VLOOKUP(A84,[1]!Table2[[מספר קרן]:[דירוג מחקות]],7,FALSE),"") -> ירוק
A85: 5109889 | B85: MTF מחקה (4A) ת"א 125 | C85: מגדל | D85: מניות בארץ | E85: מניות לפי שווי שוק-Mid Cap & Large | F85: 781760082 | G85: 0 | H85: 1 | I85: 0 | J85: 52.14 | L85: 1104488 | M85: מגה אור | N85: מגה אור | O85: מניות כללי | Q85: 0.003865646846 | R85: 12.46758177 | S85: מדורג | T85: 0.2589596822 | U85: 66.99 | V85: 0.003623764944 | W85: 0 | X85: =IFERROR(VLOOKUP(A85,[1]!Table2[[מספר קרן]:[דירוג מחקות]],7,FALSE),"") -> ירוק
A86: 5109889 | B86: MTF מחקה (4A) ת"א 125 | C86: מגדל | D86: מניות בארץ | E86: מניות לפי שווי שוק-Mid Cap & Large | F86: 781760082 | G86: 0 | H86: 1 | I86: 0 | J86: 52.14 | L86: 1107663 | M86: בי קומיוניקיישנס | N86: בי קומיוניקיישנס | O86: מניות כללי | Q86: 0.0003929996567 | R86: 22.3121074 | S86: מדורג | T86: 0.026327047 | U86: 66.99 | V86: 0.003928979308 | W86: 0 | X86: =IFERROR(VLOOKUP(A86,[1]!Table2[[מספר קרן]:[דירוג מחקות]],7,FALSE),"") -> ירוק
A87: 5109889 | B87: MTF מחקה (4A) ת"א 125 | C87: מגדל | D87: מניות בארץ | E87: מניות לפי שווי שוק-Mid Cap & Large | F87: 781760082 | G87: 0 | H87: 1 | I87: 0 | J87: 52.14 | L87: 1109644 | M87: סלע נדל"ן | N87: סלע נדל"ן | O87: מניות כללי | Q87: 0.003626562389 | R87: 13.93951301 | S87: מדורג | T87: 0.2429434145 | U87: 66.99 | V87: 0.0004965483179 | W87: 0 | X87: =IFERROR(VLOOKUP(A87,[1]!Table2[[מספר קרן]:[דירוג מחקות]],7,FALSE),"") -> ירוק
A88: 5109889 | B88: MTF מחקה (4A) ת"א 125 | C88: מגדל | D88: מניות בארץ | E88: מניות לפי שווי שוק-Mid Cap & Large | F88: 781760082 | G88: 0 | H88: 1 | I88: 0 | J88: 52.14 | L88: 1119478 | M88: עזריאלי | N88: עזריאלי | O88: מניות כללי | Q88: 0.02116554381 | R88: 65.88245682 | S88: מדורג | T88: 1.41787978 | U88: 66.99 | V88: 0.003229966025 | W88: 0 | X88: =IFERROR(VLOOKUP(A88,[1]!Table2[[מספר קרן]:[דירוג מחקות]],7,FALSE),"") -> ירוק
A89: 5109889 | B89: MTF מחקה (4A) ת"א 125 | C89: מגדל | D89: מניות בארץ | E89: מניות לפי שווי שוק-Mid Cap & Large | F89: 781760082 | G89: 0 | H89: 1 | I89: 0 | J89: 52.14 | L89: 1123355 | M89: אנרג'יקס | N89: אנרג'יקס | O89: מניות כללי | Q89: 0.007791447971 | R89: 60.12933321 | S89: מדורג | T89: 0.5219490996 | U89: 66.99 | V89: 0.02553739803 | W89: 0 | X89: =IFERROR(VLOOKUP(A89,[1]!Table2[[מספר קרן]:[דירוג מחקות]],7,FALSE),"") -> ירוק
A90: 5109889 | B90: MTF מחקה (4A) ת"א 125 | C90: מגדל | D90: מניות בארץ | E90: מניות לפי שווי שוק-Mid Cap & Large | F90: 781760082 | G90: 0 | H90: 1 | I90: 0 | J90: 52.14 | L90: 1123850 | M90: קרסו | N90: קרסו מוטורס | O90: מניות כללי | Q90: 0.0006223912186 | R90: 17.32923797 | S90: מדורג | T90: 0.04169398774 | U90: 66.99 | V90: 0.01000743299 | W90: 0 | X90: =IFERROR(VLOOKUP(A90,[1]!Table2[[מספר קרן]:[דירוג מחקות]],7,FALSE),"") -> ירוק
A91: 5109889 | B91: MTF מחקה (4A) ת"א 125 | C91: מגדל | D91: מניות בארץ | E91: מניות לפי שווי שוק-Mid Cap & Large | F91: 781760082 | G91: 0 | H91: 1 | I91: 0 | J91: 52.14 | L91: 1129501 | M91: איי.די.איי. ביטוח | N91: איי.די.איי. ביטוח | O91: מניות כללי | Q91: 0.001825719854 | R91: 57.14878955 | S91: מדורג | T91: 0.122304973 | U91: 66.99 | V91: 0.02783831884 | W91: 0 | X91: =IFERROR(VLOOKUP(A91,[1]!Table2[[מספר קרן]:[דירוג מחקות]],7,FALSE),"") -> ירוק
A92: 5109889 | B92: MTF מחקה (4A) ת"א 125 | C92: מגדל | D92: מניות בארץ | E92: מניות לפי שווי שוק-Mid Cap & Large | F92: 781760082 | G92: 0 | H92: 1 | I92: 0 | J92: 52.14 | L92: 1129543 | M92: אופקו הלת' | N92: אופקו הלת' | O92: מניות כללי | Q92: 0.001865034474 | R92: 17.63764946 | S92: מדורג | T92: 0.1249386594 | U92: 66.99 | V92: 0.008856416751 | W92: 0 | X92: =IFERROR(VLOOKUP(A92,[1]!Table2[[מספר קרן]:[דירוג מחקות]],7,FALSE),"") -> ירוק
A93: 5109889 | B93: MTF מחקה (4A) ת"א 125 | C93: מגדל | D93: מניות בארץ | E93: מניות לפי שווי שוק-Mid Cap & Large | F93: 781760082 | G93: 0 | H93: 1 | I93: 0 | J93: 52.14 | L93: 1131523 | M93: מגדלי תיכון | N93: מגדלי הים התיכון | O93: מניות כללי | Q93: 0.0009467873418 | R93: 17.70760229 | S93: מדורג | T93: 0.06342528403 | U93: 66.99 | V93: 0.02514957955 | W93: 0 | X93: =IFERROR(VLOOKUP(A93,[1]!Table2[[מספר קרן]:[דירוג מחקות]],7,FALSE),"") -> ירוק
A94: 5109889 | B94: MTF מחקה (4A) ת"א 125 | C94: מגדל | D94: מניות בארץ | E94: מניות לפי שווי שוק-Mid Cap & Large | F94: 781760082 | G94: 0 | H94: 1 | I94: 0 | J94: 52.14 | L94: 1132315 | M94: אשטרום קבוצה | N94: אשטרום קבוצה | O94: מניות כללי | Q94: 0.004865508845 | R94: 59.88315525 | S94: מדורג | T94: 0.3259404376 | U94: 66.99 | V94: 0.001240240264 | W94: 0 | X94: =IFERROR(VLOOKUP(A94,[1]!Table2[[מספר קרן]:[דירוג מחקות]],7,FALSE),"") -> ירוק
A95: 5109889 | B95: MTF מחקה (4A) ת"א 125 | C95: מגדל | D95: מניות בארץ | E95: מניות לפי שווי שוק-Mid Cap & Large | F95: 781760082 | G95: 0 | H95: 1 | I95: 0 | J95: 52.14 | L95: 1132356 | M95: אינרום | N95: אינרום בנייה | O95: מניות כללי | Q95: 0.002230640694 | R95: 31.01294036 | S95: מדורג | T95: 0.1494306201 | U95: 66.99 | V95: 0.0511088446 | W95: 0 | X95: =IFERROR(VLOOKUP(A95,[1]!Table2[[מספר קרן]:[דירוג מחקות]],7,FALSE),"") -> ירוק
A96: 5109889 | B96: MTF מחקה (4A) ת"א 125 | C96: מגדל | D96: מניות בארץ | E96: מניות לפי שווי שוק-Mid Cap & Large | F96: 781760082 | G96: 0 | H96: 1 | I96: 0 | J96: 52.14 | L96: 1133875 | M96: שפיר הנדסה | N96: שפיר הנדסה | O96: מניות כללי | Q96: 0.006623772367 | R96: 22.55842967 | S96: מדורג | T96: 0.4437265109 | U96: 66.99 | V96: 0.00113099607 | W96: 0 | X96: =IFERROR(VLOOKUP(A96,[1]!Table2[[מספר קרן]:[דירוג מחקות]],7,FALSE),"") -> ירוק
A97: 5109889 | B97: MTF מחקה (4A) ת"א 125 | C97: מגדל | D97: מניות בארץ | E97: מניות לפי שווי שוק-Mid Cap & Large | F97: 781760082 | G97: 0 | H97: 1 | I97: 0 | J97: 52.14 | L97: 1134139 | M97: קנון | N97: קנון | O97: מניות כללי | Q97: 0.003296716416 | R97: 34.69309511 | S97: מדורג | T97: 0.2208470327 | U97: 66.99 | V97: 0.003523413608 | W97: 0 | X97: =IFERROR(VLOOKUP(A97,[1]!Table2[[מספר קרן]:[דירוג מחקות]],7,FALSE),"") -> ירוק
A98: 5109889 | B98: MTF מחקה (4A) ת"א 125 | C98: מגדל | D98: מניות בארץ | E98: מניות לפי שווי שוק-Mid Cap & Large | F98: 781760082 | G98: 0 | H98: 1 | I98: 0 | J98: 52.14 | L98: 1134402 | M98: אורמת טכנולוגיות | N98: אורמת טכנולוגיות | O98: מניות כללי | Q98: 0.02555929399 | R98: 67.64351394 | S98: מדורג | T98: 1.712217105 | U98: 66.99 | V98: 0.00173045676 | W98: 0 | X98: =IFERROR(VLOOKUP(A98,[1]!Table2[[מספר קרן]:[דירוג מחקות]],7,FALSE),"") -> ירוק
A99: 5109889 | B99: MTF מחקה (4A) ת"א 125 | C99: מגדל | D99: מניות בארץ | E99: מניות לפי שווי שוק-Mid Cap & Large | F99: 781760082 | G99: 0 | H99: 1 | I99: 0 | J99: 52.14 | L99: 1140573 | M99: מניבים ריט | N99: מניבים ריט | O99: מניות כללי | Q99: 0.002115499016 | R99: 17.25135916 | S99: מדורג | T99: 0.1417172791 | U99: 66.99 | V99: 0.0005725342193 | W99: 0 | X99: =IFERROR(VLOOKUP(A99,[1]!Table2[[מספר קרן]:[דירוג מחקות]],7,FALSE),"") -> ירוק
A100: 5109889 | B100: MTF מחקה (4A) ת"א 125 | C100: מגדל | D100: מניות בארץ | E100: מניות לפי שווי שוק-Mid Cap & Large | F100: 781760082 | G100: 0 | H100: 1 | I100: 0 | J100: 52.14 | L100: 1141357 | M100: תמר פטרוליום | N100: תמר פטרוליום | O100: מניות כללי | Q100: 0.001213175638 | R100: 26.39512212 | S100: מדורג | T100: 0.08127063601 | U100: 66.99 | V100: 0.01246894006 | W100: 0 | X100: =IFERROR(VLOOKUP(A100,[1]!Table2[[מספר קרן]:[דירוג מחקות]],7,FALSE),"") -> ירוק
A101: 5109889 | B101: MTF מחקה (4A) ת"א 125 | C101: מגדל | D101: מניות בארץ | E101: מניות לפי שווי שוק-Mid Cap & Large | F101: 781760082 | G101: 0 | H101: 1 | I101: 0 | J101: 52.14 | L101: 1141571 | M101: או.פי.סי | N101: או.פי.סי אנרגיה | O101: מניות כללי | Q101: 0.005766980756 | R101: 49.1233594 | S101: מדורג | T101: 0.3863300409 | U101: 66.99 | V101: 0.007021221979 | W101: 0 | X101: =IFERROR(VLOOKUP(A101,[1]!Table2[[מספר קרן]:[דירוג מחקות]],7,FALSE),"") -> ירוק
A102: 5109889 | B102: MTF מחקה (4A) ת"א 125 | C102: מגדל | D102: מניות בארץ | E102: מניות לפי שווי שוק-Mid Cap & Large | F102: 781760082 | G102: 0 | H102: 1 | I102: 0 | J102: 52.14 | L102: 1141969 | M102: נאוויטס פטרוליום יה"ש | N102: נאוויטס פטרוליום שותפות מוגבלת | O102: מניות כללי | Q102: 0.005469204256 | R102: 44.19942565 | S102: מדורג | T102: 0.3663819931 | U102: 66.99 | V102: 0.05048254366 | W102: 0 | X102: =IFERROR(VLOOKUP(A102,[1]!Table2[[מספר קרן]:[דירוג מחקות]],7,FALSE),"") -> ירוק
A103: 5109889 | B103: MTF מחקה (4A) ת"א 125 | C103: מגדל | D103: מניות בארץ | E103: מניות לפי שווי שוק-Mid Cap & Large | F103: 781760082 | G103: 0 | H103: 1 | I103: 0 | J103: 52.14 | L103: 1143429 | M103: פתאל החזקות | N103: פתאל החזקות | O103: מניות כללי | Q103: 0.007050395892 | R103: 39.96006313 | S103: מדורג | T103: 0.4723060208 | U103: 66.99 | V103: 0.001964692362 | W103: 0 | X103: =IFERROR(VLOOKUP(A103,[1]!Table2[[מספר קרן]:[דירוג מחקות]],7,FALSE),"") -> ירוק
A104: 5109889 | B104: MTF מחקה (4A) ת"א 125 | C104: מגדל | D104: מניות בארץ | E104: מניות לפי שווי שוק-Mid Cap & Large | F104: 781760082 | G104: 0 | H104: 1 | I104: 0 | J104: 52.14 | L104: 1155290 | M104: אנרג'יאן | N104: אנרג'יאן | O104: מניות כללי | Q104: 0.01441264578 | R104: 64.12719891 | S104: מדורג | T104: 0.9655031409 | U104: 66.99 | V104: 0.002845766006 | W104: 0 | X104: =IFERROR(VLOOKUP(A104,[1]!Table2[[מספר קרן]:[דירוג מחקות]],7,FALSE),"") -> ירוק
A105: 5109889 | B105: MTF מחקה (4A) ת"א 125 | C105: מגדל | D105: מניות בארץ | E105: מניות לפי שווי שוק-Mid Cap & Large | F105: 781760082 | G105: 0 | H105: 1 | I105: 0 | J105: 52.14 | L105: 1157403 | M105: ישראכרט | N105: ישראכרט | O105: מניות כללי | Q105: 0.005965639868 | R105: 41.15639976 | S105: מדורג | T105: 0.3996382148 | U105: 66.99 | V105: 0.006789919545 | W105: 0 | X105: =IFERROR(VLOOKUP(A105,[1]!Table2[[מספר קרן]:[דירוג מחקות]],7,FALSE),"") -> ירוק
A106: 5109889 | B106: MTF מחקה (4A) ת"א 125 | C106: מגדל | D106: מניות בארץ | E106: מניות לפי שווי שוק-Mid Cap & Large | F106: 781760082 | G106: 0 | H106: 1 | I106: 0 | J106: 52.14 | L106: 1159029 | M106: הבורסה לני"ע | N106: הבורסה לניירות ערך | O106: מניות כללי | Q106: 0.002712921409 | R106: 49.66933994 | S106: מדורג | T106: 0.1817386052 | U106: 66.99 | V106: 0.04371640513 | W106: 0 | X106: =IFERROR(VLOOKUP(A106,[1]!Table2[[מספר קרן]:[דירוג מחקות]],7,FALSE),"") -> ירוק
A107: 5109889 | B107: MTF מחקה (4A) ת"א 125 | C107: מגדל | D107: מניות בארץ | E107: מניות לפי שווי שוק-Mid Cap & Large | F107: 781760082 | G107: 0 | H107: 1 | I107: 0 | J107: 52.14 | L107: 1161264 | M107: יוחננוף | N107: מ.יוחננוף ובניו | O107: מניות כללי | Q107: 0.001076447746 | R107: 18.59969708 | S107: מדורג | T107: 0.07211123448 | U107: 66.99 | V107: 0.001269963167 | W107: 0 | X107: =IFERROR(VLOOKUP(A107,[1]!Table2[[מספר קרן]:[דירוג מחקות]],7,FALSE),"") -> ירוק
A108: 5109889 | B108: MTF מחקה (4A) ת"א 125 | C108: מגדל | D108: מניות בארץ | E108: מניות לפי שווי שוק-Mid Cap & Large | F108: 781760082 | G108: 0 | H108: 1 | I108: 0 | J108: 52.14 | L108: 1166768 | M108: דוראל אנרגיה | N108: דוראל משאבי אנרגיה | O108: מניות כללי | Q108: 0.001552201899 | R108: 46.91866136 | S108: מדורג | T108: 0.1039820052 | U108: 66.99 | V108: 0.002656237201 | W108: 0 | X108: =IFERROR(VLOOKUP(A108,[1]!Table2[[מספר קרן]:[דירוג מחקות]],7,FALSE),"") -> ירוק
A109: 5109889 | B109: MTF מחקה (4A) ת"א 125 | C109: מגדל | D109: מניות בארץ | E109: מניות לפי שווי שוק-Mid Cap & Large | F109: 781760082 | G109: 0 | H109: 1 | I109: 0 | J109: 52.14 | L109: 1166974 | M109: משק אנרגיה | N109: משק אנרגיה | O109: מניות כללי | Q109: 0.001174074402 | R109: 17.03836375 | S109: מדורג | T109: 0.07865124422 | U109: 66.99 | V109: 0.001785876347 | W109: 0 | X109: =IFERROR(VLOOKUP(A109,[1]!Table2[[מספר קרן]:[דירוג מחקות]],7,FALSE),"") -> ירוק
A110: 5109889 | B110: MTF מחקה (4A) ת"א 125 | C110: מגדל | D110: מניות בארץ | E110: מניות לפי שווי שוק-Mid Cap & Large | F110: 781760082 | G110: 0 | H110: 1 | I110: 0 | J110: 52.14 | L110: 1168186 | M110: מימון ישיר | N110: מימון ישיר קבוצה | O110: מניות כללי | Q110: 0.001550708391 | R110: 14.02036252 | S110: מדורג | T110: 0.1038819551 | U110: 66.99 | V110: 0.007500799313 | W110: 0 | X110: =IFERROR(VLOOKUP(A110,[1]!Table2[[מספר קרן]:[דירוג מחקות]],7,FALSE),"") -> ירוק
A111: 5109889 | B111: MTF מחקה (4A) ת"א 125 | C111: מגדל | D111: מניות בארץ | E111: מניות לפי שווי שוק-Mid Cap & Large | F111: 781760082 | G111: 0 | H111: 1 | I111: 0 | J111: 52.14 | L111: 1168533 | M111: מספנות ישראל | N111: תעשיות מספנות ישראל | O111: מניות כללי | Q111: 0.0003479418075 | R111: 26.03811249 | S111: מדורג | T111: 0.02330862168 | U111: 66.99 | V111: 0.01021983424 | W111: 0 | X111: =IFERROR(VLOOKUP(A111,[1]!Table2[[מספר קרן]:[דירוג מחקות]],7,FALSE),"") -> ירוק
A112: 5109889 | B112: MTF מחקה (4A) ת"א 125 | C112: מגדל | D112: מניות בארץ | E112: מניות לפי שווי שוק-Mid Cap & Large | F112: 781760082 | G112: 0 | H112: 1 | I112: 0 | J112: 52.14 | L112: 1170877 | M112: נופר אנרג'י | N112: ע.י. נופר אנרג'י | O112: מניות כללי | Q112: 0.003129534288 | R112: 44.91554466 | S112: מדורג | T112: 0.2096475019 | U112: 66.99 | V112: 0.002147904425 | W112: 0 | X112: =IFERROR(VLOOKUP(A112,[1]!Table2[[מספר קרן]:[דירוג מחקות]],7,FALSE),"") -> ירוק
A113: 5109889 | B113: MTF מחקה (4A) ת"א 125 | C113: מגדל | D113: מניות בארץ | E113: מניות לפי שווי שוק-Mid Cap & Large | F113: 781760082 | G113: 0 | H113: 1 | I113: 0 | J113: 52.14 | L113: 1173137 | M113: דניה סיבוס | N113: דניה סיבוס | O113: מניות כללי | Q113: 0.001329717261 | R113: 14.47286252 | S113: מדורג | T113: 0.08907775931 | U113: 66.99 | V113: 0.006019920409 | W113: 0 | X113: =IFERROR(VLOOKUP(A113,[1]!Table2[[מספר קרן]:[דירוג מחקות]],7,FALSE),"") -> ירוק
A114: 5109889 | B114: MTF מחקה (4A) ת"א 125 | C114: מגדל | D114: מניות בארץ | E114: מניות לפי שווי שוק-Mid Cap & Large | F114: 781760082 | G114: 0 | H114: 1 | I114: 0 | J114: 52.14 | L114: 1175116 | M114: נאייקס | N114: נאייקס | O114: מניות כללי | Q114: 0.001014940971 | R114: 17.11414946 | S114: מדורג | T114: 0.06799089568 | U114: 66.99 | V114: 0.01781188432 | W114: 0 | X114: =IFERROR(VLOOKUP(A114,[1]!Table2[[מספר קרן]:[דירוג מחקות]],7,FALSE),"") -> ירוק
A115: 5109889 | B115: MTF מחקה (4A) ת"א 125 | C115: מגדל | D115: מניות בארץ | E115: מניות לפי שווי שוק-Mid Cap & Large | F115: 781760082 | G115: 0 | H115: 1 | I115: 0 | J115: 52.14 | L115: 1175488 | M115: ריטיילורס | N115: ריטיילורס | O115: מניות כללי | Q115: 0.002979048847 | R115: 17.9673268 | S115: מדורג | T115: 0.1995664823 | U115: 66.99 | V115: 0.005809058065 | W115: 0 | X115: =IFERROR(VLOOKUP(A115,[1]!Table2[[מספר קרן]:[דירוג מחקות]],7,FALSE),"") -> ירוק
A116: 5109889 | B116: MTF מחקה (4A) ת"א 125 | C116: מגדל | D116: מניות בארץ | E116: מניות לפי שווי שוק-Mid Cap & Large | F116: 781760082 | G116: 0 | H116: 1 | I116: 0 | J116: 52.14 | L116: 1176205 | M116: קבוצת אקרשטיין | N116: קבוצת אקרשטיין | O116: מניות כללי | Q116: 0.0004541169409 | R116: 31.55731216 | S116: מדורג | T116: 0.03042129387 | U116: 66.99 | V116: 0.006723826049 | W116: 0 | X116: =IFERROR(VLOOKUP(A116,[1]!Table2[[מספר קרן]:[דירוג מחקות]],7,FALSE),"") -> ירוק
A117: 5109889 | B117: MTF מחקה (4A) ת"א 125 | C117: מגדל | D117: מניות בארץ | E117: מניות לפי שווי שוק-Mid Cap & Large | F117: 781760082 | G117: 0 | H117: 1 | I117: 0 | J117: 52.14 | L117: 1176387 | M117: ורידיס | N117: ורידיס אינווירונמנט | O117: מניות כללי | Q117: 0.00108266921 | R117: 18.81171966 | S117: מדורג | T117: 0.07252801038 | U117: 66.99 | V117: 0.00274598537 | W117: 0 | X117: =IFERROR(VLOOKUP(A117,[1]!Table2[[מספר קרן]:[דירוג מחקות]],7,FALSE),"") -> ירוק
A118: 5109889 | B118: MTF מחקה (4A) ת"א 125 | C118: מגדל | D118: מניות בארץ | E118: מניות לפי שווי שוק-Mid Cap & Large | F118: 781760082 | G118: 0 | H118: 1 | I118: 0 | J118: 52.14 | L118: 1176593 | M118: נקסט ויז'ן | N118: נקסט ויז'ן מערכות מיוצבות | O118: מניות כללי | Q118: 0.005117081357 | R118: 18.16412222 | S118: מדורג | T118: 0.3427932801 | U118: 66.99 | V118: 0.001004385298 | W118: 0 | X118: =IFERROR(VLOOKUP(A118,[1]!Table2[[מספר קרן]:[דירוג מחקות]],7,FALSE),"") -> ירוק
A119: 5109889 | B119: MTF מחקה (4A) ת"א 125 | C119: מגדל | D119: מניות בארץ | E119: מניות לפי שווי שוק-Mid Cap & Large | F119: 781760082 | G119: 0 | H119: 1 | I119: 0 | J119: 52.14 | L119: 1184902 | M119: אקרו | N119: קבוצת אקרו | O119: מניות כללי | Q119: 0.001988257814 | R119: 16.77118517 | S119: מדורג | T119: 0.1331933909 | U119: 66.99 | V119: 0.001271520033 | W119: 0 | X119: =IFERROR(VLOOKUP(A119,[1]!Table2[[מספר קרן]:[דירוג מחקות]],7,FALSE),"") -> ירוק
A120: 5109889 | B120: MTF מחקה (4A) ת"א 125 | C120: מגדל | D120: מניות בארץ | E120: מניות לפי שווי שוק-Mid Cap & Large | F120: 781760082 | G120: 0 | H120: 1 | I120: 0 | J120: 52.14 | L120: 1184936 | M120: אלטשולר שחם פיננסים | N120: אלטשולר שחם פיננסים | O120: מניות כללי | Q120: 0.0006889933327 | R120: 30.51033142 | S120: מדורג | T120: 0.04615566336 | U120: 66.99 | V120: 0.0009192129602 | W120: 0 | X120: =IFERROR(VLOOKUP(A120,[1]!Table2[[מספר קרן]:[דירוג מחקות]],7,FALSE),"") -> ירוק
A121: 5109889 | B121: MTF מחקה (4A) ת"א 125 | C121: מגדל | D121: מניות בארץ | E121: מניות לפי שווי שוק-Mid Cap & Large | F121: 781760082 | G121: 0 | H121: 1 | I121: 0 | J121: 52.14 | L121: 1187962 | M121: קרסו נדל"ן | N121: קרסו נדל"ן | O121: מניות כללי | Q121: 0.0007832023321 | R121: 31.63476728 | S121: מדורג | T121: 0.05246672423 | U121: 66.99 | V121: 0.00290732396 | W121: 0 | X121: =IFERROR(VLOOKUP(A121,[1]!Table2[[מספר קרן]:[דירוג מחקות]],7,FALSE),"") -> ירוק
A122: 5109889 | B122: MTF מחקה (4A) ת"א 125 | C122: מגדל | D122: מניות בארץ | E122: מניות לפי שווי שוק-Mid Cap & Large | F122: 781760082 | G122: 0 | H122: 1 | I122: 0 | J122: 52.14 | L122: 1188242 | M122: שיכון ובינוי אנרגיה | N122: שיכון ובינוי אנרגיה | O122: מניות כללי | Q122: 0.0007346829591 | R122: 14.44350537 | S122: מדורג | T122: 0.04921641143 | U122: 66.99 | V122: 0.001264921072 | W122: 0 | X122: =IFERROR(VLOOKUP(A122,[1]!Table2[[מספר קרן]:[דירוג מחקות]],7,FALSE),"") -> ירוק
A123: 5109889 | B123: MTF מחקה (4A) ת"א 125 | C123: מגדל | D123: מניות בארץ | E123: מניות לפי שווי שוק-Mid Cap & Large | F123: 781760082 | G123: 0 | H123: 1 | I123: 0 | J123: 52.14 | L123: 1194695 | M123: זפירוס | N123: זפירוס ווינג אנרג'יס | O123: מניות כללי | Q123: 0.0003715506764 | R123: 12.02500537 | S123: מדורג | T123: 0.02489017981 | U123: 66.99 | V123: 0.002633111297 | W123: 0 | X123: =IFERROR(VLOOKUP(A123,[1]!Table2[[מספר קרן]:[דירוג מחקות]],7,FALSE),"") -> ירוק
A124: 5109889 | B124: MTF מחקה (4A) ת"א 125 | C124: מגדל | D124: מניות בארץ | E124: מניות לפי שווי שוק-Mid Cap & Large | F124: 781760082 | G124: 0 | H124: 1 | I124: 0 | J124: 52.14 | L124: 1198910 | M124: בית זיקוק אשדוד | N124: בית זיקוק אשדוד | O124: מניות כללי | Q124: 0.002125107855 | R124: 16.71036252 | S124: מדורג | T124: 0.1423609752 | U124: 66.99 | V124: 0.000389334737 | W124: 0 | X124: =IFERROR(VLOOKUP(A124,[1]!Table2[[מספר קרן]:[דירוג מחקות]],7,FALSE),"") -> ירוק
A125: 5109889 | B125: MTF מחקה (4A) ת"א 125 | C125: מגדל | D125: מניות בארץ | E125: מניות לפי שווי שוק-Mid Cap & Large | F125: 781760082 | G125: 0 | H125: 1 | I125: 0 | J125: 52.14 | L125: 1202977 | M125: ישרס אחזקות | N125: ישרס אחזקות | O125: מניות כללי | Q125: 0.001849177792 | R125: 7.904998971 | S125: מדורג | T125: 0.1238764203 | U125: 66.99 | V125: 0.001296886485 | W125: 0 | X125: =IFERROR(VLOOKUP(A125,[1]!Table2[[מספר קרן]:[דירוג מחקות]],7,FALSE),"") -> ירוק
A126: 5109889 | B126: MTF מחקה (4A) ת"א 125 | C126: מגדל | D126: מניות בארץ | E126: מניות לפי שווי שוק-Mid Cap & Large | F126: 781760082 | G126: 0 | H126: 1 | I126: 0 | J126: 52.14 | L126: 2590248 | M126: בזן | N126: בתי זיקוק | O126: מניות כללי | Q126: 0.006337416134 | R126: 60.42133197 | S126: מדורג | T126: 0.4245435068 | U126: 66.99 | V126: 0.008609890205 | W126: 0 | X126: =IFERROR(VLOOKUP(A126,[1]!Table2[[מספר קרן]:[דירוג מחקות]],7,FALSE),"") -> ירוק
A127: 5109889 | B127: MTF מחקה (4A) ת"א 125 | C127: מגדל | D127: מניות בארץ | E127: מניות לפי שווי שוק-Mid Cap & Large | F127: 781760082 | G127: 0 | H127: 1 | I127: 0 | J127: 52.14 | L127: 5010129 | M127: אלקטרה צריכה | N127: אלקטרה צריכה | O127: מניות כללי | Q127: 0.002024962335 | R127: 59.28492606 | S127: מדורג | T127: 0.1356522268 | U127: 66.99 | V127: 0.005972755133 | W127: 0 | X127: =IFERROR(VLOOKUP(A127,[1]!Table2[[מספר קרן]:[דירוג מחקות]],7,FALSE),"") -> ירוק
A128: 5109897 | B128: MTF מחקה (4A) ת"א 35 | C128: מגדל | D128: מניות בארץ | E128: מניות לפי שווי שוק-Large Cap | F128: 201232132 | G128: 1.110223025e-16 | H128: 1 | I128: 0 | J128: 59.92 | L128: 226019 | M128: מבנה | N128: מבנה נדל"ן | O128: Large Cap | Q128: 0.01712505153 | R128: 22.63304872 | S128: מדורג | T128: 1.318457717 | U128: 76.99 | V128: 0.00436658929 | W128: 0 | X128: =IFERROR(VLOOKUP(A128,[1]!Table2[[מספר קרן]:[דירוג מחקות]],7,FALSE),"") -> ירוק
A129: 5109897 | B129: MTF מחקה (4A) ת"א 35 | C129: מגדל | D129: מניות בארץ | E129: מניות לפי שווי שוק-Large Cap | F129: 201232132 | G129: 1.110223025e-16 | H129: 1 | I129: 0 | J129: 59.92 | L129: 230011 | M129: בזק | N129: בזק | O129: Large Cap | Q129: 0.02781681302 | R129: 67.27138082 | S129: מדורג | T129: 2.141616434 | U129: 76.99 | V129: 0.03434266184 | W129: 0 | X129: =IFERROR(VLOOKUP(A129,[1]!Table2[[מספר קרן]:[דירוג מחקות]],7,FALSE),"") -> ירוק
A130: 5109897 | B130: MTF מחקה (4A) ת"א 35 | C130: מגדל | D130: מניות בארץ | E130: מניות לפי שווי שוק-Large Cap | F130: 201232132 | G130: 1.110223025e-16 | H130: 1 | I130: 0 | J130: 59.92 | L130: 273011 | M130: נייס | N130: נייס | O130: Large Cap | Q130: 0.07598514668 | R130: 57.22464158 | S130: מדורג | T130: 5.850096443 | U130: 76.99 | V130: 0.003124863903 | W130: 0 | X130: =IFERROR(VLOOKUP(A130,[1]!Table2[[מספר קרן]:[דירוג מחקות]],7,FALSE),"") -> ירוק
A131: 5109897 | B131: MTF מחקה (4A) ת"א 35 | C131: מגדל | D131: מניות בארץ | E131: מניות לפי שווי שוק-Large Cap | F131: 201232132 | G131: 1.110223025e-16 | H131: 1 | I131: 0 | J131: 59.92 | L131: 281014 | M131: כיל | N131: איי.סי.אל גרופ | O131: Large Cap | Q131: 0.04095318703 | R131: 83.65958289 | S131: מדורג | T131: 3.15298587 | U131: 76.99 | V131: 0.009095322185 | W131: 0 | X131: =IFERROR(VLOOKUP(A131,[1]!Table2[[מספר קרן]:[דירוג מחקות]],7,FALSE),"") -> ירוק
A132: 5109897 | B132: MTF מחקה (4A) ת"א 35 | C132: מגדל | D132: מניות בארץ | E132: מניות לפי שווי שוק-Large Cap | F132: 201232132 | G132: 1.110223025e-16 | H132: 1 | I132: 0 | J132: 59.92 | L132: 323014 | M132: מליסרון | N132: מליסרון | O132: Large Cap | Q132: 0.02033009298 | R132: 22.94819158 | S132: מדורג | T132: 1.565213859 | U132: 76.99 | V132: 0.006156456431 | W132: 0 | X132: =IFERROR(VLOOKUP(A132,[1]!Table2[[מספר קרן]:[דירוג מחקות]],7,FALSE),"") -> ירוק
A133: 5109897 | B133: MTF מחקה (4A) ת"א 35 | C133: מגדל | D133: מניות בארץ | E133: מניות לפי שווי שוק-Large Cap | F133: 201232132 | G133: 1.110223025e-16 | H133: 1 | I133: 0 | J133: 59.92 | L133: 475020 | M133: ניו-מד אנרג'י יה"ש | N133: ניו-מד אנרג'י שותפות מוגבלת | O133: Large Cap | Q133: 0.01482633775 | R133: 40.27972606 | S133: מדורג | T133: 1.141479744 | U133: 76.99 | V133: 0.0006220250964 | W133: 0 | X133: =IFERROR(VLOOKUP(A133,[1]!Table2[[מספר קרן]:[דירוג מחקות]],7,FALSE),"") -> ירוק
A134: 5109897 | B134: MTF מחקה (4A) ת"א 35 | C134: מגדל | D134: מניות בארץ | E134: מניות לפי שווי שוק-Large Cap | F134: 201232132 | G134: 1.110223025e-16 | H134: 1 | I134: 0 | J134: 59.92 | L134: 576017 | M134: חברה לישראל | N134: חברה לישראל | O134: Large Cap | Q134: 0.01039360167 | R134: 20.57401239 | S134: מדורג | T134: 0.8002033929 | U134: 76.99 | V134: 0.00582041166 | W134: 0 | X134: =IFERROR(VLOOKUP(A134,[1]!Table2[[מספר קרן]:[דירוג מחקות]],7,FALSE),"") -> ירוק
A135: 5109897 | B135: MTF מחקה (4A) ת"א 35 | C135: מגדל | D135: מניות בארץ | E135: מניות לפי שווי שוק-Large Cap | F135: 201232132 | G135: 1.110223025e-16 | H135: 1 | I135: 0 | J135: 59.92 | L135: 585018 | M135: הראל השקעות | N135: הראל ביטוח | O135: Large Cap | Q135: 0.01132232965 | R135: 61.26142289 | S135: מדורג | T135: 0.8717061601 | U135: 76.99 | V135: 0.01993131102 | W135: 0 | X135: =IFERROR(VLOOKUP(A135,[1]!Table2[[מספר קרן]:[דירוג מחקות]],7,FALSE),"") -> ירוק
A136: 5109897 | B136: MTF מחקה (4A) ת"א 35 | C136: מגדל | D136: מניות בארץ | E136: מניות לפי שווי שוק-Large Cap | F136: 201232132 | G136: 1.110223025e-16 | H136: 1 | I136: 0 | J136: 59.92 | L136: 593038 | M136: בינלאומי | N136: הבנק הבינלאומי | O136: Large Cap | Q136: 0.0223867941 | R136: 71.46883321 | S136: מדורג | T136: 1.723559277 | U136: 76.99 | V136: 0.05159157241 | W136: 0 | X136: =IFERROR(VLOOKUP(A136,[1]!Table2[[מספר קרן]:[דירוג מחקות]],7,FALSE),"") -> ירוק
A137: 5109897 | B137: MTF מחקה (4A) ת"א 35 | C137: מגדל | D137: מניות בארץ | E137: מניות לפי שווי שוק-Large Cap | F137: 201232132 | G137: 1.110223025e-16 | H137: 1 | I137: 0 | J137: 59.92 | L137: 604611 | M137: לאומי | N137: בנק לאומי | O137: Large Cap | Q137: 0.07058336283 | R137: 82.56039487 | S137: מדורג | T137: 5.434213104 | U137: 76.99 | V137: 0.05340399973 | W137: 0 | X137: =IFERROR(VLOOKUP(A137,[1]!Table2[[מספר קרן]:[דירוג מחקות]],7,FALSE),"") -> ירוק
A138: 5109897 | B138: MTF מחקה (4A) ת"א 35 | C138: מגדל | D138: מניות בארץ | E138: מניות לפי שווי שוק-Large Cap | F138: 201232132 | G138: 1.110223025e-16 | H138: 1 | I138: 0 | J138: 59.92 | L138: 629014 | M138: טבע | N138: טבע | O138: Large Cap | Q138: 0.07551809723 | R138: 73.68102491 | S138: מדורג | T138: 5.814138306 | U138: 76.99 | V138: 0.001870551168 | W138: 0 | X138: =IFERROR(VLOOKUP(A138,[1]!Table2[[מספר קרן]:[דירוג מחקות]],7,FALSE),"") -> ירוק
A139: 5109897 | B139: MTF מחקה (4A) ת"א 35 | C139: מגדל | D139: מניות בארץ | E139: מניות לפי שווי שוק-Large Cap | F139: 201232132 | G139: 1.110223025e-16 | H139: 1 | I139: 0 | J139: 59.92 | L139: 662577 | M139: פועלים | N139: בנק פועלים | O139: Large Cap | Q139: 0.06951766123 | R139: 82.2749348 | S139: מדורג | T139: 5.352164738 | U139: 76.99 | V139: 0.05093564422 | W139: 0 | X139: =IFERROR(VLOOKUP(A139,[1]!Table2[[מספר קרן]:[דירוג מחקות]],7,FALSE),"") -> ירוק
A140: 5109897 | B140: MTF מחקה (4A) ת"א 35 | C140: מגדל | D140: מניות בארץ | E140: מניות לפי שווי שוק-Large Cap | F140: 201232132 | G140: 1.110223025e-16 | H140: 1 | I140: 0 | J140: 59.92 | L140: 691212 | M140: דיסקונט | N140: בנק דיסקונט | O140: Large Cap | Q140: 0.0658420642 | R140: 76.54881062 | S140: מדורג | T140: 5.069180523 | U140: 76.99 | V140: 0.01652571928 | W140: 0 | X140: =IFERROR(VLOOKUP(A140,[1]!Table2[[מספר קרן]:[דירוג מחקות]],7,FALSE),"") -> ירוק
A141: 5109897 | B141: MTF מחקה (4A) ת"א 35 | C141: מגדל | D141: מניות בארץ | E141: מניות לפי שווי שוק-Large Cap | F141: 201232132 | G141: 1.110223025e-16 | H141: 1 | I141: 0 | J141: 59.92 | L141: 695437 | M141: מזרחי טפחות | N141: בנק מזרחי-טפחות | O141: Large Cap | Q141: 0.05907363699 | R141: 76.81007491 | S141: מדורג | T141: 4.548079312 | U141: 76.99 | V141: 0.009385301701 | W141: 0 | X141: =IFERROR(VLOOKUP(A141,[1]!Table2[[מספר קרן]:[דירוג מחקות]],7,FALSE),"") -> ירוק
A142: 5109897 | B142: MTF מחקה (4A) ת"א 35 | C142: מגדל | D142: מניות בארץ | E142: מניות לפי שווי שוק-Large Cap | F142: 201232132 | G142: 1.110223025e-16 | H142: 1 | I142: 0 | J142: 59.92 | L142: 720011 | M142: אנלייט | N142: אנלייט אנרגיה | O142: Large Cap | Q142: 0.02158608975 | R142: 62.56828215 | S142: מדורג | T142: 1.66191305 | U142: 76.99 | V142: 0.01513630492 | W142: 0 | X142: =IFERROR(VLOOKUP(A142,[1]!Table2[[מספר קרן]:[דירוג מחקות]],7,FALSE),"") -> ירוק
A143: 5109897 | B143: MTF מחקה (4A) ת"א 35 | C143: מגדל | D143: מניות בארץ | E143: מניות לפי שווי שוק-Large Cap | F143: 201232132 | G143: 1.110223025e-16 | H143: 1 | I143: 0 | J143: 59.92 | L143: 739037 | M143: אלקטרה | N143: אלקטרה | O143: Large Cap | Q143: 0.00930912563 | R143: 50.43020622 | S143: מדורג | T143: 0.7167095822 | U143: 76.99 | V143: 0.01136909221 | W143: 0 | X143: =IFERROR(VLOOKUP(A143,[1]!Table2[[מספר קרן]:[דירוג מחקות]],7,FALSE),"") -> ירוק
A144: 5109897 | B144: MTF מחקה (4A) ת"א 35 | C144: מגדל | D144: מניות בארץ | E144: מניות לפי שווי שוק-Large Cap | F144: 201232132 | G144: 1.110223025e-16 | H144: 1 | I144: 0 | J144: 59.92 | L144: 746016 | M144: שטראוס | N144: שטראוס | O144: Large Cap | Q144: 0.0102602741 | R144: 69.78360067 | S144: מדורג | T144: 0.7899385027 | U144: 76.99 | V144: 0.002055449336 | W144: 0 | X144: =IFERROR(VLOOKUP(A144,[1]!Table2[[מספר קרן]:[דירוג מחקות]],7,FALSE),"") -> ירוק
A145: 5109897 | B145: MTF מחקה (4A) ת"א 35 | C145: מגדל | D145: מניות בארץ | E145: מניות לפי שווי שוק-Large Cap | F145: 201232132 | G145: 1.110223025e-16 | H145: 1 | I145: 0 | J145: 59.92 | L145: 767012 | M145: הפניקס | N145: הפניקס ביטוח | O145: Large Cap | Q145: 0.0189584614 | R145: 56.40864622 | S145: מדורג | T145: 1.459611943 | U145: 76.99 | V145: 0.007311346008 | W145: 0 | X145: =IFERROR(VLOOKUP(A145,[1]!Table2[[מספר קרן]:[דירוג מחקות]],7,FALSE),"") -> ירוק
A146: 5109897 | B146: MTF מחקה (4A) ת"א 35 | C146: מגדל | D146: מניות בארץ | E146: מניות לפי שווי שוק-Large Cap | F146: 201232132 | G146: 1.110223025e-16 | H146: 1 | I146: 0 | J146: 59.92 | L146: 1081124 | M146: אלביט מערכות | N146: אלביט מערכות | O146: Large Cap | Q146: 0.05285789963 | R146: 53.71104634 | S146: מדורג | T146: 4.069529693 | U146: 76.99 | V146: 0.003214569183 | W146: 0 | X146: =IFERROR(VLOOKUP(A146,[1]!Table2[[מספר קרן]:[דירוג מחקות]],7,FALSE),"") -> ירוק
A147: 5109897 | B147: MTF מחקה (4A) ת"א 35 | C147: מגדל | D147: מניות בארץ | E147: מניות לפי שווי שוק-Large Cap | F147: 201232132 | G147: 1.110223025e-16 | H147: 1 | I147: 0 | J147: 59.92 | L147: 1081942 | M147: שיכון ובינוי | N147: שיכון ובינוי | O147: Large Cap | Q147: 0.008836187433 | R147: 25.88341715 | S147: מדורג | T147: 0.6802980705 | U147: 76.99 | V147: 0.004443182454 | W147: 0 | X147: =IFERROR(VLOOKUP(A147,[1]!Table2[[מספר קרן]:[דירוג מחקות]],7,FALSE),"") -> ירוק
A148: 5109897 | B148: MTF מחקה (4A) ת"א 35 | C148: מגדל | D148: מניות בארץ | E148: מניות לפי שווי שוק-Large Cap | F148: 201232132 | G148: 1.110223025e-16 | H148: 1 | I148: 0 | J148: 59.92 | L148: 1082379 | M148: טאואר | N148: טאואר | O148: Large Cap | Q148: 0.03883588701 | R148: 49.2122652 | S148: מדורג | T148: 2.989974941 | U148: 76.99 | V148: 0.01440067695 | W148: 0 | X148: =IFERROR(VLOOKUP(A148,[1]!Table2[[מספר קרן]:[דירוג מחקות]],7,FALSE),"") -> ירוק
A149: 5109897 | B149: MTF מחקה (4A) ת"א 35 | C149: מגדל | D149: מניות בארץ | E149: מניות לפי שווי שוק-Large Cap | F149: 201232132 | G149: 1.110223025e-16 | H149: 1 | I149: 0 | J149: 59.92 | L149: 1084128 | M149: דלק קבוצה | N149: דלק קבוצה | O149: Large Cap | Q149: 0.01259248883 | R149: 17.69129811 | S149: מדורג | T149: 0.9694957153 | U149: 76.99 | V149: 0.007385387063 | W149: 0 | X149: =IFERROR(VLOOKUP(A149,[1]!Table2[[מספר קרן]:[דירוג מחקות]],7,FALSE),"") -> ירוק
A150: 5109897 | B150: MTF מחקה (4A) ת"א 35 | C150: מגדל | D150: מניות בארץ | E150: מניות לפי שווי שוק-Large Cap | F150: 201232132 | G150: 1.110223025e-16 | H150: 1 | I150: 0 | J150: 59.92 | L150: 1084557 | M150: נובה | N150: נובה | O150: Large Cap | Q150: 0.05611915716 | R150: 31.23751301 | S150: מדורג | T150: 4.32061391 | U150: 76.99 | V150: 0.001130819655 | W150: 0 | X150: =IFERROR(VLOOKUP(A150,[1]!Table2[[מספר קרן]:[דירוג מחקות]],7,FALSE),"") -> ירוק
A151: 5109897 | B151: MTF מחקה (4A) ת"א 35 | C151: מגדל | D151: מניות בארץ | E151: מניות לפי שווי שוק-Large Cap | F151: 201232132 | G151: 1.110223025e-16 | H151: 1 | I151: 0 | J151: 59.92 | L151: 1087659 | M151: סאפיינס | N151: סאפיינס | O151: Large Cap | Q151: 0.01029828542 | R151: 42.32174749 | S151: מדורג | T151: 0.7928649944 | U151: 76.99 | V151: 0.003601897148 | W151: 0 | X151: =IFERROR(VLOOKUP(A151,[1]!Table2[[מספר קרן]:[דירוג מחקות]],7,FALSE),"") -> ירוק
A152: 5109897 | B152: MTF מחקה (4A) ת"א 35 | C152: מגדל | D152: מניות בארץ | E152: מניות לפי שווי שוק-Large Cap | F152: 201232132 | G152: 1.110223025e-16 | H152: 1 | I152: 0 | J152: 59.92 | L152: 1095264 | M152: קמטק | N152: קמטק | O152: Large Cap | Q152: 0.02334315493 | R152: 24.08136892 | S152: מדורג | T152: 1.797189498 | U152: 76.99 | V152: 0.000876098311 | W152: 0 | X152: =IFERROR(VLOOKUP(A152,[1]!Table2[[מספר קרן]:[דירוג מחקות]],7,FALSE),"") -> ירוק
A153: 5109897 | B153: MTF מחקה (4A) ת"א 35 | C153: מגדל | D153: מניות בארץ | E153: מניות לפי שווי שוק-Large Cap | F153: 201232132 | G153: 1.110223025e-16 | H153: 1 | I153: 0 | J153: 59.92 | L153: 1095835 | M153: איירפורט סיטי | N153: איירפורט סיטי | O153: Large Cap | Q153: 0.01120516691 | R153: 16.31076178 | S153: מדורג | T153: 0.8626858001 | U153: 76.99 | V153: 0.001670236963 | W153: 0 | X153: =IFERROR(VLOOKUP(A153,[1]!Table2[[מספר קרן]:[דירוג מחקות]],7,FALSE),"") -> ירוק
A154: 5109897 | B154: MTF מחקה (4A) ת"א 35 | C154: מגדל | D154: מניות בארץ | E154: מניות לפי שווי שוק-Large Cap | F154: 201232132 | G154: 1.110223025e-16 | H154: 1 | I154: 0 | J154: 59.92 | L154: 1097260 | M154: ביג | N154: ביג מרכזי קניות | O154: Large Cap | Q154: 0.01704362273 | R154: 19.89497668 | S154: מדורג | T154: 1.312188514 | U154: 76.99 | V154: 0.004056023154 | W154: 0 | X154: =IFERROR(VLOOKUP(A154,[1]!Table2[[מספר קרן]:[דירוג מחקות]],7,FALSE),"") -> ירוק
A155: 5109897 | B155: MTF מחקה (4A) ת"א 35 | C155: מגדל | D155: מניות בארץ | E155: מניות לפי שווי שוק-Large Cap | F155: 201232132 | G155: 1.110223025e-16 | H155: 1 | I155: 0 | J155: 59.92 | L155: 1097278 | M155: אמות | N155: אמות | O155: Large Cap | Q155: 0.01181052774 | R155: 45.23825225 | S155: מדורג | T155: 0.9092925304 | U155: 76.99 | V155: 0.01392392957 | W155: 0 | X155: =IFERROR(VLOOKUP(A155,[1]!Table2[[מספר קרן]:[דירוג מחקות]],7,FALSE),"") -> ירוק
A156: 5109897 | B156: MTF מחקה (4A) ת"א 35 | C156: מגדל | D156: מניות בארץ | E156: מניות לפי שווי שוק-Large Cap | F156: 201232132 | G156: 1.110223025e-16 | H156: 1 | I156: 0 | J156: 59.92 | L156: 1119478 | M156: עזריאלי | N156: עזריאלי | O156: Large Cap | Q156: 0.02830812851 | R156: 65.88245682 | S156: מדורג | T156: 2.179442814 | U156: 76.99 | V156: 0.001175962277 | W156: 0 | X156: =IFERROR(VLOOKUP(A156,[1]!Table2[[מספר קרן]:[דירוג מחקות]],7,FALSE),"") -> ירוק
A157: 5109897 | B157: MTF מחקה (4A) ת"א 35 | C157: מגדל | D157: מניות בארץ | E157: מניות לפי שווי שוק-Large Cap | F157: 201232132 | G157: 1.110223025e-16 | H157: 1 | I157: 0 | J157: 59.92 | L157: 1123355 | M157: אנרג'יקס | N157: אנרג'יקס | O157: Large Cap | Q157: 0.0104207722 | R157: 60.12933321 | S157: מדורג | T157: 0.8022952513 | U157: 76.99 | V157: 0.001124215321 | W157: 0 | X157: =IFERROR(VLOOKUP(A157,[1]!Table2[[מספר קרן]:[דירוג מחקות]],7,FALSE),"") -> ירוק
A158: 5109897 | B158: MTF מחקה (4A) ת"א 35 | C158: מגדל | D158: מניות בארץ | E158: מניות לפי שווי שוק-Large Cap | F158: 201232132 | G158: 1.110223025e-16 | H158: 1 | I158: 0 | J158: 59.92 | L158: 1132315 | M158: אשטרום קבוצה | N158: אשטרום קבוצה | O158: Large Cap | Q158: 0.006507437319 | R158: 59.88315525 | S158: מדורג | T158: 0.5010075992 | U158: 76.99 | V158: 0.001594427443 | W158: 0 | X158: =IFERROR(VLOOKUP(A158,[1]!Table2[[מספר קרן]:[דירוג מחקות]],7,FALSE),"") -> ירוק
A159: 5109897 | B159: MTF מחקה (4A) ת"א 35 | C159: מגדל | D159: מניות בארץ | E159: מניות לפי שווי שוק-Large Cap | F159: 201232132 | G159: 1.110223025e-16 | H159: 1 | I159: 0 | J159: 59.92 | L159: 1133875 | M159: שפיר הנדסה | N159: שפיר הנדסה | O159: Large Cap | Q159: 0.008859049457 | R159: 22.55842967 | S159: מדורג | T159: 0.6820582177 | U159: 76.99 | V159: 0.00153372144 | W159: 0 | X159: =IFERROR(VLOOKUP(A159,[1]!Table2[[מספר קרן]:[דירוג מחקות]],7,FALSE),"") -> ירוק
A160: 5109897 | B160: MTF מחקה (4A) ת"א 35 | C160: מגדל | D160: מניות בארץ | E160: מניות לפי שווי שוק-Large Cap | F160: 201232132 | G160: 1.110223025e-16 | H160: 1 | I160: 0 | J160: 59.92 | L160: 1134402 | M160: אורמת טכנולוגיות | N160: אורמת טכנולוגיות | O160: Large Cap | Q160: 0.03418460614 | R160: 67.64351394 | S160: מדורג | T160: 2.631872827 | U160: 76.99 | V160: 0.0006233891365 | W160: 0 | X160: =IFERROR(VLOOKUP(A160,[1]!Table2[[מספר קרן]:[דירוג מחקות]],7,FALSE),"") -> ירוק
A161: 5109897 | B161: MTF מחקה (4A) ת"א 35 | C161: מגדל | D161: מניות בארץ | E161: מניות לפי שווי שוק-Large Cap | F161: 201232132 | G161: 1.110223025e-16 | H161: 1 | I161: 0 | J161: 59.92 | L161: 1141571 | M161: או.פי.סי | N161: או.פי.סי אנרגיה | O161: Large Cap | Q161: 0.007713122509 | R161: 49.1233594 | S161: מדורג | T161: 0.5938333019 | U161: 76.99 | V161: 0.0006995670094 | W161: 0 | X161: =IFERROR(VLOOKUP(A161,[1]!Table2[[מספר קרן]:[דירוג מחקות]],7,FALSE),"") -> ירוק
A162: 5109897 | B162: MTF מחקה (4A) ת"א 35 | C162: מגדל | D162: מניות בארץ | E162: מניות לפי שווי שוק-Large Cap | F162: 201232132 | G162: 1.110223025e-16 | H162: 1 | I162: 0 | J162: 59.92 | L162: 1155290 | M162: אנרג'יאן | N162: אנרג'יאן | O162: Large Cap | Q162: 0.01927637828 | R162: 64.12719891 | S162: מדורג | T162: 1.484088364 | U162: 76.99 | V162: 0.0007576906357 | W162: 0 | X162: =IFERROR(VLOOKUP(A162,[1]!Table2[[מספר קרן]:[דירוג מחקות]],7,FALSE),"") -> ירוק
A163: 5101506 | B163: אי.בי.אי. מחקה (4A) ת"א 35 | C163: אי.בי.אי | D163: מניות בארץ | E163: מניות לפי שווי שוק-Large Cap | F163: 54914643 | G163: 1.110223025e-16 | H163: 1 | I163: 0 | J163: 59.92 | L163: 226019 | M163: מבנה | N163: מבנה נדל"ן | O163: Large Cap | Q163: 0.01712505153 | R163: 22.63304872 | S163: מדורג | T163: 1.318457717 | U163: 76.99 | V163: 0.01124994098 | W163: 0 | X163: =IFERROR(VLOOKUP(A163,[1]!Table2[[מספר קרן]:[דירוג מחקות]],7,FALSE),"") -> אדום
A164: 5101506 | B164: אי.בי.אי. מחקה (4A) ת"א 35 | C164: אי.בי.אי | D164: מניות בארץ | E164: מניות לפי שווי שוק-Large Cap | F164: 54914643 | G164: 1.110223025e-16 | H164: 1 | I164: 0 | J164: 59.92 | L164: 230011 | M164: בזק | N164: בזק | O164: Large Cap | Q164: 0.02781681302 | R164: 67.27138082 | S164: מדורג | T164: 2.141616434 | U164: 76.99 | V164: 0.000484535327 | W164: 0 | X164: =IFERROR(VLOOKUP(A164,[1]!Table2[[מספר קרן]:[דירוג מחקות]],7,FALSE),"") -> אדום
A165: 5101506 | B165: אי.בי.אי. מחקה (4A) ת"א 35 | C165: אי.בי.אי | D165: מניות בארץ | E165: מניות לפי שווי שוק-Large Cap | F165: 54914643 | G165: 1.110223025e-16 | H165: 1 | I165: 0 | J165: 59.92 | L165: 273011 | M165: נייס | N165: נייס | O165: Large Cap | Q165: 0.07598514668 | R165: 57.22464158 | S165: מדורג | T165: 5.850096443 | U165: 76.99 | V165: 0.004335979468 | W165: 0 | X165: =IFERROR(VLOOKUP(A165,[1]!Table2[[מספר קרן]:[דירוג מחקות]],7,FALSE),"") -> אדום
A166: 5101506 | B166: אי.בי.אי. מחקה (4A) ת"א 35 | C166: אי.בי.אי | D166: מניות בארץ | E166: מניות לפי שווי שוק-Large Cap | F166: 54914643 | G166: 1.110223025e-16 | H166: 1 | I166: 0 | J166: 59.92 | L166: 281014 | M166: כיל | N166: איי.סי.אל גרופ | O166: Large Cap | Q166: 0.04095318703 | R166: 83.65958289 | S166: מדורג | T166: 3.15298587 | U166: 76.99 | V166: 0.00405938895 | W166: 0 | X166: =IFERROR(VLOOKUP(A166,[1]!Table2[[מספר קרן]:[דירוג מחקות]],7,FALSE),"") -> אדום
A167: 5101506 | B167: אי.בי.אי. מחקה (4A) ת"א 35 | C167: אי.בי.אי | D167: מניות בארץ | E167: מניות לפי שווי שוק-Large Cap | F167: 54914643 | G167: 1.110223025e-16 | H167: 1 | I167: 0 | J167: 59.92 | L167: 323014 | M167: מליסרון | N167: מליסרון | O167: Large Cap | Q167: 0.02033009298 | R167: 22.94819158 | S167: מדורג | T167: 1.565213859 | U167: 76.99 | V167: 0.0005767933879 | W167: 0 | X167: =IFERROR(VLOOKUP(A167,[1]!Table2[[מספר קרן]:[דירוג מחקות]],7,FALSE),"") -> אדום
A168: 5101506 | B168: אי.בי.אי. מחקה (4A) ת"א 35 | C168: אי.בי.אי | D168: מניות בארץ | E168: מניות לפי שווי שוק-Large Cap | F168: 54914643 | G168: 1.110223025e-16 | H168: 1 | I168: 0 | J168: 59.92 | L168: 475020 | M168: ניו-מד אנרג'י יה"ש | N168: ניו-מד אנרג'י שותפות מוגבלת | O168: Large Cap | Q168: 0.01482633775 | R168: 40.27972606 | S168: מדורג | T168: 1.141479744 | U168: 76.99 | V168: 0.004950170818 | W168: 0 | X168: =IFERROR(VLOOKUP(A168,[1]!Table2[[מספר קרן]:[דירוג מחקות]],7,FALSE),"") -> אדום
A169: 5101506 | B169: אי.בי.אי. מחקה (4A) ת"א 35 | C169: אי.בי.אי | D169: מניות בארץ | E169: מניות לפי שווי שוק-Large Cap | F169: 54914643 | G169: 1.110223025e-16 | H169: 1 | I169: 0 | J169: 59.92 | L169: 576017 | M169: חברה לישראל | N169: חברה לישראל | O169: Large Cap | Q169: 0.01039360167 | R169: 20.57401239 | S169: מדורג | T169: 0.8002033929 | U169: 76.99 | V169: 0.02053451542 | W169: 0 | X169: =IFERROR(VLOOKUP(A169,[1]!Table2[[מספר קרן]:[דירוג מחקות]],7,FALSE),"") -> אדום
A170: 5101506 | B170: אי.בי.אי. מחקה (4A) ת"א 35 | C170: אי.בי.אי | D170: מניות בארץ | E170: מניות לפי שווי שוק-Large Cap | F170: 54914643 | G170: 1.110223025e-16 | H170: 1 | I170: 0 | J170: 59.92 | L170: 585018 | M170: הראל השקעות | N170: הראל ביטוח | O170: Large Cap | Q170: 0.01132232965 | R170: 61.26142289 | S170: מדורג | T170: 0.8717061601 | U170: 76.99 | V170: 0.02070445181 | W170: 0 | X170: =IFERROR(VLOOKUP(A170,[1]!Table2[[מספר קרן]:[דירוג מחקות]],7,FALSE),"") -> אדום
A171: 5101506 | B171: אי.בי.אי. מחקה (4A) ת"א 35 | C171: אי.בי.אי | D171: מניות בארץ | E171: מניות לפי שווי שוק-Large Cap | F171: 54914643 | G171: 1.110223025e-16 | H171: 1 | I171: 0 | J171: 59.92 | L171: 593038 | M171: בינלאומי | N171: הבנק הבינלאומי | O171: Large Cap | Q171: 0.0223867941 | R171: 71.46883321 | S171: מדורג | T171: 1.723559277 | U171: 76.99 | V171: 0.002679505136 | W171: 0 | X171: =IFERROR(VLOOKUP(A171,[1]!Table2[[מספר קרן]:[דירוג מחקות]],7,FALSE),"") -> אדום
A172: 5101506 | B172: אי.בי.אי. מחקה (4A) ת"א 35 | C172: אי.בי.אי | D172: מניות בארץ | E172: מניות לפי שווי שוק-Large Cap | F172: 54914643 | G172: 1.110223025e-16 | H172: 1 | I172: 0 | J172: 59.92 | L172: 604611 | M172: לאומי | N172: בנק לאומי | O172: Large Cap | Q172: 0.07058336283 | R172: 82.56039487 | S172: מדורג | T172: 5.434213104 | U172: 76.99 | V172: 0.02052793857 | W172: 0 | X172: =IFERROR(VLOOKUP(A172,[1]!Table2[[מספר קרן]:[דירוג מחקות]],7,FALSE),"") -> אדום
A173: 5101506 | B173: אי.בי.אי. מחקה (4A) ת"א 35 | C173: אי.בי.אי | D173: מניות בארץ | E173: מניות לפי שווי שוק-Large Cap | F173: 54914643 | G173: 1.110223025e-16 | H173: 1 | I173: 0 | J173: 59.92 | L173: 629014 | M173: טבע | N173: טבע | O173: Large Cap | Q173: 0.07551809723 | R173: 73.68102491 | S173: מדורג | T173: 5.814138306 | U173: 76.99 | V173: 0.005936857874 | W173: 0 | X173: =IFERROR(VLOOKUP(A173,[1]!Table2[[מספר קרן]:[דירוג מחקות]],7,FALSE),"") -> אדום
A174: 5101506 | B174: אי.בי.אי. מחקה (4A) ת"א 35 | C174: אי.בי.אי | D174: מניות בארץ | E174: מניות לפי שווי שוק-Large Cap | F174: 54914643 | G174: 1.110223025e-16 | H174: 1 | I174: 0 | J174: 59.92 | L174: 662577 | M174: פועלים | N174: בנק פועלים | O174: Large Cap | Q174: 0.06951766123 | R174: 82.2749348 | S174: מדורג | T174: 5.352164738 | U174: 76.99 | V174: 0.01930087173 | W174: 0 | X174: =IFERROR(VLOOKUP(A174,[1]!Table2[[מספר קרן]:[דירוג מחקות]],7,FALSE),"") -> אדום
A175: 5101506 | B175: אי.בי.אי. מחקה (4A) ת"א 35 | C175: אי.בי.אי | D175: מניות בארץ | E175: מניות לפי שווי שוק-Large Cap | F175: 54914643 | G175: 1.110223025e-16 | H175: 1 | I175: 0 | J175: 59.92 | L175: 691212 | M175: דיסקונט | N175: בנק דיסקונט | O175: Large Cap | Q175: 0.0658420642 | R175: 76.54881062 | S175: מדורג | T175: 5.069180523 | U175: 76.99 | V175: 0.001347914106 | W175: 0 | X175: =IFERROR(VLOOKUP(A175,[1]!Table2[[מספר קרן]:[דירוג מחקות]],7,FALSE),"") -> אדום
A176: 5101506 | B176: אי.בי.אי. מחקה (4A) ת"א 35 | C176: אי.בי.אי | D176: מניות בארץ | E176: מניות לפי שווי שוק-Large Cap | F176: 54914643 | G176: 1.110223025e-16 | H176: 1 | I176: 0 | J176: 59.92 | L176: 695437 | M176: מזרחי טפחות | N176: בנק מזרחי-טפחות | O176: Large Cap | Q176: 0.05907363699 | R176: 76.81007491 | S176: מדורג | T176: 4.548079312 | U176: 76.99 | V176: 0.01917071533 | W176: 0 | X176: =IFERROR(VLOOKUP(A176,[1]!Table2[[מספר קרן]:[דירוג מחקות]],7,FALSE),"") -> אדום
A177: 5101506 | B177: אי.בי.אי. מחקה (4A) ת"א 35 | C177: אי.בי.אי | D177: מניות בארץ | E177: מניות לפי שווי שוק-Large Cap | F177: 54914643 | G177: 1.110223025e-16 | H177: 1 | I177: 0 | J177: 59.92 | L177: 720011 | M177: אנלייט | N177: אנלייט אנרגיה | O177: Large Cap | Q177: 0.02158608975 | R177: 62.56828215 | S177: מדורג | T177: 1.66191305 | U177: 76.99 | V177: 0.0156758912 | W177: 0 | X177: =IFERROR(VLOOKUP(A177,[1]!Table2[[מספר קרן]:[דירוג מחקות]],7,FALSE),"") -> אדום
A178: 5101506 | B178: אי.בי.אי. מחקה (4A) ת"א 35 | C178: אי.בי.אי | D178: מניות בארץ | E178: מניות לפי שווי שוק-Large Cap | F178: 54914643 | G178: 1.110223025e-16 | H178: 1 | I178: 0 | J178: 59.92 | L178: 739037 | M178: אלקטרה | N178: אלקטרה | O178: Large Cap | Q178: 0.00930912563 | R178: 50.43020622 | S178: מדורג | T178: 0.7167095822 | U178: 76.99 | V178: 0.0005866710555 | W178: 0 | X178: =IFERROR(VLOOKUP(A178,[1]!Table2[[מספר קרן]:[דירוג מחקות]],7,FALSE),"") -> אדום
A179: 5101506 | B179: אי.בי.אי. מחקה (4A) ת"א 35 | C179: אי.בי.אי | D179: מניות בארץ | E179: מניות לפי שווי שוק-Large Cap | F179: 54914643 | G179: 1.110223025e-16 | H179: 1 | I179: 0 | J179: 59.92 | L179: 746016 | M179: שטראוס | N179: שטראוס | O179: Large Cap | Q179: 0.0102602741 | R179: 69.78360067 | S179: מדורג | T179: 0.7899385027 | U179: 76.99 | V179: 0.0003076138878 | W179: 0 | X179: =IFERROR(VLOOKUP(A179,[1]!Table2[[מספר קרן]:[דירוג מחקות]],7,FALSE),"") -> אדום
A180: 5101506 | B180: אי.בי.אי. מחקה (4A) ת"א 35 | C180: אי.בי.אי | D180: מניות בארץ | E180: מניות לפי שווי שוק-Large Cap | F180: 54914643 | G180: 1.110223025e-16 | H180: 1 | I180: 0 | J180: 59.92 | L180: 767012 | M180: הפניקס | N180: הפניקס ביטוח | O180: Large Cap | Q180: 0.0189584614 | R180: 56.40864622 | S180: מדורג | T180: 1.459611943 | U180: 76.99 | V180: 0.003790937675 | W180: 0 | X180: =IFERROR(VLOOKUP(A180,[1]!Table2[[מספר קרן]:[דירוג מחקות]],7,FALSE),"") -> אדום
A181: 5101506 | B181: אי.בי.אי. מחקה (4A) ת"א 35 | C181: אי.בי.אי | D181: מניות בארץ | E181: מניות לפי שווי שוק-Large Cap | F181: 54914643 | G181: 1.110223025e-16 | H181: 1 | I181: 0 | J181: 59.92 | L181: 1081124 | M181: אלביט מערכות | N181: אלביט מערכות | O181: Large Cap | Q181: 0.05285789963 | R181: 53.71104634 | S181: מדורג | T181: 4.069529693 | U181: 76.99 | V181: 0.002088828337 | W181: 0 | X181: =IFERROR(VLOOKUP(A181,[1]!Table2[[מספר קרן]:[דירוג מחקות]],7,FALSE),"") -> אדום
A182: 5101506 | B182: אי.בי.אי. מחקה (4A) ת"א 35 | C182: אי.בי.אי | D182: מניות בארץ | E182: מניות לפי שווי שוק-Large Cap | F182: 54914643 | G182: 1.110223025e-16 | H182: 1 | I182: 0 | J182: 59.92 | L182: 1081942 | M182: שיכון ובינוי | N182: שיכון ובינוי | O182: Large Cap | Q182: 0.008836187433 | R182: 25.88341715 | S182: מדורג | T182: 0.6802980705 | U182: 76.99 | V182: 0.003628391681 | W182: 0 | X182: =IFERROR(VLOOKUP(A182,[1]!Table2[[מספר קרן]:[דירוג מחקות]],7,FALSE),"") -> אדום
A183: 5101506 | B183: אי.בי.אי. מחקה (4A) ת"א 35 | C183: אי.בי.אי | D183: מניות בארץ | E183: מניות לפי שווי שוק-Large Cap | F183: 54914643 | G183: 1.110223025e-16 | H183: 1 | I183: 0 | J183: 59.92 | L183: 1082379 | M183: טאואר | N183: טאואר | O183: Large Cap | Q183: 0.03883588701 | R183: 49.2122652 | S183: מדורג | T183: 2.989974941 | U183: 76.99 | V183: 0.003190593098 | W183: 0 | X183: =IFERROR(VLOOKUP(A183,[1]!Table2[[מספר קרן]:[דירוג מחקות]],7,FALSE),"") -> אדום
A184: 5101506 | B184: אי.בי.אי. מחקה (4A) ת"א 35 | C184: אי.בי.אי | D184: מניות בארץ | E184: מניות לפי שווי שוק-Large Cap | F184: 54914643 | G184: 1.110223025e-16 | H184: 1 | I184: 0 | J184: 59.92 | L184: 1084128 | M184: דלק קבוצה | N184: דלק קבוצה | O184: Large Cap | Q184: 0.01259248883 | R184: 17.69129811 | S184: מדורג | T184: 0.9694957153 | U184: 76.99 | V184: 0.005876604531 | W184: 0 | X184: =IFERROR(VLOOKUP(A184,[1]!Table2[[מספר קרן]:[דירוג מחקות]],7,FALSE),"") -> אדום
A185: 5101506 | B185: אי.בי.אי. מחקה (4A) ת"א 35 | C185: אי.בי.אי | D185: מניות בארץ | E185: מניות לפי שווי שוק-Large Cap | F185: 54914643 | G185: 1.110223025e-16 | H185: 1 | I185: 0 | J185: 59.92 | L185: 1084557 | M185: נובה | N185: נובה | O185: Large Cap | Q185: 0.05611915716 | R185: 31.23751301 | S185: מדורג | T185: 4.32061391 | U185: 76.99 | V185: 0.004481722036 | W185: 0 | X185: =IFERROR(VLOOKUP(A185,[1]!Table2[[מספר קרן]:[דירוג מחקות]],7,FALSE),"") -> אדום
A186: 5101506 | B186: אי.בי.אי. מחקה (4A) ת"א 35 | C186: אי.בי.אי | D186: מניות בארץ | E186: מניות לפי שווי שוק-Large Cap | F186: 54914643 | G186: 1.110223025e-16 | H186: 1 | I186: 0 | J186: 59.92 | L186: 1087659 | M186: סאפיינס | N186: סאפיינס | O186: Large Cap | Q186: 0.01029828542 | R186: 42.32174749 | S186: מדורג | T186: 0.7928649944 | U186: 76.99 | V186: 0.0004785885795 | W186: 0 | X186: =IFERROR(VLOOKUP(A186,[1]!Table2[[מספר קרן]:[דירוג מחקות]],7,FALSE),"") -> אדום
A187: 5101506 | B187: אי.בי.אי. מחקה (4A) ת"א 35 | C187: אי.בי.אי | D187: מניות בארץ | E187: מניות לפי שווי שוק-Large Cap | F187: 54914643 | G187: 1.110223025e-16 | H187: 1 | I187: 0 | J187: 59.92 | L187: 1095264 | M187: קמטק | N187: קמטק | O187: Large Cap | Q187: 0.02334315493 | R187: 24.08136892 | S187: מדורג | T187: 1.797189498 | U187: 76.99 | V187: 0.01980588736 | W187: 0 | X187: =IFERROR(VLOOKUP(A187,[1]!Table2[[מספר קרן]:[דירוג מחקות]],7,FALSE),"") -> אדום
A188: 5101506 | B188: אי.בי.אי. מחקה (4A) ת"א 35 | C188: אי.בי.אי | D188: מניות בארץ | E188: מניות לפי שווי שוק-Large Cap | F188: 54914643 | G188: 1.110223025e-16 | H188: 1 | I188: 0 | J188: 59.92 | L188: 1095835 | M188: איירפורט סיטי | N188: איירפורט סיטי | O188: Large Cap | Q188: 0.01120516691 | R188: 16.31076178 | S188: מדורג | T188: 0.8626858001 | U188: 76.99 | V188: 0.007904259409 | W188: 0 | X188: =IFERROR(VLOOKUP(A188,[1]!Table2[[מספר קרן]:[דירוג מחקות]],7,FALSE),"") -> אדום
A189: 5101506 | B189: אי.בי.אי. מחקה (4A) ת"א 35 | C189: אי.בי.אי | D189: מניות בארץ | E189: מניות לפי שווי שוק-Large Cap | F189: 54914643 | G189: 1.110223025e-16 | H189: 1 | I189: 0 | J189: 59.92 | L189: 1097260 | M189: ביג | N189: ביג מרכזי קניות | O189: Large Cap | Q189: 0.01704362273 | R189: 19.89497668 | S189: מדורג | T189: 1.312188514 | U189: 76.99 | V189: 0.000469861775 | W189: 0 | X189: =IFERROR(VLOOKUP(A189,[1]!Table2[[מספר קרן]:[דירוג מחקות]],7,FALSE),"") -> אדום
A190: 5101506 | B190: אי.בי.אי. מחקה (4A) ת"א 35 | C190: אי.בי.אי | D190: מניות בארץ | E190: מניות לפי שווי שוק-Large Cap | F190: 54914643 | G190: 1.110223025e-16 | H190: 1 | I190: 0 | J190: 59.92 | L190: 1097278 | M190: אמות | N190: אמות | O190: Large Cap | Q190: 0.01181052774 | R190: 45.23825225 | S190: מדורג | T190: 0.9092925304 | U190: 76.99 | V190: 0.02122638603 | W190: 0 | X190: =IFERROR(VLOOKUP(A190,[1]!Table2[[מספר קרן]:[דירוג מחקות]],7,FALSE),"") -> אדום
A191: 5101506 | B191: אי.בי.אי. מחקה (4A) ת"א 35 | C191: אי.בי.אי | D191: מניות בארץ | E191: מניות לפי שווי שוק-Large Cap | F191: 54914643 | G191: 1.110223025e-16 | H191: 1 | I191: 0 | J191: 59.92 | L191: 1119478 | M191: עזריאלי | N191: עזריאלי | O191: Large Cap | Q191: 0.02830812851 | R191: 65.88245682 | S191: מדורג | T191: 2.179442814 | U191: 76.99 | V191: 0.002743211386 | W191: 0 | X191: =IFERROR(VLOOKUP(A191,[1]!Table2[[מספר קרן]:[דירוג מחקות]],7,FALSE),"") -> אדום
A192: 5101506 | B192: אי.בי.אי. מחקה (4A) ת"א 35 | C192: אי.בי.אי | D192: מניות בארץ | E192: מניות לפי שווי שוק-Large Cap | F192: 54914643 | G192: 1.110223025e-16 | H192: 1 | I192: 0 | J192: 59.92 | L192: 1123355 | M192: אנרג'יקס | N192: אנרג'יקס | O192: Large Cap | Q192: 0.0104207722 | R192: 60.12933321 | S192: מדורג | T192: 0.8022952513 | U192: 76.99 | V192: 0.007616634961 | W192: 0 | X192: =IFERROR(VLOOKUP(A192,[1]!Table2[[מספר קרן]:[דירוג מחקות]],7,FALSE),"") -> אדום
A193: 5101506 | B193: אי.בי.אי. מחקה (4A) ת"א 35 | C193: אי.בי.אי | D193: מניות בארץ | E193: מניות לפי שווי שוק-Large Cap | F193: 54914643 | G193: 1.110223025e-16 | H193: 1 | I193: 0 | J193: 59.92 | L193: 1132315 | M193: אשטרום קבוצה | N193: אשטרום קבוצה | O193: Large Cap | Q193: 0.006507437319 | R193: 59.88315525 | S193: מדורג | T193: 0.5010075992 | U193: 76.99 | V193: 0.002100961428 | W193: 0 | X193: =IFERROR(VLOOKUP(A193,[1]!Table2[[מספר קרן]:[דירוג מחקות]],7,FALSE),"") -> אדום
A194: 5101506 | B194: אי.בי.אי. מחקה (4A) ת"א 35 | C194: אי.בי.אי | D194: מניות בארץ | E194: מניות לפי שווי שוק-Large Cap | F194: 54914643 | G194: 1.110223025e-16 | H194: 1 | I194: 0 | J194: 59.92 | L194: 1133875 | M194: שפיר הנדסה | N194: שפיר הנדסה | O194: Large Cap | Q194: 0.008859049457 | R194: 22.55842967 | S194: מדורג | T194: 0.6820582177 | U194: 76.99 | V194: 0.02173948363 | W194: 0 | X194: =IFERROR(VLOOKUP(A194,[1]!Table2[[מספר קרן]:[דירוג מחקות]],7,FALSE),"") -> אדום
A195: 5101506 | B195: אי.בי.אי. מחקה (4A) ת"א 35 | C195: אי.בי.אי | D195: מניות בארץ | E195: מניות לפי שווי שוק-Large Cap | F195: 54914643 | G195: 1.110223025e-16 | H195: 1 | I195: 0 | J195: 59.92 | L195: 1134402 | M195: אורמת טכנולוגיות | N195: אורמת טכנולוגיות | O195: Large Cap | Q195: 0.03418460614 | R195: 67.64351394 | S195: מדורג | T195: 2.631872827 | U195: 76.99 | V195: 0.009103606343 | W195: 0 | X195: =IFERROR(VLOOKUP(A195,[1]!Table2[[מספר קרן]:[דירוג מחקות]],7,FALSE),"") -> אדום
A196: 5101506 | B196: אי.בי.אי. מחקה (4A) ת"א 35 | C196: אי.בי.אי | D196: מניות בארץ | E196: מניות לפי שווי שוק-Large Cap | F196: 54914643 | G196: 1.110223025e-16 | H196: 1 | I196: 0 | J196: 59.92 | L196: 1141571 | M196: או.פי.סי | N196: או.פי.סי אנרגיה | O196: Large Cap | Q196: 0.007713122509 | R196: 49.1233594 | S196: מדורג | T196: 0.5938333019 | U196: 76.99 | V196: 0.01885950968 | W196: 0 | X196: =IFERROR(VLOOKUP(A196,[1]!Table2[[מספר קרן]:[דירוג מחקות]],7,FALSE),"") -> אדום
A197: 5101506 | B197: אי.בי.אי. מחקה (4A) ת"א 35 | C197: אי.בי.אי | D197: מניות בארץ | E197: מניות לפי שווי שוק-Large Cap | F197: 54914643 | G197: 1.110223025e-16 | H197: 1 | I197: 0 | J197: 59.92 | L197: 1155290 | M197: אנרג'יאן | N197: אנרג'יאן | O197: Large Cap | Q197: 0.01927637828 | R197: 64.12719891 | S197: מדורג | T197: 1.484088364 | U197: 76.99 | V197: 0.001965770209 | W197: 0 | X197: =IFERROR(VLOOKUP(A197,[1]!Table2[[מספר קרן]:[דירוג מחקות]],7,FALSE),"") -> אדום
A198: 5111265 | B198: PTF‏ (00) תל גוב-מק"מ | C198: פסגות | D198: אג"ח בארץ - מדינה | E198: אג"ח מדינה שקליות-מק"מ | F198: 101491892 | G198: 1 | H198: 0 | I198: 0 | J198: 0 | L198: 8240418 | M198: מ.ק.מ 414 | N198: בנק ישראל | O198: אג"ח ממשלתי | Q198: 0.1899495385 | R198: 59.45238334 | S198: ממשלתי | U198: לא מדורג | V198: 0.002768408345 | W198: 0 | X198: =IFERROR(VLOOKUP(A198,[1]!Table2[[מספר קרן]:[דירוג מחקות]],7,FALSE),"") -> ירוק
A199: 5111265 | B199: PTF‏ (00) תל גוב-מק"מ | C199: פסגות | D199: אג"ח בארץ - מדינה | E199: אג"ח מדינה שקליות-מק"מ | F199: 101491892 | G199: 1 | H199: 0 | I199: 0 | J199: 0 | L199: 8240525 | M199: מ.ק.מ 524 | N199: בנק ישראל | O199: אג"ח ממשלתי | Q199: 0.1801978064 | R199: 59.45238334 | S199: ממשלתי | U199: לא מדורג | V199: 0.01124529034 | W199: 0 | X199: =IFERROR(VLOOKUP(A199,[1]!Table2[[מספר קרן]:[דירוג מחקות]],7,FALSE),"") -> ירוק
A200: 5111265 | B200: PTF‏ (00) תל גוב-מק"מ | C200: פסגות | D200: אג"ח בארץ - מדינה | E200: אג"ח מדינה שקליות-מק"מ | F200: 101491892 | G200: 1 | H200: 0 | I200: 0 | J200: 0 | L200: 8240616 | M200: מ.ק.מ 614 | N200: בנק ישראל | O200: אג"ח ממשלתי | Q200: 0.08082814542 | R200: 59.45238334 | S200: ממשלתי | U200: לא מדורג | V200: 0.02037353038 | W200: 0 | X200: =IFERROR(VLOOKUP(A200,[1]!Table2[[מספר קרן]:[דירוג מחקות]],7,FALSE),"") -> ירוק
... 2050 more rows

Sheet Paperposition
C2: =IFERROR(VLOOKUP($W$5,INDIRECT(V2&"!"&("A:B"),TRUE),2,FALSE),"דירוג אינו קיים") -> דירוג אינו קיים | V2: =INDEX($AD15:$AU15,MATCH($W$2,$AD$14:$AU$14,0)) -> מרץ | W2: 3 | Z2: בחר חודש
V3: 5136536
W4: =HLOOKUP(X5,MF_ESG_Ratings!$L$1:$L$1151,W5+1,FALSE) -> 
V5: =INDEX(INDIRECT(W15&"[שם קרן]"),MATCH(Paperposition!W5,INDIRECT(W15&"[מספר קרן]"),0)) ->  | W5: 1194141 | Z5: בחר מס' קרן | AB5: =W5 -> 1194141
D6: מספר קרן: | E6: =W5 -> 1194141 | I6: ="דירוג "&$W$19 -> דירוג אינו קיים | N6: סיווג הקרן: | P6: =VLOOKUP(E6,MF_ESG_Ratings!A:D,4,FALSE) ->  | W6: =COLUMN() -> 23 | X6: רשימת הקרנות שלי
D7: חודש דירוג: | E7: =W15&" 2023" -> מרץ 2023 | G7: =IFERROR(W20-X20,"") ->  | H7: =IFERROR(IF(G7="","",IF(G7>0,"עלייה בדירוג מחודש קודם",IF(G7=0,"ללא שינוי בדירוג מחודש קודם","ירידה בדירוג מחודש קודם"))),"") ->  | N7: תת סיווג הקרן: | P7: =VLOOKUP(E6,MF_ESG_Ratings!A:E,5,0) -> 
D8: מנהל השקעות: | E8: =VLOOKUP(E6,מנהל_השקעות[],6,FALSE) -> הראל
V9: ≈
C10: הערכת ESG לקרן | AH10: =VLOOKUP(E6,MF_ESG_Ratings!A:D,4,0) -> 
W12: =INDEX($AD16:$AU16,MATCH($W$2,$AD$14:$AU$14,0))-INDEX($AD18:$AU18,MATCH($W$2,$AD$14:$AU$14,0)) -> 
W13: =INDEX($AD16:$AU16,MATCH($W$2,$AD$14:$AU$14,0))-INDEX($AD19:$AU19,MATCH($W$2,$AD$14:$AU$14,0)) ->  | AD13: 2022-10-01 | AE13: 2022-11-01 | AF13: 2022-12-01 | AG13: 2023-01-01 | AH13: 2023-02-01 | AI13: 2023-03-01 | AJ13: 2023-04-01 | AK13: 2023-05-01 | AL13: 2023-06-01 | AM13: 2023-07-01 | AN13: 2023-08-01 | AO13: 2023-09-01 | AP13: 2023-10-01 | AQ13: 2023-11-01 | AR13: 2023-12-01 | AS13: 2024-01-01 | AT13: 2024-02-01 | AU13: 2024-03-01
W14: =INDEX($AD16:$AU16,MATCH($W$2,$AD$14:$AU$14,0))-INDEX($AD20:$AU20,MATCH($W$2,$AD$14:$AU$14,0)) ->  | AA14: מקסימום בתקופה | AF14: 12 | AG14: 1 | AH14: 2 | AI14: 3 | AJ14: 4 | AK14: 5 | AL14: 6 | AM14: 7 | AN14: 8 | AO14: 9 | AP14: 10 | AQ14: 11 | AR14: 12 | AS14: 1 | AT14: 2 | AU14: 3 | AV14: 1
V15: חודשד מוצג: | W15: =INDEX($AD15:$AU15,MATCH($W$2,$AD$14:$AU$14,0)) -> מרץ | X15: =TEXT(W15,"טקסט") -> מרץ | Y15: =DATEVALUE(W2&"/2023") -> 2023-03-01 | Z15: מינימום בתקופה | AB15: ממוצע | AF15: דצמבר | AG15: ינואר | AH15: פברואר | AI15: מרץ | AJ15: אפריל | AK15: מאי | AL15: יוני | AM15: יולי | AN15: אוגוסט | AO15: ספטמבר | AP15: אוקטובר | AQ15: נובמבר | AR15: דצמבר | AS15: ינואר | AT15: פברואר | AU15: מרץ | AV15: =AV14+1 -> 2
U16: מיקום | W16: =INDEX($AD16:$AU16,MATCH($W$2,$AD$14:$AU$14,0)) -> 100 | Y16: כוכבים לחודש | AC16: סה"כ | AD16: 100 | AE16: 100 | AF16: 100 | AG16: 100 | AH16: 100 | AI16: 100 | AJ16: 100 | AK16: 100 | AL16: 100 | AM16: 100 | AN16: 100 | AO16: 100 | AP16: 100 | AQ16: 100 | AR16: 100 | AS16: 100 | AT16: 100 | AU16: 100 | AV16: =AV15+1 -> 3
W17: =INDEX($AD17:$AU17,MATCH($W$2,$AD$14:$AU$14,0)) -> 0 | X17: חודש קודם | Y17: =IF($X$18>=$W$51,$X$51,IF($X$18>=$W$52,$X$52,IF($X$18>=$W$53,$X$53,IF($X$18>=$W$55,$X$55,IF($X$18>=$W$56,$X$56,IF($X$18>=$W$57,$X$57,IF($X$18>=$W$58,$X$58,IF($X$18>=$W$59,$X$59,IF($X$18>=$W$60,$X$60,"ללא דירוג"))))))))) -> 5 | Z17: =IF($Z$18>=$W$51,$X$51,IF($Z$18>=$W$52,$X$52,IF($Z$18>=$W$53,$X$53,IF($Z$18>=$W$55,$X$55,IF($Z$18>=$W$56,$X$56,IF($Z$18>=$W$57,$X$57,IF($Z$18>=$W$58,$X$58,IF($Z$18>=$W$59,$X$59,IF($Z$18>=$W$60,$X$60,"ללא דירוג"))))))))) -> ללא דירוג | AA17: =IF($AA$18>=$W$51,$X$51,IF($AA$18>=$W$52,$X$52,IF($AA$18>=$W$53,$X$53,IF($AA$18>=$W$55,$X$55,IF($AA$18>=$W$56,$X$56,IF($AA$18>=$W$57,$X$57,IF($AA$18>=$W$58,$X$58,IF($AA$18>=$W$59,$X$59,IF($AA$18>=$W$60,$X$60,"ללא דירוג"))))))))) -> ללא דירוג | AB17: =AVERAGE(Z17:AA17) ->  | AV17: 4
U18: 1.85 | V18: דירוג הקרן לחודש המוצג | W18: =INDEX($AD18:$AU18,MATCH($W$2,$AD$14:$AU$14,0)) ->  | X18: =INDEX($AD18:$AU18,MATCH(($W$2-1),$AD$14:$AU$14,0)) ->  | Y18: =IF($W$18>=$W$51,$X$51,IF($W$18>=$W$52,$X$52,IF($W$18>=$W$53,$X$53,IF($W$18>=$W$55,$X$55,IF($W$18>=$W$56,$X$56,IF($W$18>=$W$57,$X$57,IF($W$18>=$W$58,$X$58,IF($W$18>=$W$59,$X$59,IF($W$18>=$W$60,$X$60,"ללא דירוג"))))))))) -> 5 | Z18: =MIN(IF(AD13:AU13<=$Y$15,IF(AD13:AU13>=$Y$15-6*31,AD18:AU18))) -> 0 | AA18: =MAX(IF(AD13:AU13<=$Y$15,IF(AD13:AU13>=$Y$15-6*31,AD18:AU18))) -> 0 | AB18: =INDEX($AD21:$AU21,MATCH($W$2,$AD$14:$AU$14,0)) ->  | AC18: ציון הקרן | AD18: =IFERROR(AVERAGEIFS(INDIRECT(AD15&"[ESG_DB]"),INDIRECT(AD15&"[מספר קרן]"),$E$6,INDIRECT(AD15&"[סטטוס דירוג]"),"מדורג"),"") ->  | AG18: =IFERROR(AVERAGEIFS(INDIRECT(AG15&"[ESG_DB]"),INDIRECT(AG15&"[מספר קרן]"),$E$6,INDIRECT(AG15&"[סטטוס דירוג]"),"מדורג"),"") ->  | AO18: =IFERROR(AVERAGEIFS(INDIRECT(AO15&"[ESG_DB]"),INDIRECT(AO15&"[מספר קרן]"),$E$6,INDIRECT(AO15&"[סטטוס דירוג]"),"מדורג"),"") ->  | AV18: 5
U19: 2.5 | W19: =IF(W18="","אינו קיים",IF($W$18>=$W$51,$V$51,IF($W$18>=$W$52,$V$52,IF($W$18>=$W$53,$V$53,IF($W$18>=$W$55,$V$55,IF($W$18>=$W$56,$V$56,IF($W$18>=$W$57,$V$57,IF($W$18>=$W$58,$V$58,IF($W$18>=$W$59,$V$59,IF($W$18>=$W$60,$V$60,"ללא דירוג")))))))))) -> אינו קיים | X19: =IF(X18="","לא קיים",IF($X$18>=$W$51,$V$51,IF($X$18>=$W$52,$V$52,IF($X$18>=$W$53,$V$53,IF($X$18>=$W$55,$V$55,IF($X$18>=$W$56,$V$56,IF($X$18>=$W$57,$V$57,IF($X$18>=$W$58,$V$58,IF($X$18>=$W$59,$V$59,IF($X$18>=$W$60,$V$60,"ללא דירוג")))))))))) -> לא קיים | Z19: =IF($Z$18>=$W$51,$V$51,IF($Z$18>=$W$52,$V$52,IF($Z$18>=$W$53,$V$53,IF($Z$18>=$W$55,$V$55,IF($Z$18>=$W$56,$V$56,IF($Z$18>=$W$57,$V$57,IF($Z$18>=$W$58,$V$58,IF($Z$18>=$W$59,$V$59,IF($Z$18>=$W$60,$V$60,"ללא דירוג"))))))))) -> ללא דירוג | AA19: =IF($AA$18>=$W$51,$V$51,IF($AA$18>=$W$52,$V$52,IF($AA$18>=$W$53,$V$53,IF($AA$18>=$W$55,$V$55,IF($AA$18>=$W$56,$V$56,IF($AA$18>=$W$57,$V$57,IF($AA$18>=$W$58,$V$58,IF($AA$18>=$W$59,$V$59,IF($AA$18>=$W$60,$V$60,"ללא דירוג"))))))))) -> ללא דירוג | AB19: =IF($AB$18>=$W$51,$V$51,IF($AB$18>=$W$52,$V$52,IF($AB$18>=$W$53,$V$53,IF($AB$18>=$W$55,$V$55,IF($AB$18>=$W$56,$V$56,IF($AB$18>=$W$57,$V$57,IF($AB$18>=$W$58,$V$58,IF($AB$18>=$W$59,$V$59,IF($AB$18>=$W$60,$V$60,"ללא דירוג"))))))))) -> גבוה | AC19: ציון ממוצע קרנות בקטגוריה | AD19: =IFERROR(AVERAGEIF(INDIRECT(AD15&"[כותרת על של הקרן]"),$P$6,INDIRECT(AD15&"[ESG_DB]")),"") ->  | AE19: =IFERROR(AVERAGEIF(INDIRECT(AE15&"[כותרת על של הקרן]"),$P$6,INDIRECT(AE15&"[ESG_DB]")),"") ->  | AF19: =IFERROR(AVERAGEIF(INDIRECT(AF15&"[כותרת על של הקרן]"),$P$6,INDIRECT(AF15&"[ESG_DB]")),"") ->  | AG19: =AH19 ->  | AH19: =AI19 ->  | AI19: =IFERROR(AVERAGEIF(INDIRECT(AI15&"[כותרת על של הקרן]"),$P$6,INDIRECT(AI15&"[ESG_DB]")),"") ->  | AP19: =IFERROR(AVERAGEIF(INDIRECT(AP15&"[כותרת על של הקרן]"),$P$6,INDIRECT(AP15&"[ESG_DB]")),"") ->  | AQ19: =IFERROR(AVERAGEIF(INDIRECT(AQ15&"[כותרת על של הקרן]"),$P$6,INDIRECT(AQ15&"[ESG_DB]")),"") ->  | AV19: 6
U20: 2 | W20: =VLOOKUP(W19,V51:X60,3,FALSE) ->  | X20: =VLOOKUP(X19,V51:X60,3,FALSE) ->  | AC20: מיקום ציון הקרן ביחס לקטגוריה | AD20: =AD30 ->  | AM20: =AM30 ->  | AN20: =AN30 ->  | AV20: 7
V21: דירוג קרנות בסיווג על לחודש המוצד | W21: =INDEX($AD19:$AU19,MATCH($W$2,$AD$14:$AU$14,0)) ->  | X21: =IF(W18>1.05*W21,"מעל הממוצע",IF(W18<0.95*W21,"מתחת לממוצע","בטווח הממוצע")) ->  | AA21: =MIN(IF(AD14:AU14<=$Y$15,IF(AD14:AU14>=$Y$15-6*31,AD19:AU19))) -> 0 | AC21: ממוצע נע | AD21: =IF(AD18="","",AVERAGE($AD$18:AD18)) ->  | AE21: =IF(AE18="","",AVERAGE($AD$18:AE18)) ->  | AF21: =IF(AF18="","",AVERAGE($AD$18:AF18)) ->  | AG21: =IF(AG18="","",AVERAGE($AD$18:AG18)) ->  | AH21: =IF(AH18="","",AVERAGE($AD$18:AH18)) ->  | AI21: =IF(AI18="","",AVERAGE($AD$18:AI18)) ->  | AJ21: =IF(AJ18="","",AVERAGE($AD$18:AJ18)) ->  | AK21: =IF(AK18="","",AVERAGE($AD$18:AK18)) ->  | AL21: =IF(AL18="","",AVERAGE($AD$18:AL18)) ->  | AM21: =IF(AM18="","",AVERAGE($AD$18:AM18)) ->  | AN21: =IF(AN18="","",AVERAGE($AD$18:AN18)) ->  | AO21: =IF(AO18="","",AVERAGE($AD$18:AO18)) ->  | AP21: =IF(AP18="","",AVERAGE($AD$18:AP18)) ->  | AQ21: =IF(AQ18="","",AVERAGE($AD$18:AQ18)) ->  | AR21: =IF(AR18="","",AVERAGE($AD$18:AR18)) ->  | AS21: =IF(AS18="","",AVERAGE($AD$18:AS18)) ->  | AT21: =IF(AT18="","",AVERAGE($AD$18:AT18)) ->  | AU21: =IF(AU18="","",AVERAGE($AD$18:AU18)) ->  | AV21: 8
V22: דירוג קרנות בסיווג לחודש המוצג | W22: =INDEX($AD20:$AU20,MATCH($W$2,$AD$14:$AU$14,0)) ->  | Z22: =MIN(IF(AD15:AU15<=$Y$15,IF(AD15:AU15>=$Y$15-6*31,AD20:AU20))) -> 0 | AA22: =MIN(IF(AE15:AV15<=$Y$15,IF(AE15:AV15>=W16-6*31,AE20:AV20))) -> 7 | AV22: 9
V23: דיורג ממוצע לשנה האחרונה | W23: =INDEX($AD21:$AU21,MATCH($W$2,$AD$14:$AU$14,0)) ->  | X23: =IF(W18>1.15*(W23)," הדירוג החודשי המוצג לעיל הינו גבוה מהדירוג הממוצע השנתי של הקרן, העומד כיום על "&ROUND(W$23,1),IF(W18>1.05*(W23)," הדירוג החודשי המוצג לעיל הינו גבוה במעט מהדירוג הממוצע השנתי של הקרן, העומד כיום על "&ROUND($W$23,1),IF(W18<1.05*(W23),"הדירוג החודשי המוצג לעיל הינו נמוך במעט מהדירוג הממוצע השנתי של הקרן, העומד כיום על "&ROUND($W$23,1),IF(W18<1.15*(W23),"הדירוג החודשי המוצג לעיל הינו נמוך מהדירוג הממוצע השנתי של הקרן, העומד כיום על "&ROUND($W$23,1),"הדירוג החודשי שלעיל הינו בתחום הדירוג הממוצע השנתי של הקרן, העומד כיום על "&ROUND($W$23,1))))) ->  | Y23: =IF(W18>1.15*(W23)," דבר המציג עליה גבוהה בדירוג",IF(W18>1.05*(W23)," דבר המציג עליה קלה בדירוג",IF(W18<1.05*(W23)," דבר המציג ירידה קלה בדירוג",IF(W18<1.15*(W23)," דבר המציג ירידה גבוהה בדירוג"," דבר המציג דירוג קבוע")))) ->  | Z23: =IF($W$23>=$W$42,$X$42,IF($W$23>=#REF!,#REF!,IF($W$23>=$W$45,$X$45,IF($W$23>=$W$46,$X$46,IF($W$23>=$W$47,$X$47,IF($W$23>=$W$48,$X$48,IF($W$23>=$W$49,$X$49,IF($W$23>=#REF!,#REF!,IF($W$23>=#REF!,#REF!))))))))) -> 0 | AV23: 10
V24: מיקום | W24: =מיקום!H2 -> 0 | X24: =IFERROR(VLOOKUP(W5,מיקום!$S$2:$W$2000,5,FALSE),"קרן אינה מדורגת על ידי הבנק") -> קרן אינה מדורגת על ידי הבנק | Y24: =W24-X24 ->  | Z24: =Y24/W24 ->  | AC24: שיעור מזומן ו/או ממשלתי | AD24: =IFERROR(SUM(IF(INDIRECT(AD15&"[סטטוס דירוג]")="ממשלתי/מזומן",IF(INDIRECT(AD15&"[[מספר קרן]:[מספר קרן]]")=$E$6,INDIRECT(AD15&"[%מקרן]")))),"") ->  | AE24: =IFERROR(SUM(IF(INDIRECT(AE15&"[סטטוס דירוג]")="ממשלתי/מזומן",IF(INDIRECT(AE15&"[[מספר קרן]:[מספר קרן]]")=$E$6,INDIRECT(AE15&"[%מקרן]")))),"") ->  | AF24: =IFERROR(SUM(IF(INDIRECT(AF15&"[סטטוס דירוג]")="ממשלתי/מזומן",IF(INDIRECT(AF15&"[[מספר קרן]:[מספר קרן]]")=$E$6,INDIRECT(AF15&"[%מקרן]")))),"") -> 0 | AG24: =IFERROR(SUM(IF(INDIRECT(AG15&"[סטטוס דירוג]")="ממשלתי/מזומן",IF(INDIRECT(AG15&"[[מספר קרן]:[מספר קרן]]")=$E$6,INDIRECT(AG15&"[%מקרן]")))),"") -> 0 | AH24: =IFERROR(SUM(IF(INDIRECT(AH15&"[סטטוס דירוג]")="ממשלתי/מזומן",IF(INDIRECT(AH15&"[[מספר קרן]:[מספר קרן]]")=$E$6,INDIRECT(AH15&"[%מקרן]")))),"") -> 0 | AI24: =IFERROR(SUM(IF(INDIRECT(AI15&"[סטטוס דירוג]")="ממשלתי/מזומן",IF(INDIRECT(AI15&"[[מספר קרן]:[מספר קרן]]")=$E$6,INDIRECT(AI15&"[%מקרן]")))),"") -> 0 | AJ24: =IFERROR(SUM(IF(INDIRECT(AJ15&"[סטטוס דירוג]")="ממשלתי/מזומן",IF(INDIRECT(AJ15&"[[מספר קרן]:[מספר קרן]]")=$E$6,INDIRECT(AJ15&"[%מקרן]")))),"") ->  | AK24: =IFERROR(SUM(IF(INDIRECT(AK15&"[סטטוס דירוג]")="ממשלתי/מזומן",IF(INDIRECT(AK15&"[[מספר קרן]:[מספר קרן]]")=$E$6,INDIRECT(AK15&"[%מקרן]")))),"") ->  | AL24: =IFERROR(SUM(IF(INDIRECT(AL15&"[סטטוס דירוג]")="ממשלתי/מזומן",IF(INDIRECT(AL15&"[[מספר קרן]:[מספר קרן]]")=$E$6,INDIRECT(AL15&"[%מקרן]")))),"") ->  | AM24: =IFERROR(SUM(IF(INDIRECT(AM15&"[סטטוס דירוג]")="ממשלתי/מזומן",IF(INDIRECT(AM15&"[[מספר קרן]:[מספר קרן]]")=$E$6,INDIRECT(AM15&"[%מקרן]")))),"") ->  | AN24: =IFERROR(SUM(IF(INDIRECT(AN15&"[סטטוס דירוג]")="ממשלתי/מזומן",IF(INDIRECT(AN15&"[[מספר קרן]:[מספר קרן]]")=$E$6,INDIRECT(AN15&"[%מקרן]")))),"") -> 0.3094 | AO24: =IFERROR(SUM(IF(INDIRECT(AO15&"[סטטוס דירוג]")="ממשלתי/מזומן",IF(INDIRECT(AO15&"[[מספר קרן]:[מספר קרן]]")=$E$6,INDIRECT(AO15&"[%מקרן]")))),"") -> 0 | AP24: =IFERROR(SUM(IF(INDIRECT(AP15&"[סטטוס דירוג]")="ממשלתי/מזומן",IF(INDIRECT(AP15&"[[מספר קרן]:[מספר קרן]]")=$E$6,INDIRECT(AP15&"[%מקרן]")))),"") -> 0 | AQ24: =IFERROR(SUM(IF(INDIRECT(AQ15&"[סטטוס דירוג]")="ממשלתי/מזומן",IF(INDIRECT(AQ15&"[[מספר קרן]:[מספר קרן]]")=$E$6,INDIRECT(AQ15&"[%מקרן]")))),"") -> 0 | AR24: =IFERROR(SUM(IF(INDIRECT(AR15&"[סטטוס דירוג]")="ממשלתי/מזומן",IF(INDIRECT(AR15&"[[מספר קרן]:[מספר קרן]]")=$E$6,INDIRECT(AR15&"[%מקרן]")))),"") -> 0 | AS24: =IFERROR(SUM(IF(INDIRECT(AS15&"[סטטוס דירוג]")="ממשלתי/מזומן",IF(INDIRECT(AS15&"[[מספר קרן]:[מספר קרן]]")=$E$6,INDIRECT(AS15&"[%מקרן]")))),"") -> 0 | AT24: =IFERROR(SUM(IF(INDIRECT(AT15&"[סטטוס דירוג]")="ממשלתי/מזומן",IF(INDIRECT(AT15&"[[מספר קרן]:[מספר קרן]]")=$E$6,INDIRECT(AT15&"[%מקרן]")))),"") -> 0 | AU24: =IFERROR(SUM(IF(INDIRECT(AU15&"[סטטוס דירוג]")="ממשלתי/מזומן",IF(INDIRECT(AU15&"[[מספר קרן]:[מספר קרן]]")=$E$6,INDIRECT(AU15&"[%מקרן]")))),"") -> 0 | AV24: 11
D25: מיקום הקרן בקטגוריה: | E25: =IFERROR(ROUND(X24,0),"") ->  | F25: מתוך: | G25: =ROUND(W24,0) -> 0 | V25: שיעור נכסים מדורגים ESG | W25: =INDEX($AI25:$AU25,MATCH($W$2,$AI$14:$AU$14,0)) -> 0 | AC25: שיעור נכסים מדורגים ESG | AD25: =IFERROR(SUM(IF(INDIRECT(AD15&"[סטטוס דירוג]")="מדורג",IF(INDIRECT(AD15&"[[מספר קרן]:[מספר קרן]]")=$E$6,ABS(INDIRECT(AD15&"[%מקרן]"))))),"") ->  | AE25: =IFERROR(SUM(IF(INDIRECT(AE15&"[סטטוס דירוג]")="מדורג",IF(INDIRECT(AE15&"[[מספר קרן]:[מספר קרן]]")=$E$6,ABS(INDIRECT(AE15&"[%מקרן]"))))),"") ->  | AF25: =IFERROR(SUM(IF(INDIRECT(AF15&"[סטטוס דירוג]")="מדורג",IF(INDIRECT(AF15&"[[מספר קרן]:[מספר קרן]]")=$E$6,ABS(INDIRECT(AF15&"[%מקרן]"))))),"") -> 0 | AG25: =IFERROR(SUM(IF(INDIRECT(AG15&"[סטטוס דירוג]")="מדורג",IF(INDIRECT(AG15&"[[מספר קרן]:[מספר קרן]]")=$E$6,ABS(INDIRECT(AG15&"[%מקרן]"))))),"") -> 0 | AH25: =IFERROR(SUM(IF(INDIRECT(AH15&"[סטטוס דירוג]")="מדורג",IF(INDIRECT(AH15&"[[מספר קרן]:[מספר קרן]]")=$E$6,ABS(INDIRECT(AH15&"[%מקרן]"))))),"") -> 0 | AI25: =IFERROR(SUM(IF(INDIRECT(AI15&"[סטטוס דירוג]")="מדורג",IF(INDIRECT(AI15&"[[מספר קרן]:[מספר קרן]]")=$E$6,ABS(INDIRECT(AI15&"[%מקרן]"))))),"") -> 0 | AJ25: =IFERROR(SUM(IF(INDIRECT(AJ15&"[סטטוס דירוג]")="מדורג",IF(INDIRECT(AJ15&"[[מספר קרן]:[מספר קרן]]")=$E$6,ABS(INDIRECT(AJ15&"[%מקרן]"))))),"") ->  | AK25: =IFERROR(SUM(IF(INDIRECT(AK15&"[סטטוס דירוג]")="מדורג",IF(INDIRECT(AK15&"[[מספר קרן]:[מספר קרן]]")=$E$6,ABS(INDIRECT(AK15&"[%מקרן]"))))),"") ->  | AL25: =IFERROR(SUM(IF(INDIRECT(AL15&"[סטטוס דירוג]")="מדורג",IF(INDIRECT(AL15&"[[מספר קרן]:[מספר קרן]]")=$E$6,ABS(INDIRECT(AL15&"[%מקרן]"))))),"") ->  | AM25: =IFERROR(SUM(IF(INDIRECT(AM15&"[סטטוס דירוג]")="מדורג",IF(INDIRECT(AM15&"[[מספר קרן]:[מספר קרן]]")=$E$6,ABS(INDIRECT(AM15&"[%מקרן]"))))),"") ->  | AN25: =IFERROR(SUM(IF(INDIRECT(AN15&"[סטטוס דירוג]")="מדורג",IF(INDIRECT(AN15&"[[מספר קרן]:[מספר קרן]]")=$E$6,ABS(INDIRECT(AN15&"[%מקרן]"))))),"") -> 0.4073 | AO25: =IFERROR(SUM(IF(INDIRECT(AO15&"[סטטוס דירוג]")="מדורג",IF(INDIRECT(AO15&"[[מספר קרן]:[מספר קרן]]")=$E$6,ABS(INDIRECT(AO15&"[%מקרן]"))))),"") -> 0 | AP25: =IFERROR(SUM(IF(INDIRECT(AP15&"[סטטוס דירוג]")="מדורג",IF(INDIRECT(AP15&"[[מספר קרן]:[מספר קרן]]")=$E$6,ABS(INDIRECT(AP15&"[%מקרן]"))))),"") -> 0 | AQ25: =IFERROR(SUM(IF(INDIRECT(AQ15&"[סטטוס דירוג]")="מדורג",IF(INDIRECT(AQ15&"[[מספר קרן]:[מספר קרן]]")=$E$6,ABS(INDIRECT(AQ15&"[%מקרן]"))))),"") -> 0 | AR25: =IFERROR(SUM(IF(INDIRECT(AR15&"[סטטוס דירוג]")="מדורג",IF(INDIRECT(AR15&"[[מספר קרן]:[מספר קרן]]")=$E$6,ABS(INDIRECT(AR15&"[%מקרן]"))))),"") -> 0 | AS25: =IFERROR(SUM(IF(INDIRECT(AS15&"[סטטוס דירוג]")="מדורג",IF(INDIRECT(AS15&"[[מספר קרן]:[מספר קרן]]")=$E$6,ABS(INDIRECT(AS15&"[%מקרן]"))))),"") -> 0 | AT25: =IFERROR(SUM(IF(INDIRECT(AT15&"[סטטוס דירוג]")="מדורג",IF(INDIRECT(AT15&"[[מספר קרן]:[מספר קרן]]")=$E$6,ABS(INDIRECT(AT15&"[%מקרן]"))))),"") -> 0 | AU25: =IFERROR(SUM(IF(INDIRECT(AU15&"[סטטוס דירוג]")="מדורג",IF(INDIRECT(AU15&"[[מספר קרן]:[מספר קרן]]")=$E$6,ABS(INDIRECT(AU15&"[%מקרן]"))))),"") -> 0
V26: =$AC$27 -> שיעור נכסים ללא דירוג ESG | W26: =INDEX($AG27:$AU27,MATCH($W$2,$AG$14:$AU$14,0)) -> 0 | X26: =ROUND(W26*100,2) -> 0 | AV26: =AV25+1 -> 1
V27: =$AC$24 -> שיעור מזומן ו/או ממשלתי | W27: =INDEX($AG24:$AU24,MATCH($W$2,$AG$14:$AU$14,0)) -> 0 | X27: =ROUND(W27*100,2) -> 0 | AC27: שיעור נכסים ללא דירוג ESG | AD27: =IFERROR(SUM(IF(INDIRECT(AD15&"[סטטוס דירוג]")="ללא דרוג",IF(INDIRECT(AD15&"[[מספר קרן]:[מספר קרן]]")=$E$6,INDIRECT(AD15&"[%מקרן]")))),"") ->  | AE27: =IFERROR(SUM(IF(INDIRECT(AE15&"[סטטוס דירוג]")="ללא דרוג",IF(INDIRECT(AE15&"[[מספר קרן]:[מספר קרן]]")=$E$6,INDIRECT(AE15&"[%מקרן]")))),"") ->  | AF27: =IFERROR(SUM(IF(INDIRECT(AF15&"[סטטוס דירוג]")="ללא דרוג",IF(INDIRECT(AF15&"[[מספר קרן]:[מספר קרן]]")=$E$6,INDIRECT(AF15&"[%מקרן]")))),"") -> 0 | AG27: =IFERROR(SUM(IF(INDIRECT(AG15&"[סטטוס דירוג]")="ללא דרוג",IF(INDIRECT(AG15&"[[מספר קרן]:[מספר קרן]]")=$E$6,INDIRECT(AG15&"[%מקרן]")))),"") -> 0 | AH27: =IFERROR(SUM(IF(INDIRECT(AH15&"[סטטוס דירוג]")="ללא דרוג",IF(INDIRECT(AH15&"[[מספר קרן]:[מספר קרן]]")=$E$6,INDIRECT(AH15&"[%מקרן]")))),"") -> 0 | AI27: =IFERROR(SUM(IF(INDIRECT(AI15&"[סטטוס דירוג]")="ללא דרוג",IF(INDIRECT(AI15&"[[מספר קרן]:[מספר קרן]]")=$E$6,INDIRECT(AI15&"[%מקרן]")))),"") -> 0 | AJ27: =IFERROR(SUM(IF(INDIRECT(AJ15&"[סטטוס דירוג]")="ללא דרוג",IF(INDIRECT(AJ15&"[[מספר קרן]:[מספר קרן]]")=$E$6,INDIRECT(AJ15&"[%מקרן]")))),"") ->  | AK27: =IFERROR(SUM(IF(INDIRECT(AK15&"[סטטוס דירוג]")="ללא דרוג",IF(INDIRECT(AK15&"[[מספר קרן]:[מספר קרן]]")=$E$6,INDIRECT(AK15&"[%מקרן]")))),"") ->  | AL27: =IFERROR(SUM(IF(INDIRECT(AL15&"[סטטוס דירוג]")="ללא דרוג",IF(INDIRECT(AL15&"[[מספר קרן]:[מספר קרן]]")=$E$6,INDIRECT(AL15&"[%מקרן]")))),"") ->  | AM27: =IFERROR(SUM(IF(INDIRECT(AM15&"[סטטוס דירוג]")="ללא דרוג",IF(INDIRECT(AM15&"[[מספר קרן]:[מספר קרן]]")=$E$6,INDIRECT(AM15&"[%מקרן]")))),"") ->  | AN27: =IFERROR(SUM(IF(INDIRECT(AN15&"[סטטוס דירוג]")="ללא דרוג",IF(INDIRECT(AN15&"[[מספר קרן]:[מספר קרן]]")=$E$6,INDIRECT(AN15&"[%מקרן]")))),"") -> 0 | AO27: =IFERROR(SUM(IF(INDIRECT(AO15&"[סטטוס דירוג]")="ללא דרוג",IF(INDIRECT(AO15&"[[מספר קרן]:[מספר קרן]]")=$E$6,INDIRECT(AO15&"[%מקרן]")))),"") -> 0 | AP27: =IFERROR(SUM(IF(INDIRECT(AP15&"[סטטוס דירוג]")="ללא דרוג",IF(INDIRECT(AP15&"[[מספר קרן]:[מספר קרן]]")=$E$6,INDIRECT(AP15&"[%מקרן]")))),"") -> 0 | AQ27: =IFERROR(SUM(IF(INDIRECT(AQ15&"[סטטוס דירוג]")="ללא דרוג",IF(INDIRECT(AQ15&"[[מספר קרן]:[מספר קרן]]")=$E$6,INDIRECT(AQ15&"[%מקרן]")))),"") -> 0 | AR27: =IFERROR(SUM(IF(INDIRECT(AR15&"[סטטוס דירוג]")="ללא דרוג",IF(INDIRECT(AR15&"[[מספר קרן]:[מספר קרן]]")=$E$6,INDIRECT(AR15&"[%מקרן]")))),"") -> 0 | AS27: =IFERROR(SUM(IF(INDIRECT(AS15&"[סטטוס דירוג]")="ללא דרוג",IF(INDIRECT(AS15&"[[מספר קרן]:[מספר קרן]]")=$E$6,INDIRECT(AS15&"[%מקרן]")))),"") -> 0 | AT27: =IFERROR(SUM(IF(INDIRECT(AT15&"[סטטוס דירוג]")="ללא דרוג",IF(INDIRECT(AT15&"[[מספר קרן]:[מספר קרן]]")=$E$6,INDIRECT(AT15&"[%מקרן]")))),"") -> 0 | AU27: =IFERROR(SUM(IF(INDIRECT(AU15&"[סטטוס דירוג]")="ללא דרוג",IF(INDIRECT(AU15&"[[מספר קרן]:[מספר קרן]]")=$E$6,INDIRECT(AU15&"[%מקרן]")))),"") -> 0 | AV27: 2
W28: =INDEX($AD$28:$AU$28,MATCH($W$2,$AD$14:$AU$14,0)) -> 0 | AC28: הציון הגבוה בקטגוריה | AD28: =IFERROR(_xlfn.MAXIFS(INDIRECT(AD15&"[ESG_DB]"),INDIRECT(AD15&"[ESG_DB]"),">0",INDIRECT(AD15&"[כותרת על של הקרן]"),$P$6,INDIRECT(AD15&"[סטטוס דירוג]"),"מדורג"),"") ->  | AE28: =IFERROR(_xlfn.MAXIFS(INDIRECT(AE15&"[ESG_DB]"),INDIRECT(AE15&"[ESG_DB]"),">0",INDIRECT(AE15&"[כותרת על של הקרן]"),$P$6,INDIRECT(AE15&"[סטטוס דירוג]"),"מדורג"),"") ->  | AF28: =IFERROR(_xlfn.MAXIFS(INDIRECT(AF15&"[ESG_DB]"),INDIRECT(AF15&"[ESG_DB]"),">0",INDIRECT(AF15&"[כותרת על של הקרן]"),$P$6,INDIRECT(AF15&"[סטטוס דירוג]"),"מדורג"),"") -> 0 | AG28: =IFERROR(_xlfn.MAXIFS(INDIRECT(AG15&"[ESG_DB]"),INDIRECT(AG15&"[ESG_DB]"),">0",INDIRECT(AG15&"[כותרת על של הקרן]"),$P$6,INDIRECT(AG15&"[סטטוס דירוג]"),"מדורג"),"") -> 0 | AH28: =IFERROR(_xlfn.MAXIFS(INDIRECT(AH15&"[ESG_DB]"),INDIRECT(AH15&"[ESG_DB]"),">0",INDIRECT(AH15&"[כותרת על של הקרן]"),$P$6,INDIRECT(AH15&"[סטטוס דירוג]"),"מדורג"),"") -> 0 | AI28: =IFERROR(_xlfn.MAXIFS(INDIRECT(AI15&"[ESG_DB]"),INDIRECT(AI15&"[ESG_DB]"),">0",INDIRECT(AI15&"[כותרת על של הקרן]"),$P$6,INDIRECT(AI15&"[סטטוס דירוג]"),"מדורג"),"") -> 0 | AJ28: =IFERROR(_xlfn.MAXIFS(INDIRECT(AJ15&"[ESG_DB]"),INDIRECT(AJ15&"[ESG_DB]"),">0",INDIRECT(AJ15&"[כותרת על של הקרן]"),$P$6,INDIRECT(AJ15&"[סטטוס דירוג]"),"מדורג"),"") ->  | AK28: =IFERROR(_xlfn.MAXIFS(INDIRECT(AK15&"[ESG_DB]"),INDIRECT(AK15&"[ESG_DB]"),">0",INDIRECT(AK15&"[כותרת על של הקרן]"),$P$6,INDIRECT(AK15&"[סטטוס דירוג]"),"מדורג"),"") ->  | AL28: =IFERROR(_xlfn.MAXIFS(INDIRECT(AL15&"[ESG_DB]"),INDIRECT(AL15&"[ESG_DB]"),">0",INDIRECT(AL15&"[כותרת על של הקרן]"),$P$6,INDIRECT(AL15&"[סטטוס דירוג]"),"מדורג"),"") ->  | AM28: =IFERROR(_xlfn.MAXIFS(INDIRECT(AM15&"[ESG_DB]"),INDIRECT(AM15&"[ESG_DB]"),">0",INDIRECT(AM15&"[כותרת על של הקרן]"),$P$6,INDIRECT(AM15&"[סטטוס דירוג]"),"מדורג"),"") ->  | AN28: =IFERROR(_xlfn.MAXIFS(INDIRECT(AN15&"[ESG_DB]"),INDIRECT(AN15&"[ESG_DB]"),">0",INDIRECT(AN15&"[כותרת על של הקרן]"),$P$6,INDIRECT(AN15&"[סטטוס דירוג]"),"מדורג"),"") -> 0 | AO28: =IFERROR(_xlfn.MAXIFS(INDIRECT(AO15&"[ESG_DB]"),INDIRECT(AO15&"[ESG_DB]"),">0",INDIRECT(AO15&"[כותרת על של הקרן]"),$P$6,INDIRECT(AO15&"[סטטוס דירוג]"),"מדורג"),"") -> 0 | AP28: =IFERROR(_xlfn.MAXIFS(INDIRECT(AP15&"[ESG_DB]"),INDIRECT(AP15&"[ESG_DB]"),">0",INDIRECT(AP15&"[כותרת על של הקרן]"),$P$6,INDIRECT(AP15&"[סטטוס דירוג]"),"מדורג"),"") -> 0 | AQ28: =IFERROR(_xlfn.MAXIFS(INDIRECT(AQ15&"[ESG_DB]"),INDIRECT(AQ15&"[ESG_DB]"),">0",INDIRECT(AQ15&"[כותרת על של הקרן]"),$P$6,INDIRECT(AQ15&"[סטטוס דירוג]"),"מדורג"),"") -> 0 | AR28: =IFERROR(_xlfn.MAXIFS(INDIRECT(AR15&"[ESG_DB]"),INDIRECT(AR15&"[ESG_DB]"),">0",INDIRECT(AR15&"[כותרת על של הקרן]"),$P$6,INDIRECT(AR15&"[סטטוס דירוג]"),"מדורג"),"") -> 0 | AS28: =IFERROR(_xlfn.MAXIFS(INDIRECT(AS15&"[ESG_DB]"),INDIRECT(AS15&"[ESG_DB]"),">0",INDIRECT(AS15&"[כותרת על של הקרן]"),$P$6,INDIRECT(AS15&"[סטטוס דירוג]"),"מדורג"),"") -> 0 | AT28: =IFERROR(_xlfn.MAXIFS(INDIRECT(AT15&"[ESG_DB]"),INDIRECT(AT15&"[ESG_DB]"),">0",INDIRECT(AT15&"[כותרת על של הקרן]"),$P$6,INDIRECT(AT15&"[סטטוס דירוג]"),"מדורג"),"") -> 0 | AU28: =IFERROR(_xlfn.MAXIFS(INDIRECT(AU15&"[ESG_DB]"),INDIRECT(AU15&"[ESG_DB]"),">0",INDIRECT(AU15&"[כותרת על של הקרן]"),$P$6,INDIRECT(AU15&"[סטטוס דירוג]"),"מדורג"),"") -> 0 | AV28: 3
V29: =IF(OR(W29=0,W29=""),"",AC28) ->  | W29: =INDEX($AD28:$AU28,MATCH($W$2,$AD$14:$AU$14,0)) -> 0 | AV29: 4
V30: =IF(OR(W30=0,W30=""),"",AC30) ->  | W30: =INDEX($AD30:$AU30,MATCH($W$2,$AD$14:$AU$14,0)) ->  | AC30: הציון הממוצע בקטגוריה | AD30: =IFERROR(AVERAGEIFS(INDIRECT(AD15&"[ESG_DB]"),INDIRECT(AD15&"[ESG_DB]"),">0",INDIRECT(AD15&"[כותרת על של הקרן]"),$P$6),"") ->  | AU30: =IFERROR(AVERAGEIFS(INDIRECT(AU15&"[ESG_DB]"),INDIRECT(AU15&"[מספר קרן]"),$E$6,INDIRECT(AU15&"[ESG_DB]"),">0"),"") ->  | AV30: 5
W31: =INDEX($AD31:$AU31,MATCH($W$2,$AD$14:$AU$14,0)) -> 0 | AC31: הציון הנמוך בקטגוריה | AD31: =IFERROR(_xlfn.MINIFS(INDIRECT(AD15&"[ESG_DB]"),INDIRECT(AD15&"[ESG_DB]"),">0",INDIRECT(AD15&"[כותרת על של הקרן]"),$P$6),"") ->  | AF31: 0 | AG31: 0 | AH31: 0 | AI31: 0 | AN31: 0 | AO31: 0 | AP31: 0 | AQ31: 0 | AR31: 0 | AS31: 0 | AT31: 0 | AU31: =IFERROR(_xlfn.MINIFS(INDIRECT(AU15&"[ESG_DB]"),INDIRECT(AU15&"[מספר קרן]"),$E$6,INDIRECT(AU15&"[ESG_DB]"),">0"),"") -> 0 | AV31: 6
V32: =IF(OR(W31=0,W31=""),"",AC31) ->  | W32: =INDEX($AD32:$AU32,MATCH($W$2,$AD$14:$AU$14,0)) -> 0 | AV32: 7
AC33: קו 40 | AI33: 40 | AJ33: 40 | AK33: 40 | AL33: 40 | AM33: 40 | AN33: 40 | AO33: 40 | AP33: 40 | AQ33: 40 | AR33: 40 | AS33: 40 | AT33: 40 | AU33: 40
AC34: קו 70 | AI34: 70 | AJ34: 70 | AK34: 70 | AL34: 70 | AM34: 70 | AN34: 70 | AO34: 70 | AP34: 70 | AQ34: 70 | AR34: 70 | AS34: 70 | AT34: 70 | AU34: 70
AC35: קו 100 | AI35: 100 | AJ35: 100 | AK35: 100 | AL35: 100 | AM35: 100 | AN35: 100 | AO35: 100 | AP35: 100 | AQ35: 100 | AR35: 100 | AS35: 100 | AT35: 100 | AU35: 100
AC45: נתונים לגרף שעון
AE46: 100 | AF46: =$AE$46/3 -> 33.33333333 | AG46: =$AE$46/3 -> 33.33333333 | AH46: =$AE$46/3 -> 33.33333333
AC47: =AC18 -> ציון הקרן | AD47: 0 | AE47: =W18 ->  | AF47: 100 | AG47: 1.5 | AH47: =IF(AE47>=AK49,AE47*AN49+AO49,IF(AE47>=AK50,AE47*AN50+AO50,AE47*AN51+AO51)) -> 
AC48: =AC19 -> ציון ממוצע קרנות בקטגוריה | AD48: =IFERROR(AE48/AP48*5,"") ->  | AE48: =100-W21 ->  | AF48: 100 | AG48: 1.5 | AH48: =IF(AE48>$AJ$49,$AM$49,IF(AE48<$AK$49,$AL$49,$AO$49+$AN$49*AE48)) ->  | AJ48: MAX | AK48: MIN | AL48: y-1 | AM48: y-2 | AN48: b | AO48: a | AP48: 18
V49: ]] | AC49: =AC19 -> ציון ממוצע קרנות בקטגוריה | AD49: =IFERROR(AE49/#REF!*5,"") ->  | AE49: =100-W22 ->  | AF49: 100 | AG49: 1.5 | AH49: =IF(AE49>$AJ$49,$AM$49,IF(AE49<$AK$49,$AL$49,$AO$49+$AN$49*AE49)) ->  | AJ49: 100 | AK49: 70 | AL49: 19 | AM49: 0 | AN49: =IFERROR((AM49-AL49)/(AJ49-AK49),0) -> -0.6333333333 | AO49: =IFERROR(AL49-(AK49*AN49),0) -> 63.33333333
V50: מקרא דירוג כוכבים | AJ50: 70 | AK50: 40 | AL50: 50 | AM50: 18.9 | AN50: =IFERROR((AM50-AL50)/(AJ50-AK50),0) -> -1.036666667 | AO50: =IFERROR(AL50-(AK50*AN50),0) -> 91.46666667
V51: גבוה | W51: 85 | X51: 5 | AJ51: 40 | AK51: 0 | AL51: 100 | AM51: 49.9 | AN51: =IFERROR((AM51-AL51)/(AJ51-AK51),0) -> -1.2525 | AO51: =IFERROR(AL51-(AK51*AN51),0) -> 100
V52: גבוה | W52: 70
V53: בינוני | W53: 65 | X53: 4
D54: הערות לדירוג: | V54: בינוני
D55: =" - "&"הדירוג הינו יחסי ומתבסס על ניתוח הרכב מנפיקים המוחזקים בקרן ומותאמת למתודולוגית הדירוג בבנק." -> - הדירוג הינו יחסי ומתבסס על ניתוח הרכב מנפיקים המוחזקים בקרן ומותאמת למתודולוגית הדירוג בבנק. | V55: בינוני | W55: 55
D56: - תמהיל הנכסים המדורגים בקרן מוצגים בגרף פילוח הדירוג של נכסי הקרן מעלה (החזקות באגח ממשלתי ומזומן אינן זוכות לציון). | V56: בינוני | W56: 40
D57: - סרגל הדירוג נע בין 0 ל 100 (עד 40 = נמוך, עד 70 = בינוני, מעל = גבוה). | V57: נמוך | W57: 35
D58: - הדירוג מבוסס על נתונים ציבוריים בלבד. | V58: נמוך | W58: 25 | X58: 2
D59: הסבר לגבי ESG: | V59: נמוך | W59: 15
V60: נמוך | W60: 5
D62: הדירוג מבוצע על ידי גופים מקצועיים, ומתבסס על ניתוח מערכתי של פרמטרים רבים ומגוונים. התפיסה העיקרית מאחורי ESG היא שפרמטרים אלו משפיעים על ביצועים ארוכי הטווח והתמודדות עם סיכונים והזדמנויות עסקיות. כלומר, חברות וארגונים שמקדמים את ענייני הסביבה, החברה וממשל תאגידי בתהליך הערכה שלהם עשויים להצליח יותר בתחום הפיננסי ובשמירה על יכולת התמודדותם עם אתגרים וסיכונים. דוגמאות להיבטי סביבה (Environmental): פליטות פחמן, שימוש באנרגיה, דוגמאות להיבטי חברה (Social): שרשרת אספקה, בטיחות, עובדים וקבילה. דוגמאות להיבטי ממשל תאגידי (Governance): איכות ניהול, אתיקה, שקיפות ועוד. ניתוח ה-ESG המוצג במסמך זה מתבסס על ניתוח הרכב הניירות ערך של הקרן ועמידת דירוג ה ESG של כל אחד מהם, המביאים ליצירת ציון כולל לקרן.
B65: ניירות הערך עם תרומה חיובית לדירוג הקרן | K65: ניירות הערך עם תרומה שלילית לדירוג | W65: =IFERROR(IF(INDEX(#REF!,MATCH(T45,#REF!,0),2)=0,"",INDEX(#REF!,MATCH(T45,#REF!,0),2)),"") -> 
V66: =" "&IFERROR(IF(INDEX(#REF!,MATCH(T52,#REF!,0),2)=0,"",INDEX(#REF!,MATCH(T52,#REF!,0),1)),"") ->  | W66: =IFERROR(IF(INDEX(#REF!,MATCH(T52,#REF!,0),2)=0,"",INDEX(#REF!,MATCH(T52,#REF!,0),2)),"") -> 
J67: =W18 -> 
A68: 1 | B68: 1 | C68: =IFERROR(_xlfn.XLOOKUP(LARGE(מיקום!$K$2:$K$2000,B68),מיקום!$K$2:$K$2000,מיקום!$L$2:$L$2000),"") ->  | E68: =U77 ->  | F68: =IFERROR(C68&" - "&B68,"") -> - 1 | H68: =IFERROR(_xlfn.XLOOKUP(LARGE(מיקום!$K$2:$K$2000,B68),מיקום!$K$2:$K$2000,מיקום!$K$2:$K$2000),"") ->  | I68: =-H68 ->  | J68: =J67 ->  | K68: =IFERROR(IF(L68-J68>0,0,L68-J68),"") ->  | L68: =IFERROR(INDEX(מיקום!$K$2:$M$2000,MATCH($P68,מיקום!$M$2:$M$2000,0),1),"") ->  | O68: =O69-1 -> -9 | P68: =IFERROR(IF((P69-1)<($P$77/2+3),"",P69-1),"") ->  | Q68: =IFERROR(INDEX(מיקום!$K$2:$M$2000,MATCH($P68,מיקום!$M$2:$M$2000,0),2),"") ->  | T68: =IF(K68<0,Q68,"") ->  | U68: =IFERROR(-L68,"") ->  | V68: =IF(U68="","",10) -> 
A69: 2 | B69: =IFERROR(IF((B68+1)>($P$77/2-2),"",(B68+1)),"") ->  | C69: =IFERROR(_xlfn.XLOOKUP(LARGE(מיקום!$K$2:$K$2000,B69),מיקום!$K$2:$K$2000,מיקום!$L$2:$L$2000),"") ->  | E69: =U76 ->  | F69: =IFERROR(C69&" - "&B69,"") -> - | H69: =IFERROR(_xlfn.XLOOKUP(LARGE(מיקום!$K$2:$K$2000,B69),מיקום!$K$2:$K$2000,מיקום!$K$2:$K$2000),"") ->  | I69: =-H69 ->  | L69: =IFERROR(INDEX(מיקום!$K$2:$M$2000,MATCH($P69,מיקום!$M$2:$M$2000,0),1),"") ->  | O69: -8 | P69: =IFERROR(IF((P70-1)<($P$77/2+3),"",P70-1),"") ->  | Q69: =IFERROR(INDEX(מיקום!$K$2:$M$2000,MATCH($P69,מיקום!$M$2:$M$2000,0),2),"") ->  | V69: =IF(V68="","",V68-1) -> 
A70: 3 | B70: =IFERROR(IF((B69+1)>($P$77/2-2),"",(B69+1)),"") ->  | C70: =IFERROR(_xlfn.XLOOKUP(LARGE(מיקום!$K$2:$K$2000,B70),מיקום!$K$2:$K$2000,מיקום!$L$2:$L$2000),"") ->  | E70: =U75 ->  | F70: - | H70: =IFERROR(_xlfn.XLOOKUP(LARGE(מיקום!$K$2:$K$2000,B70),מיקום!$K$2:$K$2000,מיקום!$K$2:$K$2000),"") ->  | K70: =IFERROR(IF(L70-J70>0,0,L70-J70),"") ->  | L70: =IFERROR(INDEX(מיקום!$K$2:$M$2000,MATCH($P70,מיקום!$M$2:$M$2000,0),1),"") ->  | O70: -7 | Q70: =IFERROR(INDEX(מיקום!$K$2:$M$2000,MATCH($P70,מיקום!$M$2:$M$2000,0),2),"") ->  | V70: =IF(V69="","",V69-1) -> 
A71: 4 | C71: =IFERROR(_xlfn.XLOOKUP(LARGE(מיקום!$K$2:$K$2000,B71),מיקום!$K$2:$K$2000,מיקום!$L$2:$L$2000),"") ->  | E71: =U74 ->  | F71: - | H71: =IFERROR(_xlfn.XLOOKUP(LARGE(מיקום!$K$2:$K$2000,B71),מיקום!$K$2:$K$2000,מיקום!$K$2:$K$2000),"") ->  | L71: =IFERROR(INDEX(מיקום!$K$2:$M$2000,MATCH($P71,מיקום!$M$2:$M$2000,0),1),"") ->  | O71: -6 | Q71: =IFERROR(INDEX(מיקום!$K$2:$M$2000,MATCH($P71,מיקום!$M$2:$M$2000,0),2),"") -> 
A72: 5 | C72: =IFERROR(_xlfn.XLOOKUP(LARGE(מיקום!$K$2:$K$2000,B72),מיקום!$K$2:$K$2000,מיקום!$L$2:$L$2000),"") ->  | E72: =U73 ->  | F72: - | H72: =IFERROR(_xlfn.XLOOKUP(LARGE(מיקום!$K$2:$K$2000,B72),מיקום!$K$2:$K$2000,מיקום!$K$2:$K$2000),"") ->  | L72: =IFERROR(INDEX(מיקום!$K$2:$M$2000,MATCH($P72,מיקום!$M$2:$M$2000,0),1),"") ->  | O72: -5 | Q72: =IFERROR(INDEX(מיקום!$K$2:$M$2000,MATCH($P72,מיקום!$M$2:$M$2000,0),2),"") -> 
A73: 6 | C73: =IFERROR(_xlfn.XLOOKUP(LARGE(מיקום!$K$2:$K$2000,B73),מיקום!$K$2:$K$2000,מיקום!$L$2:$L$2000),"") ->  | E73: =U72 ->  | F73: - | H73: =IFERROR(_xlfn.XLOOKUP(LARGE(מיקום!$K$2:$K$2000,B73),מיקום!$K$2:$K$2000,מיקום!$K$2:$K$2000),"") ->  | L73: =IFERROR(INDEX(מיקום!$K$2:$M$2000,MATCH($P73,מיקום!$M$2:$M$2000,0),1),"") ->  | O73: -4 | Q73: =IFERROR(INDEX(מיקום!$K$2:$M$2000,MATCH($P73,מיקום!$M$2:$M$2000,0),2),"") -> 
A74: 7 | C74: =IFERROR(_xlfn.XLOOKUP(LARGE(מיקום!$K$2:$K$2000,B74),מיקום!$K$2:$K$2000,מיקום!$L$2:$L$2000),"") ->  | E74: =U71 ->  | F74: - | H74: =IFERROR(_xlfn.XLOOKUP(LARGE(מיקום!$K$2:$K$2000,B74),מיקום!$K$2:$K$2000,מיקום!$K$2:$K$2000),"") ->  | L74: =IFERROR(INDEX(מיקום!$K$2:$M$2000,MATCH($P74,מיקום!$M$2:$M$2000,0),1),"") ->  | O74: -3 | Q74: =IFERROR(INDEX(מיקום!$K$2:$M$2000,MATCH($P74,מיקום!$M$2:$M$2000,0),2),"") -> 
A75: 8 | C75: =IFERROR(_xlfn.XLOOKUP(LARGE(מיקום!$K$2:$K$2000,B75),מיקום!$K$2:$K$2000,מיקום!$L$2:$L$2000),"") ->  | E75: =U70 ->  | F75: - | H75: =IFERROR(_xlfn.XLOOKUP(LARGE(מיקום!$K$2:$K$2000,B75),מיקום!$K$2:$K$2000,מיקום!$K$2:$K$2000),"") ->  | L75: =IFERROR(INDEX(מיקום!$K$2:$M$2000,MATCH($P75,מיקום!$M$2:$M$2000,0),1),"") ->  | O75: -2 | Q75: =IFERROR(INDEX(מיקום!$K$2:$M$2000,MATCH($P75,מיקום!$M$2:$M$2000,0),2),"") -> 
A76: 9 | C76: =IFERROR(_xlfn.XLOOKUP(LARGE(מיקום!$K$2:$K$2000,B76),מיקום!$K$2:$K$2000,מיקום!$L$2:$L$2000),"") ->  | E76: =U69 ->  | F76: - | H76: =IFERROR(_xlfn.XLOOKUP(LARGE(מיקום!$K$2:$K$2000,B76),מיקום!$K$2:$K$2000,מיקום!$K$2:$K$2000),"") ->  | L76: =IFERROR(INDEX(מיקום!$K$2:$M$2000,MATCH($P76,מיקום!$M$2:$M$2000,0),1),"") ->  | O76: =O77-1 -> -1 | Q76: =IFERROR(INDEX(מיקום!$K$2:$M$2000,MATCH($P76,מיקום!$M$2:$M$2000,0),2),"") -> 
A77: 10 | C77: =IFERROR(_xlfn.XLOOKUP(LARGE(מיקום!$K$2:$K$2000,B77),מיקום!$K$2:$K$2000,מיקום!$L$2:$L$2000),"") ->  | E77: =U68 ->  | F77: =IFERROR(C77&" - "&B77,"") -> - | H77: =IFERROR(_xlfn.XLOOKUP(LARGE(מיקום!$K$2:$K$2000,B77),מיקום!$K$2:$K$2000,מיקום!$K$2:$K$2000),"") ->  | J77: =W27 -> 0 | L77: =IFERROR(INDEX(מיקום!$K$2:$M$2000,MATCH($P77,מיקום!$M$2:$M$2000,0),1),"") ->  | O77: =P77 -> 0 | P77: =מיקום!M1 -> 0 | Q77: =IFERROR(INDEX(מיקום!$K$2:$M$2000,MATCH($P77,מיקום!$M$2:$M$2000,0),2),"") -> 

Sheet 1עמוד חודשי
A1: =TODAY()-50 -> 2025-01-05 | I1: ='עמוד תיקוף ובדיקה'!$A$3 -> מרץ | J1: =YEAR(A1) -> 2025
S7: ="התפלגות הקרנות לחודש "&I1&" "&J1 -> התפלגות הקרנות לחודש מרץ 2025
S8: ="15 הקרנות המובילות לחודש"&" "&I1&" "&J1 -> 15 הקרנות המובילות לחודש מרץ 2025
F9: ="עדכון בדבר דירוגי קרנות מחקות עבור חודש"&" "&'ריכוז חודשי'!X1&" "&J1 -> עדכון בדבר דירוגי קרנות מחקות עבור חודש מרץ 2025
F11: סך מספר קרנות מחקות מדורגות ESG | K11: =SUM(S13:S15) -> 799
F13: סך הקרנות בדירוג נמוך | R13: נמוך | S13: ='ריכוז חודשי'!Q53 -> 123
R14: בינוני | S14: ='ריכוז חודשי'!Q52 -> 372
F15: סך הקרנות בדירוג בינוני | R15: גבוה | S15: ='ריכוז חודשי'!Q51 -> 304
F17: סך הקרנות בדירוג גבוה
D61: min | R61: MIN
D62: =MIN('ריכוז חודשי'!R5:R9)*0.98 -> 68.8744 | R62: =MIN('ריכוז חודשי'!R19:R23)*0.98 -> 50.225
F67: ציון ESG של קרנות מחקות חדשות
F69: מספר הקרן | H69: שם הקרן | N69: ציון הקרן | P69: דירוג ESG
F70: =IFERROR(INDEX('עמוד תיקוף ובדיקה'!$U$3:$V$2001,MATCH(H70,'עמוד תיקוף ובדיקה'!$V$3:$V$2001,0),1),"") -> 5138318 | H70: =IFERROR(_xlfn._xlws.FILTER(('עמוד תיקוף ובדיקה'!$V$3:$V$2000),('עמוד תיקוף ובדיקה'!$AJ$3:$AJ$2000=1)*('עמוד תיקוף ובדיקה'!$AK$3:$AK$2000="")*('עמוד תיקוף ובדיקה'!$AL$3:$AL$2000<>"לא מדורג")),"") -> MTF מחקה (00) אינדקס CoCo ישראל-10 | N70: =IFERROR(_xlfn.XLOOKUP(F70,'ריכוז חודשי'!$H$4:$H$999,'ריכוז חודשי'!$J$4:$J$999),"") -> 99.65 | P70: =IFERROR(IF(N70="","",IF(N70>=70,"גבוה",IF(N70>=40,"בינוני",IF(N70<40,"נמוך")))),"") -> גבוה
F71: =IFERROR(INDEX('עמוד תיקוף ובדיקה'!$U$3:$V$2001,MATCH(H71,'עמוד תיקוף ובדיקה'!$V$3:$V$2001,0),1),"") -> 1203835 | H71: קסם ETF י(4D)י S&P 500 Equal Weight | N71: =IFERROR(_xlfn.XLOOKUP(F71,'ריכוז חודשי'!$H$4:$H$999,'ריכוז חודשי'!$J$4:$J$999),"") -> 76.54 | P71: גבוה
F72: =IFERROR(INDEX('עמוד תיקוף ובדיקה'!$U$3:$V$2001,MATCH(H72,'עמוד תיקוף ובדיקה'!$V$3:$V$2001,0),1),"") -> 5138169 | H72: א.בי.אי. מחקה (00) אינדקס A-AAA שקלי 3-6 | N72: =IFERROR(_xlfn.XLOOKUP(F72,'ריכוז חודשי'!$H$4:$H$999,'ריכוז חודשי'!$J$4:$J$999),"") -> 53.81 | P72: בינוני
F73: =IFERROR(INDEX('עמוד תיקוף ובדיקה'!$U$3:$V$2001,MATCH(H73,'עמוד תיקוף ובדיקה'!$V$3:$V$2001,0),1),"") -> 5138227 | H73: קסם KTF י(00) אינדקס AA ומעלה 3+ | N73: =IFERROR(_xlfn.XLOOKUP(F73,'ריכוז חודשי'!$H$4:$H$999,'ריכוז חודשי'!$J$4:$J$999),"") -> 62.53 | P73: בינוני
F74: =IFERROR(INDEX('עמוד תיקוף ובדיקה'!$U$3:$V$2001,MATCH(H74,'עמוד תיקוף ובדיקה'!$V$3:$V$2001,0),1),"") -> 5138151 | H74: MTF מחקה (S&P 500 Top 50 (4D | N74: =IFERROR(_xlfn.XLOOKUP(F74,'ריכוז חודשי'!$H$4:$H$999,'ריכוז חודשי'!$J$4:$J$999),"") -> 56.89 | P74: בינוני
F75: =IFERROR(INDEX('עמוד תיקוף ובדיקה'!$U$3:$V$2001,MATCH(H75,'עמוד תיקוף ובדיקה'!$V$3:$V$2001,0),1),"") -> 5138342 | H75: MTF מחקה (0A) אינדקס AA-AAA ישראל 5-7 | N75: =IFERROR(_xlfn.XLOOKUP(F75,'ריכוז חודשי'!$H$4:$H$999,'ריכוז חודשי'!$J$4:$J$999),"") -> 51.92 | P75: בינוני
F76: =IFERROR(INDEX('עמוד תיקוף ובדיקה'!$U$3:$V$2001,MATCH(H76,'עמוד תיקוף ובדיקה'!$V$3:$V$2001,0),1),"") -> 5138359 | H76: אנליסט ATF מחקה (00) אינדקס EW TOP100 מרווח מעל הממוצע מותאם מח"מ | N76: =IFERROR(_xlfn.XLOOKUP(F76,'ריכוז חודשי'!$H$4:$H$999,'ריכוז חודשי'!$J$4:$J$999),"") -> 33.75 | P76: נמוך
F77: =IFERROR(INDEX('עמוד תיקוף ובדיקה'!$U$3:$V$2001,MATCH(H77,'עמוד תיקוף ובדיקה'!$V$3:$V$2001,0),1),"") -> 5138268 | H77: קסם KTFי (4A) אינדקס בינוי והנדסת תשתיות | N77: =IFERROR(_xlfn.XLOOKUP(F77,'ריכוז חודשי'!$H$4:$H$999,'ריכוז חודשי'!$J$4:$J$999),"") -> 36.12 | P77: נמוך
F78: =IFERROR(INDEX('עמוד תיקוף ובדיקה'!$U$3:$V$2001,MATCH(H78,'עמוד תיקוף ובדיקה'!$V$3:$V$2001,0),1),"") -> 5138383 | H78: תכלית TTF י(4A)י S&P 500 Equal Weight מנוטרלת מט"ח | N78: =IFERROR(_xlfn.XLOOKUP(F78,'ריכוז חודשי'!$H$4:$H$999,'ריכוז חודשי'!$J$4:$J$999),"") -> 76.54 | P78: גבוה
F79: =IFERROR(INDEX('עמוד תיקוף ובדיקה'!$U$3:$V$2001,MATCH(H79,'עמוד תיקוף ובדיקה'!$V$3:$V$2001,0),1),"") ->  | N79: =IFERROR(_xlfn.XLOOKUP(F79,'ריכוז חודשי'!$H$4:$H$999,'ריכוז חודשי'!$J$4:$J$999),"") -> 
F81: עולות ויורדות
F83: ="עלו בחודש "&$I$1&" מ:" -> עלו בחודש מרץ מ: | L83: ="ירדו בחודש "&$I$1&" מ:" -> ירדו בחודש מרץ מ:
F84: ='ריכוז חודשי'!Q61 -> מבינוני -> לגבוה | L84: ='ריכוז חודשי'!S61 -> מגבוה -> לבינוני
F85: ='ריכוז חודשי'!Q62 -> אי.בי.אי. מחקה (00) תל בונד 60 | L85: =IF('ריכוז חודשי'!S62="","לא היו קרנות בסטטוס זה החודש",'ריכוז חודשי'!S62) -> לא היו קרנות בסטטוס זה החודש
F86: ='ריכוז חודשי'!Q63 -> קסם KTFי (00) תל בונד 60 | L86: ='ריכוז חודשי'!S63 -> 
F87: ='ריכוז חודשי'!Q64 -> הראל מחקה (00) תל בונד 60 | L87: ='ריכוז חודשי'!S64 -> 
F88: ='ריכוז חודשי'!Q65 -> MTF מחקה (00) תל בונד 60 | L88: ='ריכוז חודשי'!S65 -> 
F89: ='ריכוז חודשי'!Q66 -> תכלית סל (00) תל בונד 60 | L89: ='ריכוז חודשי'!S66 -> 
F90: ='ריכוז חודשי'!Q67 -> קסם ETFי (00) תל בונד 60 | L90: ='ריכוז חודשי'!S67 -> 
F91: ='ריכוז חודשי'!Q70 -> מנמוך -> לבינוני | L91: ='ריכוז חודשי'!S70 -> מבינוני -> לנמוך
F92: ='ריכוז חודשי'!Q71 -> MTF מחקה‏ (00) תל בונד צמודות יתר | L92: =IF('ריכוז חודשי'!S71="","לא היו קרנות בסטטוס זה החודש",'ריכוז חודשי'!S71) -> PTFי (00) אינדקס אג"ח קופון גבוה מחלקת
F93: ='ריכוז חודשי'!Q72 -> אי.בי.אי. מחקה (00) תל בונד צמודות- יתר | L93: ='ריכוז חודשי'!S72 -> 
F94: ='ריכוז חודשי'!Q73 -> PTF‏ (00) תל בונד צמודות-יתר | L94: ='ריכוז חודשי'!S73 -> 
F95: ='ריכוז חודשי'!Q78 -> מנמוך -> לגבוה | L95: ='ריכוז חודשי'!S78 -> מגבוה -> לנמוך
F96: =IF('ריכוז חודשי'!Q79="","לא היו קרנות בסטטוס זה החודש",'ריכוז חודשי'!Q79) -> לא היו קרנות בסטטוס זה החודש | L96: =IF('ריכוז חודשי'!S79="","לא היו קרנות בסטטוס זה החודש",'ריכוז חודשי'!S79) -> לא היו קרנות בסטטוס זה החודש
F97: ='ריכוז חודשי'!Q80 ->  | L97: ='ריכוז חודשי'!S80 -> 
F98: ='ריכוז חודשי'!Q81 ->  | L98: ='ריכוז חודשי'!S81 -> 
E100: דירוגי ספיר בולטים של קרנות מחקות
F101: ="הקרנות המובילות לחודש"&" "&'ריכוז חודשי'!X1&" "&YEAR($A$1)&" לפי דירוג ספיר ו-ESG" -> הקרנות המובילות לחודש מרץ 2025 לפי דירוג ספיר ו-ESG | L101: ="הקרנות בציונים הנמוכים ביותר לחודש"&" "&$I$1&" "&YEAR($A$1)&" לפי דירוג ספיר ו-ESG" -> הקרנות בציונים הנמוכים ביותר לחודש מרץ 2025 לפי דירוג ספיר ו-ESG
F103: מספר הקרן | G103: שם הקרן | I103: דירוג ספיר | J103: ציון ESG | L103: מספר הקרן | M103: שם הקרן | O103: דירוג ספיר | P103: ציון ESG
F104: =IFERROR(INDEX('עמוד תיקוף ובדיקה'!$U$3:$V$2000,MATCH(G104,'עמוד תיקוף ובדיקה'!$V$3:$V$2000,0),1),"") -> 1143726 | G104: תכלית סל (40) אינדקס בנקים ישראל | I104: =IFERROR(VLOOKUP(F104,'עמוד תיקוף ובדיקה'!$U$3:$AM$2000,19,FALSE),"") -> ירוק | J104: =IFERROR(VLOOKUP(F104,'עמוד תיקוף ובדיקה'!$U$3:$AM$2000,18,FALSE),"") -> 100 | L104: =IFERROR(IF(INDEX('עמוד תיקוף ובדיקה'!$U$3:$V$2000,MATCH(M104,'עמוד תיקוף ובדיקה'!$V$3:$V$2000,0),1)=0,"",INDEX('עמוד תיקוף ובדיקה'!$U$3:$V$2000,MATCH(M104,'עמוד תיקוף ובדיקה'!$V$3:$V$2000,0),1)),"") -> 5123930 | M104: PTFי (00)(!) אינדקס אג"ח עם רכיב בטוחה | O104: =IFERROR(VLOOKUP(L104,'עמוד תיקוף ובדיקה'!$U$3:$AM$2000,19,FALSE),"") -> אדום | P104: =IFERROR(VLOOKUP(L104,'עמוד תיקוף ובדיקה'!$U$3:$AM$2000,18,FALSE),"") -> 25.31
F105: =IFERROR(INDEX('עמוד תיקוף ובדיקה'!$U$3:$V$2000,MATCH(G105,'עמוד תיקוף ובדיקה'!$V$3:$V$2000,0),1),"") -> 1146430 | G105: קסם 4A) ETF) אינדקס בנקים ישראל | I105: =IFERROR(VLOOKUP(F105,'עמוד תיקוף ובדיקה'!$U$3:$AM$2000,19,FALSE),"") -> ירוק | J105: =IFERROR(VLOOKUP(F105,'עמוד תיקוף ובדיקה'!$U$3:$AM$2000,18,FALSE),"") -> 100 | L105: =IFERROR(IF(INDEX('עמוד תיקוף ובדיקה'!$U$3:$V$2000,MATCH(M105,'עמוד תיקוף ובדיקה'!$V$3:$V$2000,0),1)=0,"",INDEX('עמוד תיקוף ובדיקה'!$U$3:$V$2000,MATCH(M105,'עמוד תיקוף ובדיקה'!$V$3:$V$2000,0),1)),"") -> 5132782 | M105: קסם 4A) KTF) ת"א-בנייה | O105: =IFERROR(VLOOKUP(L105,'עמוד תיקוף ובדיקה'!$U$3:$AM$2000,19,FALSE),"") -> אדום | P105: =IFERROR(VLOOKUP(L105,'עמוד תיקוף ובדיקה'!$U$3:$AM$2000,18,FALSE),"") -> 29.96
F106: =IFERROR(INDEX('עמוד תיקוף ובדיקה'!$U$3:$V$2000,MATCH(G106,'עמוד תיקוף ובדיקה'!$V$3:$V$2000,0),1),"") -> 1148774 | G106: פסגות ETFי (4A) אינדקס בנקים ישראל | I106: =IFERROR(VLOOKUP(F106,'עמוד תיקוף ובדיקה'!$U$3:$AM$2000,19,FALSE),"") -> ירוק | J106: =IFERROR(VLOOKUP(F106,'עמוד תיקוף ובדיקה'!$U$3:$AM$2000,18,FALSE),"") -> 100 | L106: =IFERROR(IF(INDEX('עמוד תיקוף ובדיקה'!$U$3:$V$2000,MATCH(M106,'עמוד תיקוף ובדיקה'!$V$3:$V$2000,0),1)=0,"",INDEX('עמוד תיקוף ובדיקה'!$U$3:$V$2000,MATCH(M106,'עמוד תיקוף ובדיקה'!$V$3:$V$2000,0),1)),"") -> 5132956 | M106: קסם KTFי (00) אינדקס אג"ח סקטור באלאנס | O106: =IFERROR(VLOOKUP(L106,'עמוד תיקוף ובדיקה'!$U$3:$AM$2000,19,FALSE),"") -> אדום | P106: =IFERROR(VLOOKUP(L106,'עמוד תיקוף ובדיקה'!$U$3:$AM$2000,18,FALSE),"") -> 56.37
F107: =IFERROR(INDEX('עמוד תיקוף ובדיקה'!$U$3:$V$2000,MATCH(G107,'עמוד תיקוף ובדיקה'!$V$3:$V$2000,0),1),"") -> 1148949 | G107: הראל סל (4A) אינדקס בנקים ישראל | I107: =IFERROR(VLOOKUP(F107,'עמוד תיקוף ובדיקה'!$U$3:$AM$2000,19,FALSE),"") -> ירוק | J107: =IFERROR(VLOOKUP(F107,'עמוד תיקוף ובדיקה'!$U$3:$AM$2000,18,FALSE),"") -> 100 | L107: =IFERROR(IF(INDEX('עמוד תיקוף ובדיקה'!$U$3:$V$2000,MATCH(M107,'עמוד תיקוף ובדיקה'!$V$3:$V$2000,0),1)=0,"",INDEX('עמוד תיקוף ובדיקה'!$U$3:$V$2000,MATCH(M107,'עמוד תיקוף ובדיקה'!$V$3:$V$2000,0),1)),"") -> 5113063 | M107: אי.בי.אי. מחקה (4A) ת"א 125 | O107: =IFERROR(VLOOKUP(L107,'עמוד תיקוף ובדיקה'!$U$3:$AM$2000,19,FALSE),"") -> אדום | P107: =IFERROR(VLOOKUP(L107,'עמוד תיקוף ובדיקה'!$U$3:$AM$2000,18,FALSE),"") -> 66.99
F108: =IFERROR(INDEX('עמוד תיקוף ובדיקה'!$U$3:$V$2000,MATCH(G108,'עמוד תיקוף ובדיקה'!$V$3:$V$2000,0),1),"") -> 1187764 | G108: מור סל (4A) אינדקס בנקים משקל שווה | I108: =IFERROR(VLOOKUP(F108,'עמוד תיקוף ובדיקה'!$U$3:$AM$2000,19,FALSE),"") -> ירוק | J108: =IFERROR(VLOOKUP(F108,'עמוד תיקוף ובדיקה'!$U$3:$AM$2000,18,FALSE),"") -> 100 | L108: =IFERROR(IF(INDEX('עמוד תיקוף ובדיקה'!$U$3:$V$2000,MATCH(M108,'עמוד תיקוף ובדיקה'!$V$3:$V$2000,0),1)=0,"",INDEX('עמוד תיקוף ובדיקה'!$U$3:$V$2000,MATCH(M108,'עמוד תיקוף ובדיקה'!$V$3:$V$2000,0),1)),"") -> 5101506 | M108: אי.בי.אי. מחקה (4A) ת"א 35 | O108: =IFERROR(VLOOKUP(L108,'עמוד תיקוף ובדיקה'!$U$3:$AM$2000,19,FALSE),"") -> אדום | P108: =IFERROR(VLOOKUP(L108,'עמוד תיקוף ובדיקה'!$U$3:$AM$2000,18,FALSE),"") -> 76.99
F109: =IFERROR(INDEX('עמוד תיקוף ובדיקה'!$U$3:$V$2000,MATCH(G109,'עמוד תיקוף ובדיקה'!$V$3:$V$2000,0),1),"") -> 5131966 | G109: מור מחקה (4A) אינדקס בנקים משקל שווה | I109: =IFERROR(VLOOKUP(F109,'עמוד תיקוף ובדיקה'!$U$3:$AM$2000,19,FALSE),"") -> ירוק | J109: =IFERROR(VLOOKUP(F109,'עמוד תיקוף ובדיקה'!$U$3:$AM$2000,18,FALSE),"") -> 100 | L109: =IFERROR(IF(INDEX('עמוד תיקוף ובדיקה'!$U$3:$V$2000,MATCH(M109,'עמוד תיקוף ובדיקה'!$V$3:$V$2000,0),1)=0,"",INDEX('עמוד תיקוף ובדיקה'!$U$3:$V$2000,MATCH(M109,'עמוד תיקוף ובדיקה'!$V$3:$V$2000,0),1)),"") ->  | O109: =IFERROR(VLOOKUP(L109,'עמוד תיקוף ובדיקה'!$U$3:$AM$2000,19,FALSE),"") ->  | P109: =IFERROR(VLOOKUP(L109,'עמוד תיקוף ובדיקה'!$U$3:$AM$2000,18,FALSE),"") -> 
F110: =IFERROR(INDEX('עמוד תיקוף ובדיקה'!$U$3:$V$2000,MATCH(G110,'עמוד תיקוף ובדיקה'!$V$3:$V$2000,0),1),"") -> 5134168 | G110: PTFי (4A) אינדקס בנקים ישראל | I110: =IFERROR(VLOOKUP(F110,'עמוד תיקוף ובדיקה'!$U$3:$AM$2000,19,FALSE),"") -> ירוק | J110: =IFERROR(VLOOKUP(F110,'עמוד תיקוף ובדיקה'!$U$3:$AM$2000,18,FALSE),"") -> 100 | L110: =IFERROR(IF(INDEX('עמוד תיקוף ובדיקה'!$U$3:$V$2000,MATCH(M110,'עמוד תיקוף ובדיקה'!$V$3:$V$2000,0),1)=0,"",INDEX('עמוד תיקוף ובדיקה'!$U$3:$V$2000,MATCH(M110,'עמוד תיקוף ובדיקה'!$V$3:$V$2000,0),1)),"") ->  | O110: =IFERROR(VLOOKUP(L110,'עמוד תיקוף ובדיקה'!$U$3:$AM$2000,19,FALSE),"") ->  | P110: =IFERROR(VLOOKUP(L110,'עמוד תיקוף ובדיקה'!$U$3:$AM$2000,18,FALSE),"") -> 
F111: =IFERROR(INDEX('עמוד תיקוף ובדיקה'!$U$3:$V$2000,MATCH(G111,'עמוד תיקוף ובדיקה'!$V$3:$V$2000,0),1),"") -> 1144823 | G111: תכלית סל (00) תל בונד צמודות בנקים | I111: =IFERROR(VLOOKUP(F111,'עמוד תיקוף ובדיקה'!$U$3:$AM$2000,19,FALSE),"") -> ירוק | J111: =IFERROR(VLOOKUP(F111,'עמוד תיקוף ובדיקה'!$U$3:$AM$2000,18,FALSE),"") -> 97.3 | L111: =IFERROR(IF(INDEX('עמוד תיקוף ובדיקה'!$U$3:$V$2000,MATCH(M111,'עמוד תיקוף ובדיקה'!$V$3:$V$2000,0),1)=0,"",INDEX('עמוד תיקוף ובדיקה'!$U$3:$V$2000,MATCH(M111,'עמוד תיקוף ובדיקה'!$V$3:$V$2000,0),1)),"") ->  | O111: =IFERROR(VLOOKUP(L111,'עמוד תיקוף ובדיקה'!$U$3:$AM$2000,19,FALSE),"") ->  | P111: =IFERROR(VLOOKUP(L111,'עמוד תיקוף ובדיקה'!$U$3:$AM$2000,18,FALSE),"") -> 
F112: =IFERROR(INDEX('עמוד תיקוף ובדיקה'!$U$3:$V$2000,MATCH(G112,'עמוד תיקוף ובדיקה'!$V$3:$V$2000,0),1),"") -> 1190776 | G112: הראל סל (00) תל בונד צמודות-בנקים | I112: =IFERROR(VLOOKUP(F112,'עמוד תיקוף ובדיקה'!$U$3:$AM$2000,19,FALSE),"") -> ירוק | J112: =IFERROR(VLOOKUP(F112,'עמוד תיקוף ובדיקה'!$U$3:$AM$2000,18,FALSE),"") -> 97.3 | L112: =IFERROR(IF(INDEX('עמוד תיקוף ובדיקה'!$U$3:$V$2000,MATCH(M112,'עמוד תיקוף ובדיקה'!$V$3:$V$2000,0),1)=0,"",INDEX('עמוד תיקוף ובדיקה'!$U$3:$V$2000,MATCH(M112,'עמוד תיקוף ובדיקה'!$V$3:$V$2000,0),1)),"") ->  | O112: =IFERROR(VLOOKUP(L112,'עמוד תיקוף ובדיקה'!$U$3:$AM$2000,19,FALSE),"") ->  | P112: =IFERROR(VLOOKUP(L112,'עמוד תיקוף ובדיקה'!$U$3:$AM$2000,18,FALSE),"") -> 
E114: דירוג ספיר של קרנות מחקות חדשות
F116: מספר הקרן | H116: שם הקרן | L116: דירוג ספיר | N116: דירוג ESG | P116: ציון ESG
F117: =IFERROR(INDEX('עמוד תיקוף ובדיקה'!$U$3:$V$2001,MATCH(H117,'עמוד תיקוף ובדיקה'!$V$3:$V$2001,0),1),"") -> 5138268 | H117: =IFERROR(IF(_xlfn._xlws.FILTER(('עמוד תיקוף ובדיקה'!$V$3:$V$2000),('עמוד תיקוף ובדיקה'!$AJ$3:$AJ$2000=1)*('עמוד תיקוף ובדיקה'!$AK$3:$AK$2000="")*('עמוד תיקוף ובדיקה'!$AM$3:$AM$2000<>"לא מדורג"))=0,"אין קרנות חדשות לתצוגה עם דירוג ספיר",_xlfn._xlws.FILTER(('עמוד תיקוף ובדיקה'!$V$3:$V$2000),('עמוד תיקוף ובדיקה'!$AJ$3:$AJ$2000=1)*('עמוד תיקוף ובדיקה'!$AK$3:$AK$2000="")*('עמוד תיקוף ובדיקה'!$AM$3:$AM$2000<>"לא מדורג"))),"אין קרנות חדשות לתצוגה עם דירוג ספיר") -> קסם KTFי (4A) אינדקס בינוי והנדסת תשתיות | L117: =IFERROR(_xlfn.XLOOKUP(F117,INDIRECT($I$1&"[מספר קרן]"),INDIRECT($I$1&"[דירוג ספיר]")),"") -> ירוק | N117: =IFERROR(IF(P117="","",IF(P117>=70,"גבוה",IF(P117>=40,"בינוני","נמוך"))),"") -> נמוך | P117: =IFERROR(_xlfn.XLOOKUP(F117,INDIRECT($I$1&"[מספר קרן]"),INDIRECT($I$1&"[ESG_DB]")),"") -> 36.12
F118: =IFERROR(INDEX('עמוד תיקוף ובדיקה'!$U$3:$V$2001,MATCH(H118,'עמוד תיקוף ובדיקה'!$V$3:$V$2001,0),1),"") ->  | L118: =IFERROR(_xlfn.XLOOKUP(F118,INDIRECT($I$1&"[מספר קרן]"),INDIRECT($I$1&"[דירוג ספיר]")),"") ->  | N118: =IFERROR(IF(P118="","",IF(P118>=70,"גבוה",IF(P118>=40,"בינוני","נמוך"))),"") ->  | P118: =IFERROR(_xlfn.XLOOKUP(F118,INDIRECT($I$1&"[מספר קרן]"),INDIRECT($I$1&"[ESG_DB]")),"") -> 
F119: =IFERROR(INDEX('עמוד תיקוף ובדיקה'!$U$3:$V$2001,MATCH(H119,'עמוד תיקוף ובדיקה'!$V$3:$V$2001,0),1),"") ->  | L119: =IFERROR(_xlfn.XLOOKUP(F119,INDIRECT($I$1&"[מספר קרן]"),INDIRECT($I$1&"[דירוג ספיר]")),"") ->  | P119: =IFERROR(_xlfn.XLOOKUP(F119,INDIRECT($I$1&"[מספר קרן]"),INDIRECT($I$1&"[ESG_DB]")),"") -> 
F120: =IFERROR(INDEX('עמוד תיקוף ובדיקה'!$U$3:$V$2001,MATCH(H120,'עמוד תיקוף ובדיקה'!$V$3:$V$2001,0),1),"") ->  | L120: =IFERROR(_xlfn.XLOOKUP(F120,INDIRECT($I$1&"[מספר קרן]"),INDIRECT($I$1&"[דירוג ספיר]")),"") ->  | P120: =IFERROR(_xlfn.XLOOKUP(F120,INDIRECT($I$1&"[מספר קרן]"),INDIRECT($I$1&"[ESG_DB]")),"") -> 
F121: =IFERROR(INDEX('עמוד תיקוף ובדיקה'!$U$3:$V$2001,MATCH(H121,'עמוד תיקוף ובדיקה'!$V$3:$V$2001,0),1),"") ->  | L121: =IFERROR(_xlfn.XLOOKUP(F121,INDIRECT($I$1&"[מספר קרן]"),INDIRECT($I$1&"[דירוג ספיר]")),"") ->  | P121: =IFERROR(_xlfn.XLOOKUP(F121,INDIRECT($I$1&"[מספר קרן]"),INDIRECT($I$1&"[ESG_DB]")),"") -> 
F122: =IFERROR(INDEX('עמוד תיקוף ובדיקה'!$U$3:$V$2001,MATCH(H122,'עמוד תיקוף ובדיקה'!$V$3:$V$2001,0),1),"") ->  | L122: =IFERROR(_xlfn.XLOOKUP(F122,INDIRECT($I$1&"[מספר קרן]"),INDIRECT($I$1&"[דירוג ספיר]")),"") ->  | P122: =IFERROR(_xlfn.XLOOKUP(F122,INDIRECT($I$1&"[מספר קרן]"),INDIRECT($I$1&"[ESG_DB]")),"") -> 
F123: =IFERROR(INDEX('עמוד תיקוף ובדיקה'!$U$3:$V$2001,MATCH(H123,'עמוד תיקוף ובדיקה'!$V$3:$V$2001,0),1),"") ->  | L123: =IFERROR(_xlfn.XLOOKUP(F123,INDIRECT($I$1&"[מספר קרן]"),INDIRECT($I$1&"[דירוג ספיר]")),"") ->  | P123: =IFERROR(_xlfn.XLOOKUP(F123,INDIRECT($I$1&"[מספר קרן]"),INDIRECT($I$1&"[ESG_DB]")),"") -> 
F124: =IFERROR(INDEX('עמוד תיקוף ובדיקה'!$U$3:$V$2001,MATCH(H124,'עמוד תיקוף ובדיקה'!$V$3:$V$2001,0),1),"") ->  | L124: =IFERROR(_xlfn.XLOOKUP(F124,INDIRECT($I$1&"[מספר קרן]"),INDIRECT($I$1&"[דירוג ספיר]")),"") ->  | P124: =IFERROR(_xlfn.XLOOKUP(F124,INDIRECT($I$1&"[מספר קרן]"),INDIRECT($I$1&"[ESG_DB]")),"") -> 
F125: =IFERROR(INDEX('עמוד תיקוף ובדיקה'!$U$3:$V$2001,MATCH(H125,'עמוד תיקוף ובדיקה'!$V$3:$V$2001,0),1),"") ->  | L125: =IFERROR(_xlfn.XLOOKUP(F125,INDIRECT($I$1&"[מספר קרן]"),INDIRECT($I$1&"[דירוג ספיר]")),"") ->  | P125: =IFERROR(_xlfn.XLOOKUP(F125,INDIRECT($I$1&"[מספר קרן]"),INDIRECT($I$1&"[ESG_DB]")),"") -> 
E126: תריסר מומלצות - המלצת המערכת ל 12 הקרנות המובילות בשילוב דירוג ספיר | F126: המלצת המערכת לקרנות מובילות
I127: דירוג ESG | J127: דירוג ספיר | M127: =IFERROR(VLOOKUP(F126,INDIRECT('עמוד תיקוף ובדיקה'!$S$2,TRUE),21,FALSE),"") ->  | O127: דירוג ESG | P127: דירוג ספיר
F129: =IF('ריכוז חודשי'!P33=0,"",'ריכוז חודשי'!P33) -> תכלית סל (40) אינדקס בנקים ישראל | I129: ='ריכוז חודשי'!S33 -> גבוה | J129: ='ריכוז חודשי'!T33 -> ירוק | L129: =IF('ריכוז חודשי'!P39=0,"",'ריכוז חודשי'!P39) -> מור סל (4A) אינדקס בנקים משקל שווה | O129: ='ריכוז חודשי'!S39 -> גבוה | P129: ='ריכוז חודשי'!T39 -> ירוק
F130: =IF('ריכוז חודשי'!P34=0,"",'ריכוז חודשי'!P34) -> קסם 4A) ETF) אינדקס בנקים ישראל | I130: ='ריכוז חודשי'!S34 -> גבוה | J130: ='ריכוז חודשי'!T34 -> ירוק | L130: =IF('ריכוז חודשי'!P40=0,"",'ריכוז חודשי'!P40) -> MTF מחקה‏ (00) תל בונד צמודות בנקים | O130: ='ריכוז חודשי'!S40 -> גבוה | P130: ='ריכוז חודשי'!T40 -> ירוק
F131: =IF('ריכוז חודשי'!P35=0,"",'ריכוז חודשי'!P35) -> פסגות ETFי (4A) אינדקס בנקים ישראל | I131: ='ריכוז חודשי'!S35 -> גבוה | J131: ='ריכוז חודשי'!T35 -> ירוק | L131: =IF('ריכוז חודשי'!P41=0,"",'ריכוז חודשי'!P41) -> אי.בי.אי. מחקה (00) תל בונד צמודות- בנקים | O131: ='ריכוז חודשי'!S41 -> גבוה | P131: ='ריכוז חודשי'!T41 -> ירוק
F132: =IF('ריכוז חודשי'!P36=0,"",'ריכוז חודשי'!P36) -> הראל סל (4A) אינדקס בנקים ישראל | I132: ='ריכוז חודשי'!S36 -> גבוה | J132: ='ריכוז חודשי'!T36 -> ירוק | L132: =IF('ריכוז חודשי'!P42=0,"",'ריכוז חודשי'!P42) -> תכלית TTF י(00) תל בונד צמודות-בנקים | O132: ='ריכוז חודשי'!S42 -> גבוה | P132: ='ריכוז חודשי'!T42 -> ירוק
F133: =IF('ריכוז חודשי'!P37=0,"",'ריכוז חודשי'!P37) -> מור מחקה (4A) אינדקס בנקים משקל שווה | I133: ='ריכוז חודשי'!S37 -> גבוה | J133: ='ריכוז חודשי'!T37 -> ירוק | L133: =IF('ריכוז חודשי'!P43=0,"",'ריכוז חודשי'!P43) -> תכלית סל (00) תל בונד צמודות בנקים | O133: ='ריכוז חודשי'!S43 -> גבוה | P133: ='ריכוז חודשי'!T43 -> ירוק
F134: =IF('ריכוז חודשי'!P38=0,"",'ריכוז חודשי'!P38) -> PTFי (4A) אינדקס בנקים ישראל | I134: ='ריכוז חודשי'!S38 -> גבוה | J134: ='ריכוז חודשי'!T38 -> ירוק | L134: =IF('ריכוז חודשי'!P44=0,"",'ריכוז חודשי'!P44) -> הראל מחקה (00) תל בונד צמודות-בנקים | O134: ='ריכוז חודשי'!S44 -> גבוה | P134: ='ריכוז חודשי'!T44 -> ירוק
E138: הסבר לגבי ESG:
E139: הדירוג מבוצע על ידי גופים מקצועיים, ומתבסס על ניתוח מערכתי של פרמטרים רבים ומגוונים. התפיסה העיקרית מאחורי ESG היא שפרמטרים אלו משפיעים על ביצועים ארוכי הטווח והתמודדות עם סיכונים והזדמנויות עסקיות. כלומר, חברות וארגונים שמקדמים את ענייני הסביבה, החברה וממשל תאגידי בתהליך הערכה שלהם עשויים להצליח יותר בתחום הפיננסי ובשמירה על יכולת התמודדותם עם אתגרים וסיכונים. דוגמאות להיבטי סביבה (Environmental): פליטות פחמן, שימוש באנרגיה, דוגמאות להיבטי חברה (Social): שרשרת אספקה, בטיחות, עובדים וקהילה. דוגמאות להיבטי ממשל תאגידי (Governance): איכות ניהול, אתיקה, שקיפות ועוד. ניתוח ה-ESG המוצג במסמך זה מתבסס על ניתוח הרכב הניירות ערך של הקרן ועמידת דירוג ה ESG של כל אחד מהם, המביאים ליצירת ציון כולל לקרן.

Sheet ריכוז חודשי
C1: בחר -> | D1: מרץ | G1: =D3+COUNTA(E1:E3)+COUNTBLANK(E1:E3) -> 802 | X1: =D1 -> מרץ | AB1: =COUNT(IF(AB3:AB1500<>"LAST",AB3:AB1500))+2 -> 657 | AK1: =X2 -> מניות בחו"ל | AL1: =COUNTIF($AL$4:$AL$500,AK1) -> 339
B2: =ADDRESS(4,2)&":"&ADDRESS($B$3+3,2) -> $B$4:$B$802 | C2: =ADDRESS(4,1)&":"&ADDRESS($B$3+3,2) -> $A$4:$B$802 | F2: מומלצי מערכת | G2: =MATCH("last",G$4:G$1000,0) -> 799 | H2: =COUNT(_xlfn.ANCHORARRAY(H4)) -> 799 | I2: =D1 -> מרץ | V2: מניות בארץ | W2: =COUNT(_xlfn.ANCHORARRAY(V3)) -> 158 | X2: מניות בחו"ל | Y2: =COUNT(_xlfn.ANCHORARRAY(X3)) -> 497 | AA2: מניות בארץ/מניות בחו"ל | AD2: =AB1 -> 657 | AE2: =COUNT(_xlfn.ANCHORARRAY(AE4)) -> 655 | AF2: =X1 -> מרץ | AG2: =COUNT(IF(AG4:AG1501<>"LAST",AG4:AG1501))+2 -> 473 | AK2: =V2 -> מניות בארץ | AL2: =COUNTIF($AL$4:$AL$500,AK2) -> 158
A3: לא מדורג | B3: =COUNT(_xlfn.ANCHORARRAY(A4)) -> 799 | C3: לא מדורג | D3: =COUNT(_xlfn.ANCHORARRAY(C4))/2 -> 799 | E3: דירוג ספיר | G3: 0 | H3: מס קרן | I3: שם הקרן | J3: =D1 -> מרץ | K3: =_xlfn.XLOOKUP((_xlfn.XLOOKUP(J3,Paperposition!$AD$15:$AU$15,Paperposition!$AD$14:$AU$14))-1,Paperposition!$AD$14:$AU$14,Paperposition!$AD$15:$AU$15) -> פברואר | L3: שינוי בדירוג | M3: =J3 -> מרץ | N3: =K3 -> פברואר | O3: משוקלל | P3: עשרת הקרנות המשתפרות בדירוג הגבוה | S3: גבוה | U3: פער דירוג חודשי | V3: =_xlfn.UNIQUE(_xlfn._xlws.FILTER(INDIRECT($X$1&"[מספר קרן]"),INDIRECT($X$1&"[כותרת על של הקרן]")=$V$2)) -> 5109889 | W3: =IFERROR(_xlfn.XLOOKUP(V3,INDIRECT($X$1&"[מספר קרן]"),INDIRECT($X$1&"[ESG_DB]")),0) -> 66.99 | X3: =_xlfn.UNIQUE(_xlfn._xlws.FILTER(INDIRECT($X$1&"[מספר קרן]"),INDIRECT($X$1&"[כותרת על של הקרן]")=$X$2)) -> 5117585 | Y3: =IFERROR(_xlfn.XLOOKUP(X3,INDIRECT($X$1&"[מספר קרן]"),INDIRECT($X$1&"[ESG_DB]")),0) -> 71.23 | AA3: =_xlfn.UNIQUE(_xlfn.VSTACK(_xlfn.ANCHORARRAY(V3),_xlfn.ANCHORARRAY(X3))) -> 5109889 | AB3: =IF(AA3="","last",IF(_xlfn.XLOOKUP(AA3,INDIRECT($X$1&"[מספר קרן]"),INDIRECT($X$1&"[ESG_DB]"),0)="לא מדורג",0,_xlfn.XLOOKUP(AA3,INDIRECT($X$1&"[מספר קרן]"),INDIRECT($X$1&"[ESG_DB]"),0))) -> 66.99 | AD3: 0 | AE3: מס קרן | AF3: שם הקרן | AG3: =X1 -> מרץ | AH3: =_xlfn.XLOOKUP((_xlfn.XLOOKUP(X1,Paperposition!$AD$15:$AU$15,Paperposition!$AD$14:$AU$14))-1,Paperposition!$AD$14:$AU$14,Paperposition!$AD$15:$AU$15) -> פברואר | AI3: שינוי בדירוג | AJ3: =AG3 -> מרץ | AK3: =AH3 -> פברואר | AL3: בארץ/בחו"ל | AN3: עשרת הקרנות הטובות בדירוג ב-מניות בארץ | AQ3: =V2 -> מניות בארץ
A4: =_xlfn.UNIQUE(_xlfn._xlws.FILTER(INDIRECT($X$1&"[מספר קרן]"),INDIRECT($X$1&"[ESG_DB]")<>$A$3)) -> 5109889 | B4: =IFERROR(_xlfn.XLOOKUP(A4,INDIRECT($X$1&"[מספר קרן]"),INDIRECT($X$1&"[ESG_DB]")),0) -> 66.99 | C4: =_xlfn.SORTBY(INDIRECT($C$2,TRUE),INDIRECT(B2,TRUE),-1) -> 1143726 | D4: 100 | E4: =IFERROR(_xlfn.XLOOKUP(C4,INDIRECT($X$1&"[מספר קרן]"),INDIRECT($X$1&"[דירוג ספיר]")),0) -> ירוק | F4: =IFERROR(IF(_xlfn.XLOOKUP(I4,$P$33:$P$49,$T$33:$T$49)>2,1,""),"") -> 1 | G4: =IFERROR(IF(G3+1=$D$3,"LAST",G3+1),"") -> 1 | H4: =_xlfn.SORTBY(INDIRECT("C4:C"&$G$1),INDIRECT("D4:D"&(G1)),-1) -> 1143726 | I4: =IFERROR(_xlfn.XLOOKUP(H4,INDIRECT($I$2&"[מספר קרן]"),INDIRECT($I$2&"[שם קרן]")),"") -> תכלית סל (40) אינדקס בנקים ישראל | J4: =IFERROR(IF(_xlfn.XLOOKUP($H4,INDIRECT($J$3&"[מספר קרן]"),INDIRECT($J$3&"[ESG_DB]"))="לא מדורג","",_xlfn.XLOOKUP($H4,INDIRECT($J$3&"[מספר קרן]"),INDIRECT($J$3&"[ESG_DB]"))),"") -> 100 | K4: =IFERROR(IF(_xlfn.XLOOKUP($H4,INDIRECT($K$3&"[מספר קרן]"),INDIRECT($K$3&"[ESG_DB]"))="לא מדורג","",_xlfn.XLOOKUP($H4,INDIRECT($K$3&"[מספר קרן]"),INDIRECT($K$3&"[ESG_DB]"))),"") -> 100 | L4: =IFERROR(J4/K4-1,0) -> 0 | M4: =IFERROR(IF(J4="","",IF(J4>=70,"גבוה",IF(J4>=40,"בינוני","נמוך"))),"") -> גבוה | N4: גבוה | O4: =IFERROR(_xlfn.XLOOKUP(H4,INDIRECT("$c$4:$c$"&$G$1),INDIRECT("$e$4:$e$"&$G$1)),"") -> ירוק | R4: ="דירוג"&" "&X1&" 2024" -> דירוג מרץ 2024 | S4: ="הגידול מ"&" "&AH3&" 2024" -> הגידול מ פברואר 2024 | V4: 5109897 | W4: =IFERROR(_xlfn.XLOOKUP(V4,INDIRECT($X$1&"[מספר קרן]"),INDIRECT($X$1&"[ESG_DB]")),0) -> 76.99 | X4: 5117601 | Y4: =IFERROR(_xlfn.XLOOKUP(X4,INDIRECT($X$1&"[מספר קרן]"),INDIRECT($X$1&"[ESG_DB]")),0) -> 75.11 | AA4: 5109897 | AB4: =IF(AA4="","last",IF(_xlfn.XLOOKUP(AA4,INDIRECT($X$1&"[מספר קרן]"),INDIRECT($X$1&"[ESG_DB]"),0)="לא מדורג",0,_xlfn.XLOOKUP(AA4,INDIRECT($X$1&"[מספר קרן]"),INDIRECT($X$1&"[ESG_DB]"),0))) -> 76.99 | AD4: =IFERROR(IF(AB4="LAST","LAST",AD3+1),"") -> 1 | AE4: =_xlfn.SORTBY(_xlfn.ANCHORARRAY(AA3),INDIRECT("AB3:AB"&(AB1)),-1) -> 1143726 | AF4: =IFERROR(_xlfn.XLOOKUP(AE4,INDIRECT($X$1&"[מספר קרן]"),INDIRECT($X$1&"[שם קרן]")),"") -> תכלית סל (40) אינדקס בנקים ישראל | AG4: =IFERROR(IF(_xlfn.XLOOKUP($AE4,INDIRECT($AG$3&"[מספר קרן]"),INDIRECT($AG$3&"[ESG_DB]"))="לא מדורג","",_xlfn.XLOOKUP($AE4,INDIRECT($AG$3&"[מספר קרן]"),INDIRECT($AG$3&"[ESG_DB]"))),"last") -> 100 | AH4: =IFERROR(IF(_xlfn.XLOOKUP($AE4,INDIRECT($AG$3&"[מספר קרן]"),INDIRECT($AG$3&"[ESG_DB]"))="לא מדורג","",_xlfn.XLOOKUP($AE4,INDIRECT($AG$3&"[מספר קרן]"),INDIRECT($AG$3&"[ESG_DB]"))),"last") -> 100 | AI4: =IFERROR(AG4/AH4,"") -> 1 | AJ4: =IFERROR(IF(AG4="","",IF(AG4>=70,"גבוה",IF(AG4>=40,"בינוני","נמוך"))),"") -> גבוה | AK4: גבוה | AL4: =IF(AD4="","",IFERROR(IF(MATCH(AE4,_xlfn.ANCHORARRAY($X$3),0)>0,$X$2,$V$2),$V$2)) -> מניות בארץ | AQ4: =S4 -> הגידול מ פברואר 2024 | AT4: =_xlfn._xlws.SORT(G4:K19,1,-1,FALSE) -> 16 | AU4: 5117817 | AV4: MTF מחקה‏ (00) תל בונד צמודות בנקים | AW4: 97.3 | AX4: 97.51640715 | AY4: =IFERROR(VLOOKUP(AT4+1,$G$3:$U$20,15,FALSE),"") -> 0.7835928452 | AZ4: =IFERROR(INDEX($F$4:$G$19,MATCH(AT4,$G$4:$G$19,0),1),"") -> 1 | BA4: =IFERROR(IF(AX4<=AW4,AX4,AW4),"") -> 97.3
A5: 5109897 | B5: =IFERROR(_xlfn.XLOOKUP(A5,INDIRECT($X$1&"[מספר קרן]"),INDIRECT($X$1&"[ESG_DB]")),0) -> 76.99 | C5: 1146430 | D5: 100 | E5: =IFERROR(_xlfn.XLOOKUP(C5,INDIRECT($X$1&"[מספר קרן]"),INDIRECT($X$1&"[דירוג ספיר]")),0) -> ירוק | F5: 1 | G5: 2 | H5: 1146430 | I5: =IFERROR(_xlfn.XLOOKUP(H5,INDIRECT($I$2&"[מספר קרן]"),INDIRECT($I$2&"[שם קרן]")),"") -> קסם 4A) ETF) אינדקס בנקים ישראל | J5: =IFERROR(IF(_xlfn.XLOOKUP($H5,INDIRECT($J$3&"[מספר קרן]"),INDIRECT($J$3&"[ESG_DB]"))="לא מדורג","",_xlfn.XLOOKUP($H5,INDIRECT($J$3&"[מספר קרן]"),INDIRECT($J$3&"[ESG_DB]"))),"") -> 100 | K5: =IFERROR(IF(_xlfn.XLOOKUP($H5,INDIRECT($K$3&"[מספר קרן]"),INDIRECT($K$3&"[ESG_DB]"))="לא מדורג","",_xlfn.XLOOKUP($H5,INDIRECT($K$3&"[מספר קרן]"),INDIRECT($K$3&"[ESG_DB]"))),"") -> 100 | L5: =IFERROR(J5/K5-1,0) -> 0 | M5: גבוה | N5: גבוה | O5: =IFERROR(_xlfn.XLOOKUP(H5,INDIRECT("$c$4:$c$"&$G$1),INDIRECT("$e$4:$e$"&$G$1)),"") -> ירוק | P5: =INDEX(_xlfn._xlws.SORT(_xlfn._xlws.FILTER(INDIRECT("I4:L"&G2),INDIRECT("M4:M"&G2)=$S$3),4,-1),_xlfn.SEQUENCE(10),FALSE) -> קסם KTFי (4A) ת"א מעלה | R5: =_xlfn.XLOOKUP(P5,INDIRECT("$I$4:$I$"&$G$1),INDIRECT("$J$4:$J$"&$G$1)) -> 79.96 | S5: =_xlfn.XLOOKUP(P5,INDIRECT("$I$4:$I$"&$G$1),INDIRECT("$L$4:$L$"&$G$1)) -> 0.06544780521 | T5: 1 | U5: =IFERROR(J4-K4+1,J4) -> 1 | V5: 5101506 | W5: =IFERROR(_xlfn.XLOOKUP(V5,INDIRECT($X$1&"[מספר קרן]"),INDIRECT($X$1&"[ESG_DB]")),0) -> 76.99 | X5: 5113998 | Y5: =IFERROR(_xlfn.XLOOKUP(X5,INDIRECT($X$1&"[מספר קרן]"),INDIRECT($X$1&"[ESG_DB]")),0) -> 75.11 | AA5: 5101506 | AB5: =IF(AA5="","last",IF(_xlfn.XLOOKUP(AA5,INDIRECT($X$1&"[מספר קרן]"),INDIRECT($X$1&"[ESG_DB]"),0)="לא מדורג",0,_xlfn.XLOOKUP(AA5,INDIRECT($X$1&"[מספר קרן]"),INDIRECT($X$1&"[ESG_DB]"),0))) -> 76.99 | AD5: 2 | AE5: 1146430 | AF5: =IFERROR(_xlfn.XLOOKUP(AE5,INDIRECT($X$1&"[מספר קרן]"),INDIRECT($X$1&"[שם קרן]")),"") -> קסם 4A) ETF) אינדקס בנקים ישראל | AG5: =IFERROR(IF(_xlfn.XLOOKUP($AE5,INDIRECT($AG$3&"[מספר קרן]"),INDIRECT($AG$3&"[ESG_DB]"))="לא מדורג","",_xlfn.XLOOKUP($AE5,INDIRECT($AG$3&"[מספר קרן]"),INDIRECT($AG$3&"[ESG_DB]"))),"last") -> 100 | AH5: =IFERROR(IF(_xlfn.XLOOKUP($AE5,INDIRECT($AG$3&"[מספר קרן]"),INDIRECT($AG$3&"[ESG_DB]"))="לא מדורג","",_xlfn.XLOOKUP($AE5,INDIRECT($AG$3&"[מספר קרן]"),INDIRECT($AG$3&"[ESG_DB]"))),"last") -> 100 | AI5: 1 | AJ5: גבוה | AK5: גבוה | AL5: מניות בארץ | AN5: =INDEX(_xlfn._xlws.SORT(_xlfn._xlws.FILTER(INDIRECT("AF4:AG"&AG2),INDIRECT("AL4:AL"&AG2)=$AQ$3),2,-1),_xlfn.SEQUENCE(10),FALSE) -> תכלית סל (40) אינדקס בנקים ישראל | AQ5: =LARGE(IF(INDIRECT("$AL$4:$AL$"&$AB$1)=$AQ$3,INDIRECT("$Ag$4:$Ag$"&$AB$1)),AR5) -> 100 | AR5: 1 | AT5: 15 | AU5: 5130372 | AV5: MTF מחקה (20) מדד משולב אינדקס בנקים ישראל 20/80 חודשי | AW5: 98.63 | AX5: 97.87672114 | AY5: 1.753278857 | AZ5: =IFERROR(INDEX($F$4:$G$19,MATCH(AT5,$G$4:$G$19,0),1),"") ->  | BA5: =IFERROR(IF(AX5<=AW5,AX5,AW5),"") -> 97.87672114
A6: 5101506 | B6: =IFERROR(_xlfn.XLOOKUP(A6,INDIRECT($X$1&"[מספר קרן]"),INDIRECT($X$1&"[ESG_DB]")),0) -> 76.99 | C6: 1148774 | D6: 100 | E6: =IFERROR(_xlfn.XLOOKUP(C6,INDIRECT($X$1&"[מספר קרן]"),INDIRECT($X$1&"[דירוג ספיר]")),0) -> ירוק | F6: =IFERROR(IF(_xlfn.XLOOKUP(I6,$P$33:$P$49,$T$33:$T$49)>2,1,""),"") -> 1 | G6: 3 | H6: 1148774 | I6: =IFERROR(_xlfn.XLOOKUP(H6,INDIRECT($I$2&"[מספר קרן]"),INDIRECT($I$2&"[שם קרן]")),"") -> פסגות ETFי (4A) אינדקס בנקים ישראל | J6: =IFERROR(IF(_xlfn.XLOOKUP($H6,INDIRECT($J$3&"[מספר קרן]"),INDIRECT($J$3&"[ESG_DB]"))="לא מדורג","",_xlfn.XLOOKUP($H6,INDIRECT($J$3&"[מספר קרן]"),INDIRECT($J$3&"[ESG_DB]"))),"") -> 100 | K6: =IFERROR(IF(_xlfn.XLOOKUP($H6,INDIRECT($K$3&"[מספר קרן]"),INDIRECT($K$3&"[ESG_DB]"))="לא מדורג","",_xlfn.XLOOKUP($H6,INDIRECT($K$3&"[מספר קרן]"),INDIRECT($K$3&"[ESG_DB]"))),"") -> 100 | L6: 0 | M6: גבוה | N6: גבוה | O6: =IFERROR(_xlfn.XLOOKUP(H6,INDIRECT("$c$4:$c$"&$G$1),INDIRECT("$e$4:$e$"&$G$1)),"") -> ירוק | P6: אי.בי.אי. מחקה (00) תל בונד 60 | R6: =_xlfn.XLOOKUP(P6,INDIRECT("$I$4:$I$"&$G$1),INDIRECT("$J$4:$J$"&$G$1)) -> 70.28 | S6: =_xlfn.XLOOKUP(P6,INDIRECT("$I$4:$I$"&$G$1),INDIRECT("$L$4:$L$"&$G$1)) -> 0.0557623816 | T6: 2 | U6: =IFERROR(J5-K5+1,J5) -> 1 | V6: 5112628 | W6: =IFERROR(_xlfn.XLOOKUP(V6,INDIRECT($X$1&"[מספר קרן]"),INDIRECT($X$1&"[ESG_DB]")),0) -> 66.99 | X6: 5121132 | Y6: =IFERROR(_xlfn.XLOOKUP(X6,INDIRECT($X$1&"[מספר קרן]"),INDIRECT($X$1&"[ESG_DB]")),0) -> 64.24 | AA6: 5112628 | AB6: =IF(AA6="","last",IF(_xlfn.XLOOKUP(AA6,INDIRECT($X$1&"[מספר קרן]"),INDIRECT($X$1&"[ESG_DB]"),0)="לא מדורג",0,_xlfn.XLOOKUP(AA6,INDIRECT($X$1&"[מספר קרן]"),INDIRECT($X$1&"[ESG_DB]"),0))) -> 66.99 | AD6: 3 | AE6: 1148774 | AF6: =IFERROR(_xlfn.XLOOKUP(AE6,INDIRECT($X$1&"[מספר קרן]"),INDIRECT($X$1&"[שם קרן]")),"") -> פסגות ETFי (4A) אינדקס בנקים ישראל | AG6: =IFERROR(IF(_xlfn.XLOOKUP($AE6,INDIRECT($AG$3&"[מספר קרן]"),INDIRECT($AG$3&"[ESG_DB]"))="לא מדורג","",_xlfn.XLOOKUP($AE6,INDIRECT($AG$3&"[מספר קרן]"),INDIRECT($AG$3&"[ESG_DB]"))),"last") -> 100 | AH6: =IFERROR(IF(_xlfn.XLOOKUP($AE6,INDIRECT($AG$3&"[מספר קרן]"),INDIRECT($AG$3&"[ESG_DB]"))="לא מדורג","",_xlfn.XLOOKUP($AE6,INDIRECT($AG$3&"[מספר קרן]"),INDIRECT($AG$3&"[ESG_DB]"))),"last") -> 100 | AI6: 1 | AJ6: גבוה | AK6: גבוה | AL6: מניות בארץ | AN6: קסם 4A) ETF) אינדקס בנקים ישראל | AQ6: =LARGE(IF(INDIRECT("$AL$4:$AL$"&$AB$1)=$AQ$3,INDIRECT("$Ag$4:$Ag$"&$AB$1)),AR6) -> 100 | AR6: 2 | AT6: 14 | AU6: 5138318 | AV6: MTF מחקה (00) אינדקס CoCo ישראל-10 | AW6: 99.65 | AY6: 99.65 | BA6: 99.65
A7: 5112404 | B7: =IFERROR(_xlfn.XLOOKUP(A7,INDIRECT($X$1&"[מספר קרן]"),INDIRECT($X$1&"[ESG_DB]")),0) -> 62.19 | C7: 1148949 | D7: 100 | E7: =IFERROR(_xlfn.XLOOKUP(C7,INDIRECT($X$1&"[מספר קרן]"),INDIRECT($X$1&"[דירוג ספיר]")),0) -> ירוק | F7: =IFERROR(IF(_xlfn.XLOOKUP(I7,$P$33:$P$49,$T$33:$T$49)>2,1,""),"") -> 1 | G7: 4 | H7: 1148949 | I7: =IFERROR(_xlfn.XLOOKUP(H7,INDIRECT($I$2&"[מספר קרן]"),INDIRECT($I$2&"[שם קרן]")),"") -> הראל סל (4A) אינדקס בנקים ישראל | J7: =IFERROR(IF(_xlfn.XLOOKUP($H7,INDIRECT($J$3&"[מספר קרן]"),INDIRECT($J$3&"[ESG_DB]"))="לא מדורג","",_xlfn.XLOOKUP($H7,INDIRECT($J$3&"[מספר קרן]"),INDIRECT($J$3&"[ESG_DB]"))),"") -> 100 | K7: =IFERROR(IF(_xlfn.XLOOKUP($H7,INDIRECT($K$3&"[מספר קרן]"),INDIRECT($K$3&"[ESG_DB]"))="לא מדורג","",_xlfn.XLOOKUP($H7,INDIRECT($K$3&"[מספר קרן]"),INDIRECT($K$3&"[ESG_DB]"))),"") -> 100 | L7: 0 | M7: גבוה | N7: גבוה | O7: =IFERROR(_xlfn.XLOOKUP(H7,INDIRECT("$c$4:$c$"&$G$1),INDIRECT("$e$4:$e$"&$G$1)),"") -> ירוק | P7: קסם KTFי (00) תל בונד 60 | R7: =_xlfn.XLOOKUP(P7,INDIRECT("$I$4:$I$"&$G$1),INDIRECT("$J$4:$J$"&$G$1)) -> 70.28 | S7: =_xlfn.XLOOKUP(P7,INDIRECT("$I$4:$I$"&$G$1),INDIRECT("$L$4:$L$"&$G$1)) -> 0.0557623816 | T7: 3 | U7: 1 | V7: 5113063 | W7: =IFERROR(_xlfn.XLOOKUP(V7,INDIRECT($X$1&"[מספר קרן]"),INDIRECT($X$1&"[ESG_DB]")),0) -> 66.99 | X7: 5118419 | Y7: =IFERROR(_xlfn.XLOOKUP(X7,INDIRECT($X$1&"[מספר קרן]"),INDIRECT($X$1&"[ESG_DB]")),0) -> 75.11 | AA7: 5113063 | AB7: =IF(AA7="","last",IF(_xlfn.XLOOKUP(AA7,INDIRECT($X$1&"[מספר קרן]"),INDIRECT($X$1&"[ESG_DB]"),0)="לא מדורג",0,_xlfn.XLOOKUP(AA7,INDIRECT($X$1&"[מספר קרן]"),INDIRECT($X$1&"[ESG_DB]"),0))) -> 66.99 | AD7: 4 | AE7: 1148949 | AF7: =IFERROR(_xlfn.XLOOKUP(AE7,INDIRECT($X$1&"[מספר קרן]"),INDIRECT($X$1&"[שם קרן]")),"") -> הראל סל (4A) אינדקס בנקים ישראל | AG7: =IFERROR(IF(_xlfn.XLOOKUP($AE7,INDIRECT($AG$3&"[מספר קרן]"),INDIRECT($AG$3&"[ESG_DB]"))="לא מדורג","",_xlfn.XLOOKUP($AE7,INDIRECT($AG$3&"[מספר קרן]"),INDIRECT($AG$3&"[ESG_DB]"))),"last") -> 100 | AH7: =IFERROR(IF(_xlfn.XLOOKUP($AE7,INDIRECT($AG$3&"[מספר קרן]"),INDIRECT($AG$3&"[ESG_DB]"))="לא מדורג","",_xlfn.XLOOKUP($AE7,INDIRECT($AG$3&"[מספר קרן]"),INDIRECT($AG$3&"[ESG_DB]"))),"last") -> 100 | AI7: 1 | AJ7: גבוה | AK7: גבוה | AL7: מניות בארץ | AN7: פסגות ETFי (4A) אינדקס בנקים ישראל | AQ7: =LARGE(IF(INDIRECT("$AL$4:$AL$"&$AB$1)=$AQ$3,INDIRECT("$Ag$4:$Ag$"&$AB$1)),AR7) -> 100 | AR7: 3 | AT7: 13 | AU7: 5138086 | AV7: תכלית TTF י(00) אינדקס CoCo ישראל-10 | AW7: 99.65 | AX7: 98.86758461 | AY7: 1.782415391 | BA7: 98.86758461
A8: 5112628 | B8: =IFERROR(_xlfn.XLOOKUP(A8,INDIRECT($X$1&"[מספר קרן]"),INDIRECT($X$1&"[ESG_DB]")),0) -> 66.99 | C8: 5130018 | D8: 100 | E8: =IFERROR(_xlfn.XLOOKUP(C8,INDIRECT($X$1&"[מספר קרן]"),INDIRECT($X$1&"[דירוג ספיר]")),0) -> צהוב | G8: 5 | H8: 5130018 | I8: =IFERROR(_xlfn.XLOOKUP(H8,INDIRECT($I$2&"[מספר קרן]"),INDIRECT($I$2&"[שם קרן]")),"") -> הראל מחקה (00) אינדקס אג"ח CoCo בנקים | J8: =IFERROR(IF(_xlfn.XLOOKUP($H8,INDIRECT($J$3&"[מספר קרן]"),INDIRECT($J$3&"[ESG_DB]"))="לא מדורג","",_xlfn.XLOOKUP($H8,INDIRECT($J$3&"[מספר קרן]"),INDIRECT($J$3&"[ESG_DB]"))),"") -> 100 | K8: =IFERROR(IF(_xlfn.XLOOKUP($H8,INDIRECT($K$3&"[מספר קרן]"),INDIRECT($K$3&"[ESG_DB]"))="לא מדורג","",_xlfn.XLOOKUP($H8,INDIRECT($K$3&"[מספר קרן]"),INDIRECT($K$3&"[ESG_DB]"))),"") -> 100 | L8: 0 | M8: גבוה | N8: גבוה | O8: =IFERROR(_xlfn.XLOOKUP(H8,INDIRECT("$c$4:$c$"&$G$1),INDIRECT("$e$4:$e$"&$G$1)),"") -> צהוב | P8: הראל מחקה (00) תל בונד 60 | R8: =_xlfn.XLOOKUP(P8,INDIRECT("$I$4:$I$"&$G$1),INDIRECT("$J$4:$J$"&$G$1)) -> 70.28 | S8: =_xlfn.XLOOKUP(P8,INDIRECT("$I$4:$I$"&$G$1),INDIRECT("$L$4:$L$"&$G$1)) -> 0.0557623816 | T8: 4 | U8: 1 | V8: 5113345 | W8: =IFERROR(_xlfn.XLOOKUP(V8,INDIRECT($X$1&"[מספר קרן]"),INDIRECT($X$1&"[ESG_DB]")),0) -> 66.99 | X8: 5118690 | Y8: =IFERROR(_xlfn.XLOOKUP(X8,INDIRECT($X$1&"[מספר קרן]"),INDIRECT($X$1&"[ESG_DB]")),0) -> לא מדורג | AA8: 5113345 | AB8: =IF(AA8="","last",IF(_xlfn.XLOOKUP(AA8,INDIRECT($X$1&"[מספר קרן]"),INDIRECT($X$1&"[ESG_DB]"),0)="לא מדורג",0,_xlfn.XLOOKUP(AA8,INDIRECT($X$1&"[מספר קרן]"),INDIRECT($X$1&"[ESG_DB]"),0))) -> 66.99 | AD8: 5 | AE8: 5131925 | AF8: =IFERROR(_xlfn.XLOOKUP(AE8,INDIRECT($X$1&"[מספר קרן]"),INDIRECT($X$1&"[שם קרן]")),"") -> תכלית TTFי (40) אינדקס בנקים ישראל | AG8: =IFERROR(IF(_xlfn.XLOOKUP($AE8,INDIRECT($AG$3&"[מספר קרן]"),INDIRECT($AG$3&"[ESG_DB]"))="לא מדורג","",_xlfn.XLOOKUP($AE8,INDIRECT($AG$3&"[מספר קרן]"),INDIRECT($AG$3&"[ESG_DB]"))),"last") -> 100 | AH8: =IFERROR(IF(_xlfn.XLOOKUP($AE8,INDIRECT($AG$3&"[מספר קרן]"),INDIRECT($AG$3&"[ESG_DB]"))="לא מדורג","",_xlfn.XLOOKUP($AE8,INDIRECT($AG$3&"[מספר קרן]"),INDIRECT($AG$3&"[ESG_DB]"))),"last") -> 100 | AI8: 1 | AJ8: גבוה | AK8: גבוה | AL8: מניות בארץ | AN8: הראל סל (4A) אינדקס בנקים ישראל | AQ8: =LARGE(IF(INDIRECT("$AL$4:$AL$"&$AB$1)=$AQ$3,INDIRECT("$Ag$4:$Ag$"&$AB$1)),AR8) -> 100 | AR8: 4 | AT8: 12 | AU8: 5137674 | AV8: אי.בי.אי. מחקה (4A) אינדקס בנקים ישראל | AW8: 100 | AX8: 100 | AY8: 1 | BA8: 100
A9: 5113014 | B9: =IFERROR(_xlfn.XLOOKUP(A9,INDIRECT($X$1&"[מספר קרן]"),INDIRECT($X$1&"[ESG_DB]")),0) -> 77.18 | C9: 5131925 | D9: 100 | E9: =IFERROR(_xlfn.XLOOKUP(C9,INDIRECT($X$1&"[מספר קרן]"),INDIRECT($X$1&"[דירוג ספיר]")),0) -> צהוב | G9: 6 | H9: 5131925 | I9: =IFERROR(_xlfn.XLOOKUP(H9,INDIRECT($I$2&"[מספר קרן]"),INDIRECT($I$2&"[שם קרן]")),"") -> תכלית TTFי (40) אינדקס בנקים ישראל | J9: =IFERROR(IF(_xlfn.XLOOKUP($H9,INDIRECT($J$3&"[מספר קרן]"),INDIRECT($J$3&"[ESG_DB]"))="לא מדורג","",_xlfn.XLOOKUP($H9,INDIRECT($J$3&"[מספר קרן]"),INDIRECT($J$3&"[ESG_DB]"))),"") -> 100 | K9: =IFERROR(IF(_xlfn.XLOOKUP($H9,INDIRECT($K$3&"[מספר קרן]"),INDIRECT($K$3&"[ESG_DB]"))="לא מדורג","",_xlfn.XLOOKUP($H9,INDIRECT($K$3&"[מספר קרן]"),INDIRECT($K$3&"[ESG_DB]"))),"") -> 100 | L9: 0 | M9: גבוה | N9: גבוה | O9: =IFERROR(_xlfn.XLOOKUP(H9,INDIRECT("$c$4:$c$"&$G$1),INDIRECT("$e$4:$e$"&$G$1)),"") -> צהוב | P9: MTF מחקה (00) תל בונד 60 | R9: =_xlfn.XLOOKUP(P9,INDIRECT("$I$4:$I$"&$G$1),INDIRECT("$J$4:$J$"&$G$1)) -> 70.28 | S9: =_xlfn.XLOOKUP(P9,INDIRECT("$I$4:$I$"&$G$1),INDIRECT("$L$4:$L$"&$G$1)) -> 0.0557623816 | T9: 5 | U9: 1 | V9: 5109418 | W9: =IFERROR(_xlfn.XLOOKUP(V9,INDIRECT($X$1&"[מספר קרן]"),INDIRECT($X$1&"[ESG_DB]")),0) -> 76.99 | X9: 5118781 | Y9: =IFERROR(_xlfn.XLOOKUP(X9,INDIRECT($X$1&"[מספר קרן]"),INDIRECT($X$1&"[ESG_DB]")),0) -> 67.17 | AA9: 5109418 | AB9: =IF(AA9="","last",IF(_xlfn.XLOOKUP(AA9,INDIRECT($X$1&"[מספר קרן]"),INDIRECT($X$1&"[ESG_DB]"),0)="לא מדורג",0,_xlfn.XLOOKUP(AA9,INDIRECT($X$1&"[מספר קרן]"),INDIRECT($X$1&"[ESG_DB]"),0))) -> 76.99 | AD9: 6 | AE9: 5131966 | AF9: =IFERROR(_xlfn.XLOOKUP(AE9,INDIRECT($X$1&"[מספר קרן]"),INDIRECT($X$1&"[שם קרן]")),"") -> מור מחקה (4A) אינדקס בנקים משקל שווה | AG9: =IFERROR(IF(_xlfn.XLOOKUP($AE9,INDIRECT($AG$3&"[מספר קרן]"),INDIRECT($AG$3&"[ESG_DB]"))="לא מדורג","",_xlfn.XLOOKUP($AE9,INDIRECT($AG$3&"[מספר קרן]"),INDIRECT($AG$3&"[ESG_DB]"))),"last") -> 100 | AH9: =IFERROR(IF(_xlfn.XLOOKUP($AE9,INDIRECT($AG$3&"[מספר קרן]"),INDIRECT($AG$3&"[ESG_DB]"))="לא מדורג","",_xlfn.XLOOKUP($AE9,INDIRECT($AG$3&"[מספר קרן]"),INDIRECT($AG$3&"[ESG_DB]"))),"last") -> 100 | AI9: 1 | AJ9: גבוה | AK9: גבוה | AL9: מניות בארץ | AN9: תכלית TTFי (40) אינדקס בנקים ישראל | AQ9: =LARGE(IF(INDIRECT("$AL$4:$AL$"&$AB$1)=$AQ$3,INDIRECT("$Ag$4:$Ag$"&$AB$1)),AR9) -> 100 | AR9: 5 | AT9: 11 | AU9: 5137302 | AV9: ילין לפידות מחקה (4A) ת"א בנקים | AW9: 100 | AX9: 100 | AY9: 1 | BA9: 100
A10: 5113063 | B10: =IFERROR(_xlfn.XLOOKUP(A10,INDIRECT($X$1&"[מספר קרן]"),INDIRECT($X$1&"[ESG_DB]")),0) -> 66.99 | C10: 5131966 | D10: 100 | E10: =IFERROR(_xlfn.XLOOKUP(C10,INDIRECT($X$1&"[מספר קרן]"),INDIRECT($X$1&"[דירוג ספיר]")),0) -> ירוק | F10: 1 | G10: 7 | H10: 5131966 | I10: =IFERROR(_xlfn.XLOOKUP(H10,INDIRECT($I$2&"[מספר קרן]"),INDIRECT($I$2&"[שם קרן]")),"") -> מור מחקה (4A) אינדקס בנקים משקל שווה | J10: =IFERROR(IF(_xlfn.XLOOKUP($H10,INDIRECT($J$3&"[מספר קרן]"),INDIRECT($J$3&"[ESG_DB]"))="לא מדורג","",_xlfn.XLOOKUP($H10,INDIRECT($J$3&"[מספר קרן]"),INDIRECT($J$3&"[ESG_DB]"))),"") -> 100 | K10: =IFERROR(IF(_xlfn.XLOOKUP($H10,INDIRECT($K$3&"[מספר קרן]"),INDIRECT($K$3&"[ESG_DB]"))="לא מדורג","",_xlfn.XLOOKUP($H10,INDIRECT($K$3&"[מספר קרן]"),INDIRECT($K$3&"[ESG_DB]"))),"") -> 100 | L10: 0 | M10: גבוה | N10: גבוה | O10: =IFERROR(_xlfn.XLOOKUP(H10,INDIRECT("$c$4:$c$"&$G$1),INDIRECT("$e$4:$e$"&$G$1)),"") -> ירוק | P10: תכלית סל (00) תל בונד 60 | R10: =_xlfn.XLOOKUP(P10,INDIRECT("$I$4:$I$"&$G$1),INDIRECT("$J$4:$J$"&$G$1)) -> 70.28 | S10: =_xlfn.XLOOKUP(P10,INDIRECT("$I$4:$I$"&$G$1),INDIRECT("$L$4:$L$"&$G$1)) -> 0.0557623816 | T10: 6 | U10: 1 | V10: 5114657 | W10: =IFERROR(_xlfn.XLOOKUP(V10,INDIRECT($X$1&"[מספר קרן]"),INDIRECT($X$1&"[ESG_DB]")),0) -> 66.99 | X10: 5119185 | Y10: =IFERROR(_xlfn.XLOOKUP(X10,INDIRECT($X$1&"[מספר קרן]"),INDIRECT($X$1&"[ESG_DB]")),0) -> לא מדורג | AA10: 5114657 | AB10: =IF(AA10="","last",IF(_xlfn.XLOOKUP(AA10,INDIRECT($X$1&"[מספר קרן]"),INDIRECT($X$1&"[ESG_DB]"),0)="לא מדורג",0,_xlfn.XLOOKUP(AA10,INDIRECT($X$1&"[מספר קרן]"),INDIRECT($X$1&"[ESG_DB]"),0))) -> 66.99 | AD10: 7 | AE10: 5133616 | AF10: =IFERROR(_xlfn.XLOOKUP(AE10,INDIRECT($X$1&"[מספר קרן]"),INDIRECT($X$1&"[שם קרן]")),"") -> הראל מחקה (4A)י אינדקס בנקים ישראל | AG10: =IFERROR(IF(_xlfn.XLOOKUP($AE10,INDIRECT($AG$3&"[מספר קרן]"),INDIRECT($AG$3&"[ESG_DB]"))="לא מדורג","",_xlfn.XLOOKUP($AE10,INDIRECT($AG$3&"[מספר קרן]"),INDIRECT($AG$3&"[ESG_DB]"))),"last") -> 100 | AH10: =IFERROR(IF(_xlfn.XLOOKUP($AE10,INDIRECT($AG$3&"[מספר קרן]"),INDIRECT($AG$3&"[ESG_DB]"))="לא מדורג","",_xlfn.XLOOKUP($AE10,INDIRECT($AG$3&"[מספר קרן]"),INDIRECT($AG$3&"[ESG_DB]"))),"last") -> 100 | AI10: 1 | AJ10: גבוה | AK10: גבוה | AL10: מניות בארץ | AN10: מור מחקה (4A) אינדקס בנקים משקל שווה | AQ10: =LARGE(IF(INDIRECT("$AL$4:$AL$"&$AB$1)=$AQ$3,INDIRECT("$Ag$4:$Ag$"&$AB$1)),AR10) -> 100 | AR10: 6 | AT10: 10 | AU10: 1187764 | AV10: מור סל (4A) אינדקס בנקים משקל שווה | AW10: 100 | AX10: 100 | AY10: 1 | AZ10: 1 | BA10: 100
A11: 5113345 | B11: =IFERROR(_xlfn.XLOOKUP(A11,INDIRECT($X$1&"[מספר קרן]"),INDIRECT($X$1&"[ESG_DB]")),0) -> 66.99 | C11: 5133616 | D11: 100 | E11: =IFERROR(_xlfn.XLOOKUP(C11,INDIRECT($X$1&"[מספר קרן]"),INDIRECT($X$1&"[דירוג ספיר]")),0) -> צהוב | G11: 8 | H11: 5133616 | I11: =IFERROR(_xlfn.XLOOKUP(H11,INDIRECT($I$2&"[מספר קרן]"),INDIRECT($I$2&"[שם קרן]")),"") -> הראל מחקה (4A)י אינדקס בנקים ישראל | J11: =IFERROR(IF(_xlfn.XLOOKUP($H11,INDIRECT($J$3&"[מספר קרן]"),INDIRECT($J$3&"[ESG_DB]"))="לא מדורג","",_xlfn.XLOOKUP($H11,INDIRECT($J$3&"[מספר קרן]"),INDIRECT($J$3&"[ESG_DB]"))),"") -> 100 | K11: =IFERROR(IF(_xlfn.XLOOKUP($H11,INDIRECT($K$3&"[מספר קרן]"),INDIRECT($K$3&"[ESG_DB]"))="לא מדורג","",_xlfn.XLOOKUP($H11,INDIRECT($K$3&"[מספר קרן]"),INDIRECT($K$3&"[ESG_DB]"))),"") -> 100 | L11: 0 | M11: גבוה | N11: גבוה | O11: =IFERROR(_xlfn.XLOOKUP(H11,INDIRECT("$c$4:$c$"&$G$1),INDIRECT("$e$4:$e$"&$G$1)),"") -> צהוב | P11: קסם ETFי (00) תל בונד 60 | R11: =_xlfn.XLOOKUP(P11,INDIRECT("$I$4:$I$"&$G$1),INDIRECT("$J$4:$J$"&$G$1)) -> 70.28 | S11: =_xlfn.XLOOKUP(P11,INDIRECT("$I$4:$I$"&$G$1),INDIRECT("$L$4:$L$"&$G$1)) -> 0.0557623816 | T11: 7 | U11: 1 | V11: 5115126 | W11: =IFERROR(_xlfn.XLOOKUP(V11,INDIRECT($X$1&"[מספר קרן]"),INDIRECT($X$1&"[ESG_DB]")),0) -> 37.79 | X11: 5119318 | Y11: =IFERROR(_xlfn.XLOOKUP(X11,INDIRECT($X$1&"[מספר קרן]"),INDIRECT($X$1&"[ESG_DB]")),0) -> 90.68 | AA11: 5115126 | AB11: =IF(AA11="","last",IF(_xlfn.XLOOKUP(AA11,INDIRECT($X$1&"[מספר קרן]"),INDIRECT($X$1&"[ESG_DB]"),0)="לא מדורג",0,_xlfn.XLOOKUP(AA11,INDIRECT($X$1&"[מספר קרן]"),INDIRECT($X$1&"[ESG_DB]"),0))) -> 37.79 | AD11: 8 | AE11: 5134168 | AF11: =IFERROR(_xlfn.XLOOKUP(AE11,INDIRECT($X$1&"[מספר קרן]"),INDIRECT($X$1&"[שם קרן]")),"") -> PTFי (4A) אינדקס בנקים ישראל | AG11: =IFERROR(IF(_xlfn.XLOOKUP($AE11,INDIRECT($AG$3&"[מספר קרן]"),INDIRECT($AG$3&"[ESG_DB]"))="לא מדורג","",_xlfn.XLOOKUP($AE11,INDIRECT($AG$3&"[מספר קרן]"),INDIRECT($AG$3&"[ESG_DB]"))),"last") -> 100 | AH11: =IFERROR(IF(_xlfn.XLOOKUP($AE11,INDIRECT($AG$3&"[מספר קרן]"),INDIRECT($AG$3&"[ESG_DB]"))="לא מדורג","",_xlfn.XLOOKUP($AE11,INDIRECT($AG$3&"[מספר קרן]"),INDIRECT($AG$3&"[ESG_DB]"))),"last") -> 100 | AI11: 1 | AJ11: גבוה | AK11: גבוה | AL11: מניות בארץ | AN11: הראל מחקה (4A)י אינדקס בנקים ישראל | AQ11: =LARGE(IF(INDIRECT("$AL$4:$AL$"&$AB$1)=$AQ$3,INDIRECT("$Ag$4:$Ag$"&$AB$1)),AR11) -> 100 | AR11: 7 | AT11: 9 | AU11: 5134168 | AV11: PTFי (4A) אינדקס בנקים ישראל | AW11: 100 | AX11: 100 | AY11: 1 | AZ11: 1 | BA11: 100
A12: 5109418 | B12: =IFERROR(_xlfn.XLOOKUP(A12,INDIRECT($X$1&"[מספר קרן]"),INDIRECT($X$1&"[ESG_DB]")),0) -> 76.99 | C12: 5134168 | D12: 100 | E12: =IFERROR(_xlfn.XLOOKUP(C12,INDIRECT($X$1&"[מספר קרן]"),INDIRECT($X$1&"[דירוג ספיר]")),0) -> ירוק | F12: 1 | G12: 9 | H12: 5134168 | I12: =IFERROR(_xlfn.XLOOKUP(H12,INDIRECT($I$2&"[מספר קרן]"),INDIRECT($I$2&"[שם קרן]")),"") -> PTFי (4A) אינדקס בנקים ישראל | J12: =IFERROR(IF(_xlfn.XLOOKUP($H12,INDIRECT($J$3&"[מספר קרן]"),INDIRECT($J$3&"[ESG_DB]"))="לא מדורג","",_xlfn.XLOOKUP($H12,INDIRECT($J$3&"[מספר קרן]"),INDIRECT($J$3&"[ESG_DB]"))),"") -> 100 | K12: =IFERROR(IF(_xlfn.XLOOKUP($H12,INDIRECT($K$3&"[מספר קרן]"),INDIRECT($K$3&"[ESG_DB]"))="לא מדורג","",_xlfn.XLOOKUP($H12,INDIRECT($K$3&"[מספר קרן]"),INDIRECT($K$3&"[ESG_DB]"))),"") -> 100 | L12: 0 | M12: גבוה | N12: גבוה | O12: =IFERROR(_xlfn.XLOOKUP(H12,INDIRECT("$c$4:$c$"&$G$1),INDIRECT("$e$4:$e$"&$G$1)),"") -> ירוק | P12: פסגות ETFי (00) תל בונד 60 | R12: =_xlfn.XLOOKUP(P12,INDIRECT("$I$4:$I$"&$G$1),INDIRECT("$J$4:$J$"&$G$1)) -> 70.28 | S12: =_xlfn.XLOOKUP(P12,INDIRECT("$I$4:$I$"&$G$1),INDIRECT("$L$4:$L$"&$G$1)) -> 0.0557623816 | T12: 8 | U12: 1 | V12: 5118740 | W12: =IFERROR(_xlfn.XLOOKUP(V12,INDIRECT($X$1&"[מספר קרן]"),INDIRECT($X$1&"[ESG_DB]")),0) -> 37.79 | X12: 5121322 | Y12: =IFERROR(_xlfn.XLOOKUP(X12,INDIRECT($X$1&"[מספר קרן]"),INDIRECT($X$1&"[ESG_DB]")),0) -> לא מדורג | AA12: 5118740 | AB12: =IF(AA12="","last",IF(_xlfn.XLOOKUP(AA12,INDIRECT($X$1&"[מספר קרן]"),INDIRECT($X$1&"[ESG_DB]"),0)="לא מדורג",0,_xlfn.XLOOKUP(AA12,INDIRECT($X$1&"[מספר קרן]"),INDIRECT($X$1&"[ESG_DB]"),0))) -> 37.79 | AD12: 9 | AE12: 1187764 | AF12: =IFERROR(_xlfn.XLOOKUP(AE12,INDIRECT($X$1&"[מספר קרן]"),INDIRECT($X$1&"[שם קרן]")),"") -> מור סל (4A) אינדקס בנקים משקל שווה | AG12: =IFERROR(IF(_xlfn.XLOOKUP($AE12,INDIRECT($AG$3&"[מספר קרן]"),INDIRECT($AG$3&"[ESG_DB]"))="לא מדורג","",_xlfn.XLOOKUP($AE12,INDIRECT($AG$3&"[מספר קרן]"),INDIRECT($AG$3&"[ESG_DB]"))),"last") -> 100 | AH12: =IFERROR(IF(_xlfn.XLOOKUP($AE12,INDIRECT($AG$3&"[מספר קרן]"),INDIRECT($AG$3&"[ESG_DB]"))="לא מדורג","",_xlfn.XLOOKUP($AE12,INDIRECT($AG$3&"[מספר קרן]"),INDIRECT($AG$3&"[ESG_DB]"))),"last") -> 100 | AI12: 1 | AJ12: גבוה | AK12: גבוה | AL12: מניות בארץ | AN12: PTFי (4A) אינדקס בנקים ישראל | AQ12: =LARGE(IF(INDIRECT("$AL$4:$AL$"&$AB$1)=$AQ$3,INDIRECT("$Ag$4:$Ag$"&$AB$1)),AR12) -> 100 | AR12: 8 | AT12: 8 | AU12: 5133616 | AV12: הראל מחקה (4A)י אינדקס בנקים ישראל | AW12: 100 | AX12: 100 | AY12: 1 | BA12: 100
A13: 5113071 | B13: =IFERROR(_xlfn.XLOOKUP(A13,INDIRECT($X$1&"[מספר קרן]"),INDIRECT($X$1&"[ESG_DB]")),0) -> 50.26 | C13: 1187764 | D13: 100 | E13: =IFERROR(_xlfn.XLOOKUP(C13,INDIRECT($X$1&"[מספר קרן]"),INDIRECT($X$1&"[דירוג ספיר]")),0) -> ירוק | F13: 1 | G13: 10 | H13: 1187764 | I13: =IFERROR(_xlfn.XLOOKUP(H13,INDIRECT($I$2&"[מספר קרן]"),INDIRECT($I$2&"[שם קרן]")),"") -> מור סל (4A) אינדקס בנקים משקל שווה | J13: =IFERROR(IF(_xlfn.XLOOKUP($H13,INDIRECT($J$3&"[מספר קרן]"),INDIRECT($J$3&"[ESG_DB]"))="לא מדורג","",_xlfn.XLOOKUP($H13,INDIRECT($J$3&"[מספר קרן]"),INDIRECT($J$3&"[ESG_DB]"))),"") -> 100 | K13: =IFERROR(IF(_xlfn.XLOOKUP($H13,INDIRECT($K$3&"[מספר קרן]"),INDIRECT($K$3&"[ESG_DB]"))="לא מדורג","",_xlfn.XLOOKUP($H13,INDIRECT($K$3&"[מספר קרן]"),INDIRECT($K$3&"[ESG_DB]"))),"") -> 100 | L13: 0 | M13: גבוה | N13: גבוה | O13: =IFERROR(_xlfn.XLOOKUP(H13,INDIRECT("$c$4:$c$"&$G$1),INDIRECT("$e$4:$e$"&$G$1)),"") -> ירוק | P13: MTF סל‏ (00) תל בונד 60 | R13: =_xlfn.XLOOKUP(P13,INDIRECT("$I$4:$I$"&$G$1),INDIRECT("$J$4:$J$"&$G$1)) -> 70.28 | S13: =_xlfn.XLOOKUP(P13,INDIRECT("$I$4:$I$"&$G$1),INDIRECT("$L$4:$L$"&$G$1)) -> 0.0557623816 | T13: 9 | U13: 1 | V13: 5118997 | W13: =IFERROR(_xlfn.XLOOKUP(V13,INDIRECT($X$1&"[מספר קרן]"),INDIRECT($X$1&"[ESG_DB]")),0) -> 31.34 | X13: 5121470 | Y13: =IFERROR(_xlfn.XLOOKUP(X13,INDIRECT($X$1&"[מספר קרן]"),INDIRECT($X$1&"[ESG_DB]")),0) -> 86.5 | AA13: 5118997 | AB13: =IF(AA13="","last",IF(_xlfn.XLOOKUP(AA13,INDIRECT($X$1&"[מספר קרן]"),INDIRECT($X$1&"[ESG_DB]"),0)="לא מדורג",0,_xlfn.XLOOKUP(AA13,INDIRECT($X$1&"[מספר קרן]"),INDIRECT($X$1&"[ESG_DB]"),0))) -> 31.34 | AD13: 10 | AE13: 5137302 | AF13: =IFERROR(_xlfn.XLOOKUP(AE13,INDIRECT($X$1&"[מספר קרן]"),INDIRECT($X$1&"[שם קרן]")),"") -> ילין לפידות מחקה (4A) ת"א בנקים | AG13: =IFERROR(IF(_xlfn.XLOOKUP($AE13,INDIRECT($AG$3&"[מספר קרן]"),INDIRECT($AG$3&"[ESG_DB]"))="לא מדורג","",_xlfn.XLOOKUP($AE13,INDIRECT($AG$3&"[מספר קרן]"),INDIRECT($AG$3&"[ESG_DB]"))),"last") -> 100 | AH13: =IFERROR(IF(_xlfn.XLOOKUP($AE13,INDIRECT($AG$3&"[מספר קרן]"),INDIRECT($AG$3&"[ESG_DB]"))="לא מדורג","",_xlfn.XLOOKUP($AE13,INDIRECT($AG$3&"[מספר קרן]"),INDIRECT($AG$3&"[ESG_DB]"))),"last") -> 100 | AI13: 1 | AJ13: גבוה | AK13: גבוה | AL13: מניות בארץ | AN13: מור סל (4A) אינדקס בנקים משקל שווה | AQ13: =LARGE(IF(INDIRECT("$AL$4:$AL$"&$AB$1)=$AQ$3,INDIRECT("$Ag$4:$Ag$"&$AB$1)),AR13) -> 100 | AR13: 9 | AT13: 7 | AU13: 5131966 | AV13: מור מחקה (4A) אינדקס בנקים משקל שווה | AW13: 100 | AX13: 100 | AY13: 1 | AZ13: 1 | BA13: 100
A14: 5114319 | B14: =IFERROR(_xlfn.XLOOKUP(A14,INDIRECT($X$1&"[מספר קרן]"),INDIRECT($X$1&"[ESG_DB]")),0) -> 50.26 | C14: 5137302 | D14: 100 | E14: =IFERROR(_xlfn.XLOOKUP(C14,INDIRECT($X$1&"[מספר קרן]"),INDIRECT($X$1&"[דירוג ספיר]")),0) -> לא מדורג | G14: 11 | H14: 5137302 | I14: =IFERROR(_xlfn.XLOOKUP(H14,INDIRECT($I$2&"[מספר קרן]"),INDIRECT($I$2&"[שם קרן]")),"") -> ילין לפידות מחקה (4A) ת"א בנקים | J14: =IFERROR(IF(_xlfn.XLOOKUP($H14,INDIRECT($J$3&"[מספר קרן]"),INDIRECT($J$3&"[ESG_DB]"))="לא מדורג","",_xlfn.XLOOKUP($H14,INDIRECT($J$3&"[מספר קרן]"),INDIRECT($J$3&"[ESG_DB]"))),"") -> 100 | K14: =IFERROR(IF(_xlfn.XLOOKUP($H14,INDIRECT($K$3&"[מספר קרן]"),INDIRECT($K$3&"[ESG_DB]"))="לא מדורג","",_xlfn.XLOOKUP($H14,INDIRECT($K$3&"[מספר קרן]"),INDIRECT($K$3&"[ESG_DB]"))),"") -> 100 | L14: 0 | M14: גבוה | N14: גבוה | O14: =IFERROR(_xlfn.XLOOKUP(H14,INDIRECT("$c$4:$c$"&$G$1),INDIRECT("$e$4:$e$"&$G$1)),"") -> לא מדורג | P14: הראל סל (00) תל בונד 60 | R14: =_xlfn.XLOOKUP(P14,INDIRECT("$I$4:$I$"&$G$1),INDIRECT("$J$4:$J$"&$G$1)) -> 70.28 | S14: =_xlfn.XLOOKUP(P14,INDIRECT("$I$4:$I$"&$G$1),INDIRECT("$L$4:$L$"&$G$1)) -> 0.0557623816 | T14: 10 | U14: 1 | V14: 5119201 | W14: =IFERROR(_xlfn.XLOOKUP(V14,INDIRECT($X$1&"[מספר קרן]"),INDIRECT($X$1&"[ESG_DB]")),0) -> לא מדורג | X14: 5121843 | Y14: =IFERROR(_xlfn.XLOOKUP(X14,INDIRECT($X$1&"[מספר קרן]"),INDIRECT($X$1&"[ESG_DB]")),0) -> 82.87 | AA14: 5119201 | AB14: =IF(AA14="","last",IF(_xlfn.XLOOKUP(AA14,INDIRECT($X$1&"[מספר קרן]"),INDIRECT($X$1&"[ESG_DB]"),0)="לא מדורג",0,_xlfn.XLOOKUP(AA14,INDIRECT($X$1&"[מספר קרן]"),INDIRECT($X$1&"[ESG_DB]"),0))) -> 0 | AD14: 11 | AE14: 5137674 | AF14: =IFERROR(_xlfn.XLOOKUP(AE14,INDIRECT($X$1&"[מספר קרן]"),INDIRECT($X$1&"[שם קרן]")),"") -> אי.בי.אי. מחקה (4A) אינדקס בנקים ישראל | AG14: =IFERROR(IF(_xlfn.XLOOKUP($AE14,INDIRECT($AG$3&"[מספר קרן]"),INDIRECT($AG$3&"[ESG_DB]"))="לא מדורג","",_xlfn.XLOOKUP($AE14,INDIRECT($AG$3&"[מספר קרן]"),INDIRECT($AG$3&"[ESG_DB]"))),"last") -> 100 | AH14: =IFERROR(IF(_xlfn.XLOOKUP($AE14,INDIRECT($AG$3&"[מספר קרן]"),INDIRECT($AG$3&"[ESG_DB]"))="לא מדורג","",_xlfn.XLOOKUP($AE14,INDIRECT($AG$3&"[מספר קרן]"),INDIRECT($AG$3&"[ESG_DB]"))),"last") -> 100 | AI14: 1 | AJ14: גבוה | AK14: גבוה | AL14: מניות בארץ | AN14: ילין לפידות מחקה (4A) ת"א בנקים | AQ14: =LARGE(IF(INDIRECT("$AL$4:$AL$"&$AB$1)=$AQ$3,INDIRECT("$Ag$4:$Ag$"&$AB$1)),AR14) -> 100 | AR14: 10 | AT14: 6 | AU14: 5131925 | AV14: תכלית TTFי (40) אינדקס בנקים ישראל | AW14: 100 | AX14: 100 | AY14: 1 | BA14: 100
A15: 5114327 | B15: =IFERROR(_xlfn.XLOOKUP(A15,INDIRECT($X$1&"[מספר קרן]"),INDIRECT($X$1&"[ESG_DB]")),0) -> 62.19 | C15: 5137674 | D15: 100 | E15: =IFERROR(_xlfn.XLOOKUP(C15,INDIRECT($X$1&"[מספר קרן]"),INDIRECT($X$1&"[דירוג ספיר]")),0) -> לא מדורג | G15: 12 | H15: 5137674 | I15: =IFERROR(_xlfn.XLOOKUP(H15,INDIRECT($I$2&"[מספר קרן]"),INDIRECT($I$2&"[שם קרן]")),"") -> אי.בי.אי. מחקה (4A) אינדקס בנקים ישראל | J15: =IFERROR(IF(_xlfn.XLOOKUP($H15,INDIRECT($J$3&"[מספר קרן]"),INDIRECT($J$3&"[ESG_DB]"))="לא מדורג","",_xlfn.XLOOKUP($H15,INDIRECT($J$3&"[מספר קרן]"),INDIRECT($J$3&"[ESG_DB]"))),"") -> 100 | K15: =IFERROR(IF(_xlfn.XLOOKUP($H15,INDIRECT($K$3&"[מספר קרן]"),INDIRECT($K$3&"[ESG_DB]"))="לא מדורג","",_xlfn.XLOOKUP($H15,INDIRECT($K$3&"[מספר קרן]"),INDIRECT($K$3&"[ESG_DB]"))),"") -> 100 | L15: 0 | M15: גבוה | N15: גבוה | O15: =IFERROR(_xlfn.XLOOKUP(H15,INDIRECT("$c$4:$c$"&$G$1),INDIRECT("$e$4:$e$"&$G$1)),"") -> לא מדורג | U15: 1 | V15: 5119219 | W15: =IFERROR(_xlfn.XLOOKUP(V15,INDIRECT($X$1&"[מספר קרן]"),INDIRECT($X$1&"[ESG_DB]")),0) -> לא מדורג | X15: 5121892 | Y15: =IFERROR(_xlfn.XLOOKUP(X15,INDIRECT($X$1&"[מספר קרן]"),INDIRECT($X$1&"[ESG_DB]")),0) -> 61.48 | AA15: 5119219 | AB15: =IF(AA15="","last",IF(_xlfn.XLOOKUP(AA15,INDIRECT($X$1&"[מספר קרן]"),INDIRECT($X$1&"[ESG_DB]"),0)="לא מדורג",0,_xlfn.XLOOKUP(AA15,INDIRECT($X$1&"[מספר קרן]"),INDIRECT($X$1&"[ESG_DB]"),0))) -> 0 | AD15: 12 | AE15: 1150895 | AF15: =IFERROR(_xlfn.XLOOKUP(AE15,INDIRECT($X$1&"[מספר קרן]"),INDIRECT($X$1&"[שם קרן]")),"") -> תכלית סל (4D) ‏‏‏TecDAX | AG15: =IFERROR(IF(_xlfn.XLOOKUP($AE15,INDIRECT($AG$3&"[מספר קרן]"),INDIRECT($AG$3&"[ESG_DB]"))="לא מדורג","",_xlfn.XLOOKUP($AE15,INDIRECT($AG$3&"[מספר קרן]"),INDIRECT($AG$3&"[ESG_DB]"))),"last") -> 94.21 | AH15: =IFERROR(IF(_xlfn.XLOOKUP($AE15,INDIRECT($AG$3&"[מספר קרן]"),INDIRECT($AG$3&"[ESG_DB]"))="לא מדורג","",_xlfn.XLOOKUP($AE15,INDIRECT($AG$3&"[מספר קרן]"),INDIRECT($AG$3&"[ESG_DB]"))),"last") -> 94.21 | AI15: 1 | AJ15: גבוה | AK15: גבוה | AL15: מניות בחו"ל | AT15: 5 | AU15: 5130018 | AV15: הראל מחקה (00) אינדקס אג"ח CoCo בנקים | AW15: 100 | AX15: 100 | AY15: 1 | BA15: 100
A16: 5114483 | B16: =IFERROR(_xlfn.XLOOKUP(A16,INDIRECT($X$1&"[מספר קרן]"),INDIRECT($X$1&"[ESG_DB]")),0) -> 59.19 | C16: 5138086 | D16: 99.65 | E16: =IFERROR(_xlfn.XLOOKUP(C16,INDIRECT($X$1&"[מספר קרן]"),INDIRECT($X$1&"[דירוג ספיר]")),0) -> לא מדורג | G16: 13 | H16: 5138086 | I16: =IFERROR(_xlfn.XLOOKUP(H16,INDIRECT($I$2&"[מספר קרן]"),INDIRECT($I$2&"[שם קרן]")),"") -> תכלית TTF י(00) אינדקס CoCo ישראל-10 | J16: =IFERROR(IF(_xlfn.XLOOKUP($H16,INDIRECT($J$3&"[מספר קרן]"),INDIRECT($J$3&"[ESG_DB]"))="לא מדורג","",_xlfn.XLOOKUP($H16,INDIRECT($J$3&"[מספר קרן]"),INDIRECT($J$3&"[ESG_DB]"))),"") -> 99.65 | K16: =IFERROR(IF(_xlfn.XLOOKUP($H16,INDIRECT($K$3&"[מספר קרן]"),INDIRECT($K$3&"[ESG_DB]"))="לא מדורג","",_xlfn.XLOOKUP($H16,INDIRECT($K$3&"[מספר קרן]"),INDIRECT($K$3&"[ESG_DB]"))),"") -> 98.86758461 | L16: 0.007913770663 | M16: גבוה | N16: גבוה | O16: =IFERROR(_xlfn.XLOOKUP(H16,INDIRECT("$c$4:$c$"&$G$1),INDIRECT("$e$4:$e$"&$G$1)),"") -> לא מדורג | U16: 1 | V16: 5120282 | W16: =IFERROR(_xlfn.XLOOKUP(V16,INDIRECT($X$1&"[מספר קרן]"),INDIRECT($X$1&"[ESG_DB]")),0) -> לא מדורג | X16: 5122007 | Y16: =IFERROR(_xlfn.XLOOKUP(X16,INDIRECT($X$1&"[מספר קרן]"),INDIRECT($X$1&"[ESG_DB]")),0) -> לא מדורג | AA16: 5120282 | AB16: =IF(AA16="","last",IF(_xlfn.XLOOKUP(AA16,INDIRECT($X$1&"[מספר קרן]"),INDIRECT($X$1&"[ESG_DB]"),0)="לא מדורג",0,_xlfn.XLOOKUP(AA16,INDIRECT($X$1&"[מספר קרן]"),INDIRECT($X$1&"[ESG_DB]"),0))) -> 0 | AD16: 13 | AE16: 5128061 | AF16: =IFERROR(_xlfn.XLOOKUP(AE16,INDIRECT($X$1&"[מספר קרן]"),INDIRECT($X$1&"[שם קרן]")),"") -> קסם MDAX (4A) KTF מנוטרלת מט"ח | AG16: =IFERROR(IF(_xlfn.XLOOKUP($AE16,INDIRECT($AG$3&"[מספר קרן]"),INDIRECT($AG$3&"[ESG_DB]"))="לא מדורג","",_xlfn.XLOOKUP($AE16,INDIRECT($AG$3&"[מספר קרן]"),INDIRECT($AG$3&"[ESG_DB]"))),"last") -> 90.75 | AH16: =IFERROR(IF(_xlfn.XLOOKUP($AE16,INDIRECT($AG$3&"[מספר קרן]"),INDIRECT($AG$3&"[ESG_DB]"))="לא מדורג","",_xlfn.XLOOKUP($AE16,INDIRECT($AG$3&"[מספר קרן]"),INDIRECT($AG$3&"[ESG_DB]"))),"last") -> 90.75 | AI16: 1 | AJ16: גבוה | AK16: גבוה | AL16: =IF(AD16="","",IFERROR(IF(MATCH(AE16,_xlfn.ANCHORARRAY($X$3),0)>0,$X$2,$V$2),$V$2)) -> מניות בחו"ל | AT16: 4 | AU16: 1148949 | AV16: הראל סל (4A) אינדקס בנקים ישראל | AW16: 100 | AX16: 100 | AY16: 1 | AZ16: 1 | BA16: 100
A17: 5114491 | B17: =IFERROR(_xlfn.XLOOKUP(A17,INDIRECT($X$1&"[מספר קרן]"),INDIRECT($X$1&"[ESG_DB]")),0) -> 50.26 | C17: 5138318 | D17: 99.65 | E17: =IFERROR(_xlfn.XLOOKUP(C17,INDIRECT($X$1&"[מספר קרן]"),INDIRECT($X$1&"[דירוג ספיר]")),0) -> לא מדורג | G17: 14 | H17: 5138318 | I17: =IFERROR(_xlfn.XLOOKUP(H17,INDIRECT($I$2&"[מספר קרן]"),INDIRECT($I$2&"[שם קרן]")),"") -> MTF מחקה (00) אינדקס CoCo ישראל-10 | J17: =IFERROR(IF(_xlfn.XLOOKUP($H17,INDIRECT($J$3&"[מספר קרן]"),INDIRECT($J$3&"[ESG_DB]"))="לא מדורג","",_xlfn.XLOOKUP($H17,INDIRECT($J$3&"[מספר קרן]"),INDIRECT($J$3&"[ESG_DB]"))),"") -> 99.65 | K17: =IFERROR(IF(_xlfn.XLOOKUP($H17,INDIRECT($K$3&"[מספר קרן]"),INDIRECT($K$3&"[ESG_DB]"))="לא מדורג","",_xlfn.XLOOKUP($H17,INDIRECT($K$3&"[מספר קרן]"),INDIRECT($K$3&"[ESG_DB]"))),"") ->  | L17: 0 | M17: גבוה | O17: =IFERROR(_xlfn.XLOOKUP(H17,INDIRECT("$c$4:$c$"&$G$1),INDIRECT("$e$4:$e$"&$G$1)),"") -> לא מדורג | P17: עשרת הקרנות המשתפרות בדירוג בינוני | S17: בינוני | U17: 1.782415391 | V17: 5121306 | W17: =IFERROR(_xlfn.XLOOKUP(V17,INDIRECT($X$1&"[מספר קרן]"),INDIRECT($X$1&"[ESG_DB]")),0) -> 76.99 | X17: 5122098 | Y17: =IFERROR(_xlfn.XLOOKUP(X17,INDIRECT($X$1&"[מספר קרן]"),INDIRECT($X$1&"[ESG_DB]")),0) -> 71.23 | AA17: 5121306 | AB17: =IF(AA17="","last",IF(_xlfn.XLOOKUP(AA17,INDIRECT($X$1&"[מספר קרן]"),INDIRECT($X$1&"[ESG_DB]"),0)="לא מדורג",0,_xlfn.XLOOKUP(AA17,INDIRECT($X$1&"[מספר קרן]"),INDIRECT($X$1&"[ESG_DB]"),0))) -> 76.99 | AD17: 14 | AE17: 1145283 | AF17: =IFERROR(_xlfn.XLOOKUP(AE17,INDIRECT($X$1&"[מספר קרן]"),INDIRECT($X$1&"[שם קרן]")),"") -> תכלית סל (4D)‏ MDAX | AG17: =IFERROR(IF(_xlfn.XLOOKUP($AE17,INDIRECT($AG$3&"[מספר קרן]"),INDIRECT($AG$3&"[ESG_DB]"))="לא מדורג","",_xlfn.XLOOKUP($AE17,INDIRECT($AG$3&"[מספר קרן]"),INDIRECT($AG$3&"[ESG_DB]"))),"last") -> 90.75 | AH17: =IFERROR(IF(_xlfn.XLOOKUP($AE17,INDIRECT($AG$3&"[מספר קרן]"),INDIRECT($AG$3&"[ESG_DB]"))="לא מדורג","",_xlfn.XLOOKUP($AE17,INDIRECT($AG$3&"[מספר קרן]"),INDIRECT($AG$3&"[ESG_DB]"))),"last") -> 90.75 | AI17: 1 | AJ17: גבוה | AK17: גבוה | AL17: מניות בחו"ל | AN17: עשרת הקרנות הטובות בדירוג ב-מניות חו"ל | AQ17: =X2 -> מניות בחו"ל | AT17: 3 | AU17: 1148774 | AV17: פסגות ETFי (4A) אינדקס בנקים ישראל | AW17: 100 | AX17: 100 | AY17: 1 | AZ17: 1 | BA17: 100
A18: 5114657 | B18: =IFERROR(_xlfn.XLOOKUP(A18,INDIRECT($X$1&"[מספר קרן]"),INDIRECT($X$1&"[ESG_DB]")),0) -> 66.99 | C18: 5130372 | D18: 98.63 | E18: =IFERROR(_xlfn.XLOOKUP(C18,INDIRECT($X$1&"[מספר קרן]"),INDIRECT($X$1&"[דירוג ספיר]")),0) -> לא מדורג | G18: 15 | H18: 5130372 | I18: =IFERROR(_xlfn.XLOOKUP(H18,INDIRECT($I$2&"[מספר קרן]"),INDIRECT($I$2&"[שם קרן]")),"") -> MTF מחקה (20) מדד משולב אינדקס בנקים ישראל 20/80 חודשי | J18: =IFERROR(IF(_xlfn.XLOOKUP($H18,INDIRECT($J$3&"[מספר קרן]"),INDIRECT($J$3&"[ESG_DB]"))="לא מדורג","",_xlfn.XLOOKUP($H18,INDIRECT($J$3&"[מספר קרן]"),INDIRECT($J$3&"[ESG_DB]"))),"") -> 98.63 | K18: =IFERROR(IF(_xlfn.XLOOKUP($H18,INDIRECT($K$3&"[מספר קרן]"),INDIRECT($K$3&"[ESG_DB]"))="לא מדורג","",_xlfn.XLOOKUP($H18,INDIRECT($K$3&"[מספר קרן]"),INDIRECT($K$3&"[ESG_DB]"))),"") -> 97.87672114 | L18: 0.007696200368 | M18: גבוה | N18: גבוה | O18: =IFERROR(_xlfn.XLOOKUP(H18,INDIRECT("$c$4:$c$"&$G$1),INDIRECT("$e$4:$e$"&$G$1)),"") -> לא מדורג | R18: =R4 -> דירוג מרץ 2024 | S18: =S4 -> הגידול מ פברואר 2024 | U18: 99.65 | V18: 5122510 | W18: =IFERROR(_xlfn.XLOOKUP(V18,INDIRECT($X$1&"[מספר קרן]"),INDIRECT($X$1&"[ESG_DB]")),0) -> 66.99 | X18: 5121983 | Y18: =IFERROR(_xlfn.XLOOKUP(X18,INDIRECT($X$1&"[מספר קרן]"),INDIRECT($X$1&"[ESG_DB]")),0) -> לא מדורג | AA18: 5122510 | AB18: =IF(AA18="","last",IF(_xlfn.XLOOKUP(AA18,INDIRECT($X$1&"[מספר קרן]"),INDIRECT($X$1&"[ESG_DB]"),0)="לא מדורג",0,_xlfn.XLOOKUP(AA18,INDIRECT($X$1&"[מספר קרן]"),INDIRECT($X$1&"[ESG_DB]"),0))) -> 66.99 | AD18: 15 | AE18: 1146372 | AF18: =IFERROR(_xlfn.XLOOKUP(AE18,INDIRECT($X$1&"[מספר קרן]"),INDIRECT($X$1&"[שם קרן]")),"") -> קסם MDAX (4D) ETF | AG18: =IFERROR(IF(_xlfn.XLOOKUP($AE18,INDIRECT($AG$3&"[מספר קרן]"),INDIRECT($AG$3&"[ESG_DB]"))="לא מדורג","",_xlfn.XLOOKUP($AE18,INDIRECT($AG$3&"[מספר קרן]"),INDIRECT($AG$3&"[ESG_DB]"))),"last") -> 90.75 | AH18: =IFERROR(IF(_xlfn.XLOOKUP($AE18,INDIRECT($AG$3&"[מספר קרן]"),INDIRECT($AG$3&"[ESG_DB]"))="לא מדורג","",_xlfn.XLOOKUP($AE18,INDIRECT($AG$3&"[מספר קרן]"),INDIRECT($AG$3&"[ESG_DB]"))),"last") -> 90.75 | AI18: 1 | AJ18: גבוה | AK18: גבוה | AL18: מניות בחו"ל | AQ18: =AQ4 -> הגידול מ פברואר 2024 | AT18: 2 | AU18: 1146430 | AV18: קסם 4A) ETF) אינדקס בנקים ישראל | AW18: 100 | AX18: 100 | AY18: 1 | AZ18: 1 | BA18: 100
A19: 5115100 | B19: =IFERROR(_xlfn.XLOOKUP(A19,INDIRECT($X$1&"[מספר קרן]"),INDIRECT($X$1&"[ESG_DB]")),0) -> 70.28 | C19: 5117817 | D19: 97.3 | E19: =IFERROR(_xlfn.XLOOKUP(C19,INDIRECT($X$1&"[מספר קרן]"),INDIRECT($X$1&"[דירוג ספיר]")),0) -> ירוק | F19: 1 | G19: 16 | H19: 5117817 | I19: =IFERROR(_xlfn.XLOOKUP(H19,INDIRECT($I$2&"[מספר קרן]"),INDIRECT($I$2&"[שם קרן]")),"") -> MTF מחקה‏ (00) תל בונד צמודות בנקים | J19: =IFERROR(IF(_xlfn.XLOOKUP($H19,INDIRECT($J$3&"[מספר קרן]"),INDIRECT($J$3&"[ESG_DB]"))="לא מדורג","",_xlfn.XLOOKUP($H19,INDIRECT($J$3&"[מספר קרן]"),INDIRECT($J$3&"[ESG_DB]"))),"") -> 97.3 | K19: =IFERROR(IF(_xlfn.XLOOKUP($H19,INDIRECT($K$3&"[מספר קרן]"),INDIRECT($K$3&"[ESG_DB]"))="לא מדורג","",_xlfn.XLOOKUP($H19,INDIRECT($K$3&"[מספר קרן]"),INDIRECT($K$3&"[ESG_DB]"))),"") -> 97.51640715 | L19: -0.002219187121 | M19: גבוה | N19: גבוה | O19: =IFERROR(_xlfn.XLOOKUP(H19,INDIRECT("$c$4:$c$"&$G$1),INDIRECT("$e$4:$e$"&$G$1)),"") -> ירוק | P19: =INDEX(_xlfn._xlws.SORT(_xlfn._xlws.FILTER(INDIRECT("I4:L"&G2),INDIRECT("M4:M"&G2)=$S$17),4,-1),_xlfn.SEQUENCE(10),FALSE) -> MTF מחקה‏ (00) תל בונד צמודות יתר | R19: =_xlfn.XLOOKUP(P19,INDIRECT("$I$4:$I$"&$G$2),INDIRECT("$J$4:$J$"&$G$2)) -> 51.25 | S19: =_xlfn.XLOOKUP(P19,INDIRECT("$I$4:$I$"&$G$2),INDIRECT("$L$4:$L$"&$G$2)) -> 0.3468506933 | T19: 1 | U19: 1.753278857 | V19: 5122288 | W19: =IFERROR(_xlfn.XLOOKUP(V19,INDIRECT($X$1&"[מספר קרן]"),INDIRECT($X$1&"[ESG_DB]")),0) -> 84.93 | X19: 5122163 | Y19: =IFERROR(_xlfn.XLOOKUP(X19,INDIRECT($X$1&"[מספר קרן]"),INDIRECT($X$1&"[ESG_DB]")),0) -> 82.87 | AA19: 5122288 | AB19: =IF(AA19="","last",IF(_xlfn.XLOOKUP(AA19,INDIRECT($X$1&"[מספר קרן]"),INDIRECT($X$1&"[ESG_DB]"),0)="לא מדורג",0,_xlfn.XLOOKUP(AA19,INDIRECT($X$1&"[מספר קרן]"),INDIRECT($X$1&"[ESG_DB]"),0))) -> 84.93 | AD19: 16 | AE19: 1145309 | AF19: =IFERROR(_xlfn.XLOOKUP(AE19,INDIRECT($X$1&"[מספר קרן]"),INDIRECT($X$1&"[שם קרן]")),"") -> תכלית סל (4A)י MDAX מנוטרלת מט"ח | AG19: =IFERROR(IF(_xlfn.XLOOKUP($AE19,INDIRECT($AG$3&"[מספר קרן]"),INDIRECT($AG$3&"[ESG_DB]"))="לא מדורג","",_xlfn.XLOOKUP($AE19,INDIRECT($AG$3&"[מספר קרן]"),INDIRECT($AG$3&"[ESG_DB]"))),"last") -> 90.75 | AH19: =IFERROR(IF(_xlfn.XLOOKUP($AE19,INDIRECT($AG$3&"[מספר קרן]"),INDIRECT($AG$3&"[ESG_DB]"))="לא מדורג","",_xlfn.XLOOKUP($AE19,INDIRECT($AG$3&"[מספר קרן]"),INDIRECT($AG$3&"[ESG_DB]"))),"last") -> 90.75 | AI19: 1 | AJ19: גבוה | AK19: גבוה | AL19: מניות בחו"ל | AN19: =INDEX(_xlfn._xlws.SORT(_xlfn._xlws.FILTER(INDIRECT("AF4:AG"&AG2),INDIRECT("AL4:AL"&AG2)=$AQ$17),2,-1),_xlfn.SEQUENCE(10),FALSE) -> תכלית סל (4D) ‏‏‏TecDAX | AQ19: =LARGE(IF(INDIRECT("$AL$4:$AL$"&$AB$1)=$AQ$17,INDIRECT("$AG$4:$AG$"&$AB$1)),AR19) -> 94.21 | AR19: 1 | AT19: 1 | AU19: 1143726 | AV19: תכלית סל (40) אינדקס בנקים ישראל | AW19: 100 | AX19: 100 | AY19: 1 | AZ19: 1 | BA19: 100
A20: 5115126 | B20: =IFERROR(_xlfn.XLOOKUP(A20,INDIRECT($X$1&"[מספר קרן]"),INDIRECT($X$1&"[ESG_DB]")),0) -> 37.79 | C20: 5118559 | D20: 97.3 | E20: =IFERROR(_xlfn.XLOOKUP(C20,INDIRECT($X$1&"[מספר קרן]"),INDIRECT($X$1&"[דירוג ספיר]")),0) -> ירוק | G20: 17 | H20: 5118559 | I20: =IFERROR(_xlfn.XLOOKUP(H20,INDIRECT($I$2&"[מספר קרן]"),INDIRECT($I$2&"[שם קרן]")),"") -> אי.בי.אי. מחקה (00) תל בונד צמודות- בנקים | J20: =IFERROR(IF(_xlfn.XLOOKUP($H20,INDIRECT($J$3&"[מספר קרן]"),INDIRECT($J$3&"[ESG_DB]"))="לא מדורג","",_xlfn.XLOOKUP($H20,INDIRECT($J$3&"[מספר קרן]"),INDIRECT($J$3&"[ESG_DB]"))),"") -> 97.3 | K20: =IFERROR(IF(_xlfn.XLOOKUP($H20,INDIRECT($K$3&"[מספר קרן]"),INDIRECT($K$3&"[ESG_DB]"))="לא מדורג","",_xlfn.XLOOKUP($H20,INDIRECT($K$3&"[מספר קרן]"),INDIRECT($K$3&"[ESG_DB]"))),"") -> 97.51640715 | L20: -0.002219187121 | M20: גבוה | N20: גבוה | O20: =IFERROR(_xlfn.XLOOKUP(H20,INDIRECT("$c$4:$c$"&$G$1),INDIRECT("$e$4:$e$"&$G$1)),"") -> ירוק | P20: אי.בי.אי. מחקה (00) תל בונד צמודות- יתר | R20: =_xlfn.XLOOKUP(P20,INDIRECT("$I$4:$I$"&$G$2),INDIRECT("$J$4:$J$"&$G$2)) -> 51.25 | S20: =_xlfn.XLOOKUP(P20,INDIRECT("$I$4:$I$"&$G$2),INDIRECT("$L$4:$L$"&$G$2)) -> 0.3468506933 | T20: 2 | U20: 0.7835928452 | V20: 5123641 | W20: =IFERROR(_xlfn.XLOOKUP(V20,INDIRECT($X$1&"[מספר קרן]"),INDIRECT($X$1&"[ESG_DB]")),0) -> 28.34 | X20: 5122627 | Y20: =IFERROR(_xlfn.XLOOKUP(X20,INDIRECT($X$1&"[מספר קרן]"),INDIRECT($X$1&"[ESG_DB]")),0) -> 75.11 | AA20: 5123641 | AB20: =IF(AA20="","last",IF(_xlfn.XLOOKUP(AA20,INDIRECT($X$1&"[מספר קרן]"),INDIRECT($X$1&"[ESG_DB]"),0)="לא מדורג",0,_xlfn.XLOOKUP(AA20,INDIRECT($X$1&"[מספר קרן]"),INDIRECT($X$1&"[ESG_DB]"),0))) -> 28.34 | AD20: 17 | AE20: 1146588 | AF20: =IFERROR(_xlfn.XLOOKUP(AE20,INDIRECT($X$1&"[מספר קרן]"),INDIRECT($X$1&"[שם קרן]")),"") -> קסם MDAX (4A) ETF מנוטרלת מט"ח | AG20: =IFERROR(IF(_xlfn.XLOOKUP($AE20,INDIRECT($AG$3&"[מספר קרן]"),INDIRECT($AG$3&"[ESG_DB]"))="לא מדורג","",_xlfn.XLOOKUP($AE20,INDIRECT($AG$3&"[מספר קרן]"),INDIRECT($AG$3&"[ESG_DB]"))),"last") -> 90.75 | AH20: =IFERROR(IF(_xlfn.XLOOKUP($AE20,INDIRECT($AG$3&"[מספר קרן]"),INDIRECT($AG$3&"[ESG_DB]"))="לא מדורג","",_xlfn.XLOOKUP($AE20,INDIRECT($AG$3&"[מספר קרן]"),INDIRECT($AG$3&"[ESG_DB]"))),"last") -> 90.75 | AI20: 1 | AJ20: גבוה | AK20: גבוה | AL20: מניות בחו"ל | AN20: קסם MDAX (4A) KTF מנוטרלת מט"ח | AQ20: =LARGE(IF(INDIRECT("$AL$4:$AL$"&$AB$1)=$AQ$17,INDIRECT("$AG$4:$AG$"&$AB$1)),AR20) -> 90.75 | AR20: 2
A21: 5115761 | B21: =IFERROR(_xlfn.XLOOKUP(A21,INDIRECT($X$1&"[מספר קרן]"),INDIRECT($X$1&"[ESG_DB]")),0) -> 64.15 | C21: 5118757 | D21: 97.3 | E21: =IFERROR(_xlfn.XLOOKUP(C21,INDIRECT($X$1&"[מספר קרן]"),INDIRECT($X$1&"[דירוג ספיר]")),0) -> ירוק | G21: 18 | H21: 5118757 | I21: =IFERROR(_xlfn.XLOOKUP(H21,INDIRECT($I$2&"[מספר קרן]"),INDIRECT($I$2&"[שם קרן]")),"") -> תכלית TTF י(00) תל בונד צמודות-בנקים | J21: =IFERROR(IF(_xlfn.XLOOKUP($H21,INDIRECT($J$3&"[מספר קרן]"),INDIRECT($J$3&"[ESG_DB]"))="לא מדורג","",_xlfn.XLOOKUP($H21,INDIRECT($J$3&"[מספר קרן]"),INDIRECT($J$3&"[ESG_DB]"))),"") -> 97.3 | K21: =IFERROR(IF(_xlfn.XLOOKUP($H21,INDIRECT($K$3&"[מספר קרן]"),INDIRECT($K$3&"[ESG_DB]"))="לא מדורג","",_xlfn.XLOOKUP($H21,INDIRECT($K$3&"[מספר קרן]"),INDIRECT($K$3&"[ESG_DB]"))),"") -> 97.51640715 | L21: -0.002219187121 | M21: גבוה | N21: גבוה | O21: =IFERROR(_xlfn.XLOOKUP(H21,INDIRECT("$c$4:$c$"&$G$1),INDIRECT("$e$4:$e$"&$G$1)),"") -> ירוק | P21: PTF‏ (00) תל בונד צמודות-יתר | R21: =_xlfn.XLOOKUP(P21,INDIRECT("$I$4:$I$"&$G$2),INDIRECT("$J$4:$J$"&$G$2)) -> 51.25 | S21: =_xlfn.XLOOKUP(P21,INDIRECT("$I$4:$I$"&$G$2),INDIRECT("$L$4:$L$"&$G$2)) -> 0.3468506933 | T21: 3 | U21: 0.7835928452 | V21: 5124490 | W21: =IFERROR(_xlfn.XLOOKUP(V21,INDIRECT($X$1&"[מספר קרן]"),INDIRECT($X$1&"[ESG_DB]")),0) -> 76.99 | X21: 5122569 | Y21: =IFERROR(_xlfn.XLOOKUP(X21,INDIRECT($X$1&"[מספר קרן]"),INDIRECT($X$1&"[ESG_DB]")),0) -> 81.72 | AA21: 5124490 | AB21: =IF(AA21="","last",IF(_xlfn.XLOOKUP(AA21,INDIRECT($X$1&"[מספר קרן]"),INDIRECT($X$1&"[ESG_DB]"),0)="לא מדורג",0,_xlfn.XLOOKUP(AA21,INDIRECT($X$1&"[מספר קרן]"),INDIRECT($X$1&"[ESG_DB]"),0))) -> 76.99 | AD21: 18 | AE21: 5119318 | AF21: =IFERROR(_xlfn.XLOOKUP(AE21,INDIRECT($X$1&"[מספר קרן]"),INDIRECT($X$1&"[שם קרן]")),"") -> אי.בי.אי. מחקה (4D)י MSCI Emerging Markets | AG21: =IFERROR(IF(_xlfn.XLOOKUP($AE21,INDIRECT($AG$3&"[מספר קרן]"),INDIRECT($AG$3&"[ESG_DB]"))="לא מדורג","",_xlfn.XLOOKUP($AE21,INDIRECT($AG$3&"[מספר קרן]"),INDIRECT($AG$3&"[ESG_DB]"))),"last") -> 90.68 | AH21: =IFERROR(IF(_xlfn.XLOOKUP($AE21,INDIRECT($AG$3&"[מספר קרן]"),INDIRECT($AG$3&"[ESG_DB]"))="לא מדורג","",_xlfn.XLOOKUP($AE21,INDIRECT($AG$3&"[מספר קרן]"),INDIRECT($AG$3&"[ESG_DB]"))),"last") -> 90.68 | AI21: 1 | AJ21: גבוה | AK21: גבוה | AL21: מניות בחו"ל | AN21: תכלית סל (4D)‏ MDAX | AQ21: =LARGE(IF(INDIRECT("$AL$4:$AL$"&$AB$1)=$AQ$17,INDIRECT("$AG$4:$AG$"&$AB$1)),AR21) -> 90.75 | AR21: 3
A22: 5115779 | B22: =IFERROR(_xlfn.XLOOKUP(A22,INDIRECT($X$1&"[מספר קרן]"),INDIRECT($X$1&"[ESG_DB]")),0) -> 59.81 | C22: 1144823 | D22: 97.3 | E22: =IFERROR(_xlfn.XLOOKUP(C22,INDIRECT($X$1&"[מספר קרן]"),INDIRECT($X$1&"[דירוג ספיר]")),0) -> ירוק | G22: 19 | H22: 1144823 | I22: =IFERROR(_xlfn.XLOOKUP(H22,INDIRECT($I$2&"[מספר קרן]"),INDIRECT($I$2&"[שם קרן]")),"") -> תכלית סל (00) תל בונד צמודות בנקים | J22: =IFERROR(IF(_xlfn.XLOOKUP($H22,INDIRECT($J$3&"[מספר קרן]"),INDIRECT($J$3&"[ESG_DB]"))="לא מדורג","",_xlfn.XLOOKUP($H22,INDIRECT($J$3&"[מספר קרן]"),INDIRECT($J$3&"[ESG_DB]"))),"") -> 97.3 | K22: =IFERROR(IF(_xlfn.XLOOKUP($H22,INDIRECT($K$3&"[מספר קרן]"),INDIRECT($K$3&"[ESG_DB]"))="לא מדורג","",_xlfn.XLOOKUP($H22,INDIRECT($K$3&"[מספר קרן]"),INDIRECT($K$3&"[ESG_DB]"))),"") -> 97.51640715 | L22: -0.002219187121 | M22: גבוה | N22: גבוה | O22: =IFERROR(_xlfn.XLOOKUP(H22,INDIRECT("$c$4:$c$"&$G$1),INDIRECT("$e$4:$e$"&$G$1)),"") -> ירוק | P22: הראל מחקה (00) תל בונד צמודות-יתר | R22: =_xlfn.XLOOKUP(P22,INDIRECT("$I$4:$I$"&$G$2),INDIRECT("$J$4:$J$"&$G$2)) -> 51.25 | S22: =_xlfn.XLOOKUP(P22,INDIRECT("$I$4:$I$"&$G$2),INDIRECT("$L$4:$L$"&$G$2)) -> 0.3468506933 | T22: 4 | V22: 5124508 | W22: =IFERROR(_xlfn.XLOOKUP(V22,INDIRECT($X$1&"[מספר קרן]"),INDIRECT($X$1&"[ESG_DB]")),0) -> 37.79 | X22: 5122692 | Y22: =IFERROR(_xlfn.XLOOKUP(X22,INDIRECT($X$1&"[מספר קרן]"),INDIRECT($X$1&"[ESG_DB]")),0) -> לא מדורג | AA22: 5124508 | AB22: =IF(AA22="","last",IF(_xlfn.XLOOKUP(AA22,INDIRECT($X$1&"[מספר קרן]"),INDIRECT($X$1&"[ESG_DB]"),0)="לא מדורג",0,_xlfn.XLOOKUP(AA22,INDIRECT($X$1&"[מספר קרן]"),INDIRECT($X$1&"[ESG_DB]"),0))) -> 37.79 | AD22: 19 | AE22: 1144450 | AF22: =IFERROR(_xlfn.XLOOKUP(AE22,INDIRECT($X$1&"[מספר קרן]"),INDIRECT($X$1&"[שם קרן]")),"") -> תכלית סל (4D) ‏‏‏MSCI Emerging Markets | AG22: =IFERROR(IF(_xlfn.XLOOKUP($AE22,INDIRECT($AG$3&"[מספר קרן]"),INDIRECT($AG$3&"[ESG_DB]"))="לא מדורג","",_xlfn.XLOOKUP($AE22,INDIRECT($AG$3&"[מספר קרן]"),INDIRECT($AG$3&"[ESG_DB]"))),"last") -> 90.68 | AH22: =IFERROR(IF(_xlfn.XLOOKUP($AE22,INDIRECT($AG$3&"[מספר קרן]"),INDIRECT($AG$3&"[ESG_DB]"))="לא מדורג","",_xlfn.XLOOKUP($AE22,INDIRECT($AG$3&"[מספר קרן]"),INDIRECT($AG$3&"[ESG_DB]"))),"last") -> 90.68 | AI22: 1 | AJ22: גבוה | AK22: גבוה | AL22: מניות בחו"ל | AN22: קסם MDAX (4D) ETF | AQ22: =LARGE(IF(INDIRECT("$AL$4:$AL$"&$AB$1)=$AQ$17,INDIRECT("$AG$4:$AG$"&$AB$1)),AR22) -> 90.75 | AR22: 4
A23: 5113303 | B23: =IFERROR(_xlfn.XLOOKUP(A23,INDIRECT($X$1&"[מספר קרן]"),INDIRECT($X$1&"[ESG_DB]")),0) -> 62.19 | C23: 1146281 | D23: 97.3 | E23: =IFERROR(_xlfn.XLOOKUP(C23,INDIRECT($X$1&"[מספר קרן]"),INDIRECT($X$1&"[דירוג ספיר]")),0) -> צהוב | G23: 20 | H23: 1146281 | I23: =IFERROR(_xlfn.XLOOKUP(H23,INDIRECT($I$2&"[מספר קרן]"),INDIRECT($I$2&"[שם קרן]")),"") -> קסם ETFי (00) תל בונד צמודות-בנקים | J23: =IFERROR(IF(_xlfn.XLOOKUP($H23,INDIRECT($J$3&"[מספר קרן]"),INDIRECT($J$3&"[ESG_DB]"))="לא מדורג","",_xlfn.XLOOKUP($H23,INDIRECT($J$3&"[מספר קרן]"),INDIRECT($J$3&"[ESG_DB]"))),"") -> 97.3 | K23: =IFERROR(IF(_xlfn.XLOOKUP($H23,INDIRECT($K$3&"[מספר קרן]"),INDIRECT($K$3&"[ESG_DB]"))="לא מדורג","",_xlfn.XLOOKUP($H23,INDIRECT($K$3&"[מספר קרן]"),INDIRECT($K$3&"[ESG_DB]"))),"") -> 97.51640715 | L23: -0.002219187121 | M23: גבוה | N23: גבוה | O23: =IFERROR(_xlfn.XLOOKUP(H23,INDIRECT("$c$4:$c$"&$G$1),INDIRECT("$e$4:$e$"&$G$1)),"") -> צהוב | P23: קסם KTFי (00) תל בונד צמודות יתר | R23: =_xlfn.XLOOKUP(P23,INDIRECT("$I$4:$I$"&$G$2),INDIRECT("$J$4:$J$"&$G$2)) -> 51.25 | S23: =_xlfn.XLOOKUP(P23,INDIRECT("$I$4:$I$"&$G$2),INDIRECT("$L$4:$L$"&$G$2)) -> 0.3468506933 | T23: 5 | V23: 5124755 | W23: =IFERROR(_xlfn.XLOOKUP(V23,INDIRECT($X$1&"[מספר קרן]"),INDIRECT($X$1&"[ESG_DB]")),0) -> לא מדורג | X23: 5122890 | Y23: =IFERROR(_xlfn.XLOOKUP(X23,INDIRECT($X$1&"[מספר קרן]"),INDIRECT($X$1&"[ESG_DB]")),0) -> לא מדורג | AA23: 5124755 | AB23: =IF(AA23="","last",IF(_xlfn.XLOOKUP(AA23,INDIRECT($X$1&"[מספר קרן]"),INDIRECT($X$1&"[ESG_DB]"),0)="לא מדורג",0,_xlfn.XLOOKUP(AA23,INDIRECT($X$1&"[מספר קרן]"),INDIRECT($X$1&"[ESG_DB]"),0))) -> 0 | AD23: 20 | AE23: 1145812 | AF23: =IFERROR(_xlfn.XLOOKUP(AE23,INDIRECT($X$1&"[מספר קרן]"),INDIRECT($X$1&"[שם קרן]")),"") -> קסם MSCI Emerging Markets (4D) ETF | AG23: =IFERROR(IF(_xlfn.XLOOKUP($AE23,INDIRECT($AG$3&"[מספר קרן]"),INDIRECT($AG$3&"[ESG_DB]"))="לא מדורג","",_xlfn.XLOOKUP($AE23,INDIRECT($AG$3&"[מספר קרן]"),INDIRECT($AG$3&"[ESG_DB]"))),"last") -> 90.68 | AH23: =IFERROR(IF(_xlfn.XLOOKUP($AE23,INDIRECT($AG$3&"[מספר קרן]"),INDIRECT($AG$3&"[ESG_DB]"))="לא מדורג","",_xlfn.XLOOKUP($AE23,INDIRECT($AG$3&"[מספר קרן]"),INDIRECT($AG$3&"[ESG_DB]"))),"last") -> 90.68 | AI23: 1 | AJ23: גבוה | AK23: גבוה | AL23: מניות בחו"ל | AN23: תכלית סל (4A)י MDAX מנוטרלת מט"ח | AQ23: =LARGE(IF(INDIRECT("$AL$4:$AL$"&$AB$1)=$AQ$17,INDIRECT("$AG$4:$AG$"&$AB$1)),AR23) -> 90.75 | AR23: 5
A24: 5115589 | B24: =IFERROR(_xlfn.XLOOKUP(A24,INDIRECT($X$1&"[מספר קרן]"),INDIRECT($X$1&"[ESG_DB]")),0) -> 77.18 | C24: 5129689 | D24: 97.3 | E24: =IFERROR(_xlfn.XLOOKUP(C24,INDIRECT($X$1&"[מספר קרן]"),INDIRECT($X$1&"[דירוג ספיר]")),0) -> ירוק | G24: 21 | H24: 5129689 | I24: =IFERROR(_xlfn.XLOOKUP(H24,INDIRECT($I$2&"[מספר קרן]"),INDIRECT($I$2&"[שם קרן]")),"") -> הראל מחקה (00) תל בונד צמודות-בנקים | J24: =IFERROR(IF(_xlfn.XLOOKUP($H24,INDIRECT($J$3&"[מספר קרן]"),INDIRECT($J$3&"[ESG_DB]"))="לא מדורג","",_xlfn.XLOOKUP($H24,INDIRECT($J$3&"[מספר קרן]"),INDIRECT($J$3&"[ESG_DB]"))),"") -> 97.3 | K24: =IFERROR(IF(_xlfn.XLOOKUP($H24,INDIRECT($K$3&"[מספר קרן]"),INDIRECT($K$3&"[ESG_DB]"))="לא מדורג","",_xlfn.XLOOKUP($H24,INDIRECT($K$3&"[מספר קרן]"),INDIRECT($K$3&"[ESG_DB]"))),"") -> 97.51640715 | L24: -0.002219187121 | M24: גבוה | N24: גבוה | O24: =IFERROR(_xlfn.XLOOKUP(H24,INDIRECT("$c$4:$c$"&$G$1),INDIRECT("$e$4:$e$"&$G$1)),"") -> ירוק | P24: MTF מחקה‏ (2A) משולבת אג"ח ישראל (90%) מניות חו"ל (10%) חודשי מנוטרלת מט"ח | R24: =_xlfn.XLOOKUP(P24,INDIRECT("$I$4:$I$"&$G$2),INDIRECT("$J$4:$J$"&$G$2)) -> 51.25 | S24: =_xlfn.XLOOKUP(P24,INDIRECT("$I$4:$I$"&$G$2),INDIRECT("$L$4:$L$"&$G$2)) -> 0.3468506933 | T24: 6 | V24: 5125224 | W24: =IFERROR(_xlfn.XLOOKUP(V24,INDIRECT($X$1&"[מספר קרן]"),INDIRECT($X$1&"[ESG_DB]")),0) -> 35.58 | X24: 5122908 | Y24: =IFERROR(_xlfn.XLOOKUP(X24,INDIRECT($X$1&"[מספר קרן]"),INDIRECT($X$1&"[ESG_DB]")),0) -> 71.08 | AA24: 5125224 | AB24: =IF(AA24="","last",IF(_xlfn.XLOOKUP(AA24,INDIRECT($X$1&"[מספר קרן]"),INDIRECT($X$1&"[ESG_DB]"),0)="לא מדורג",0,_xlfn.XLOOKUP(AA24,INDIRECT($X$1&"[מספר קרן]"),INDIRECT($X$1&"[ESG_DB]"),0))) -> 35.58 | AD24: 21 | AE24: 1149301 | AF24: =IFERROR(_xlfn.XLOOKUP(AE24,INDIRECT($X$1&"[מספר קרן]"),INDIRECT($X$1&"[שם קרן]")),"") -> הראל סל (4D) ‏MSCI Emerging Markets | AG24: =IFERROR(IF(_xlfn.XLOOKUP($AE24,INDIRECT($AG$3&"[מספר קרן]"),INDIRECT($AG$3&"[ESG_DB]"))="לא מדורג","",_xlfn.XLOOKUP($AE24,INDIRECT($AG$3&"[מספר קרן]"),INDIRECT($AG$3&"[ESG_DB]"))),"last") -> 90.68 | AH24: =IFERROR(IF(_xlfn.XLOOKUP($AE24,INDIRECT($AG$3&"[מספר קרן]"),INDIRECT($AG$3&"[ESG_DB]"))="לא מדורג","",_xlfn.XLOOKUP($AE24,INDIRECT($AG$3&"[מספר קרן]"),INDIRECT($AG$3&"[ESG_DB]"))),"last") -> 90.68 | AI24: 1 | AJ24: גבוה | AK24: גבוה | AL24: מניות בחו"ל | AN24: קסם MDAX (4A) ETF מנוטרלת מט"ח | AQ24: =LARGE(IF(INDIRECT("$AL$4:$AL$"&$AB$1)=$AQ$17,INDIRECT("$AG$4:$AG$"&$AB$1)),AR24) -> 90.75 | AR24: 6
A25: 5114566 | B25: =IFERROR(_xlfn.XLOOKUP(A25,INDIRECT($X$1&"[מספר קרן]"),INDIRECT($X$1&"[ESG_DB]")),0) -> 50.26 | C25: 5131610 | D25: 97.3 | E25: =IFERROR(_xlfn.XLOOKUP(C25,INDIRECT($X$1&"[מספר קרן]"),INDIRECT($X$1&"[דירוג ספיר]")),0) -> ירוק | G25: 22 | H25: 5131610 | I25: =IFERROR(_xlfn.XLOOKUP(H25,INDIRECT($I$2&"[מספר קרן]"),INDIRECT($I$2&"[שם קרן]")),"") -> PTFי (00) תל בונד צמודות בנקים | J25: =IFERROR(IF(_xlfn.XLOOKUP($H25,INDIRECT($J$3&"[מספר קרן]"),INDIRECT($J$3&"[ESG_DB]"))="לא מדורג","",_xlfn.XLOOKUP($H25,INDIRECT($J$3&"[מספר קרן]"),INDIRECT($J$3&"[ESG_DB]"))),"") -> 97.3 | K25: =IFERROR(IF(_xlfn.XLOOKUP($H25,INDIRECT($K$3&"[מספר קרן]"),INDIRECT($K$3&"[ESG_DB]"))="לא מדורג","",_xlfn.XLOOKUP($H25,INDIRECT($K$3&"[מספר קרן]"),INDIRECT($K$3&"[ESG_DB]"))),"") -> 97.51640715 | L25: -0.002219187121 | M25: גבוה | N25: גבוה | O25: =IFERROR(_xlfn.XLOOKUP(H25,INDIRECT("$c$4:$c$"&$G$1),INDIRECT("$e$4:$e$"&$G$1)),"") -> ירוק | P25: תכלית סל (00) תל בונד צמודות-יתר | R25: =_xlfn.XLOOKUP(P25,INDIRECT("$I$4:$I$"&$G$2),INDIRECT("$J$4:$J$"&$G$2)) -> 51.25 | S25: =_xlfn.XLOOKUP(P25,INDIRECT("$I$4:$I$"&$G$2),INDIRECT("$L$4:$L$"&$G$2)) -> 0.3468506933 | T25: 7 | V25: 5127535 | W25: =IFERROR(_xlfn.XLOOKUP(V25,INDIRECT($X$1&"[מספר קרן]"),INDIRECT($X$1&"[ESG_DB]")),0) -> 56.87 | X25: 5122940 | Y25: =IFERROR(_xlfn.XLOOKUP(X25,INDIRECT($X$1&"[מספר קרן]"),INDIRECT($X$1&"[ESG_DB]")),0) -> 82.87 | AA25: 5127535 | AB25: =IF(AA25="","last",IF(_xlfn.XLOOKUP(AA25,INDIRECT($X$1&"[מספר קרן]"),INDIRECT($X$1&"[ESG_DB]"),0)="לא מדורג",0,_xlfn.XLOOKUP(AA25,INDIRECT($X$1&"[מספר קרן]"),INDIRECT($X$1&"[ESG_DB]"),0))) -> 56.87 | AD25: 22 | AE25: 1150275 | AF25: =IFERROR(_xlfn.XLOOKUP(AE25,INDIRECT($X$1&"[מספר קרן]"),INDIRECT($X$1&"[שם קרן]")),"") -> MTF סל (MSCI Emerging Markets (4D | AG25: =IFERROR(IF(_xlfn.XLOOKUP($AE25,INDIRECT($AG$3&"[מספר קרן]"),INDIRECT($AG$3&"[ESG_DB]"))="לא מדורג","",_xlfn.XLOOKUP($AE25,INDIRECT($AG$3&"[מספר קרן]"),INDIRECT($AG$3&"[ESG_DB]"))),"last") -> 90.68 | AH25: =IFERROR(IF(_xlfn.XLOOKUP($AE25,INDIRECT($AG$3&"[מספר קרן]"),INDIRECT($AG$3&"[ESG_DB]"))="לא מדורג","",_xlfn.XLOOKUP($AE25,INDIRECT($AG$3&"[מספר קרן]"),INDIRECT($AG$3&"[ESG_DB]"))),"last") -> 90.68 | AI25: 1 | AJ25: גבוה | AK25: גבוה | AL25: מניות בחו"ל | AN25: אי.בי.אי. מחקה (4D)י MSCI Emerging Markets | AQ25: =LARGE(IF(INDIRECT("$AL$4:$AL$"&$AB$1)=$AQ$17,INDIRECT("$AG$4:$AG$"&$AB$1)),AR25) -> 90.68 | AR25: 7
A26: 5115472 | B26: =IFERROR(_xlfn.XLOOKUP(A26,INDIRECT($X$1&"[מספר קרן]"),INDIRECT($X$1&"[ESG_DB]")),0) -> 77.18 | C26: 5132402 | D26: 97.3 | E26: =IFERROR(_xlfn.XLOOKUP(C26,INDIRECT($X$1&"[מספר קרן]"),INDIRECT($X$1&"[דירוג ספיר]")),0) -> ירוק | G26: 23 | H26: 5132402 | I26: =IFERROR(_xlfn.XLOOKUP(H26,INDIRECT($I$2&"[מספר קרן]"),INDIRECT($I$2&"[שם קרן]")),"") -> קסם KTFי (00) תל בונד צמודות-בנקים | J26: =IFERROR(IF(_xlfn.XLOOKUP($H26,INDIRECT($J$3&"[מספר קרן]"),INDIRECT($J$3&"[ESG_DB]"))="לא מדורג","",_xlfn.XLOOKUP($H26,INDIRECT($J$3&"[מספר קרן]"),INDIRECT($J$3&"[ESG_DB]"))),"") -> 97.3 | K26: =IFERROR(IF(_xlfn.XLOOKUP($H26,INDIRECT($K$3&"[מספר קרן]"),INDIRECT($K$3&"[ESG_DB]"))="לא מדורג","",_xlfn.XLOOKUP($H26,INDIRECT($K$3&"[מספר קרן]"),INDIRECT($K$3&"[ESG_DB]"))),"") -> 97.51640715 | L26: -0.002219187121 | M26: גבוה | N26: גבוה | O26: =IFERROR(_xlfn.XLOOKUP(H26,INDIRECT("$c$4:$c$"&$G$1),INDIRECT("$e$4:$e$"&$G$1)),"") -> ירוק | P26: קסם ETFי (00) תל בונד צמודות-יתר | R26: =_xlfn.XLOOKUP(P26,INDIRECT("$I$4:$I$"&$G$2),INDIRECT("$J$4:$J$"&$G$2)) -> 51.25 | S26: =_xlfn.XLOOKUP(P26,INDIRECT("$I$4:$I$"&$G$2),INDIRECT("$L$4:$L$"&$G$2)) -> 0.3468506933 | T26: 8 | V26: 5127584 | W26: =IFERROR(_xlfn.XLOOKUP(V26,INDIRECT($X$1&"[מספר קרן]"),INDIRECT($X$1&"[ESG_DB]")),0) -> 56.87 | X26: 5122957 | Y26: =IFERROR(_xlfn.XLOOKUP(X26,INDIRECT($X$1&"[מספר קרן]"),INDIRECT($X$1&"[ESG_DB]")),0) -> 75.11 | AA26: 5127584 | AB26: =IF(AA26="","last",IF(_xlfn.XLOOKUP(AA26,INDIRECT($X$1&"[מספר קרן]"),INDIRECT($X$1&"[ESG_DB]"),0)="לא מדורג",0,_xlfn.XLOOKUP(AA26,INDIRECT($X$1&"[מספר קרן]"),INDIRECT($X$1&"[ESG_DB]"),0))) -> 56.87 | AD26: 23 | AE26: 1146737 | AF26: =IFERROR(_xlfn.XLOOKUP(AE26,INDIRECT($X$1&"[מספר קרן]"),INDIRECT($X$1&"[שם קרן]")),"") -> קסם MSCI Emerging Markets (4A) ETF מנוטרלת דולר | AG26: =IFERROR(IF(_xlfn.XLOOKUP($AE26,INDIRECT($AG$3&"[מספר קרן]"),INDIRECT($AG$3&"[ESG_DB]"))="לא מדורג","",_xlfn.XLOOKUP($AE26,INDIRECT($AG$3&"[מספר קרן]"),INDIRECT($AG$3&"[ESG_DB]"))),"last") -> 90.68 | AH26: =IFERROR(IF(_xlfn.XLOOKUP($AE26,INDIRECT($AG$3&"[מספר קרן]"),INDIRECT($AG$3&"[ESG_DB]"))="לא מדורג","",_xlfn.XLOOKUP($AE26,INDIRECT($AG$3&"[מספר קרן]"),INDIRECT($AG$3&"[ESG_DB]"))),"last") -> 90.68 | AI26: 1 | AJ26: גבוה | AK26: גבוה | AL26: מניות בחו"ל | AN26: תכלית סל (4D) ‏‏‏MSCI Emerging Markets | AQ26: =LARGE(IF(INDIRECT("$AL$4:$AL$"&$AB$1)=$AQ$17,INDIRECT("$AG$4:$AG$"&$AB$1)),AR26) -> 90.68 | AR26: 8
A27: 5117288 | B27: =IFERROR(_xlfn.XLOOKUP(A27,INDIRECT($X$1&"[מספר קרן]"),INDIRECT($X$1&"[ESG_DB]")),0) -> 50.26 | C27: 1190776 | D27: 97.3 | E27: =IFERROR(_xlfn.XLOOKUP(C27,INDIRECT($X$1&"[מספר קרן]"),INDIRECT($X$1&"[דירוג ספיר]")),0) -> ירוק | G27: 24 | H27: 1190776 | I27: =IFERROR(_xlfn.XLOOKUP(H27,INDIRECT($I$2&"[מספר קרן]"),INDIRECT($I$2&"[שם קרן]")),"") -> הראל סל (00) תל בונד צמודות-בנקים | J27: =IFERROR(IF(_xlfn.XLOOKUP($H27,INDIRECT($J$3&"[מספר קרן]"),INDIRECT($J$3&"[ESG_DB]"))="לא מדורג","",_xlfn.XLOOKUP($H27,INDIRECT($J$3&"[מספר קרן]"),INDIRECT($J$3&"[ESG_DB]"))),"") -> 97.3 | K27: =IFERROR(IF(_xlfn.XLOOKUP($H27,INDIRECT($K$3&"[מספר קרן]"),INDIRECT($K$3&"[ESG_DB]"))="לא מדורג","",_xlfn.XLOOKUP($H27,INDIRECT($K$3&"[מספר קרן]"),INDIRECT($K$3&"[ESG_DB]"))),"") -> 97.51640715 | L27: -0.002219187121 | M27: גבוה | N27: גבוה | O27: =IFERROR(_xlfn.XLOOKUP(H27,INDIRECT("$c$4:$c$"&$G$1),INDIRECT("$e$4:$e$"&$G$1)),"") -> ירוק | P27: תכלית סל (00) כשרה תל בונד צמודות-יתר | R27: =_xlfn.XLOOKUP(P27,INDIRECT("$I$4:$I$"&$G$2),INDIRECT("$J$4:$J$"&$G$2)) -> 51.25 | S27: =_xlfn.XLOOKUP(P27,INDIRECT("$I$4:$I$"&$G$2),INDIRECT("$L$4:$L$"&$G$2)) -> 0.3468506933 | T27: 9 | V27: 5127428 | W27: =IFERROR(_xlfn.XLOOKUP(V27,INDIRECT($X$1&"[מספר קרן]"),INDIRECT($X$1&"[ESG_DB]")),0) -> 56.87 | X27: 5122965 | Y27: =IFERROR(_xlfn.XLOOKUP(X27,INDIRECT($X$1&"[מספר קרן]"),INDIRECT($X$1&"[ESG_DB]")),0) -> לא מדורג | AA27: 5127428 | AB27: =IF(AA27="","last",IF(_xlfn.XLOOKUP(AA27,INDIRECT($X$1&"[מספר קרן]"),INDIRECT($X$1&"[ESG_DB]"),0)="לא מדורג",0,_xlfn.XLOOKUP(AA27,INDIRECT($X$1&"[מספר קרן]"),INDIRECT($X$1&"[ESG_DB]"),0))) -> 56.87 | AD27: 24 | AE27: 1146596 | AF27: =IFERROR(_xlfn.XLOOKUP(AE27,INDIRECT($X$1&"[מספר קרן]"),INDIRECT($X$1&"[שם קרן]")),"") -> קסם ‏STOXX Europe 600 Health Care (4D) ETF | AG27: =IFERROR(IF(_xlfn.XLOOKUP($AE27,INDIRECT($AG$3&"[מספר קרן]"),INDIRECT($AG$3&"[ESG_DB]"))="לא מדורג","",_xlfn.XLOOKUP($AE27,INDIRECT($AG$3&"[מספר קרן]"),INDIRECT($AG$3&"[ESG_DB]"))),"last") -> 90.03 | AH27: =IFERROR(IF(_xlfn.XLOOKUP($AE27,INDIRECT($AG$3&"[מספר קרן]"),INDIRECT($AG$3&"[ESG_DB]"))="לא מדורג","",_xlfn.XLOOKUP($AE27,INDIRECT($AG$3&"[מספר קרן]"),INDIRECT($AG$3&"[ESG_DB]"))),"last") -> 90.03 | AI27: 1 | AJ27: גבוה | AK27: גבוה | AL27: מניות בחו"ל | AN27: קסם MSCI Emerging Markets (4D) ETF | AQ27: =LARGE(IF(INDIRECT("$AL$4:$AL$"&$AB$1)=$AQ$17,INDIRECT("$AG$4:$AG$"&$AB$1)),AR27) -> 90.68 | AR27: 9
A28: 5116918 | B28: =IFERROR(_xlfn.XLOOKUP(A28,INDIRECT($X$1&"[מספר קרן]"),INDIRECT($X$1&"[ESG_DB]")),0) -> 51.25 | C28: 5130083 | D28: 94.28 | E28: =IFERROR(_xlfn.XLOOKUP(C28,INDIRECT($X$1&"[מספר קרן]"),INDIRECT($X$1&"[דירוג ספיר]")),0) -> ירוק | G28: 25 | H28: 5130083 | I28: =IFERROR(_xlfn.XLOOKUP(H28,INDIRECT($I$2&"[מספר קרן]"),INDIRECT($I$2&"[שם קרן]")),"") -> MTF מחקה (00) אינדקס צמודות בנקים וביטוח | J28: =IFERROR(IF(_xlfn.XLOOKUP($H28,INDIRECT($J$3&"[מספר קרן]"),INDIRECT($J$3&"[ESG_DB]"))="לא מדורג","",_xlfn.XLOOKUP($H28,INDIRECT($J$3&"[מספר קרן]"),INDIRECT($J$3&"[ESG_DB]"))),"") -> 94.28 | K28: =IFERROR(IF(_xlfn.XLOOKUP($H28,INDIRECT($K$3&"[מספר קרן]"),INDIRECT($K$3&"[ESG_DB]"))="לא מדורג","",_xlfn.XLOOKUP($H28,INDIRECT($K$3&"[מספר קרן]"),INDIRECT($K$3&"[ESG_DB]"))),"") -> 94.94273581 | L28: -0.006980374085 | M28: גבוה | N28: גבוה | O28: =IFERROR(_xlfn.XLOOKUP(H28,INDIRECT("$c$4:$c$"&$G$1),INDIRECT("$e$4:$e$"&$G$1)),"") -> ירוק | P28: MTF מחקה (4A) אינדקס צריכה בסיסית ישראל | R28: =_xlfn.XLOOKUP(P28,INDIRECT("$I$4:$I$"&$G$2),INDIRECT("$J$4:$J$"&$G$2)) -> 44.38 | S28: =_xlfn.XLOOKUP(P28,INDIRECT("$I$4:$I$"&$G$2),INDIRECT("$L$4:$L$"&$G$2)) -> 0.2062853445 | T28: 10 | V28: 1143700 | W28: =IFERROR(_xlfn.XLOOKUP(V28,INDIRECT($X$1&"[מספר קרן]"),INDIRECT($X$1&"[ESG_DB]")),0) -> 76.99 | X28: 5122924 | Y28: =IFERROR(_xlfn.XLOOKUP(X28,INDIRECT($X$1&"[מספר קרן]"),INDIRECT($X$1&"[ESG_DB]")),0) -> 75.32 | AA28: 1143700 | AB28: =IF(AA28="","last",IF(_xlfn.XLOOKUP(AA28,INDIRECT($X$1&"[מספר קרן]"),INDIRECT($X$1&"[ESG_DB]"),0)="לא מדורג",0,_xlfn.XLOOKUP(AA28,INDIRECT($X$1&"[מספר קרן]"),INDIRECT($X$1&"[ESG_DB]"),0))) -> 76.99 | AD28: 25 | AE28: 1147115 | AF28: =IFERROR(_xlfn.XLOOKUP(AE28,INDIRECT($X$1&"[מספר קרן]"),INDIRECT($X$1&"[שם קרן]")),"") -> קסם EURO STOXX Dividend 30 (4A) ETF מנוטרלת מט"ח | AG28: =IFERROR(IF(_xlfn.XLOOKUP($AE28,INDIRECT($AG$3&"[מספר קרן]"),INDIRECT($AG$3&"[ESG_DB]"))="לא מדורג","",_xlfn.XLOOKUP($AE28,INDIRECT($AG$3&"[מספר קרן]"),INDIRECT($AG$3&"[ESG_DB]"))),"last") -> 89.35 | AH28: =IFERROR(IF(_xlfn.XLOOKUP($AE28,INDIRECT($AG$3&"[מספר קרן]"),INDIRECT($AG$3&"[ESG_DB]"))="לא מדורג","",_xlfn.XLOOKUP($AE28,INDIRECT($AG$3&"[מספר קרן]"),INDIRECT($AG$3&"[ESG_DB]"))),"last") -> 89.35 | AI28: 1 | AJ28: גבוה | AK28: גבוה | AL28: מניות בחו"ל | AN28: הראל סל (4D) ‏MSCI Emerging Markets | AQ28: =LARGE(IF(INDIRECT("$AL$4:$AL$"&$AB$1)=$AQ$17,INDIRECT("$AG$4:$AG$"&$AB$1)),AR28) -> 90.68 | AR28: 10
A29: 5117023 | B29: =IFERROR(_xlfn.XLOOKUP(A29,INDIRECT($X$1&"[מספר קרן]"),INDIRECT($X$1&"[ESG_DB]")),0) -> 60.34 | C29: 1150895 | D29: 94.21 | E29: =IFERROR(_xlfn.XLOOKUP(C29,INDIRECT($X$1&"[מספר קרן]"),INDIRECT($X$1&"[דירוג ספיר]")),0) -> לא מדורג | G29: 26 | H29: 1150895 | I29: =IFERROR(_xlfn.XLOOKUP(H29,INDIRECT($I$2&"[מספר קרן]"),INDIRECT($I$2&"[שם קרן]")),"") -> תכלית סל (4D) ‏‏‏TecDAX | J29: =IFERROR(IF(_xlfn.XLOOKUP($H29,INDIRECT($J$3&"[מספר קרן]"),INDIRECT($J$3&"[ESG_DB]"))="לא מדורג","",_xlfn.XLOOKUP($H29,INDIRECT($J$3&"[מספר קרן]"),INDIRECT($J$3&"[ESG_DB]"))),"") -> 94.21 | K29: =IFERROR(IF(_xlfn.XLOOKUP($H29,INDIRECT($K$3&"[מספר קרן]"),INDIRECT($K$3&"[ESG_DB]"))="לא מדורג","",_xlfn.XLOOKUP($H29,INDIRECT($K$3&"[מספר קרן]"),INDIRECT($K$3&"[ESG_DB]"))),"") -> 94.3507914 | L29: -0.00149221222 | M29: גבוה | N29: גבוה | O29: =IFERROR(_xlfn.XLOOKUP(H29,INDIRECT("$c$4:$c$"&$G$1),INDIRECT("$e$4:$e$"&$G$1)),"") -> לא מדורג | V29: 1143718 | W29: =IFERROR(_xlfn.XLOOKUP(V29,INDIRECT($X$1&"[מספר קרן]"),INDIRECT($X$1&"[ESG_DB]")),0) -> 66.99 | X29: 5123021 | Y29: =IFERROR(_xlfn.XLOOKUP(X29,INDIRECT($X$1&"[מספר קרן]"),INDIRECT($X$1&"[ESG_DB]")),0) -> 75.11 | AA29: 1143718 | AB29: =IF(AA29="","last",IF(_xlfn.XLOOKUP(AA29,INDIRECT($X$1&"[מספר קרן]"),INDIRECT($X$1&"[ESG_DB]"),0)="לא מדורג",0,_xlfn.XLOOKUP(AA29,INDIRECT($X$1&"[מספר קרן]"),INDIRECT($X$1&"[ESG_DB]"),0))) -> 66.99 | AD29: 26 | AE29: 5135280 | AF29: =IFERROR(_xlfn.XLOOKUP(AE29,INDIRECT($X$1&"[מספר קרן]"),INDIRECT($X$1&"[שם קרן]")),"") -> PTFי (4A)י EURO STOXX Dividend 30 מנוטרלת מט"ח | AG29: =IFERROR(IF(_xlfn.XLOOKUP($AE29,INDIRECT($AG$3&"[מספר קרן]"),INDIRECT($AG$3&"[ESG_DB]"))="לא מדורג","",_xlfn.XLOOKUP($AE29,INDIRECT($AG$3&"[מספר קרן]"),INDIRECT($AG$3&"[ESG_DB]"))),"last") -> 89.35 | AH29: =IFERROR(IF(_xlfn.XLOOKUP($AE29,INDIRECT($AG$3&"[מספר קרן]"),INDIRECT($AG$3&"[ESG_DB]"))="לא מדורג","",_xlfn.XLOOKUP($AE29,INDIRECT($AG$3&"[מספר קרן]"),INDIRECT($AG$3&"[ESG_DB]"))),"last") -> 89.35 | AI29: 1 | AJ29: גבוה | AK29: גבוה | AL29: מניות בחו"ל
A30: 5117049 | B30: =IFERROR(_xlfn.XLOOKUP(A30,INDIRECT($X$1&"[מספר קרן]"),INDIRECT($X$1&"[ESG_DB]")),0) -> 51.25 | C30: 5128061 | D30: 90.75 | E30: =IFERROR(_xlfn.XLOOKUP(C30,INDIRECT($X$1&"[מספר קרן]"),INDIRECT($X$1&"[דירוג ספיר]")),0) -> צהוב | G30: 27 | H30: 5128061 | I30: =IFERROR(_xlfn.XLOOKUP(H30,INDIRECT($I$2&"[מספר קרן]"),INDIRECT($I$2&"[שם קרן]")),"") -> קסם MDAX (4A) KTF מנוטרלת מט"ח | J30: =IFERROR(IF(_xlfn.XLOOKUP($H30,INDIRECT($J$3&"[מספר קרן]"),INDIRECT($J$3&"[ESG_DB]"))="לא מדורג","",_xlfn.XLOOKUP($H30,INDIRECT($J$3&"[מספר קרן]"),INDIRECT($J$3&"[ESG_DB]"))),"") -> 90.75 | K30: =IFERROR(IF(_xlfn.XLOOKUP($H30,INDIRECT($K$3&"[מספר קרן]"),INDIRECT($K$3&"[ESG_DB]"))="לא מדורג","",_xlfn.XLOOKUP($H30,INDIRECT($K$3&"[מספר קרן]"),INDIRECT($K$3&"[ESG_DB]"))),"") -> 90.88920345 | L30: -0.001531572986 | M30: גבוה | N30: גבוה | O30: =IFERROR(_xlfn.XLOOKUP(H30,INDIRECT("$c$4:$c$"&$G$1),INDIRECT("$e$4:$e$"&$G$1)),"") -> צהוב | V30: 1143726 | W30: =IFERROR(_xlfn.XLOOKUP(V30,INDIRECT($X$1&"[מספר קרן]"),INDIRECT($X$1&"[ESG_DB]")),0) -> 100 | X30: 5123153 | Y30: =IFERROR(_xlfn.XLOOKUP(X30,INDIRECT($X$1&"[מספר קרן]"),INDIRECT($X$1&"[ESG_DB]")),0) -> 82.87 | AA30: 1143726 | AB30: =IF(AA30="","last",IF(_xlfn.XLOOKUP(AA30,INDIRECT($X$1&"[מספר קרן]"),INDIRECT($X$1&"[ESG_DB]"),0)="לא מדורג",0,_xlfn.XLOOKUP(AA30,INDIRECT($X$1&"[מספר קרן]"),INDIRECT($X$1&"[ESG_DB]"),0))) -> 100 | AD30: 27 | AE30: 1144880 | AF30: =IFERROR(_xlfn.XLOOKUP(AE30,INDIRECT($X$1&"[מספר קרן]"),INDIRECT($X$1&"[שם קרן]")),"") -> תכלית סל (4A)י S&P Euro High Yield Dividend Aristocrats מנוטרלת מט"ח | AG30: =IFERROR(IF(_xlfn.XLOOKUP($AE30,INDIRECT($AG$3&"[מספר קרן]"),INDIRECT($AG$3&"[ESG_DB]"))="לא מדורג","",_xlfn.XLOOKUP($AE30,INDIRECT($AG$3&"[מספר קרן]"),INDIRECT($AG$3&"[ESG_DB]"))),"last") -> 88.82 | AH30: =IFERROR(IF(_xlfn.XLOOKUP($AE30,INDIRECT($AG$3&"[מספר קרן]"),INDIRECT($AG$3&"[ESG_DB]"))="לא מדורג","",_xlfn.XLOOKUP($AE30,INDIRECT($AG$3&"[מספר קרן]"),INDIRECT($AG$3&"[ESG_DB]"))),"last") -> 88.82 | AI30: 1 | AJ30: גבוה | AK30: גבוה | AL30: מניות בחו"ל
A31: 5117270 | B31: =IFERROR(_xlfn.XLOOKUP(A31,INDIRECT($X$1&"[מספר קרן]"),INDIRECT($X$1&"[ESG_DB]")),0) -> 77.18 | C31: 1145283 | D31: 90.75 | E31: =IFERROR(_xlfn.XLOOKUP(C31,INDIRECT($X$1&"[מספר קרן]"),INDIRECT($X$1&"[דירוג ספיר]")),0) -> לא מדורג | G31: 28 | H31: 1145283 | I31: =IFERROR(_xlfn.XLOOKUP(H31,INDIRECT($I$2&"[מספר קרן]"),INDIRECT($I$2&"[שם קרן]")),"") -> תכלית סל (4D)‏ MDAX | J31: =IFERROR(IF(_xlfn.XLOOKUP($H31,INDIRECT($J$3&"[מספר קרן]"),INDIRECT($J$3&"[ESG_DB]"))="לא מדורג","",_xlfn.XLOOKUP($H31,INDIRECT($J$3&"[מספר קרן]"),INDIRECT($J$3&"[ESG_DB]"))),"") -> 90.75 | K31: =IFERROR(IF(_xlfn.XLOOKUP($H31,INDIRECT($K$3&"[מספר קרן]"),INDIRECT($K$3&"[ESG_DB]"))="לא מדורג","",_xlfn.XLOOKUP($H31,INDIRECT($K$3&"[מספר קרן]"),INDIRECT($K$3&"[ESG_DB]"))),"") -> 90.88920345 | L31: -0.001531572986 | M31: גבוה | N31: גבוה | O31: =IFERROR(_xlfn.XLOOKUP(H31,INDIRECT("$c$4:$c$"&$G$1),INDIRECT("$e$4:$e$"&$G$1)),"") -> לא מדורג | P31: המלצת המערכת | V31: 1143783 | W31: =IFERROR(_xlfn.XLOOKUP(V31,INDIRECT($X$1&"[מספר קרן]"),INDIRECT($X$1&"[ESG_DB]")),0) -> 37.79 | X31: 5123161 | Y31: =IFERROR(_xlfn.XLOOKUP(X31,INDIRECT($X$1&"[מספר קרן]"),INDIRECT($X$1&"[ESG_DB]")),0) -> 75.11 | AA31: 1143783 | AB31: =IF(AA31="","last",IF(_xlfn.XLOOKUP(AA31,INDIRECT($X$1&"[מספר קרן]"),INDIRECT($X$1&"[ESG_DB]"),0)="לא מדורג",0,_xlfn.XLOOKUP(AA31,INDIRECT($X$1&"[מספר קרן]"),INDIRECT($X$1&"[ESG_DB]"),0))) -> 37.79 | AD31: 28 | AE31: 1146000 | AF31: =IFERROR(_xlfn.XLOOKUP(AE31,INDIRECT($X$1&"[מספר קרן]"),INDIRECT($X$1&"[שם קרן]")),"") -> קסם STOXX Europe MID 200 (4D) ETF | AG31: =IFERROR(IF(_xlfn.XLOOKUP($AE31,INDIRECT($AG$3&"[מספר קרן]"),INDIRECT($AG$3&"[ESG_DB]"))="לא מדורג","",_xlfn.XLOOKUP($AE31,INDIRECT($AG$3&"[מספר קרן]"),INDIRECT($AG$3&"[ESG_DB]"))),"last") -> 86.97 | AH31: =IFERROR(IF(_xlfn.XLOOKUP($AE31,INDIRECT($AG$3&"[מספר קרן]"),INDIRECT($AG$3&"[ESG_DB]"))="לא מדורג","",_xlfn.XLOOKUP($AE31,INDIRECT($AG$3&"[מספר קרן]"),INDIRECT($AG$3&"[ESG_DB]"))),"last") -> 86.97 | AI31: 1 | AJ31: גבוה | AK31: גבוה | AL31: מניות בחו"ל
A32: 5117817 | B32: =IFERROR(_xlfn.XLOOKUP(A32,INDIRECT($X$1&"[מספר קרן]"),INDIRECT($X$1&"[ESG_DB]")),0) -> 97.3 | C32: 1146372 | D32: 90.75 | E32: =IFERROR(_xlfn.XLOOKUP(C32,INDIRECT($X$1&"[מספר קרן]"),INDIRECT($X$1&"[דירוג ספיר]")),0) -> לא מדורג | G32: 29 | H32: 1146372 | I32: =IFERROR(_xlfn.XLOOKUP(H32,INDIRECT($I$2&"[מספר קרן]"),INDIRECT($I$2&"[שם קרן]")),"") -> קסם MDAX (4D) ETF | J32: =IFERROR(IF(_xlfn.XLOOKUP($H32,INDIRECT($J$3&"[מספר קרן]"),INDIRECT($J$3&"[ESG_DB]"))="לא מדורג","",_xlfn.XLOOKUP($H32,INDIRECT($J$3&"[מספר קרן]"),INDIRECT($J$3&"[ESG_DB]"))),"") -> 90.75 | K32: =IFERROR(IF(_xlfn.XLOOKUP($H32,INDIRECT($K$3&"[מספר קרן]"),INDIRECT($K$3&"[ESG_DB]"))="לא מדורג","",_xlfn.XLOOKUP($H32,INDIRECT($K$3&"[מספר קרן]"),INDIRECT($K$3&"[ESG_DB]"))),"") -> 90.88920345 | L32: -0.001531572986 | M32: גבוה | N32: גבוה | O32: =IFERROR(_xlfn.XLOOKUP(H32,INDIRECT("$c$4:$c$"&$G$1),INDIRECT("$e$4:$e$"&$G$1)),"") -> לא מדורג | R32: =R18 -> דירוג מרץ 2024 | S32: ="דירוג"&" "&K3&" 2024" -> דירוג פברואר 2024 | T32: דירוג ספיר | U32: שינוי בדירו גמחודש קודם | V32: 1144161 | W32: =IFERROR(_xlfn.XLOOKUP(V32,INDIRECT($X$1&"[מספר קרן]"),INDIRECT($X$1&"[ESG_DB]")),0) -> 77.99 | X32: 5123179 | Y32: =IFERROR(_xlfn.XLOOKUP(X32,INDIRECT($X$1&"[מספר קרן]"),INDIRECT($X$1&"[ESG_DB]")),0) -> 71.23 | AA32: 1144161 | AB32: =IF(AA32="","last",IF(_xlfn.XLOOKUP(AA32,INDIRECT($X$1&"[מספר קרן]"),INDIRECT($X$1&"[ESG_DB]"),0)="לא מדורג",0,_xlfn.XLOOKUP(AA32,INDIRECT($X$1&"[מספר קרן]"),INDIRECT($X$1&"[ESG_DB]"),0))) -> 77.99 | AD32: 29 | AE32: 1146240 | AF32: =IFERROR(_xlfn.XLOOKUP(AE32,INDIRECT($X$1&"[מספר קרן]"),INDIRECT($X$1&"[שם קרן]")),"") -> קסם STOXX Europe MID 200 (4A) ETF מנוטרלת אירו | AG32: =IFERROR(IF(_xlfn.XLOOKUP($AE32,INDIRECT($AG$3&"[מספר קרן]"),INDIRECT($AG$3&"[ESG_DB]"))="לא מדורג","",_xlfn.XLOOKUP($AE32,INDIRECT($AG$3&"[מספר קרן]"),INDIRECT($AG$3&"[ESG_DB]"))),"last") -> 86.97 | AH32: =IFERROR(IF(_xlfn.XLOOKUP($AE32,INDIRECT($AG$3&"[מספר קרן]"),INDIRECT($AG$3&"[ESG_DB]"))="לא מדורג","",_xlfn.XLOOKUP($AE32,INDIRECT($AG$3&"[מספר קרן]"),INDIRECT($AG$3&"[ESG_DB]"))),"last") -> 86.97 | AI32: 1 | AJ32: גבוה | AK32: גבוה | AL32: מניות בחו"ל
A33: 5117494 | B33: =IFERROR(_xlfn.XLOOKUP(A33,INDIRECT($X$1&"[מספר קרן]"),INDIRECT($X$1&"[ESG_DB]")),0) -> 51.25 | C33: 1145309 | D33: 90.75 | E33: =IFERROR(_xlfn.XLOOKUP(C33,INDIRECT($X$1&"[מספר קרן]"),INDIRECT($X$1&"[דירוג ספיר]")),0) -> צהוב | G33: 30 | H33: 1145309 | I33: =IFERROR(_xlfn.XLOOKUP(H33,INDIRECT($I$2&"[מספר קרן]"),INDIRECT($I$2&"[שם קרן]")),"") -> תכלית סל (4A)י MDAX מנוטרלת מט"ח | J33: =IFERROR(IF(_xlfn.XLOOKUP($H33,INDIRECT($J$3&"[מספר קרן]"),INDIRECT($J$3&"[ESG_DB]"))="לא מדורג","",_xlfn.XLOOKUP($H33,INDIRECT($J$3&"[מספר קרן]"),INDIRECT($J$3&"[ESG_DB]"))),"") -> 90.75 | K33: =IFERROR(IF(_xlfn.XLOOKUP($H33,INDIRECT($K$3&"[מספר קרן]"),INDIRECT($K$3&"[ESG_DB]"))="לא מדורג","",_xlfn.XLOOKUP($H33,INDIRECT($K$3&"[מספר קרן]"),INDIRECT($K$3&"[ESG_DB]"))),"") -> 90.88920345 | L33: -0.001531572986 | M33: גבוה | N33: גבוה | O33: =IFERROR(_xlfn.XLOOKUP(H33,INDIRECT("$c$4:$c$"&$G$1),INDIRECT("$e$4:$e$"&$G$1)),"") -> צהוב | P33: =INDEX(_xlfn._xlws.SORT(_xlfn._xlws.FILTER(INDIRECT("I4:O"&G2),INDIRECT("O4:O"&G2)="ירוק"),2,-1),_xlfn.SEQUENCE(18),FALSE) -> תכלית סל (40) אינדקס בנקים ישראל | R33: =IFERROR(_xlfn.XLOOKUP(P33,INDIRECT("$I$4:$I$"&$G$1),INDIRECT("$J$4:$J$"&$G$1)),"") -> 100 | S33: =IFERROR(_xlfn.XLOOKUP(P33,INDIRECT("$I$4:$I$"&$G$1),INDIRECT("$m$4:$m$"&$G$1)),"") -> גבוה | T33: =IFERROR(_xlfn.XLOOKUP(_xlfn.XLOOKUP(P33,$I$4:$I$999,$H$4:$H$999),$C$4:$C$999,$E$4:$E$999),"") -> ירוק | U33: =IFERROR(_xlfn.XLOOKUP(P33,INDIRECT("$I$4:$I$"&$G$1),INDIRECT("$l$4:$l$"&$G$1)),"") -> 0 | V33: 1144559 | W33: =IFERROR(_xlfn.XLOOKUP(V33,INDIRECT($X$1&"[מספר קרן]"),INDIRECT($X$1&"[ESG_DB]")),0) -> 33.84 | X33: 5123419 | Y33: =IFERROR(_xlfn.XLOOKUP(X33,INDIRECT($X$1&"[מספר קרן]"),INDIRECT($X$1&"[ESG_DB]")),0) -> 75.63 | AA33: 1144559 | AB33: =IF(AA33="","last",IF(_xlfn.XLOOKUP(AA33,INDIRECT($X$1&"[מספר קרן]"),INDIRECT($X$1&"[ESG_DB]"),0)="לא מדורג",0,_xlfn.XLOOKUP(AA33,INDIRECT($X$1&"[מספר קרן]"),INDIRECT($X$1&"[ESG_DB]"),0))) -> 33.84 | AD33: 30 | AE33: 5121470 | AF33: =IFERROR(_xlfn.XLOOKUP(AE33,INDIRECT($X$1&"[מספר קרן]"),INDIRECT($X$1&"[שם קרן]")),"") -> אי.בי.אי. מחקה (4A)י DAX מנוטרלת מט"ח | AG33: =IFERROR(IF(_xlfn.XLOOKUP($AE33,INDIRECT($AG$3&"[מספר קרן]"),INDIRECT($AG$3&"[ESG_DB]"))="לא מדורג","",_xlfn.XLOOKUP($AE33,INDIRECT($AG$3&"[מספר קרן]"),INDIRECT($AG$3&"[ESG_DB]"))),"last") -> 86.5 | AH33: =IFERROR(IF(_xlfn.XLOOKUP($AE33,INDIRECT($AG$3&"[מספר קרן]"),INDIRECT($AG$3&"[ESG_DB]"))="לא מדורג","",_xlfn.XLOOKUP($AE33,INDIRECT($AG$3&"[מספר קרן]"),INDIRECT($AG$3&"[ESG_DB]"))),"last") -> 86.5 | AI33: 1 | AJ33: גבוה | AK33: גבוה | AL33: מניות בחו"ל
A34: 5114939 | B34: =IFERROR(_xlfn.XLOOKUP(A34,INDIRECT($X$1&"[מספר קרן]"),INDIRECT($X$1&"[ESG_DB]")),0) -> 51.25 | C34: 1146588 | D34: 90.75 | E34: =IFERROR(_xlfn.XLOOKUP(C34,INDIRECT($X$1&"[מספר קרן]"),INDIRECT($X$1&"[דירוג ספיר]")),0) -> צהוב | G34: 31 | H34: 1146588 | I34: =IFERROR(_xlfn.XLOOKUP(H34,INDIRECT($I$2&"[מספר קרן]"),INDIRECT($I$2&"[שם קרן]")),"") -> קסם MDAX (4A) ETF מנוטרלת מט"ח | J34: =IFERROR(IF(_xlfn.XLOOKUP($H34,INDIRECT($J$3&"[מספר קרן]"),INDIRECT($J$3&"[ESG_DB]"))="לא מדורג","",_xlfn.XLOOKUP($H34,INDIRECT($J$3&"[מספר קרן]"),INDIRECT($J$3&"[ESG_DB]"))),"") -> 90.75 | K34: =IFERROR(IF(_xlfn.XLOOKUP($H34,INDIRECT($K$3&"[מספר קרן]"),INDIRECT($K$3&"[ESG_DB]"))="לא מדורג","",_xlfn.XLOOKUP($H34,INDIRECT($K$3&"[מספר קרן]"),INDIRECT($K$3&"[ESG_DB]"))),"") -> 90.88920345 | L34: -0.001531572986 | M34: גבוה | N34: גבוה | O34: =IFERROR(_xlfn.XLOOKUP(H34,INDIRECT("$c$4:$c$"&$G$1),INDIRECT("$e$4:$e$"&$G$1)),"") -> צהוב | P34: קסם 4A) ETF) אינדקס בנקים ישראל | R34: =IFERROR(_xlfn.XLOOKUP(P34,INDIRECT("$I$4:$I$"&$G$1),INDIRECT("$J$4:$J$"&$G$1)),"") -> 100 | S34: =IFERROR(_xlfn.XLOOKUP(P34,INDIRECT("$I$4:$I$"&$G$1),INDIRECT("$m$4:$m$"&$G$1)),"") -> גבוה | T34: =IFERROR(_xlfn.XLOOKUP(_xlfn.XLOOKUP(P34,$I$4:$I$999,$H$4:$H$999),$C$4:$C$999,$E$4:$E$999),"") -> ירוק | U34: =IFERROR(_xlfn.XLOOKUP(P34,INDIRECT("$I$4:$I$"&$G$1),INDIRECT("$l$4:$l$"&$G$1)),"") -> 0 | V34: 1144575 | W34: =IFERROR(_xlfn.XLOOKUP(V34,INDIRECT($X$1&"[מספר קרן]"),INDIRECT($X$1&"[ESG_DB]")),0) -> 28.34 | X34: 5123443 | Y34: =IFERROR(_xlfn.XLOOKUP(X34,INDIRECT($X$1&"[מספר קרן]"),INDIRECT($X$1&"[ESG_DB]")),0) -> 75.32 | AA34: 1144575 | AB34: =IF(AA34="","last",IF(_xlfn.XLOOKUP(AA34,INDIRECT($X$1&"[מספר קרן]"),INDIRECT($X$1&"[ESG_DB]"),0)="לא מדורג",0,_xlfn.XLOOKUP(AA34,INDIRECT($X$1&"[מספר קרן]"),INDIRECT($X$1&"[ESG_DB]"),0))) -> 28.34 | AD34: 31 | AE34: 5124557 | AF34: =IFERROR(_xlfn.XLOOKUP(AE34,INDIRECT($X$1&"[מספר קרן]"),INDIRECT($X$1&"[שם קרן]")),"") -> תכלית DAX (4D) TTF | AG34: =IFERROR(IF(_xlfn.XLOOKUP($AE34,INDIRECT($AG$3&"[מספר קרן]"),INDIRECT($AG$3&"[ESG_DB]"))="לא מדורג","",_xlfn.XLOOKUP($AE34,INDIRECT($AG$3&"[מספר קרן]"),INDIRECT($AG$3&"[ESG_DB]"))),"last") -> 86.5 | AH34: =IFERROR(IF(_xlfn.XLOOKUP($AE34,INDIRECT($AG$3&"[מספר קרן]"),INDIRECT($AG$3&"[ESG_DB]"))="לא מדורג","",_xlfn.XLOOKUP($AE34,INDIRECT($AG$3&"[מספר קרן]"),INDIRECT($AG$3&"[ESG_DB]"))),"last") -> 86.5 | AI34: 1 | AJ34: גבוה | AK34: גבוה | AL34: מניות בחו"ל
A35: 5117437 | B35: =IFERROR(_xlfn.XLOOKUP(A35,INDIRECT($X$1&"[מספר קרן]"),INDIRECT($X$1&"[ESG_DB]")),0) -> 60.34 | C35: 5119318 | D35: 90.68 | E35: =IFERROR(_xlfn.XLOOKUP(C35,INDIRECT($X$1&"[מספר קרן]"),INDIRECT($X$1&"[דירוג ספיר]")),0) -> צהוב | G35: 32 | H35: 5119318 | I35: =IFERROR(_xlfn.XLOOKUP(H35,INDIRECT($I$2&"[מספר קרן]"),INDIRECT($I$2&"[שם קרן]")),"") -> אי.בי.אי. מחקה (4D)י MSCI Emerging Markets | J35: =IFERROR(IF(_xlfn.XLOOKUP($H35,INDIRECT($J$3&"[מספר קרן]"),INDIRECT($J$3&"[ESG_DB]"))="לא מדורג","",_xlfn.XLOOKUP($H35,INDIRECT($J$3&"[מספר קרן]"),INDIRECT($J$3&"[ESG_DB]"))),"") -> 90.68 | K35: =IFERROR(IF(_xlfn.XLOOKUP($H35,INDIRECT($K$3&"[מספר קרן]"),INDIRECT($K$3&"[ESG_DB]"))="לא מדורג","",_xlfn.XLOOKUP($H35,INDIRECT($K$3&"[מספר קרן]"),INDIRECT($K$3&"[ESG_DB]"))),"") -> 90.82486167 | L35: -0.001594956078 | M35: גבוה | N35: גבוה | O35: =IFERROR(_xlfn.XLOOKUP(H35,INDIRECT("$c$4:$c$"&$G$1),INDIRECT("$e$4:$e$"&$G$1)),"") -> צהוב | P35: פסגות ETFי (4A) אינדקס בנקים ישראל | R35: =IFERROR(_xlfn.XLOOKUP(P35,INDIRECT("$I$4:$I$"&$G$1),INDIRECT("$J$4:$J$"&$G$1)),"") -> 100 | S35: =IFERROR(_xlfn.XLOOKUP(P35,INDIRECT("$I$4:$I$"&$G$1),INDIRECT("$m$4:$m$"&$G$1)),"") -> גבוה | T35: ירוק | U35: =IFERROR(_xlfn.XLOOKUP(P35,INDIRECT("$I$4:$I$"&$G$1),INDIRECT("$l$4:$l$"&$G$1)),"") -> 0 | V35: 1144807 | W35: =IFERROR(_xlfn.XLOOKUP(V35,INDIRECT($X$1&"[מספר קרן]"),INDIRECT($X$1&"[ESG_DB]")),0) -> 48.27 | X35: 5123567 | Y35: =IFERROR(_xlfn.XLOOKUP(X35,INDIRECT($X$1&"[מספר קרן]"),INDIRECT($X$1&"[ESG_DB]")),0) -> 55.34 | AA35: 1144807 | AB35: =IF(AA35="","last",IF(_xlfn.XLOOKUP(AA35,INDIRECT($X$1&"[מספר קרן]"),INDIRECT($X$1&"[ESG_DB]"),0)="לא מדורג",0,_xlfn.XLOOKUP(AA35,INDIRECT($X$1&"[מספר קרן]"),INDIRECT($X$1&"[ESG_DB]"),0))) -> 48.27 | AD35: 32 | AE35: 5125158 | AF35: =IFERROR(_xlfn.XLOOKUP(AE35,INDIRECT($X$1&"[מספר קרן]"),INDIRECT($X$1&"[שם קרן]")),"") -> קסם DAX (4A) KTF מנוטרלת מט"ח | AG35: =IFERROR(IF(_xlfn.XLOOKUP($AE35,INDIRECT($AG$3&"[מספר קרן]"),INDIRECT($AG$3&"[ESG_DB]"))="לא מדורג","",_xlfn.XLOOKUP($AE35,INDIRECT($AG$3&"[מספר קרן]"),INDIRECT($AG$3&"[ESG_DB]"))),"last") -> 86.5 | AH35: =IFERROR(IF(_xlfn.XLOOKUP($AE35,INDIRECT($AG$3&"[מספר קרן]"),INDIRECT($AG$3&"[ESG_DB]"))="לא מדורג","",_xlfn.XLOOKUP($AE35,INDIRECT($AG$3&"[מספר קרן]"),INDIRECT($AG$3&"[ESG_DB]"))),"last") -> 86.5 | AI35: 1 | AJ35: גבוה | AK35: גבוה | AL35: מניות בחו"ל
A36: 5117585 | B36: =IFERROR(_xlfn.XLOOKUP(A36,INDIRECT($X$1&"[מספר קרן]"),INDIRECT($X$1&"[ESG_DB]")),0) -> 71.23 | C36: 1144450 | D36: 90.68 | E36: =IFERROR(_xlfn.XLOOKUP(C36,INDIRECT($X$1&"[מספר קרן]"),INDIRECT($X$1&"[דירוג ספיר]")),0) -> ירוק | G36: 33 | H36: 1144450 | I36: =IFERROR(_xlfn.XLOOKUP(H36,INDIRECT($I$2&"[מספר קרן]"),INDIRECT($I$2&"[שם קרן]")),"") -> תכלית סל (4D) ‏‏‏MSCI Emerging Markets | J36: =IFERROR(IF(_xlfn.XLOOKUP($H36,INDIRECT($J$3&"[מספר קרן]"),INDIRECT($J$3&"[ESG_DB]"))="לא מדורג","",_xlfn.XLOOKUP($H36,INDIRECT($J$3&"[מספר קרן]"),INDIRECT($J$3&"[ESG_DB]"))),"") -> 90.68 | K36: =IFERROR(IF(_xlfn.XLOOKUP($H36,INDIRECT($K$3&"[מספר קרן]"),INDIRECT($K$3&"[ESG_DB]"))="לא מדורג","",_xlfn.XLOOKUP($H36,INDIRECT($K$3&"[מספר קרן]"),INDIRECT($K$3&"[ESG_DB]"))),"") -> 90.82486167 | L36: -0.001594956078 | M36: גבוה | N36: גבוה | O36: =IFERROR(_xlfn.XLOOKUP(H36,INDIRECT("$c$4:$c$"&$G$1),INDIRECT("$e$4:$e$"&$G$1)),"") -> ירוק | P36: הראל סל (4A) אינדקס בנקים ישראל | R36: =IFERROR(_xlfn.XLOOKUP(P36,INDIRECT("$I$4:$I$"&$G$1),INDIRECT("$J$4:$J$"&$G$1)),"") -> 100 | S36: =IFERROR(_xlfn.XLOOKUP(P36,INDIRECT("$I$4:$I$"&$G$1),INDIRECT("$m$4:$m$"&$G$1)),"") -> גבוה | T36: ירוק | U36: =IFERROR(_xlfn.XLOOKUP(P36,INDIRECT("$I$4:$I$"&$G$1),INDIRECT("$l$4:$l$"&$G$1)),"") -> 0 | V36: 1144815 | W36: =IFERROR(_xlfn.XLOOKUP(V36,INDIRECT($X$1&"[מספר קרן]"),INDIRECT($X$1&"[ESG_DB]")),0) -> 35.71 | X36: 5123575 | Y36: =IFERROR(_xlfn.XLOOKUP(X36,INDIRECT($X$1&"[מספר קרן]"),INDIRECT($X$1&"[ESG_DB]")),0) -> 75.63 | AA36: 1144815 | AB36: =IF(AA36="","last",IF(_xlfn.XLOOKUP(AA36,INDIRECT($X$1&"[מספר קרן]"),INDIRECT($X$1&"[ESG_DB]"),0)="לא מדורג",0,_xlfn.XLOOKUP(AA36,INDIRECT($X$1&"[מספר קרן]"),INDIRECT($X$1&"[ESG_DB]"),0))) -> 35.71 | AD36: 33 | AE36: 5127543 | AF36: =IFERROR(_xlfn.XLOOKUP(AE36,INDIRECT($X$1&"[מספר קרן]"),INDIRECT($X$1&"[שם קרן]")),"") -> קסם DAX (4D) KTF | AG36: =IFERROR(IF(_xlfn.XLOOKUP($AE36,INDIRECT($AG$3&"[מספר קרן]"),INDIRECT($AG$3&"[ESG_DB]"))="לא מדורג","",_xlfn.XLOOKUP($AE36,INDIRECT($AG$3&"[מספר קרן]"),INDIRECT($AG$3&"[ESG_DB]"))),"last") -> 86.5 | AH36: =IFERROR(IF(_xlfn.XLOOKUP($AE36,INDIRECT($AG$3&"[מספר קרן]"),INDIRECT($AG$3&"[ESG_DB]"))="לא מדורג","",_xlfn.XLOOKUP($AE36,INDIRECT($AG$3&"[מספר קרן]"),INDIRECT($AG$3&"[ESG_DB]"))),"last") -> 86.5 | AI36: 1 | AJ36: גבוה | AK36: גבוה | AL36: מניות בחו"ל
A37: 5117601 | B37: =IFERROR(_xlfn.XLOOKUP(A37,INDIRECT($X$1&"[מספר קרן]"),INDIRECT($X$1&"[ESG_DB]")),0) -> 75.11 | C37: 1145812 | D37: 90.68 | E37: =IFERROR(_xlfn.XLOOKUP(C37,INDIRECT($X$1&"[מספר קרן]"),INDIRECT($X$1&"[דירוג ספיר]")),0) -> צהוב | G37: 34 | H37: 1145812 | I37: =IFERROR(_xlfn.XLOOKUP(H37,INDIRECT($I$2&"[מספר קרן]"),INDIRECT($I$2&"[שם קרן]")),"") -> קסם MSCI Emerging Markets (4D) ETF | J37: =IFERROR(IF(_xlfn.XLOOKUP($H37,INDIRECT($J$3&"[מספר קרן]"),INDIRECT($J$3&"[ESG_DB]"))="לא מדורג","",_xlfn.XLOOKUP($H37,INDIRECT($J$3&"[מספר קרן]"),INDIRECT($J$3&"[ESG_DB]"))),"") -> 90.68 | K37: =IFERROR(IF(_xlfn.XLOOKUP($H37,INDIRECT($K$3&"[מספר קרן]"),INDIRECT($K$3&"[ESG_DB]"))="לא מדורג","",_xlfn.XLOOKUP($H37,INDIRECT($K$3&"[מספר קרן]"),INDIRECT($K$3&"[ESG_DB]"))),"") -> 90.82486167 | L37: -0.001594956078 | M37: גבוה | N37: גבוה | O37: =IFERROR(_xlfn.XLOOKUP(H37,INDIRECT("$c$4:$c$"&$G$1),INDIRECT("$e$4:$e$"&$G$1)),"") -> צהוב | P37: מור מחקה (4A) אינדקס בנקים משקל שווה | R37: =IFERROR(_xlfn.XLOOKUP(P37,INDIRECT("$I$4:$I$"&$G$1),INDIRECT("$J$4:$J$"&$G$1)),"") -> 100 | S37: =IFERROR(_xlfn.XLOOKUP(P37,INDIRECT("$I$4:$I$"&$G$1),INDIRECT("$m$4:$m$"&$G$1)),"") -> גבוה | T37: ירוק | U37: =IFERROR(_xlfn.XLOOKUP(P37,INDIRECT("$I$4:$I$"&$G$1),INDIRECT("$l$4:$l$"&$G$1)),"") -> 0 | V37: 1145036 | W37: =IFERROR(_xlfn.XLOOKUP(V37,INDIRECT($X$1&"[מספר קרן]"),INDIRECT($X$1&"[ESG_DB]")),0) -> 41.04 | X37: 5123997 | Y37: =IFERROR(_xlfn.XLOOKUP(X37,INDIRECT($X$1&"[מספר קרן]"),INDIRECT($X$1&"[ESG_DB]")),0) -> 61.48 | AA37: 1145036 | AB37: =IF(AA37="","last",IF(_xlfn.XLOOKUP(AA37,INDIRECT($X$1&"[מספר קרן]"),INDIRECT($X$1&"[ESG_DB]"),0)="לא מדורג",0,_xlfn.XLOOKUP(AA37,INDIRECT($X$1&"[מספר קרן]"),INDIRECT($X$1&"[ESG_DB]"),0))) -> 41.04 | AD37: 34 | AE37: 5127501 | AF37: =IFERROR(_xlfn.XLOOKUP(AE37,INDIRECT($X$1&"[מספר קרן]"),INDIRECT($X$1&"[שם קרן]")),"") -> הראל מחקה (4A)י Dax - מנוטרלת מט"ח | AG37: =IFERROR(IF(_xlfn.XLOOKUP($AE37,INDIRECT($AG$3&"[מספר קרן]"),INDIRECT($AG$3&"[ESG_DB]"))="לא מדורג","",_xlfn.XLOOKUP($AE37,INDIRECT($AG$3&"[מספר קרן]"),INDIRECT($AG$3&"[ESG_DB]"))),"last") -> 86.5 | AH37: =IFERROR(IF(_xlfn.XLOOKUP($AE37,INDIRECT($AG$3&"[מספר קרן]"),INDIRECT($AG$3&"[ESG_DB]"))="לא מדורג","",_xlfn.XLOOKUP($AE37,INDIRECT($AG$3&"[מספר קרן]"),INDIRECT($AG$3&"[ESG_DB]"))),"last") -> 86.5 | AI37: 1 | AJ37: גבוה | AK37: גבוה | AL37: מניות בחו"ל
A38: 5113998 | B38: =IFERROR(_xlfn.XLOOKUP(A38,INDIRECT($X$1&"[מספר קרן]"),INDIRECT($X$1&"[ESG_DB]")),0) -> 75.11 | C38: 1149301 | D38: 90.68 | E38: =IFERROR(_xlfn.XLOOKUP(C38,INDIRECT($X$1&"[מספר קרן]"),INDIRECT($X$1&"[דירוג ספיר]")),0) -> ירוק | G38: 35 | H38: 1149301 | I38: =IFERROR(_xlfn.XLOOKUP(H38,INDIRECT($I$2&"[מספר קרן]"),INDIRECT($I$2&"[שם קרן]")),"") -> הראל סל (4D) ‏MSCI Emerging Markets | J38: =IFERROR(IF(_xlfn.XLOOKUP($H38,INDIRECT($J$3&"[מספר קרן]"),INDIRECT($J$3&"[ESG_DB]"))="לא מדורג","",_xlfn.XLOOKUP($H38,INDIRECT($J$3&"[מספר קרן]"),INDIRECT($J$3&"[ESG_DB]"))),"") -> 90.68 | K38: =IFERROR(IF(_xlfn.XLOOKUP($H38,INDIRECT($K$3&"[מספר קרן]"),INDIRECT($K$3&"[ESG_DB]"))="לא מדורג","",_xlfn.XLOOKUP($H38,INDIRECT($K$3&"[מספר קרן]"),INDIRECT($K$3&"[ESG_DB]"))),"") -> 90.82486167 | L38: -0.001594956078 | M38: גבוה | N38: גבוה | O38: =IFERROR(_xlfn.XLOOKUP(H38,INDIRECT("$c$4:$c$"&$G$1),INDIRECT("$e$4:$e$"&$G$1)),"") -> ירוק | P38: PTFי (4A) אינדקס בנקים ישראל | R38: =IFERROR(_xlfn.XLOOKUP(P38,INDIRECT("$I$4:$I$"&$G$1),INDIRECT("$J$4:$J$"&$G$1)),"") -> 100 | S38: =IFERROR(_xlfn.XLOOKUP(P38,INDIRECT("$I$4:$I$"&$G$1),INDIRECT("$m$4:$m$"&$G$1)),"") -> גבוה | T38: ירוק | U38: =IFERROR(_xlfn.XLOOKUP(P38,INDIRECT("$I$4:$I$"&$G$1),INDIRECT("$l$4:$l$"&$G$1)),"") -> 0 | V38: 1145044 | W38: =IFERROR(_xlfn.XLOOKUP(V38,INDIRECT($X$1&"[מספר קרן]"),INDIRECT($X$1&"[ESG_DB]")),0) -> 31.34 | X38: 5124128 | Y38: =IFERROR(_xlfn.XLOOKUP(X38,INDIRECT($X$1&"[מספר קרן]"),INDIRECT($X$1&"[ESG_DB]")),0) -> 71.73 | AA38: 1145044 | AB38: =IF(AA38="","last",IF(_xlfn.XLOOKUP(AA38,INDIRECT($X$1&"[מספר קרן]"),INDIRECT($X$1&"[ESG_DB]"),0)="לא מדורג",0,_xlfn.XLOOKUP(AA38,INDIRECT($X$1&"[מספר קרן]"),INDIRECT($X$1&"[ESG_DB]"),0))) -> 31.34 | AD38: 35 | AE38: 5127642 | AF38: =IFERROR(_xlfn.XLOOKUP(AE38,INDIRECT($X$1&"[מספר קרן]"),INDIRECT($X$1&"[שם קרן]")),"") -> MTF מחקה (DAX (4D | AG38: =IFERROR(IF(_xlfn.XLOOKUP($AE38,INDIRECT($AG$3&"[מספר קרן]"),INDIRECT($AG$3&"[ESG_DB]"))="לא מדורג","",_xlfn.XLOOKUP($AE38,INDIRECT($AG$3&"[מספר קרן]"),INDIRECT($AG$3&"[ESG_DB]"))),"last") -> 86.5 | AH38: =IFERROR(IF(_xlfn.XLOOKUP($AE38,INDIRECT($AG$3&"[מספר קרן]"),INDIRECT($AG$3&"[ESG_DB]"))="לא מדורג","",_xlfn.XLOOKUP($AE38,INDIRECT($AG$3&"[מספר קרן]"),INDIRECT($AG$3&"[ESG_DB]"))),"last") -> 86.5 | AI38: 1 | AJ38: גבוה | AK38: גבוה | AL38: מניות בחו"ל
A39: 5115605 | B39: =IFERROR(_xlfn.XLOOKUP(A39,INDIRECT($X$1&"[מספר קרן]"),INDIRECT($X$1&"[ESG_DB]")),0) -> 51.25 | C39: 1150275 | D39: 90.68 | E39: =IFERROR(_xlfn.XLOOKUP(C39,INDIRECT($X$1&"[מספר קרן]"),INDIRECT($X$1&"[דירוג ספיר]")),0) -> צהוב | G39: 36 | H39: 1150275 | I39: =IFERROR(_xlfn.XLOOKUP(H39,INDIRECT($I$2&"[מספר קרן]"),INDIRECT($I$2&"[שם קרן]")),"") -> MTF סל (MSCI Emerging Markets (4D | J39: =IFERROR(IF(_xlfn.XLOOKUP($H39,INDIRECT($J$3&"[מספר קרן]"),INDIRECT($J$3&"[ESG_DB]"))="לא מדורג","",_xlfn.XLOOKUP($H39,INDIRECT($J$3&"[מספר קרן]"),INDIRECT($J$3&"[ESG_DB]"))),"") -> 90.68 | K39: =IFERROR(IF(_xlfn.XLOOKUP($H39,INDIRECT($K$3&"[מספר קרן]"),INDIRECT($K$3&"[ESG_DB]"))="לא מדורג","",_xlfn.XLOOKUP($H39,INDIRECT($K$3&"[מספר קרן]"),INDIRECT($K$3&"[ESG_DB]"))),"") -> 90.82486167 | L39: -0.001594956078 | M39: גבוה | N39: גבוה | O39: =IFERROR(_xlfn.XLOOKUP(H39,INDIRECT("$c$4:$c$"&$G$1),INDIRECT("$e$4:$e$"&$G$1)),"") -> צהוב | P39: מור סל (4A) אינדקס בנקים משקל שווה | R39: =IFERROR(_xlfn.XLOOKUP(P39,INDIRECT("$I$4:$I$"&$G$1),INDIRECT("$J$4:$J$"&$G$1)),"") -> 100 | S39: =IFERROR(_xlfn.XLOOKUP(P39,INDIRECT("$I$4:$I$"&$G$1),INDIRECT("$m$4:$m$"&$G$1)),"") -> גבוה | T39: ירוק | U39: =IFERROR(_xlfn.XLOOKUP(P39,INDIRECT("$I$4:$I$"&$G$1),INDIRECT("$l$4:$l$"&$G$1)),"") -> 0 | V39: 1145911 | W39: =IFERROR(_xlfn.XLOOKUP(V39,INDIRECT($X$1&"[מספר קרן]"),INDIRECT($X$1&"[ESG_DB]")),0) -> 41.04 | X39: 5124284 | Y39: =IFERROR(_xlfn.XLOOKUP(X39,INDIRECT($X$1&"[מספר קרן]"),INDIRECT($X$1&"[ESG_DB]")),0) -> 60.76 | AA39: 1145911 | AB39: =IF(AA39="","last",IF(_xlfn.XLOOKUP(AA39,INDIRECT($X$1&"[מספר קרן]"),INDIRECT($X$1&"[ESG_DB]"),0)="לא מדורג",0,_xlfn.XLOOKUP(AA39,INDIRECT($X$1&"[מספר קרן]"),INDIRECT($X$1&"[ESG_DB]"),0))) -> 41.04 | AD39: 36 | AE39: 5127659 | AF39: =IFERROR(_xlfn.XLOOKUP(AE39,INDIRECT($X$1&"[מספר קרן]"),INDIRECT($X$1&"[שם קרן]")),"") -> MTF מחקה (DAX (4A מנוטרלת מט"ח | AG39: =IFERROR(IF(_xlfn.XLOOKUP($AE39,INDIRECT($AG$3&"[מספר קרן]"),INDIRECT($AG$3&"[ESG_DB]"))="לא מדורג","",_xlfn.XLOOKUP($AE39,INDIRECT($AG$3&"[מספר קרן]"),INDIRECT($AG$3&"[ESG_DB]"))),"last") -> 86.5 | AH39: =IFERROR(IF(_xlfn.XLOOKUP($AE39,INDIRECT($AG$3&"[מספר קרן]"),INDIRECT($AG$3&"[ESG_DB]"))="לא מדורג","",_xlfn.XLOOKUP($AE39,INDIRECT($AG$3&"[מספר קרן]"),INDIRECT($AG$3&"[ESG_DB]"))),"last") -> 86.5 | AI39: 1 | AJ39: גבוה | AK39: גבוה | AL39: מניות בחו"ל
A40: 5118021 | B40: =IFERROR(_xlfn.XLOOKUP(A40,INDIRECT($X$1&"[מספר קרן]"),INDIRECT($X$1&"[ESG_DB]")),0) -> 70.28 | C40: 1146737 | D40: 90.68 | E40: =IFERROR(_xlfn.XLOOKUP(C40,INDIRECT($X$1&"[מספר קרן]"),INDIRECT($X$1&"[דירוג ספיר]")),0) -> לא מדורג | G40: 37 | H40: 1146737 | I40: =IFERROR(_xlfn.XLOOKUP(H40,INDIRECT($I$2&"[מספר קרן]"),INDIRECT($I$2&"[שם קרן]")),"") -> קסם MSCI Emerging Markets (4A) ETF מנוטרלת דולר | J40: =IFERROR(IF(_xlfn.XLOOKUP($H40,INDIRECT($J$3&"[מספר קרן]"),INDIRECT($J$3&"[ESG_DB]"))="לא מדורג","",_xlfn.XLOOKUP($H40,INDIRECT($J$3&"[מספר קרן]"),INDIRECT($J$3&"[ESG_DB]"))),"") -> 90.68 | K40: =IFERROR(IF(_xlfn.XLOOKUP($H40,INDIRECT($K$3&"[מספר קרן]"),INDIRECT($K$3&"[ESG_DB]"))="לא מדורג","",_xlfn.XLOOKUP($H40,INDIRECT($K$3&"[מספר קרן]"),INDIRECT($K$3&"[ESG_DB]"))),"") -> 90.82486167 | L40: -0.001594956078 | M40: גבוה | N40: גבוה | O40: =IFERROR(_xlfn.XLOOKUP(H40,INDIRECT("$c$4:$c$"&$G$1),INDIRECT("$e$4:$e$"&$G$1)),"") -> לא מדורג | P40: MTF מחקה‏ (00) תל בונד צמודות בנקים | R40: =IFERROR(_xlfn.XLOOKUP(P40,INDIRECT("$I$4:$I$"&$G$1),INDIRECT("$J$4:$J$"&$G$1)),"") -> 97.3 | S40: =IFERROR(_xlfn.XLOOKUP(P40,INDIRECT("$I$4:$I$"&$G$1),INDIRECT("$m$4:$m$"&$G$1)),"") -> גבוה | T40: ירוק | U40: =IFERROR(_xlfn.XLOOKUP(P40,INDIRECT("$I$4:$I$"&$G$1),INDIRECT("$l$4:$l$"&$G$1)),"") -> -0.002219187121 | V40: 1145994 | W40: =IFERROR(_xlfn.XLOOKUP(V40,INDIRECT($X$1&"[מספר קרן]"),INDIRECT($X$1&"[ESG_DB]")),0) -> 28.34 | X40: 5124482 | Y40: =IFERROR(_xlfn.XLOOKUP(X40,INDIRECT($X$1&"[מספר קרן]"),INDIRECT($X$1&"[ESG_DB]")),0) -> 75.11 | AA40: 1145994 | AB40: =IF(AA40="","last",IF(_xlfn.XLOOKUP(AA40,INDIRECT($X$1&"[מספר קרן]"),INDIRECT($X$1&"[ESG_DB]"),0)="לא מדורג",0,_xlfn.XLOOKUP(AA40,INDIRECT($X$1&"[מספר קרן]"),INDIRECT($X$1&"[ESG_DB]"),0))) -> 28.34 | AD40: 37 | AE40: 1144104 | AF40: =IFERROR(_xlfn.XLOOKUP(AE40,INDIRECT($X$1&"[מספר קרן]"),INDIRECT($X$1&"[שם קרן]")),"") -> תכלית סל (4D) ‏‏‏DAX | AG40: =IFERROR(IF(_xlfn.XLOOKUP($AE40,INDIRECT($AG$3&"[מספר קרן]"),INDIRECT($AG$3&"[ESG_DB]"))="לא מדורג","",_xlfn.XLOOKUP($AE40,INDIRECT($AG$3&"[מספר קרן]"),INDIRECT($AG$3&"[ESG_DB]"))),"last") -> 86.5 | AH40: =IFERROR(IF(_xlfn.XLOOKUP($AE40,INDIRECT($AG$3&"[מספר קרן]"),INDIRECT($AG$3&"[ESG_DB]"))="לא מדורג","",_xlfn.XLOOKUP($AE40,INDIRECT($AG$3&"[מספר קרן]"),INDIRECT($AG$3&"[ESG_DB]"))),"last") -> 86.5 | AI40: 1 | AJ40: גבוה | AK40: גבוה | AL40: מניות בחו"ל
A41: 5121132 | B41: =IFERROR(_xlfn.XLOOKUP(A41,INDIRECT($X$1&"[מספר קרן]"),INDIRECT($X$1&"[ESG_DB]")),0) -> 64.24 | C41: 1146596 | D41: 90.03 | E41: =IFERROR(_xlfn.XLOOKUP(C41,INDIRECT($X$1&"[מספר קרן]"),INDIRECT($X$1&"[דירוג ספיר]")),0) -> לא מדורג | G41: 38 | H41: 1146596 | I41: =IFERROR(_xlfn.XLOOKUP(H41,INDIRECT($I$2&"[מספר קרן]"),INDIRECT($I$2&"[שם קרן]")),"") -> קסם ‏STOXX Europe 600 Health Care (4D) ETF | J41: =IFERROR(IF(_xlfn.XLOOKUP($H41,INDIRECT($J$3&"[מספר קרן]"),INDIRECT($J$3&"[ESG_DB]"))="לא מדורג","",_xlfn.XLOOKUP($H41,INDIRECT($J$3&"[מספר קרן]"),INDIRECT($J$3&"[ESG_DB]"))),"") -> 90.03 | K41: =IFERROR(IF(_xlfn.XLOOKUP($H41,INDIRECT($K$3&"[מספר קרן]"),INDIRECT($K$3&"[ESG_DB]"))="לא מדורג","",_xlfn.XLOOKUP($H41,INDIRECT($K$3&"[מספר קרן]"),INDIRECT($K$3&"[ESG_DB]"))),"") -> 90.16857547 | L41: -0.001536848865 | M41: גבוה | N41: גבוה | O41: =IFERROR(_xlfn.XLOOKUP(H41,INDIRECT("$c$4:$c$"&$G$1),INDIRECT("$e$4:$e$"&$G$1)),"") -> לא מדורג | P41: אי.בי.אי. מחקה (00) תל בונד צמודות- בנקים | R41: =IFERROR(_xlfn.XLOOKUP(P41,INDIRECT("$I$4:$I$"&$G$1),INDIRECT("$J$4:$J$"&$G$1)),"") -> 97.3 | S41: =IFERROR(_xlfn.XLOOKUP(P41,INDIRECT("$I$4:$I$"&$G$1),INDIRECT("$m$4:$m$"&$G$1)),"") -> גבוה | T41: ירוק | U41: =IFERROR(_xlfn.XLOOKUP(P41,INDIRECT("$I$4:$I$"&$G$1),INDIRECT("$l$4:$l$"&$G$1)),"") -> -0.002219187121 | V41: 1146125 | W41: =IFERROR(_xlfn.XLOOKUP(V41,INDIRECT($X$1&"[מספר קרן]"),INDIRECT($X$1&"[ESG_DB]")),0) -> 65.51 | X41: 5124516 | Y41: =IFERROR(_xlfn.XLOOKUP(X41,INDIRECT($X$1&"[מספר קרן]"),INDIRECT($X$1&"[ESG_DB]")),0) -> 71.23 | AA41: 1146125 | AB41: =IF(AA41="","last",IF(_xlfn.XLOOKUP(AA41,INDIRECT($X$1&"[מספר קרן]"),INDIRECT($X$1&"[ESG_DB]"),0)="לא מדורג",0,_xlfn.XLOOKUP(AA41,INDIRECT($X$1&"[מספר קרן]"),INDIRECT($X$1&"[ESG_DB]"),0))) -> 65.51 | AD41: 38 | AE41: 1146513 | AF41: =IFERROR(_xlfn.XLOOKUP(AE41,INDIRECT($X$1&"[מספר קרן]"),INDIRECT($X$1&"[שם קרן]")),"") -> קסם DAX (4D) ETF | AG41: =IFERROR(IF(_xlfn.XLOOKUP($AE41,INDIRECT($AG$3&"[מספר קרן]"),INDIRECT($AG$3&"[ESG_DB]"))="לא מדורג","",_xlfn.XLOOKUP($AE41,INDIRECT($AG$3&"[מספר קרן]"),INDIRECT($AG$3&"[ESG_DB]"))),"last") -> 86.5 | AH41: =IFERROR(IF(_xlfn.XLOOKUP($AE41,INDIRECT($AG$3&"[מספר קרן]"),INDIRECT($AG$3&"[ESG_DB]"))="לא מדורג","",_xlfn.XLOOKUP($AE41,INDIRECT($AG$3&"[מספר קרן]"),INDIRECT($AG$3&"[ESG_DB]"))),"last") -> 86.5 | AI41: 1 | AJ41: גבוה | AK41: גבוה | AL41: מניות בחו"ל
A42: 5117957 | B42: =IFERROR(_xlfn.XLOOKUP(A42,INDIRECT($X$1&"[מספר קרן]"),INDIRECT($X$1&"[ESG_DB]")),0) -> 37.06 | C42: 1147115 | D42: 89.35 | E42: =IFERROR(_xlfn.XLOOKUP(C42,INDIRECT($X$1&"[מספר קרן]"),INDIRECT($X$1&"[דירוג ספיר]")),0) -> לא מדורג | G42: 39 | H42: 1147115 | I42: =IFERROR(_xlfn.XLOOKUP(H42,INDIRECT($I$2&"[מספר קרן]"),INDIRECT($I$2&"[שם קרן]")),"") -> קסם EURO STOXX Dividend 30 (4A) ETF מנוטרלת מט"ח | J42: =IFERROR(IF(_xlfn.XLOOKUP($H42,INDIRECT($J$3&"[מספר קרן]"),INDIRECT($J$3&"[ESG_DB]"))="לא מדורג","",_xlfn.XLOOKUP($H42,INDIRECT($J$3&"[מספר קרן]"),INDIRECT($J$3&"[ESG_DB]"))),"") -> 89.35 | K42: =IFERROR(IF(_xlfn.XLOOKUP($H42,INDIRECT($K$3&"[מספר קרן]"),INDIRECT($K$3&"[ESG_DB]"))="לא מדורג","",_xlfn.XLOOKUP($H42,INDIRECT($K$3&"[מספר קרן]"),INDIRECT($K$3&"[ESG_DB]"))),"") -> 89.48655257 | L42: -0.001525956284 | M42: גבוה | N42: גבוה | O42: =IFERROR(_xlfn.XLOOKUP(H42,INDIRECT("$c$4:$c$"&$G$1),INDIRECT("$e$4:$e$"&$G$1)),"") -> לא מדורג | P42: תכלית TTF י(00) תל בונד צמודות-בנקים | R42: =IFERROR(_xlfn.XLOOKUP(P42,INDIRECT("$I$4:$I$"&$G$1),INDIRECT("$J$4:$J$"&$G$1)),"") -> 97.3 | S42: =IFERROR(_xlfn.XLOOKUP(P42,INDIRECT("$I$4:$I$"&$G$1),INDIRECT("$m$4:$m$"&$G$1)),"") -> גבוה | T42: ירוק | U42: =IFERROR(_xlfn.XLOOKUP(P42,INDIRECT("$I$4:$I$"&$G$1),INDIRECT("$l$4:$l$"&$G$1)),"") -> -0.002219187121 | V42: 1146331 | W42: =IFERROR(_xlfn.XLOOKUP(V42,INDIRECT($X$1&"[מספר קרן]"),INDIRECT($X$1&"[ESG_DB]")),0) -> 37.79 | X42: 5124557 | Y42: =IFERROR(_xlfn.XLOOKUP(X42,INDIRECT($X$1&"[מספר קרן]"),INDIRECT($X$1&"[ESG_DB]")),0) -> 86.5 | AA42: 1146331 | AB42: =IF(AA42="","last",IF(_xlfn.XLOOKUP(AA42,INDIRECT($X$1&"[מספר קרן]"),INDIRECT($X$1&"[ESG_DB]"),0)="לא מדורג",0,_xlfn.XLOOKUP(AA42,INDIRECT($X$1&"[מספר קרן]"),INDIRECT($X$1&"[ESG_DB]"),0))) -> 37.79 | AD42: 39 | AE42: 1149053 | AF42: =IFERROR(_xlfn.XLOOKUP(AE42,INDIRECT($X$1&"[מספר קרן]"),INDIRECT($X$1&"[שם קרן]")),"") -> הראל סל (4D) ‏DAX | AG42: =IFERROR(IF(_xlfn.XLOOKUP($AE42,INDIRECT($AG$3&"[מספר קרן]"),INDIRECT($AG$3&"[ESG_DB]"))="לא מדורג","",_xlfn.XLOOKUP($AE42,INDIRECT($AG$3&"[מספר קרן]"),INDIRECT($AG$3&"[ESG_DB]"))),"last") -> 86.5 | AH42: =IFERROR(IF(_xlfn.XLOOKUP($AE42,INDIRECT($AG$3&"[מספר קרן]"),INDIRECT($AG$3&"[ESG_DB]"))="לא מדורג","",_xlfn.XLOOKUP($AE42,INDIRECT($AG$3&"[מספר קרן]"),INDIRECT($AG$3&"[ESG_DB]"))),"last") -> 86.5 | AI42: 1 | AJ42: גבוה | AK42: גבוה | AL42: מניות בחו"ל
A43: 5118120 | B43: =IFERROR(_xlfn.XLOOKUP(A43,INDIRECT($X$1&"[מספר קרן]"),INDIRECT($X$1&"[ESG_DB]")),0) -> 37.06 | C43: 5135280 | D43: 89.35 | E43: =IFERROR(_xlfn.XLOOKUP(C43,INDIRECT($X$1&"[מספר קרן]"),INDIRECT($X$1&"[דירוג ספיר]")),0) -> לא מדורג | G43: 40 | H43: 5135280 | I43: =IFERROR(_xlfn.XLOOKUP(H43,INDIRECT($I$2&"[מספר קרן]"),INDIRECT($I$2&"[שם קרן]")),"") -> PTFי (4A)י EURO STOXX Dividend 30 מנוטרלת מט"ח | J43: =IFERROR(IF(_xlfn.XLOOKUP($H43,INDIRECT($J$3&"[מספר קרן]"),INDIRECT($J$3&"[ESG_DB]"))="לא מדורג","",_xlfn.XLOOKUP($H43,INDIRECT($J$3&"[מספר קרן]"),INDIRECT($J$3&"[ESG_DB]"))),"") -> 89.35 | K43: =IFERROR(IF(_xlfn.XLOOKUP($H43,INDIRECT($K$3&"[מספר קרן]"),INDIRECT($K$3&"[ESG_DB]"))="לא מדורג","",_xlfn.XLOOKUP($H43,INDIRECT($K$3&"[מספר קרן]"),INDIRECT($K$3&"[ESG_DB]"))),"") -> 89.48655257 | L43: -0.001525956284 | M43: גבוה | N43: גבוה | O43: =IFERROR(_xlfn.XLOOKUP(H43,INDIRECT("$c$4:$c$"&$G$1),INDIRECT("$e$4:$e$"&$G$1)),"") -> לא מדורג | P43: תכלית סל (00) תל בונד צמודות בנקים | R43: =IFERROR(_xlfn.XLOOKUP(P43,INDIRECT("$I$4:$I$"&$G$1),INDIRECT("$J$4:$J$"&$G$1)),"") -> 97.3 | S43: =IFERROR(_xlfn.XLOOKUP(P43,INDIRECT("$I$4:$I$"&$G$1),INDIRECT("$m$4:$m$"&$G$1)),"") -> גבוה | T43: ירוק | U43: =IFERROR(_xlfn.XLOOKUP(P43,INDIRECT("$I$4:$I$"&$G$1),INDIRECT("$l$4:$l$"&$G$1)),"") -> -0.002219187121 | V43: 1146356 | W43: =IFERROR(_xlfn.XLOOKUP(V43,INDIRECT($X$1&"[מספר קרן]"),INDIRECT($X$1&"[ESG_DB]")),0) -> 66.99 | X43: 5124581 | Y43: =IFERROR(_xlfn.XLOOKUP(X43,INDIRECT($X$1&"[מספר קרן]"),INDIRECT($X$1&"[ESG_DB]")),0) -> 67.11 | AA43: 1146356 | AB43: =IF(AA43="","last",IF(_xlfn.XLOOKUP(AA43,INDIRECT($X$1&"[מספר קרן]"),INDIRECT($X$1&"[ESG_DB]"),0)="לא מדורג",0,_xlfn.XLOOKUP(AA43,INDIRECT($X$1&"[מספר קרן]"),INDIRECT($X$1&"[ESG_DB]"),0))) -> 66.99 | AD43: 40 | AE43: 1150861 | AF43: =IFERROR(_xlfn.XLOOKUP(AE43,INDIRECT($X$1&"[מספר קרן]"),INDIRECT($X$1&"[שם קרן]")),"") -> MTF סל (DAX (4D | AG43: =IFERROR(IF(_xlfn.XLOOKUP($AE43,INDIRECT($AG$3&"[מספר קרן]"),INDIRECT($AG$3&"[ESG_DB]"))="לא מדורג","",_xlfn.XLOOKUP($AE43,INDIRECT($AG$3&"[מספר קרן]"),INDIRECT($AG$3&"[ESG_DB]"))),"last") -> 86.5 | AH43: =IFERROR(IF(_xlfn.XLOOKUP($AE43,INDIRECT($AG$3&"[מספר קרן]"),INDIRECT($AG$3&"[ESG_DB]"))="לא מדורג","",_xlfn.XLOOKUP($AE43,INDIRECT($AG$3&"[מספר קרן]"),INDIRECT($AG$3&"[ESG_DB]"))),"last") -> 86.5 | AI43: 1 | AJ43: גבוה | AK43: גבוה | AL43: מניות בחו"ל
A44: 5126818 | B44: =IFERROR(_xlfn.XLOOKUP(A44,INDIRECT($X$1&"[מספר קרן]"),INDIRECT($X$1&"[ESG_DB]")),0) -> 37.06 | C44: 1144880 | D44: 88.82 | E44: =IFERROR(_xlfn.XLOOKUP(C44,INDIRECT($X$1&"[מספר קרן]"),INDIRECT($X$1&"[דירוג ספיר]")),0) -> לא מדורג | G44: 41 | H44: 1144880 | I44: =IFERROR(_xlfn.XLOOKUP(H44,INDIRECT($I$2&"[מספר קרן]"),INDIRECT($I$2&"[שם קרן]")),"") -> תכלית סל (4A)י S&P Euro High Yield Dividend Aristocrats מנוטרלת מט"ח | J44: =IFERROR(IF(_xlfn.XLOOKUP($H44,INDIRECT($J$3&"[מספר קרן]"),INDIRECT($J$3&"[ESG_DB]"))="לא מדורג","",_xlfn.XLOOKUP($H44,INDIRECT($J$3&"[מספר קרן]"),INDIRECT($J$3&"[ESG_DB]"))),"") -> 88.82 | K44: =IFERROR(IF(_xlfn.XLOOKUP($H44,INDIRECT($K$3&"[מספר קרן]"),INDIRECT($K$3&"[ESG_DB]"))="לא מדורג","",_xlfn.XLOOKUP($H44,INDIRECT($K$3&"[מספר קרן]"),INDIRECT($K$3&"[ESG_DB]"))),"") -> 88.95894994 | L44: -0.001561955736 | M44: גבוה | N44: גבוה | O44: =IFERROR(_xlfn.XLOOKUP(H44,INDIRECT("$c$4:$c$"&$G$1),INDIRECT("$e$4:$e$"&$G$1)),"") -> לא מדורג | P44: הראל מחקה (00) תל בונד צמודות-בנקים | R44: =IFERROR(_xlfn.XLOOKUP(P44,INDIRECT("$I$4:$I$"&$G$1),INDIRECT("$J$4:$J$"&$G$1)),"") -> 97.3 | S44: =IFERROR(_xlfn.XLOOKUP(P44,INDIRECT("$I$4:$I$"&$G$1),INDIRECT("$m$4:$m$"&$G$1)),"") -> גבוה | T44: ירוק | U44: =IFERROR(_xlfn.XLOOKUP(P44,INDIRECT("$I$4:$I$"&$G$1),INDIRECT("$l$4:$l$"&$G$1)),"") -> -0.002219187121 | V44: 1146364 | W44: =IFERROR(_xlfn.XLOOKUP(V44,INDIRECT($X$1&"[מספר קרן]"),INDIRECT($X$1&"[ESG_DB]")),0) -> 35.68 | X44: 5124003 | Y44: =IFERROR(_xlfn.XLOOKUP(X44,INDIRECT($X$1&"[מספר קרן]"),INDIRECT($X$1&"[ESG_DB]")),0) -> לא מדורג | AA44: 1146364 | AB44: =IF(AA44="","last",IF(_xlfn.XLOOKUP(AA44,INDIRECT($X$1&"[מספר קרן]"),INDIRECT($X$1&"[ESG_DB]"),0)="לא מדורג",0,_xlfn.XLOOKUP(AA44,INDIRECT($X$1&"[מספר קרן]"),INDIRECT($X$1&"[ESG_DB]"),0))) -> 35.68 | AD44: 41 | AE44: 1143825 | AF44: =IFERROR(_xlfn.XLOOKUP(AE44,INDIRECT($X$1&"[מספר קרן]"),INDIRECT($X$1&"[שם קרן]")),"") -> תכלית סל (4A)י DAX מנוטרלת מט"ח | AG44: =IFERROR(IF(_xlfn.XLOOKUP($AE44,INDIRECT($AG$3&"[מספר קרן]"),INDIRECT($AG$3&"[ESG_DB]"))="לא מדורג","",_xlfn.XLOOKUP($AE44,INDIRECT($AG$3&"[מספר קרן]"),INDIRECT($AG$3&"[ESG_DB]"))),"last") -> 86.5 | AH44: =IFERROR(IF(_xlfn.XLOOKUP($AE44,INDIRECT($AG$3&"[מספר קרן]"),INDIRECT($AG$3&"[ESG_DB]"))="לא מדורג","",_xlfn.XLOOKUP($AE44,INDIRECT($AG$3&"[מספר קרן]"),INDIRECT($AG$3&"[ESG_DB]"))),"last") -> 86.5 | AI44: 1 | AJ44: גבוה | AK44: גבוה | AL44: מניות בחו"ל
A45: 5112586 | B45: =IFERROR(_xlfn.XLOOKUP(A45,INDIRECT($X$1&"[מספר קרן]"),INDIRECT($X$1&"[ESG_DB]")),0) -> 57.96 | C45: 5135975 | D45: 87.52 | E45: =IFERROR(_xlfn.XLOOKUP(C45,INDIRECT($X$1&"[מספר קרן]"),INDIRECT($X$1&"[דירוג ספיר]")),0) -> ירוק | G45: 42 | H45: 5135975 | I45: =IFERROR(_xlfn.XLOOKUP(H45,INDIRECT($I$2&"[מספר קרן]"),INDIRECT($I$2&"[שם קרן]")),"") -> אנליסט ATF מחקה (00) אינדקס אג"ח בנקים וחב` ממשלתיות | J45: =IFERROR(IF(_xlfn.XLOOKUP($H45,INDIRECT($J$3&"[מספר קרן]"),INDIRECT($J$3&"[ESG_DB]"))="לא מדורג","",_xlfn.XLOOKUP($H45,INDIRECT($J$3&"[מספר קרן]"),INDIRECT($J$3&"[ESG_DB]"))),"") -> 87.52 | K45: =IFERROR(IF(_xlfn.XLOOKUP($H45,INDIRECT($K$3&"[מספר קרן]"),INDIRECT($K$3&"[ESG_DB]"))="לא מדורג","",_xlfn.XLOOKUP($H45,INDIRECT($K$3&"[מספר קרן]"),INDIRECT($K$3&"[ESG_DB]"))),"") -> 86.84853944 | L45: 0.007731397244 | M45: גבוה | N45: גבוה | O45: =IFERROR(_xlfn.XLOOKUP(H45,INDIRECT("$c$4:$c$"&$G$1),INDIRECT("$e$4:$e$"&$G$1)),"") -> ירוק | P45: PTFי (00) תל בונד צמודות בנקים | R45: =IFERROR(_xlfn.XLOOKUP(P45,INDIRECT("$I$4:$I$"&$G$1),INDIRECT("$J$4:$J$"&$G$1)),"") -> 97.3 | S45: =IFERROR(_xlfn.XLOOKUP(P45,INDIRECT("$I$4:$I$"&$G$1),INDIRECT("$m$4:$m$"&$G$1)),"") -> גבוה | T45: ירוק | U45: =IFERROR(_xlfn.XLOOKUP(P45,INDIRECT("$I$4:$I$"&$G$1),INDIRECT("$l$4:$l$"&$G$1)),"") -> -0.002219187121 | V45: 1146430 | W45: =IFERROR(_xlfn.XLOOKUP(V45,INDIRECT($X$1&"[מספר קרן]"),INDIRECT($X$1&"[ESG_DB]")),0) -> 100 | X45: 5124730 | Y45: =IFERROR(_xlfn.XLOOKUP(X45,INDIRECT($X$1&"[מספר קרן]"),INDIRECT($X$1&"[ESG_DB]")),0) -> 80.93 | AA45: 1146430 | AB45: =IF(AA45="","last",IF(_xlfn.XLOOKUP(AA45,INDIRECT($X$1&"[מספר קרן]"),INDIRECT($X$1&"[ESG_DB]"),0)="לא מדורג",0,_xlfn.XLOOKUP(AA45,INDIRECT($X$1&"[מספר קרן]"),INDIRECT($X$1&"[ESG_DB]"),0))) -> 100 | AD45: 42 | AE45: 1146703 | AF45: =IFERROR(_xlfn.XLOOKUP(AE45,INDIRECT($X$1&"[מספר קרן]"),INDIRECT($X$1&"[שם קרן]")),"") -> קסם DAX (4A) ETF מנוטרלת מט"ח | AG45: =IFERROR(IF(_xlfn.XLOOKUP($AE45,INDIRECT($AG$3&"[מספר קרן]"),INDIRECT($AG$3&"[ESG_DB]"))="לא מדורג","",_xlfn.XLOOKUP($AE45,INDIRECT($AG$3&"[מספר קרן]"),INDIRECT($AG$3&"[ESG_DB]"))),"last") -> 86.5 | AH45: =IFERROR(IF(_xlfn.XLOOKUP($AE45,INDIRECT($AG$3&"[מספר קרן]"),INDIRECT($AG$3&"[ESG_DB]"))="לא מדורג","",_xlfn.XLOOKUP($AE45,INDIRECT($AG$3&"[מספר קרן]"),INDIRECT($AG$3&"[ESG_DB]"))),"last") -> 86.5 | AI45: 1 | AJ45: גבוה | AK45: גבוה | AL45: מניות בחו"ל
A46: 5115738 | B46: =IFERROR(_xlfn.XLOOKUP(A46,INDIRECT($X$1&"[מספר קרן]"),INDIRECT($X$1&"[ESG_DB]")),0) -> 57.96 | C46: 1146000 | D46: 86.97 | E46: =IFERROR(_xlfn.XLOOKUP(C46,INDIRECT($X$1&"[מספר קרן]"),INDIRECT($X$1&"[דירוג ספיר]")),0) -> לא מדורג | G46: 43 | H46: 1146000 | I46: =IFERROR(_xlfn.XLOOKUP(H46,INDIRECT($I$2&"[מספר קרן]"),INDIRECT($I$2&"[שם קרן]")),"") -> קסם STOXX Europe MID 200 (4D) ETF | J46: =IFERROR(IF(_xlfn.XLOOKUP($H46,INDIRECT($J$3&"[מספר קרן]"),INDIRECT($J$3&"[ESG_DB]"))="לא מדורג","",_xlfn.XLOOKUP($H46,INDIRECT($J$3&"[מספר קרן]"),INDIRECT($J$3&"[ESG_DB]"))),"") -> 86.97 | K46: =IFERROR(IF(_xlfn.XLOOKUP($H46,INDIRECT($K$3&"[מספר קרן]"),INDIRECT($K$3&"[ESG_DB]"))="לא מדורג","",_xlfn.XLOOKUP($H46,INDIRECT($K$3&"[מספר קרן]"),INDIRECT($K$3&"[ESG_DB]"))),"") -> 87.10590658 | L46: -0.001560245236 | M46: גבוה | N46: גבוה | O46: =IFERROR(_xlfn.XLOOKUP(H46,INDIRECT("$c$4:$c$"&$G$1),INDIRECT("$e$4:$e$"&$G$1)),"") -> לא מדורג | P46: קסם KTFי (00) תל בונד צמודות-בנקים | R46: =IFERROR(_xlfn.XLOOKUP(P46,INDIRECT("$I$4:$I$"&$G$1),INDIRECT("$J$4:$J$"&$G$1)),"") -> 97.3 | S46: =IFERROR(_xlfn.XLOOKUP(P46,INDIRECT("$I$4:$I$"&$G$1),INDIRECT("$m$4:$m$"&$G$1)),"") -> גבוה | T46: ירוק | U46: =IFERROR(_xlfn.XLOOKUP(P46,INDIRECT("$I$4:$I$"&$G$1),INDIRECT("$l$4:$l$"&$G$1)),"") -> -0.002219187121 | V46: 1146539 | W46: =IFERROR(_xlfn.XLOOKUP(V46,INDIRECT($X$1&"[מספר קרן]"),INDIRECT($X$1&"[ESG_DB]")),0) -> 31.34 | X46: 5124573 | Y46: =IFERROR(_xlfn.XLOOKUP(X46,INDIRECT($X$1&"[מספר קרן]"),INDIRECT($X$1&"[ESG_DB]")),0) -> 81.72 | AA46: 1146539 | AB46: =IF(AA46="","last",IF(_xlfn.XLOOKUP(AA46,INDIRECT($X$1&"[מספר קרן]"),INDIRECT($X$1&"[ESG_DB]"),0)="לא מדורג",0,_xlfn.XLOOKUP(AA46,INDIRECT($X$1&"[מספר קרן]"),INDIRECT($X$1&"[ESG_DB]"),0))) -> 31.34 | AD46: 43 | AE46: 1149160 | AF46: =IFERROR(_xlfn.XLOOKUP(AE46,INDIRECT($X$1&"[מספר קרן]"),INDIRECT($X$1&"[שם קרן]")),"") -> הראל סל (4A) ‏DAX מנוטרלת מט"ח | AG46: =IFERROR(IF(_xlfn.XLOOKUP($AE46,INDIRECT($AG$3&"[מספר קרן]"),INDIRECT($AG$3&"[ESG_DB]"))="לא מדורג","",_xlfn.XLOOKUP($AE46,INDIRECT($AG$3&"[מספר קרן]"),INDIRECT($AG$3&"[ESG_DB]"))),"last") -> 86.5 | AH46: =IFERROR(IF(_xlfn.XLOOKUP($AE46,INDIRECT($AG$3&"[מספר קרן]"),INDIRECT($AG$3&"[ESG_DB]"))="לא מדורג","",_xlfn.XLOOKUP($AE46,INDIRECT($AG$3&"[מספר קרן]"),INDIRECT($AG$3&"[ESG_DB]"))),"last") -> 86.5 | AI46: 1 | AJ46: גבוה | AK46: גבוה | AL46: מניות בחו"ל
A47: 5118419 | B47: =IFERROR(_xlfn.XLOOKUP(A47,INDIRECT($X$1&"[מספר קרן]"),INDIRECT($X$1&"[ESG_DB]")),0) -> 75.11 | C47: 1146240 | D47: 86.97 | E47: =IFERROR(_xlfn.XLOOKUP(C47,INDIRECT($X$1&"[מספר קרן]"),INDIRECT($X$1&"[דירוג ספיר]")),0) -> לא מדורג | G47: 44 | H47: 1146240 | I47: =IFERROR(_xlfn.XLOOKUP(H47,INDIRECT($I$2&"[מספר קרן]"),INDIRECT($I$2&"[שם קרן]")),"") -> קסם STOXX Europe MID 200 (4A) ETF מנוטרלת אירו | J47: =IFERROR(IF(_xlfn.XLOOKUP($H47,INDIRECT($J$3&"[מספר קרן]"),INDIRECT($J$3&"[ESG_DB]"))="לא מדורג","",_xlfn.XLOOKUP($H47,INDIRECT($J$3&"[מספר קרן]"),INDIRECT($J$3&"[ESG_DB]"))),"") -> 86.97 | K47: =IFERROR(IF(_xlfn.XLOOKUP($H47,INDIRECT($K$3&"[מספר קרן]"),INDIRECT($K$3&"[ESG_DB]"))="לא מדורג","",_xlfn.XLOOKUP($H47,INDIRECT($K$3&"[מספר קרן]"),INDIRECT($K$3&"[ESG_DB]"))),"") -> 87.10590658 | L47: -0.001560245236 | M47: גבוה | N47: גבוה | O47: =IFERROR(_xlfn.XLOOKUP(H47,INDIRECT("$c$4:$c$"&$G$1),INDIRECT("$e$4:$e$"&$G$1)),"") -> לא מדורג | P47: הראל סל (00) תל בונד צמודות-בנקים | R47: =IFERROR(_xlfn.XLOOKUP(P47,INDIRECT("$I$4:$I$"&$G$1),INDIRECT("$J$4:$J$"&$G$1)),"") -> 97.3 | S47: =IFERROR(_xlfn.XLOOKUP(P47,INDIRECT("$I$4:$I$"&$G$1),INDIRECT("$m$4:$m$"&$G$1)),"") -> גבוה | T47: ירוק | U47: =IFERROR(_xlfn.XLOOKUP(P47,INDIRECT("$I$4:$I$"&$G$1),INDIRECT("$l$4:$l$"&$G$1)),"") -> -0.002219187121 | V47: 1146547 | W47: =IFERROR(_xlfn.XLOOKUP(V47,INDIRECT($X$1&"[מספר קרן]"),INDIRECT($X$1&"[ESG_DB]")),0) -> 33.84 | X47: 5125059 | Y47: =IFERROR(_xlfn.XLOOKUP(X47,INDIRECT($X$1&"[מספר קרן]"),INDIRECT($X$1&"[ESG_DB]")),0) -> לא מדורג | AA47: 1146547 | AB47: =IF(AA47="","last",IF(_xlfn.XLOOKUP(AA47,INDIRECT($X$1&"[מספר קרן]"),INDIRECT($X$1&"[ESG_DB]"),0)="לא מדורג",0,_xlfn.XLOOKUP(AA47,INDIRECT($X$1&"[מספר קרן]"),INDIRECT($X$1&"[ESG_DB]"),0))) -> 33.84 | AD47: 44 | AE47: 1149830 | AF47: =IFERROR(_xlfn.XLOOKUP(AE47,INDIRECT($X$1&"[מספר קרן]"),INDIRECT($X$1&"[שם קרן]")),"") -> פסגות DAX (4A) ETF מנוטרלת מט"ח | AG47: =IFERROR(IF(_xlfn.XLOOKUP($AE47,INDIRECT($AG$3&"[מספר קרן]"),INDIRECT($AG$3&"[ESG_DB]"))="לא מדורג","",_xlfn.XLOOKUP($AE47,INDIRECT($AG$3&"[מספר קרן]"),INDIRECT($AG$3&"[ESG_DB]"))),"last") -> 86.5 | AH47: =IFERROR(IF(_xlfn.XLOOKUP($AE47,INDIRECT($AG$3&"[מספר קרן]"),INDIRECT($AG$3&"[ESG_DB]"))="לא מדורג","",_xlfn.XLOOKUP($AE47,INDIRECT($AG$3&"[מספר קרן]"),INDIRECT($AG$3&"[ESG_DB]"))),"last") -> 86.5 | AI47: 1 | AJ47: גבוה | AK47: גבוה | AL47: מניות בחו"ל
A48: 5118559 | B48: =IFERROR(_xlfn.XLOOKUP(A48,INDIRECT($X$1&"[מספר קרן]"),INDIRECT($X$1&"[ESG_DB]")),0) -> 97.3 | C48: 5121470 | D48: 86.5 | E48: =IFERROR(_xlfn.XLOOKUP(C48,INDIRECT($X$1&"[מספר קרן]"),INDIRECT($X$1&"[דירוג ספיר]")),0) -> צהוב | G48: 45 | H48: 5121470 | I48: =IFERROR(_xlfn.XLOOKUP(H48,INDIRECT($I$2&"[מספר קרן]"),INDIRECT($I$2&"[שם קרן]")),"") -> אי.בי.אי. מחקה (4A)י DAX מנוטרלת מט"ח | J48: =IFERROR(IF(_xlfn.XLOOKUP($H48,INDIRECT($J$3&"[מספר קרן]"),INDIRECT($J$3&"[ESG_DB]"))="לא מדורג","",_xlfn.XLOOKUP($H48,INDIRECT($J$3&"[מספר קרן]"),INDIRECT($J$3&"[ESG_DB]"))),"") -> 86.5 | K48: =IFERROR(IF(_xlfn.XLOOKUP($H48,INDIRECT($K$3&"[מספר קרן]"),INDIRECT($K$3&"[ESG_DB]"))="לא מדורג","",_xlfn.XLOOKUP($H48,INDIRECT($K$3&"[מספר קרן]"),INDIRECT($K$3&"[ESG_DB]"))),"") -> 86.62977738 | L48: -0.001498068925 | M48: גבוה | N48: גבוה | O48: =IFERROR(_xlfn.XLOOKUP(H48,INDIRECT("$c$4:$c$"&$G$1),INDIRECT("$e$4:$e$"&$G$1)),"") -> צהוב | P48: MTF מחקה (00) אינדקס צמודות בנקים וביטוח | R48: =IFERROR(_xlfn.XLOOKUP(P48,INDIRECT("$I$4:$I$"&$G$1),INDIRECT("$J$4:$J$"&$G$1)),"") -> 94.28 | S48: =IFERROR(_xlfn.XLOOKUP(P48,INDIRECT("$I$4:$I$"&$G$1),INDIRECT("$m$4:$m$"&$G$1)),"") -> גבוה | T48: ירוק | U48: =IFERROR(_xlfn.XLOOKUP(P48,INDIRECT("$I$4:$I$"&$G$1),INDIRECT("$l$4:$l$"&$G$1)),"") -> -0.006980374085 | V48: 1146554 | W48: =IFERROR(_xlfn.XLOOKUP(V48,INDIRECT($X$1&"[מספר קרן]"),INDIRECT($X$1&"[ESG_DB]")),0) -> 77.99 | X48: 5125158 | Y48: =IFERROR(_xlfn.XLOOKUP(X48,INDIRECT($X$1&"[מספר קרן]"),INDIRECT($X$1&"[ESG_DB]")),0) -> 86.5 | AA48: 1146554 | AB48: =IF(AA48="","last",IF(_xlfn.XLOOKUP(AA48,INDIRECT($X$1&"[מספר קרן]"),INDIRECT($X$1&"[ESG_DB]"),0)="לא מדורג",0,_xlfn.XLOOKUP(AA48,INDIRECT($X$1&"[מספר קרן]"),INDIRECT($X$1&"[ESG_DB]"),0))) -> 77.99 | AD48: 45 | AE48: 1150416 | AF48: =IFERROR(_xlfn.XLOOKUP(AE48,INDIRECT($X$1&"[מספר קרן]"),INDIRECT($X$1&"[שם קרן]")),"") -> MTF סל (DAX (4A מנוטרלת מט"ח | AG48: =IFERROR(IF(_xlfn.XLOOKUP($AE48,INDIRECT($AG$3&"[מספר קרן]"),INDIRECT($AG$3&"[ESG_DB]"))="לא מדורג","",_xlfn.XLOOKUP($AE48,INDIRECT($AG$3&"[מספר קרן]"),INDIRECT($AG$3&"[ESG_DB]"))),"last") -> 86.5 | AH48: =IFERROR(IF(_xlfn.XLOOKUP($AE48,INDIRECT($AG$3&"[מספר קרן]"),INDIRECT($AG$3&"[ESG_DB]"))="לא מדורג","",_xlfn.XLOOKUP($AE48,INDIRECT($AG$3&"[מספר קרן]"),INDIRECT($AG$3&"[ESG_DB]"))),"last") -> 86.5 | AI48: 1 | AJ48: גבוה | AK48: גבוה | AL48: מניות בחו"ל
A49: 5118450 | B49: =IFERROR(_xlfn.XLOOKUP(A49,INDIRECT($X$1&"[מספר קרן]"),INDIRECT($X$1&"[ESG_DB]")),0) -> 51.25 | C49: 5124557 | D49: 86.5 | E49: =IFERROR(_xlfn.XLOOKUP(C49,INDIRECT($X$1&"[מספר קרן]"),INDIRECT($X$1&"[דירוג ספיר]")),0) -> ירוק | G49: 46 | H49: 5124557 | I49: =IFERROR(_xlfn.XLOOKUP(H49,INDIRECT($I$2&"[מספר קרן]"),INDIRECT($I$2&"[שם קרן]")),"") -> תכלית DAX (4D) TTF | J49: =IFERROR(IF(_xlfn.XLOOKUP($H49,INDIRECT($J$3&"[מספר קרן]"),INDIRECT($J$3&"[ESG_DB]"))="לא מדורג","",_xlfn.XLOOKUP($H49,INDIRECT($J$3&"[מספר קרן]"),INDIRECT($J$3&"[ESG_DB]"))),"") -> 86.5 | K49: =IFERROR(IF(_xlfn.XLOOKUP($H49,INDIRECT($K$3&"[מספר קרן]"),INDIRECT($K$3&"[ESG_DB]"))="לא מדורג","",_xlfn.XLOOKUP($H49,INDIRECT($K$3&"[מספר קרן]"),INDIRECT($K$3&"[ESG_DB]"))),"") -> 86.62977738 | L49: -0.001498068925 | M49: גבוה | N49: גבוה | O49: =IFERROR(_xlfn.XLOOKUP(H49,INDIRECT("$c$4:$c$"&$G$1),INDIRECT("$e$4:$e$"&$G$1)),"") -> ירוק | P49: תכלית סל (4D) ‏‏‏MSCI Emerging Markets | R49: =IFERROR(_xlfn.XLOOKUP(P49,INDIRECT("$I$4:$I$"&$G$1),INDIRECT("$J$4:$J$"&$G$1)),"") -> 90.68 | S49: =IFERROR(_xlfn.XLOOKUP(P49,INDIRECT("$I$4:$I$"&$G$1),INDIRECT("$m$4:$m$"&$G$1)),"") -> גבוה | T49: =IFERROR(_xlfn.XLOOKUP(_xlfn.XLOOKUP(P49,$I$4:$I$999,$H$4:$H$999),$C$4:$C$999,$E$4:$E$999),"") -> ירוק | U49: =IFERROR(_xlfn.XLOOKUP(P49,INDIRECT("$I$4:$I$"&$G$1),INDIRECT("$l$4:$l$"&$G$1)),"") -> -0.001594956078 | V49: 1146570 | W49: =IFERROR(_xlfn.XLOOKUP(V49,INDIRECT($X$1&"[מספר קרן]"),INDIRECT($X$1&"[ESG_DB]")),0) -> 76.99 | X49: 5125166 | Y49: =IFERROR(_xlfn.XLOOKUP(X49,INDIRECT($X$1&"[מספר קרן]"),INDIRECT($X$1&"[ESG_DB]")),0) -> 67.11 | AA49: 1146570 | AB49: =IF(AA49="","last",IF(_xlfn.XLOOKUP(AA49,INDIRECT($X$1&"[מספר קרן]"),INDIRECT($X$1&"[ESG_DB]"),0)="לא מדורג",0,_xlfn.XLOOKUP(AA49,INDIRECT($X$1&"[מספר קרן]"),INDIRECT($X$1&"[ESG_DB]"),0))) -> 76.99 | AD49: 46 | AE49: 1147123 | AF49: =IFERROR(_xlfn.XLOOKUP(AE49,INDIRECT($X$1&"[מספר קרן]"),INDIRECT($X$1&"[שם קרן]")),"") -> קסם EURO STOXX Banks (4A) ETF מנוטרלת מט"ח | AG49: =IFERROR(IF(_xlfn.XLOOKUP($AE49,INDIRECT($AG$3&"[מספר קרן]"),INDIRECT($AG$3&"[ESG_DB]"))="לא מדורג","",_xlfn.XLOOKUP($AE49,INDIRECT($AG$3&"[מספר קרן]"),INDIRECT($AG$3&"[ESG_DB]"))),"last") -> 85.22 | AH49: =IFERROR(IF(_xlfn.XLOOKUP($AE49,INDIRECT($AG$3&"[מספר קרן]"),INDIRECT($AG$3&"[ESG_DB]"))="לא מדורג","",_xlfn.XLOOKUP($AE49,INDIRECT($AG$3&"[מספר קרן]"),INDIRECT($AG$3&"[ESG_DB]"))),"last") -> 85.22 | AI49: 1 | AJ49: גבוה | AK49: גבוה | AL49: מניות בחו"ל
A50: 5118740 | B50: =IFERROR(_xlfn.XLOOKUP(A50,INDIRECT($X$1&"[מספר קרן]"),INDIRECT($X$1&"[ESG_DB]")),0) -> 37.79 | C50: 5125158 | D50: 86.5 | E50: =IFERROR(_xlfn.XLOOKUP(C50,INDIRECT($X$1&"[מספר קרן]"),INDIRECT($X$1&"[דירוג ספיר]")),0) -> ירוק | G50: 47 | H50: 5125158 | I50: =IFERROR(_xlfn.XLOOKUP(H50,INDIRECT($I$2&"[מספר קרן]"),INDIRECT($I$2&"[שם קרן]")),"") -> קסם DAX (4A) KTF מנוטרלת מט"ח | J50: =IFERROR(IF(_xlfn.XLOOKUP($H50,INDIRECT($J$3&"[מספר קרן]"),INDIRECT($J$3&"[ESG_DB]"))="לא מדורג","",_xlfn.XLOOKUP($H50,INDIRECT($J$3&"[מספר קרן]"),INDIRECT($J$3&"[ESG_DB]"))),"") -> 86.5 | K50: =IFERROR(IF(_xlfn.XLOOKUP($H50,INDIRECT($K$3&"[מספר קרן]"),INDIRECT($K$3&"[ESG_DB]"))="לא מדורג","",_xlfn.XLOOKUP($H50,INDIRECT($K$3&"[מספר קרן]"),INDIRECT($K$3&"[ESG_DB]"))),"") -> 86.62977738 | L50: -0.001498068925 | M50: גבוה | N50: גבוה | O50: =IFERROR(_xlfn.XLOOKUP(H50,INDIRECT("$c$4:$c$"&$G$1),INDIRECT("$e$4:$e$"&$G$1)),"") -> ירוק | P50: הראל סל (4D) ‏MSCI Emerging Markets | V50: 1146885 | W50: =IFERROR(_xlfn.XLOOKUP(V50,INDIRECT($X$1&"[מספר קרן]"),INDIRECT($X$1&"[ESG_DB]")),0) -> 48.27 | X50: 5125174 | Y50: =IFERROR(_xlfn.XLOOKUP(X50,INDIRECT($X$1&"[מספר קרן]"),INDIRECT($X$1&"[ESG_DB]")),0) -> 61.48 | AA50: 1146885 | AB50: =IF(AA50="","last",IF(_xlfn.XLOOKUP(AA50,INDIRECT($X$1&"[מספר קרן]"),INDIRECT($X$1&"[ESG_DB]"),0)="לא מדורג",0,_xlfn.XLOOKUP(AA50,INDIRECT($X$1&"[מספר קרן]"),INDIRECT($X$1&"[ESG_DB]"),0))) -> 48.27 | AD50: 47 | AE50: 5132311 | AF50: =IFERROR(_xlfn.XLOOKUP(AE50,INDIRECT($X$1&"[מספר קרן]"),INDIRECT($X$1&"[שם קרן]")),"") -> WisdomTree Europe Equity (4A) PTF מנוטרלת מט"ח | AG50: =IFERROR(IF(_xlfn.XLOOKUP($AE50,INDIRECT($AG$3&"[מספר קרן]"),INDIRECT($AG$3&"[ESG_DB]"))="לא מדורג","",_xlfn.XLOOKUP($AE50,INDIRECT($AG$3&"[מספר קרן]"),INDIRECT($AG$3&"[ESG_DB]"))),"last") -> 84.97 | AH50: =IFERROR(IF(_xlfn.XLOOKUP($AE50,INDIRECT($AG$3&"[מספר קרן]"),INDIRECT($AG$3&"[ESG_DB]"))="לא מדורג","",_xlfn.XLOOKUP($AE50,INDIRECT($AG$3&"[מספר קרן]"),INDIRECT($AG$3&"[ESG_DB]"))),"last") -> 84.97 | AI50: 1 | AJ50: גבוה | AK50: גבוה | AL50: מניות בחו"ל
A51: 5118757 | B51: =IFERROR(_xlfn.XLOOKUP(A51,INDIRECT($X$1&"[מספר קרן]"),INDIRECT($X$1&"[ESG_DB]")),0) -> 97.3 | C51: 5127543 | D51: 86.5 | E51: =IFERROR(_xlfn.XLOOKUP(C51,INDIRECT($X$1&"[מספר קרן]"),INDIRECT($X$1&"[דירוג ספיר]")),0) -> ירוק | G51: 48 | H51: 5127543 | I51: =IFERROR(_xlfn.XLOOKUP(H51,INDIRECT($I$2&"[מספר קרן]"),INDIRECT($I$2&"[שם קרן]")),"") -> קסם DAX (4D) KTF | J51: =IFERROR(IF(_xlfn.XLOOKUP($H51,INDIRECT($J$3&"[מספר קרן]"),INDIRECT($J$3&"[ESG_DB]"))="לא מדורג","",_xlfn.XLOOKUP($H51,INDIRECT($J$3&"[מספר קרן]"),INDIRECT($J$3&"[ESG_DB]"))),"") -> 86.5 | K51: =IFERROR(IF(_xlfn.XLOOKUP($H51,INDIRECT($K$3&"[מספר קרן]"),INDIRECT($K$3&"[ESG_DB]"))="לא מדורג","",_xlfn.XLOOKUP($H51,INDIRECT($K$3&"[מספר קרן]"),INDIRECT($K$3&"[ESG_DB]"))),"") -> 86.62977738 | L51: -0.001498068925 | M51: גבוה | N51: גבוה | O51: =IFERROR(_xlfn.XLOOKUP(H51,INDIRECT("$c$4:$c$"&$G$1),INDIRECT("$e$4:$e$"&$G$1)),"") -> ירוק | P51: גבוה | Q51: =COUNTIF($M$4:$M$1000,P51) -> 304 | R51: =N3 -> פברואר | V51: 1146893 | W51: =IFERROR(_xlfn.XLOOKUP(V51,INDIRECT($X$1&"[מספר קרן]"),INDIRECT($X$1&"[ESG_DB]")),0) -> 35.71 | X51: 5125182 | Y51: =IFERROR(_xlfn.XLOOKUP(X51,INDIRECT($X$1&"[מספר קרן]"),INDIRECT($X$1&"[ESG_DB]")),0) -> 77.81 | AA51: 1146893 | AB51: =IF(AA51="","last",IF(_xlfn.XLOOKUP(AA51,INDIRECT($X$1&"[מספר קרן]"),INDIRECT($X$1&"[ESG_DB]"),0)="לא מדורג",0,_xlfn.XLOOKUP(AA51,INDIRECT($X$1&"[מספר קרן]"),INDIRECT($X$1&"[ESG_DB]"),0))) -> 35.71 | AD51: 48 | AE51: 5122288 | AF51: =IFERROR(_xlfn.XLOOKUP(AE51,INDIRECT($X$1&"[מספר קרן]"),INDIRECT($X$1&"[שם קרן]")),"") -> MTF מחקה‏ (4A) משולבת ת"א 125 (70%) ת"א בנקים 5 (30%) חודשי | AG51: =IFERROR(IF(_xlfn.XLOOKUP($AE51,INDIRECT($AG$3&"[מספר קרן]"),INDIRECT($AG$3&"[ESG_DB]"))="לא מדורג","",_xlfn.XLOOKUP($AE51,INDIRECT($AG$3&"[מספר קרן]"),INDIRECT($AG$3&"[ESG_DB]"))),"last") -> 84.93 | AH51: =IFERROR(IF(_xlfn.XLOOKUP($AE51,INDIRECT($AG$3&"[מספר קרן]"),INDIRECT($AG$3&"[ESG_DB]"))="לא מדורג","",_xlfn.XLOOKUP($AE51,INDIRECT($AG$3&"[מספר קרן]"),INDIRECT($AG$3&"[ESG_DB]"))),"last") -> 84.93 | AI51: 1 | AJ51: גבוה | AK51: גבוה | AL51: מניות בארץ | AO51: גבוה | AP51: =COUNTIF($AJ$4:$AJ$500,AO51) -> 240 | AQ51: =AM3 -> 0
A52: 5117346 | B52: =IFERROR(_xlfn.XLOOKUP(A52,INDIRECT($X$1&"[מספר קרן]"),INDIRECT($X$1&"[ESG_DB]")),0) -> 68.71 | C52: 5127501 | D52: 86.5 | E52: =IFERROR(_xlfn.XLOOKUP(C52,INDIRECT($X$1&"[מספר קרן]"),INDIRECT($X$1&"[דירוג ספיר]")),0) -> ירוק | G52: 49 | H52: 5127501 | I52: =IFERROR(_xlfn.XLOOKUP(H52,INDIRECT($I$2&"[מספר קרן]"),INDIRECT($I$2&"[שם קרן]")),"") -> הראל מחקה (4A)י Dax - מנוטרלת מט"ח | J52: =IFERROR(IF(_xlfn.XLOOKUP($H52,INDIRECT($J$3&"[מספר קרן]"),INDIRECT($J$3&"[ESG_DB]"))="לא מדורג","",_xlfn.XLOOKUP($H52,INDIRECT($J$3&"[מספר קרן]"),INDIRECT($J$3&"[ESG_DB]"))),"") -> 86.5 | K52: =IFERROR(IF(_xlfn.XLOOKUP($H52,INDIRECT($K$3&"[מספר קרן]"),INDIRECT($K$3&"[ESG_DB]"))="לא מדורג","",_xlfn.XLOOKUP($H52,INDIRECT($K$3&"[מספר קרן]"),INDIRECT($K$3&"[ESG_DB]"))),"") -> 86.62977738 | L52: -0.001498068925 | M52: גבוה | N52: גבוה | O52: =IFERROR(_xlfn.XLOOKUP(H52,INDIRECT("$c$4:$c$"&$G$1),INDIRECT("$e$4:$e$"&$G$1)),"") -> ירוק | P52: בינוני | Q52: =COUNTIF($M$4:$M$1000,P52) -> 372 | R52: נשארו גבוה | S52: עלו מבינוני לגבוה | T52: עלו מנמוך לגבוה | V52: 1148774 | W52: =IFERROR(_xlfn.XLOOKUP(V52,INDIRECT($X$1&"[מספר קרן]"),INDIRECT($X$1&"[ESG_DB]")),0) -> 100 | X52: 5125430 | Y52: =IFERROR(_xlfn.XLOOKUP(X52,INDIRECT($X$1&"[מספר קרן]"),INDIRECT($X$1&"[ESG_DB]")),0) -> לא מדורג | AA52: 1148774 | AB52: =IF(AA52="","last",IF(_xlfn.XLOOKUP(AA52,INDIRECT($X$1&"[מספר קרן]"),INDIRECT($X$1&"[ESG_DB]"),0)="לא מדורג",0,_xlfn.XLOOKUP(AA52,INDIRECT($X$1&"[מספר קרן]"),INDIRECT($X$1&"[ESG_DB]"),0))) -> 100 | AD52: 49 | AE52: 5131834 | AF52: =IFERROR(_xlfn.XLOOKUP(AE52,INDIRECT($X$1&"[מספר קרן]"),INDIRECT($X$1&"[שם קרן]")),"") -> DJ US Real Estate (4D) PTF | AG52: =IFERROR(IF(_xlfn.XLOOKUP($AE52,INDIRECT($AG$3&"[מספר קרן]"),INDIRECT($AG$3&"[ESG_DB]"))="לא מדורג","",_xlfn.XLOOKUP($AE52,INDIRECT($AG$3&"[מספר קרן]"),INDIRECT($AG$3&"[ESG_DB]"))),"last") -> 84.72 | AH52: =IFERROR(IF(_xlfn.XLOOKUP($AE52,INDIRECT($AG$3&"[מספר קרן]"),INDIRECT($AG$3&"[ESG_DB]"))="לא מדורג","",_xlfn.XLOOKUP($AE52,INDIRECT($AG$3&"[מספר קרן]"),INDIRECT($AG$3&"[ESG_DB]"))),"last") -> 84.72 | AI52: 1 | AJ52: גבוה | AK52: גבוה | AL52: מניות בחו"ל | AO52: בינוני | AP52: =COUNTIF($AJ$4:$AJ$500,AO52) -> 183 | AQ52: נשארו גבוה | AR52: עלו מבינוני לגבוה | AS52: עלו מנמוך לגבוה
A53: 5118724 | B53: =IFERROR(_xlfn.XLOOKUP(A53,INDIRECT($X$1&"[מספר קרן]"),INDIRECT($X$1&"[ESG_DB]")),0) -> 63.73 | C53: 5127642 | D53: 86.5 | E53: =IFERROR(_xlfn.XLOOKUP(C53,INDIRECT($X$1&"[מספר קרן]"),INDIRECT($X$1&"[דירוג ספיר]")),0) -> ירוק | G53: 50 | H53: 5127642 | I53: =IFERROR(_xlfn.XLOOKUP(H53,INDIRECT($I$2&"[מספר קרן]"),INDIRECT($I$2&"[שם קרן]")),"") -> MTF מחקה (DAX (4D | J53: =IFERROR(IF(_xlfn.XLOOKUP($H53,INDIRECT($J$3&"[מספר קרן]"),INDIRECT($J$3&"[ESG_DB]"))="לא מדורג","",_xlfn.XLOOKUP($H53,INDIRECT($J$3&"[מספר קרן]"),INDIRECT($J$3&"[ESG_DB]"))),"") -> 86.5 | K53: =IFERROR(IF(_xlfn.XLOOKUP($H53,INDIRECT($K$3&"[מספר קרן]"),INDIRECT($K$3&"[ESG_DB]"))="לא מדורג","",_xlfn.XLOOKUP($H53,INDIRECT($K$3&"[מספר קרן]"),INDIRECT($K$3&"[ESG_DB]"))),"") -> 86.62977738 | L53: -0.001498068925 | M53: גבוה | N53: גבוה | O53: =IFERROR(_xlfn.XLOOKUP(H53,INDIRECT("$c$4:$c$"&$G$1),INDIRECT("$e$4:$e$"&$G$1)),"") -> ירוק | P53: נמוך | Q53: =COUNTIF($M$4:$M$1000,P53) -> 123 | V53: 1148808 | W53: =IFERROR(_xlfn.XLOOKUP(V53,INDIRECT($X$1&"[מספר קרן]"),INDIRECT($X$1&"[ESG_DB]")),0) -> 66.99 | X53: 5125612 | Y53: =IFERROR(_xlfn.XLOOKUP(X53,INDIRECT($X$1&"[מספר קרן]"),INDIRECT($X$1&"[ESG_DB]")),0) -> 82.87 | AA53: 1148808 | AB53: =IF(AA53="","last",IF(_xlfn.XLOOKUP(AA53,INDIRECT($X$1&"[מספר קרן]"),INDIRECT($X$1&"[ESG_DB]"),0)="לא מדורג",0,_xlfn.XLOOKUP(AA53,INDIRECT($X$1&"[מספר קרן]"),INDIRECT($X$1&"[ESG_DB]"),0))) -> 66.99 | AD53: 50 | AE53: 5133236 | AF53: =IFERROR(_xlfn.XLOOKUP(AE53,INDIRECT($X$1&"[מספר קרן]"),INDIRECT($X$1&"[שם קרן]")),"") -> אנליסט ATF מחקה (40) אינדקס בנקים וביטוח ישראל | AG53: =IFERROR(IF(_xlfn.XLOOKUP($AE53,INDIRECT($AG$3&"[מספר קרן]"),INDIRECT($AG$3&"[ESG_DB]"))="לא מדורג","",_xlfn.XLOOKUP($AE53,INDIRECT($AG$3&"[מספר קרן]"),INDIRECT($AG$3&"[ESG_DB]"))),"last") -> 83.84 | AH53: =IFERROR(IF(_xlfn.XLOOKUP($AE53,INDIRECT($AG$3&"[מספר קרן]"),INDIRECT($AG$3&"[ESG_DB]"))="לא מדורג","",_xlfn.XLOOKUP($AE53,INDIRECT($AG$3&"[מספר קרן]"),INDIRECT($AG$3&"[ESG_DB]"))),"last") -> 83.84 | AI53: 1 | AJ53: גבוה | AK53: גבוה | AL53: מניות בארץ | AO53: נמוך | AP53: =COUNTIF($AJ$4:$AJ$500,AO53) -> 47
A54: 5118781 | B54: =IFERROR(_xlfn.XLOOKUP(A54,INDIRECT($X$1&"[מספר קרן]"),INDIRECT($X$1&"[ESG_DB]")),0) -> 67.17 | C54: 5127659 | D54: 86.5 | E54: =IFERROR(_xlfn.XLOOKUP(C54,INDIRECT($X$1&"[מספר קרן]"),INDIRECT($X$1&"[דירוג ספיר]")),0) -> ירוק | G54: 51 | H54: 5127659 | I54: =IFERROR(_xlfn.XLOOKUP(H54,INDIRECT($I$2&"[מספר קרן]"),INDIRECT($I$2&"[שם קרן]")),"") -> MTF מחקה (DAX (4A מנוטרלת מט"ח | J54: =IFERROR(IF(_xlfn.XLOOKUP($H54,INDIRECT($J$3&"[מספר קרן]"),INDIRECT($J$3&"[ESG_DB]"))="לא מדורג","",_xlfn.XLOOKUP($H54,INDIRECT($J$3&"[מספר קרן]"),INDIRECT($J$3&"[ESG_DB]"))),"") -> 86.5 | K54: =IFERROR(IF(_xlfn.XLOOKUP($H54,INDIRECT($K$3&"[מספר קרן]"),INDIRECT($K$3&"[ESG_DB]"))="לא מדורג","",_xlfn.XLOOKUP($H54,INDIRECT($K$3&"[מספר קרן]"),INDIRECT($K$3&"[ESG_DB]"))),"") -> 86.62977738 | L54: -0.001498068925 | M54: גבוה | N54: גבוה | O54: =IFERROR(_xlfn.XLOOKUP(H54,INDIRECT("$c$4:$c$"&$G$1),INDIRECT("$e$4:$e$"&$G$1)),"") -> ירוק | Q54: =SUM(Q51:Q53) -> 799 | V54: 1148840 | W54: =IFERROR(_xlfn.XLOOKUP(V54,INDIRECT($X$1&"[מספר קרן]"),INDIRECT($X$1&"[ESG_DB]")),0) -> 37.62 | X54: 5125620 | Y54: =IFERROR(_xlfn.XLOOKUP(X54,INDIRECT($X$1&"[מספר קרן]"),INDIRECT($X$1&"[ESG_DB]")),0) -> 69.09 | AA54: 1148840 | AB54: =IF(AA54="","last",IF(_xlfn.XLOOKUP(AA54,INDIRECT($X$1&"[מספר קרן]"),INDIRECT($X$1&"[ESG_DB]"),0)="לא מדורג",0,_xlfn.XLOOKUP(AA54,INDIRECT($X$1&"[מספר קרן]"),INDIRECT($X$1&"[ESG_DB]"),0))) -> 37.62 | AD54: 51 | AE54: 1144427 | AF54: =IFERROR(_xlfn.XLOOKUP(AE54,INDIRECT($X$1&"[מספר קרן]"),INDIRECT($X$1&"[שם קרן]")),"") -> תכלית סל (4D) ‏‏EURO STOXX 50 | AG54: =IFERROR(IF(_xlfn.XLOOKUP($AE54,INDIRECT($AG$3&"[מספר קרן]"),INDIRECT($AG$3&"[ESG_DB]"))="לא מדורג","",_xlfn.XLOOKUP($AE54,INDIRECT($AG$3&"[מספר קרן]"),INDIRECT($AG$3&"[ESG_DB]"))),"last") -> 83.82 | AH54: =IFERROR(IF(_xlfn.XLOOKUP($AE54,INDIRECT($AG$3&"[מספר קרן]"),INDIRECT($AG$3&"[ESG_DB]"))="לא מדורג","",_xlfn.XLOOKUP($AE54,INDIRECT($AG$3&"[מספר קרן]"),INDIRECT($AG$3&"[ESG_DB]"))),"last") -> 83.82 | AI54: 1 | AJ54: גבוה | AK54: גבוה | AL54: מניות בחו"ל | AP54: =SUM(AP51:AP53) -> 470
A55: 5118997 | B55: =IFERROR(_xlfn.XLOOKUP(A55,INDIRECT($X$1&"[מספר קרן]"),INDIRECT($X$1&"[ESG_DB]")),0) -> 31.34 | C55: 1144104 | D55: 86.5 | E55: =IFERROR(_xlfn.XLOOKUP(C55,INDIRECT($X$1&"[מספר קרן]"),INDIRECT($X$1&"[דירוג ספיר]")),0) -> צהוב | G55: 52 | H55: 1144104 | I55: =IFERROR(_xlfn.XLOOKUP(H55,INDIRECT($I$2&"[מספר קרן]"),INDIRECT($I$2&"[שם קרן]")),"") -> תכלית סל (4D) ‏‏‏DAX | J55: =IFERROR(IF(_xlfn.XLOOKUP($H55,INDIRECT($J$3&"[מספר קרן]"),INDIRECT($J$3&"[ESG_DB]"))="לא מדורג","",_xlfn.XLOOKUP($H55,INDIRECT($J$3&"[מספר קרן]"),INDIRECT($J$3&"[ESG_DB]"))),"") -> 86.5 | K55: =IFERROR(IF(_xlfn.XLOOKUP($H55,INDIRECT($K$3&"[מספר קרן]"),INDIRECT($K$3&"[ESG_DB]"))="לא מדורג","",_xlfn.XLOOKUP($H55,INDIRECT($K$3&"[מספר קרן]"),INDIRECT($K$3&"[ESG_DB]"))),"") -> 86.62977738 | L55: -0.001498068925 | M55: גבוה | N55: גבוה | O55: =IFERROR(_xlfn.XLOOKUP(H55,INDIRECT("$c$4:$c$"&$G$1),INDIRECT("$e$4:$e$"&$G$1)),"") -> צהוב | P55: =M3 -> מרץ | R55: גבוה | S55: בינוני | T55: נמוך | V55: 1148899 | W55: =IFERROR(_xlfn.XLOOKUP(V55,INDIRECT($X$1&"[מספר קרן]"),INDIRECT($X$1&"[ESG_DB]")),0) -> 66.99 | X55: 5125604 | Y55: =IFERROR(_xlfn.XLOOKUP(X55,INDIRECT($X$1&"[מספר קרן]"),INDIRECT($X$1&"[ESG_DB]")),0) -> 61.48 | AA55: 1148899 | AB55: =IF(AA55="","last",IF(_xlfn.XLOOKUP(AA55,INDIRECT($X$1&"[מספר קרן]"),INDIRECT($X$1&"[ESG_DB]"),0)="לא מדורג",0,_xlfn.XLOOKUP(AA55,INDIRECT($X$1&"[מספר קרן]"),INDIRECT($X$1&"[ESG_DB]"),0))) -> 66.99 | AD55: 52 | AE55: 1146406 | AF55: =IFERROR(_xlfn.XLOOKUP(AE55,INDIRECT($X$1&"[מספר קרן]"),INDIRECT($X$1&"[שם קרן]")),"") -> קסם EURO STOXX 50 (4D) ETF | AG55: =IFERROR(IF(_xlfn.XLOOKUP($AE55,INDIRECT($AG$3&"[מספר קרן]"),INDIRECT($AG$3&"[ESG_DB]"))="לא מדורג","",_xlfn.XLOOKUP($AE55,INDIRECT($AG$3&"[מספר קרן]"),INDIRECT($AG$3&"[ESG_DB]"))),"last") -> 83.82 | AH55: =IFERROR(IF(_xlfn.XLOOKUP($AE55,INDIRECT($AG$3&"[מספר קרן]"),INDIRECT($AG$3&"[ESG_DB]"))="לא מדורג","",_xlfn.XLOOKUP($AE55,INDIRECT($AG$3&"[מספר קרן]"),INDIRECT($AG$3&"[ESG_DB]"))),"last") -> 83.82 | AI55: 1 | AJ55: גבוה | AK55: גבוה | AL55: מניות בחו"ל | AQ55: גבוה | AR55: בינוני | AS55: נמוך
A56: 5119318 | B56: =IFERROR(_xlfn.XLOOKUP(A56,INDIRECT($X$1&"[מספר קרן]"),INDIRECT($X$1&"[ESG_DB]")),0) -> 90.68 | C56: 1146513 | D56: 86.5 | E56: =IFERROR(_xlfn.XLOOKUP(C56,INDIRECT($X$1&"[מספר קרן]"),INDIRECT($X$1&"[דירוג ספיר]")),0) -> צהוב | G56: 53 | H56: 1146513 | I56: =IFERROR(_xlfn.XLOOKUP(H56,INDIRECT($I$2&"[מספר קרן]"),INDIRECT($I$2&"[שם קרן]")),"") -> קסם DAX (4D) ETF | J56: =IFERROR(IF(_xlfn.XLOOKUP($H56,INDIRECT($J$3&"[מספר קרן]"),INDIRECT($J$3&"[ESG_DB]"))="לא מדורג","",_xlfn.XLOOKUP($H56,INDIRECT($J$3&"[מספר קרן]"),INDIRECT($J$3&"[ESG_DB]"))),"") -> 86.5 | K56: =IFERROR(IF(_xlfn.XLOOKUP($H56,INDIRECT($K$3&"[מספר קרן]"),INDIRECT($K$3&"[ESG_DB]"))="לא מדורג","",_xlfn.XLOOKUP($H56,INDIRECT($K$3&"[מספר קרן]"),INDIRECT($K$3&"[ESG_DB]"))),"") -> 86.62977738 | L56: -0.001498068925 | M56: גבוה | N56: גבוה | O56: =IFERROR(_xlfn.XLOOKUP(H56,INDIRECT("$c$4:$c$"&$G$1),INDIRECT("$e$4:$e$"&$G$1)),"") -> צהוב | P56: נשארו גבוה | Q56: גבוה | R56: =COUNTIFS(INDIRECT("$M$4:$M$"&$G$1),$Q56,INDIRECT("$N$4:$N$"&$G$1),R$55) -> 286 | S56: 15 | T56: 0 | V56: 1148907 | W56: =IFERROR(_xlfn.XLOOKUP(V56,INDIRECT($X$1&"[מספר קרן]"),INDIRECT($X$1&"[ESG_DB]")),0) -> 76.99 | X56: 5125638 | Y56: =IFERROR(_xlfn.XLOOKUP(X56,INDIRECT($X$1&"[מספר קרן]"),INDIRECT($X$1&"[ESG_DB]")),0) -> 57.25 | AA56: 1148907 | AB56: =IF(AA56="","last",IF(_xlfn.XLOOKUP(AA56,INDIRECT($X$1&"[מספר קרן]"),INDIRECT($X$1&"[ESG_DB]"),0)="לא מדורג",0,_xlfn.XLOOKUP(AA56,INDIRECT($X$1&"[מספר קרן]"),INDIRECT($X$1&"[ESG_DB]"),0))) -> 76.99 | AD56: 53 | AE56: 1149244 | AF56: =IFERROR(_xlfn.XLOOKUP(AE56,INDIRECT($X$1&"[מספר קרן]"),INDIRECT($X$1&"[שם קרן]")),"") -> הראל סל (4D) ‏EURO STOXX 50 | AG56: =IFERROR(IF(_xlfn.XLOOKUP($AE56,INDIRECT($AG$3&"[מספר קרן]"),INDIRECT($AG$3&"[ESG_DB]"))="לא מדורג","",_xlfn.XLOOKUP($AE56,INDIRECT($AG$3&"[מספר קרן]"),INDIRECT($AG$3&"[ESG_DB]"))),"last") -> 83.82 | AH56: =IFERROR(IF(_xlfn.XLOOKUP($AE56,INDIRECT($AG$3&"[מספר קרן]"),INDIRECT($AG$3&"[ESG_DB]"))="לא מדורג","",_xlfn.XLOOKUP($AE56,INDIRECT($AG$3&"[מספר קרן]"),INDIRECT($AG$3&"[ESG_DB]"))),"last") -> 83.82 | AI56: 1 | AJ56: גבוה | AK56: גבוה | AL56: מניות בחו"ל | AN56: =AL3 -> בארץ/בחו"ל | AO56: נשארו גבוה | AP56: גבוה | AQ56: =COUNTIFS(INDIRECT("$AJ$4:$AJ$"&$G$1),$Q56,INDIRECT("$AK$4:$AK$"&$G$1),AQ$55) -> 384 | AR56: 0 | AS56: 0
A57: 5115597 | B57: =IFERROR(_xlfn.XLOOKUP(A57,INDIRECT($X$1&"[מספר קרן]"),INDIRECT($X$1&"[ESG_DB]")),0) -> 51.45 | C57: 1149053 | D57: 86.5 | E57: =IFERROR(_xlfn.XLOOKUP(C57,INDIRECT($X$1&"[מספר קרן]"),INDIRECT($X$1&"[דירוג ספיר]")),0) -> ירוק | G57: 54 | H57: 1149053 | I57: =IFERROR(_xlfn.XLOOKUP(H57,INDIRECT($I$2&"[מספר קרן]"),INDIRECT($I$2&"[שם קרן]")),"") -> הראל סל (4D) ‏DAX | J57: =IFERROR(IF(_xlfn.XLOOKUP($H57,INDIRECT($J$3&"[מספר קרן]"),INDIRECT($J$3&"[ESG_DB]"))="לא מדורג","",_xlfn.XLOOKUP($H57,INDIRECT($J$3&"[מספר קרן]"),INDIRECT($J$3&"[ESG_DB]"))),"") -> 86.5 | K57: =IFERROR(IF(_xlfn.XLOOKUP($H57,INDIRECT($K$3&"[מספר קרן]"),INDIRECT($K$3&"[ESG_DB]"))="לא מדורג","",_xlfn.XLOOKUP($H57,INDIRECT($K$3&"[מספר קרן]"),INDIRECT($K$3&"[ESG_DB]"))),"") -> 86.62977738 | L57: -0.001498068925 | M57: גבוה | N57: גבוה | O57: =IFERROR(_xlfn.XLOOKUP(H57,INDIRECT("$c$4:$c$"&$G$1),INDIRECT("$e$4:$e$"&$G$1)),"") -> ירוק | P57: ירדו מגבוה לבינוני | Q57: בינוני | R57: 0 | S57: 340 | T57: 26 | V57: 1148931 | W57: =IFERROR(_xlfn.XLOOKUP(V57,INDIRECT($X$1&"[מספר קרן]"),INDIRECT($X$1&"[ESG_DB]")),0) -> 37.79 | X57: 5125703 | Y57: =IFERROR(_xlfn.XLOOKUP(X57,INDIRECT($X$1&"[מספר קרן]"),INDIRECT($X$1&"[ESG_DB]")),0) -> לא מדורג | AA57: 1148931 | AB57: =IF(AA57="","last",IF(_xlfn.XLOOKUP(AA57,INDIRECT($X$1&"[מספר קרן]"),INDIRECT($X$1&"[ESG_DB]"),0)="לא מדורג",0,_xlfn.XLOOKUP(AA57,INDIRECT($X$1&"[מספר קרן]"),INDIRECT($X$1&"[ESG_DB]"),0))) -> 37.79 | AD57: 54 | AE57: 1143767 | AF57: =IFERROR(_xlfn.XLOOKUP(AE57,INDIRECT($X$1&"[מספר קרן]"),INDIRECT($X$1&"[שם קרן]")),"") -> תכלית סל (4A)י EURO STOXX 50 מנוטרלת מט"ח | AG57: =IFERROR(IF(_xlfn.XLOOKUP($AE57,INDIRECT($AG$3&"[מספר קרן]"),INDIRECT($AG$3&"[ESG_DB]"))="לא מדורג","",_xlfn.XLOOKUP($AE57,INDIRECT($AG$3&"[מספר קרן]"),INDIRECT($AG$3&"[ESG_DB]"))),"last") -> 83.82 | AH57: =IFERROR(IF(_xlfn.XLOOKUP($AE57,INDIRECT($AG$3&"[מספר קרן]"),INDIRECT($AG$3&"[ESG_DB]"))="לא מדורג","",_xlfn.XLOOKUP($AE57,INDIRECT($AG$3&"[מספר קרן]"),INDIRECT($AG$3&"[ESG_DB]"))),"last") -> 83.82 | AI57: 1 | AJ57: גבוה | AK57: גבוה | AL57: מניות בחו"ל | AO57: ירדו מגבוה לבינוני | AP57: בינוני | AQ57: 0 | AR57: 183 | AS57: 0
A58: 5119151 | B58: =IFERROR(_xlfn.XLOOKUP(A58,INDIRECT($X$1&"[מספר קרן]"),INDIRECT($X$1&"[ESG_DB]")),0) -> 51.45 | C58: 1150861 | D58: 86.5 | E58: =IFERROR(_xlfn.XLOOKUP(C58,INDIRECT($X$1&"[מספר קרן]"),INDIRECT($X$1&"[דירוג ספיר]")),0) -> ירוק | G58: 55 | H58: 1150861 | I58: =IFERROR(_xlfn.XLOOKUP(H58,INDIRECT($I$2&"[מספר קרן]"),INDIRECT($I$2&"[שם קרן]")),"") -> MTF סל (DAX (4D | J58: =IFERROR(IF(_xlfn.XLOOKUP($H58,INDIRECT($J$3&"[מספר קרן]"),INDIRECT($J$3&"[ESG_DB]"))="לא מדורג","",_xlfn.XLOOKUP($H58,INDIRECT($J$3&"[מספר קרן]"),INDIRECT($J$3&"[ESG_DB]"))),"") -> 86.5 | K58: =IFERROR(IF(_xlfn.XLOOKUP($H58,INDIRECT($K$3&"[מספר קרן]"),INDIRECT($K$3&"[ESG_DB]"))="לא מדורג","",_xlfn.XLOOKUP($H58,INDIRECT($K$3&"[מספר קרן]"),INDIRECT($K$3&"[ESG_DB]"))),"") -> 86.62977738 | L58: -0.001498068925 | M58: גבוה | N58: גבוה | O58: =IFERROR(_xlfn.XLOOKUP(H58,INDIRECT("$c$4:$c$"&$G$1),INDIRECT("$e$4:$e$"&$G$1)),"") -> ירוק | P58: ירדו מגבוה לנמוך | Q58: נמוך | R58: =COUNTIFS(INDIRECT("$M$4:$M$"&$G$1),$Q58,INDIRECT("$N$4:$N$"&$G$1),$R$55) -> 0 | S58: =COUNTIFS(INDIRECT("$M$4:$M$"&$G$1),$Q58,INDIRECT("$N$4:$N$"&$G$1),S$55) -> 1 | T58: =COUNTIFS(INDIRECT("$M$4:$M$"&$G$1),$Q58,INDIRECT("$N$4:$N$"&$G$1),T$55) -> 120 | V58: 1148949 | W58: =IFERROR(_xlfn.XLOOKUP(V58,INDIRECT($X$1&"[מספר קרן]"),INDIRECT($X$1&"[ESG_DB]")),0) -> 100 | X58: 5125752 | Y58: =IFERROR(_xlfn.XLOOKUP(X58,INDIRECT($X$1&"[מספר קרן]"),INDIRECT($X$1&"[ESG_DB]")),0) -> לא מדורג | AA58: 1148949 | AB58: =IF(AA58="","last",IF(_xlfn.XLOOKUP(AA58,INDIRECT($X$1&"[מספר קרן]"),INDIRECT($X$1&"[ESG_DB]"),0)="לא מדורג",0,_xlfn.XLOOKUP(AA58,INDIRECT($X$1&"[מספר קרן]"),INDIRECT($X$1&"[ESG_DB]"),0))) -> 100 | AD58: 55 | AE58: 1145952 | AF58: =IFERROR(_xlfn.XLOOKUP(AE58,INDIRECT($X$1&"[מספר קרן]"),INDIRECT($X$1&"[שם קרן]")),"") -> קסם EURO STOXX 50 (4A) ETF מנוטרלת מט"ח | AG58: =IFERROR(IF(_xlfn.XLOOKUP($AE58,INDIRECT($AG$3&"[מספר קרן]"),INDIRECT($AG$3&"[ESG_DB]"))="לא מדורג","",_xlfn.XLOOKUP($AE58,INDIRECT($AG$3&"[מספר קרן]"),INDIRECT($AG$3&"[ESG_DB]"))),"last") -> 83.82 | AH58: =IFERROR(IF(_xlfn.XLOOKUP($AE58,INDIRECT($AG$3&"[מספר קרן]"),INDIRECT($AG$3&"[ESG_DB]"))="לא מדורג","",_xlfn.XLOOKUP($AE58,INDIRECT($AG$3&"[מספר קרן]"),INDIRECT($AG$3&"[ESG_DB]"))),"last") -> 83.82 | AI58: 1 | AJ58: גבוה | AK58: גבוה | AL58: מניות בחו"ל | AO58: ירדו מגבוה לנמוך | AP58: נמוך | AQ58: =COUNTIFS(INDIRECT("$AJ$4:$AJ$"&$G$1),$Q58,INDIRECT("$AK$4:$AK$"&$G$1),$R$55) -> 0 | AR58: =COUNTIFS(INDIRECT("$AJ$4:$AJ$"&$G$1),$Q58,INDIRECT("$AK$4:$AK$"&$G$1),AR$55) -> 0 | AS58: =COUNTIFS(INDIRECT("$AJ$4:$AJ$"&$G$1),$Q58,INDIRECT("$AK$4:$AK$"&$G$1),AS$55) -> 47
A59: 5119177 | B59: =IFERROR(_xlfn.XLOOKUP(A59,INDIRECT($X$1&"[מספר קרן]"),INDIRECT($X$1&"[ESG_DB]")),0) -> 51.45 | C59: 1143825 | D59: 86.5 | E59: =IFERROR(_xlfn.XLOOKUP(C59,INDIRECT($X$1&"[מספר קרן]"),INDIRECT($X$1&"[דירוג ספיר]")),0) -> ירוק | G59: 56 | H59: 1143825 | I59: =IFERROR(_xlfn.XLOOKUP(H59,INDIRECT($I$2&"[מספר קרן]"),INDIRECT($I$2&"[שם קרן]")),"") -> תכלית סל (4A)י DAX מנוטרלת מט"ח | J59: =IFERROR(IF(_xlfn.XLOOKUP($H59,INDIRECT($J$3&"[מספר קרן]"),INDIRECT($J$3&"[ESG_DB]"))="לא מדורג","",_xlfn.XLOOKUP($H59,INDIRECT($J$3&"[מספר קרן]"),INDIRECT($J$3&"[ESG_DB]"))),"") -> 86.5 | K59: =IFERROR(IF(_xlfn.XLOOKUP($H59,INDIRECT($K$3&"[מספר קרן]"),INDIRECT($K$3&"[ESG_DB]"))="לא מדורג","",_xlfn.XLOOKUP($H59,INDIRECT($K$3&"[מספר קרן]"),INDIRECT($K$3&"[ESG_DB]"))),"") -> 86.62977738 | L59: -0.001498068925 | M59: גבוה | N59: גבוה | O59: =IFERROR(_xlfn.XLOOKUP(H59,INDIRECT("$c$4:$c$"&$G$1),INDIRECT("$e$4:$e$"&$G$1)),"") -> ירוק | V59: 1148956 | W59: =IFERROR(_xlfn.XLOOKUP(V59,INDIRECT($X$1&"[מספר קרן]"),INDIRECT($X$1&"[ESG_DB]")),0) -> 31.34 | X59: 5124532 | Y59: =IFERROR(_xlfn.XLOOKUP(X59,INDIRECT($X$1&"[מספר קרן]"),INDIRECT($X$1&"[ESG_DB]")),0) -> 71.23 | AA59: 1148956 | AB59: =IF(AA59="","last",IF(_xlfn.XLOOKUP(AA59,INDIRECT($X$1&"[מספר קרן]"),INDIRECT($X$1&"[ESG_DB]"),0)="לא מדורג",0,_xlfn.XLOOKUP(AA59,INDIRECT($X$1&"[מספר קרן]"),INDIRECT($X$1&"[ESG_DB]"),0))) -> 31.34 | AD59: 56 | AE59: 1146802 | AF59: =IFERROR(_xlfn.XLOOKUP(AE59,INDIRECT($X$1&"[מספר קרן]"),INDIRECT($X$1&"[שם קרן]")),"") -> קסם Swiss Market (4D) ETF | AG59: =IFERROR(IF(_xlfn.XLOOKUP($AE59,INDIRECT($AG$3&"[מספר קרן]"),INDIRECT($AG$3&"[ESG_DB]"))="לא מדורג","",_xlfn.XLOOKUP($AE59,INDIRECT($AG$3&"[מספר קרן]"),INDIRECT($AG$3&"[ESG_DB]"))),"last") -> 83.03 | AH59: =IFERROR(IF(_xlfn.XLOOKUP($AE59,INDIRECT($AG$3&"[מספר קרן]"),INDIRECT($AG$3&"[ESG_DB]"))="לא מדורג","",_xlfn.XLOOKUP($AE59,INDIRECT($AG$3&"[מספר קרן]"),INDIRECT($AG$3&"[ESG_DB]"))),"last") -> 83.03 | AI59: 1 | AJ59: גבוה | AK59: גבוה | AL59: מניות בחו"ל
A60: 5119615 | B60: =IFERROR(_xlfn.XLOOKUP(A60,INDIRECT($X$1&"[מספר קרן]"),INDIRECT($X$1&"[ESG_DB]")),0) -> 62.28 | C60: 1146703 | D60: 86.5 | E60: =IFERROR(_xlfn.XLOOKUP(C60,INDIRECT($X$1&"[מספר קרן]"),INDIRECT($X$1&"[דירוג ספיר]")),0) -> צהוב | G60: 57 | H60: 1146703 | I60: =IFERROR(_xlfn.XLOOKUP(H60,INDIRECT($I$2&"[מספר קרן]"),INDIRECT($I$2&"[שם קרן]")),"") -> קסם DAX (4A) ETF מנוטרלת מט"ח | J60: =IFERROR(IF(_xlfn.XLOOKUP($H60,INDIRECT($J$3&"[מספר קרן]"),INDIRECT($J$3&"[ESG_DB]"))="לא מדורג","",_xlfn.XLOOKUP($H60,INDIRECT($J$3&"[מספר קרן]"),INDIRECT($J$3&"[ESG_DB]"))),"") -> 86.5 | K60: =IFERROR(IF(_xlfn.XLOOKUP($H60,INDIRECT($K$3&"[מספר קרן]"),INDIRECT($K$3&"[ESG_DB]"))="לא מדורג","",_xlfn.XLOOKUP($H60,INDIRECT($K$3&"[מספר קרן]"),INDIRECT($K$3&"[ESG_DB]"))),"") -> 86.62977738 | L60: -0.001498068925 | M60: גבוה | N60: גבוה | O60: =IFERROR(_xlfn.XLOOKUP(H60,INDIRECT("$c$4:$c$"&$G$1),INDIRECT("$e$4:$e$"&$G$1)),"") -> צהוב | Q60: עלו | S60: ירדו | V60: 1148964 | W60: =IFERROR(_xlfn.XLOOKUP(V60,INDIRECT($X$1&"[מספר קרן]"),INDIRECT($X$1&"[ESG_DB]")),0) -> 33.84 | X60: 5127147 | Y60: =IFERROR(_xlfn.XLOOKUP(X60,INDIRECT($X$1&"[מספר קרן]"),INDIRECT($X$1&"[ESG_DB]")),0) -> לא מדורג | AA60: 1148964 | AB60: =IF(AA60="","last",IF(_xlfn.XLOOKUP(AA60,INDIRECT($X$1&"[מספר קרן]"),INDIRECT($X$1&"[ESG_DB]"),0)="לא מדורג",0,_xlfn.XLOOKUP(AA60,INDIRECT($X$1&"[מספר קרן]"),INDIRECT($X$1&"[ESG_DB]"),0))) -> 33.84 | AD60: 57 | AE60: 5121843 | AF60: =IFERROR(_xlfn.XLOOKUP(AE60,INDIRECT($X$1&"[מספר קרן]"),INDIRECT($X$1&"[שם קרן]")),"") -> MTF מחקה (STOXX Europe 600 (4D | AG60: =IFERROR(IF(_xlfn.XLOOKUP($AE60,INDIRECT($AG$3&"[מספר קרן]"),INDIRECT($AG$3&"[ESG_DB]"))="לא מדורג","",_xlfn.XLOOKUP($AE60,INDIRECT($AG$3&"[מספר קרן]"),INDIRECT($AG$3&"[ESG_DB]"))),"last") -> 82.87 | AH60: =IFERROR(IF(_xlfn.XLOOKUP($AE60,INDIRECT($AG$3&"[מספר קרן]"),INDIRECT($AG$3&"[ESG_DB]"))="לא מדורג","",_xlfn.XLOOKUP($AE60,INDIRECT($AG$3&"[מספר קרן]"),INDIRECT($AG$3&"[ESG_DB]"))),"last") -> 82.87 | AI60: 1 | AJ60: גבוה | AK60: גבוה | AL60: מניות בחו"ל | AO60: עלו | AQ60: ירדו
